Workbook

Sheet Introduction
B3: =Benchmarking!C1&" Data" -> 2024-25 Data | E3: ="Kent LA Schools' Benchmarking Data "&Benchmarking!C1 -> Kent LA Schools' Benchmarking Data 2024-25
E5: THIS BENCHMARKING SHEET IS FOR PRIMARY SCHOOLS ONLY
E7: ="The Benchmarking spreadsheet shows the income and expenditure information for the "&Benchmarking!C1&" financial year at subjective account level i.e. CFR codes. It shows all revenue income and expenditure including standards funds. Capital income and expenditure is excluded." -> The Benchmarking spreadsheet shows the income and expenditure information for the 2024-25 financial year at subjective account level i.e. CFR codes. It shows all revenue income and expenditure including standards funds. Capital income and expenditure is excluded.
E12: Enter your DFE number in the pink shaded box.
E14: Select Schools with or without Nursery places, School type and Pupil options from the drop down boxes.
E17: Your school is shown compared to schools based on your selections and to the overall primary school average.
E20: The sheet is formatted to print on one page.
E22: CFR = Consistent Financial Reporting

Sheet Benchmarking
B1: Subjective Analysis of | C1: 2024-25 | D1: Income and Expenditure Compared to selected and Kent Primary Averages
F3: Nursery | G3: R to Yr 6 | I3: Benchmark against schools with Nursery's
C4: Enter last 4 digits of your DfE No. | E4: Pupil Roll | F4: =IF(ISERROR(VLOOKUP(D4,'2024-25 Data'!A3:C254,3,0)),"",VLOOKUP(D4,'2024-25 Data'!A3:C254,3,0)) ->  | G4: =IF(ISERROR(VLOOKUP(D4,'2024-25 Data'!A3:D254,4,0)),"",VLOOKUP(D4,'2024-25 Data'!A3:D254,4,0)) -> 
I5: Select type of School
B6: =B1&C1&D1 -> Subjective Analysis of 2024-25 Income and Expenditure Compared to selected and Kent Primary Averages
I7: Select Pupil Roll to Benchmark against
N9: =IF(I6="","",IF(I4=I6,"you have already selected this school","")) -> 
E10: Your School | I10: Your selection includes: | M10: All Kent Primary Schools
E11: =IF(D4="","","Total Pupil Roll : "&VLOOKUP($D$4,'2024-25 Data'!A3:I254,9,FALSE)) ->  | I11: =SUM('2024-25 Data'!M3:M254)&" Schools" -> 0 Schools
B12: =IF(D4="","",VLOOKUP($D$4,'2024-25 Data'!A3:B254,2,0)) ->  | D12: total Exp. / Inc. | E12: amount per Pupil | F12: % of total Exp. | G12: % of Exp / total inc. | I12: =E12 -> amount per Pupil | J12: =F12 -> % of total Exp. | K12: =G12 -> % of Exp / total inc. | M12: =E12 -> amount per Pupil | N12: =F12 -> % of total Exp. | O12: =G12 -> % of Exp / total inc.
B13: (Total Revenue) | D13: £ | E13: £ | F13: % | G13: % | I13: £ | J13: % | K13: % | M13: £ | N13: % | O13: %
B15: EXPENDITURE
B16: Teaching staff | C16: E01 | D16: =IF(ISERROR(INDEX('2024-25 Data'!$B$3:$CF$254,MATCH($D$4,dfenums,0),MATCH(C16,'2024-25 Data'!$B$2:$CF$2,0))),"",INDEX('2024-25 Data'!$B$3:$CF$254,MATCH($D$4,dfenums,0),MATCH(C16,'2024-25 Data'!$B$2:$CF$2,0))) ->  | E16: =IF(ISERROR(D16/($F$4+$G$4)),"",D16/($F$4+$G$4)) ->  | F16: =IF(ISERROR(D16/$D$55),"",D16/$D$55) ->  | G16: =IF(ISERROR(D16/$D$81),"",D16/-$D$81) ->  | I16: =IF(ISERROR(IF(D4>0,SUMIF('2024-25 Data'!$M$3:$M$254,1,'2024-25 Data'!$N$3:$N$254)/(SUMIF('2024-25 Data'!$M$3:$M$254,1,'2024-25 Data'!$C$3:$C$254)+SUMIF('2024-25 Data'!$M$3:$M$254,1,'2024-25 Data'!$D$3:$D$254)),"")),"",IF(D4>0,SUMIF('2024-25 Data'!$M$3:$M$254,1,'2024-25 Data'!$N$3:$N$254)/(SUMIF('2024-25 Data'!$M$3:$M$254,1,'2024-25 Data'!$C$3:$C$254)+SUMIF('2024-25 Data'!$M$3:$M$254,1,'2024-25 Data'!$D$3:$D$254)),"")) ->  | J16: =IF(ISERROR(I16/$I$55),"",I16/$I$55) ->  | K16: =IF(ISERROR(I16/$I$81),"",I16/-$I$81) ->  | M16: =IF(ISERROR(SUM('2024-25 Data'!$N$3:$N$254)/SUM('2024-25 Data'!$C$3:$D$254)),"",SUM('2024-25 Data'!$N$3:$N$254)/SUM('2024-25 Data'!$C$3:$D$254)) -> 3197.283006 | N16: =IF(ISERROR(M16/$M$55),"",M16/$M$55) -> 0.4676001367 | O16: =IF(ISERROR(M16/-$M$81),"",M16/-$M$81) -> 0.4868597335
B17: Supply teaching staff | C17: E02 | D17: =IF(ISERROR(INDEX('2024-25 Data'!$B$3:$CF$254,MATCH($D$4,dfenums,0),MATCH(C17,'2024-25 Data'!$B$2:$CF$2,0))),"",INDEX('2024-25 Data'!$B$3:$CF$254,MATCH($D$4,dfenums,0),MATCH(C17,'2024-25 Data'!$B$2:$CF$2,0))) ->  | E17: =IF(ISERROR(D17/($F$4+$G$4)),"",D17/($F$4+$G$4)) ->  | I17: =IF(ISERROR(IF(D4>0,SUMIF('2024-25 Data'!$M$3:$M$254,1,'2024-25 Data'!$O$3:$O$254)/(SUMIF('2024-25 Data'!$M$3:$M$254,1,'2024-25 Data'!$C$3:$C$254)+SUMIF('2024-25 Data'!$M$3:$M$254,1,'2024-25 Data'!$D$3:$D$254)),"")),"",IF(D4>0,SUMIF('2024-25 Data'!$M$3:$M$254,1,'2024-25 Data'!$O$3:$O$254)/(SUMIF('2024-25 Data'!$M$3:$M$254,1,'2024-25 Data'!$C$3:$C$254)+SUMIF('2024-25 Data'!$M$3:$M$254,1,'2024-25 Data'!$D$3:$D$254)),"")) ->  | M17: =IF(ISERROR(SUM('2024-25 Data'!$O$3:$O$254)/SUM('2024-25 Data'!$C$3:$D$254)),"",SUM('2024-25 Data'!$O$3:$O$254)/SUM('2024-25 Data'!$C$3:$D$254)) -> 25.44226227 | N17: 0.00372091094 | O17: 0.003874168476
B18: Education support staff | C18: E03 | D18: =IF(ISERROR(INDEX('2024-25 Data'!$B$3:$CF$254,MATCH($D$4,dfenums,0),MATCH(C18,'2024-25 Data'!$B$2:$CF$2,0))),"",INDEX('2024-25 Data'!$B$3:$CF$254,MATCH($D$4,dfenums,0),MATCH(C18,'2024-25 Data'!$B$2:$CF$2,0))) ->  | I18: =IF(ISERROR(IF(D4>0,SUMIF('2024-25 Data'!$M$3:$M$254,1,'2024-25 Data'!$P$3:$P$254)/(SUMIF('2024-25 Data'!$M$3:$M$254,1,'2024-25 Data'!$C$3:$C$254)+SUMIF('2024-25 Data'!$M$3:$M$254,1,'2024-25 Data'!$D$3:$D$254)),"")),"",IF(D4>0,SUMIF('2024-25 Data'!$M$3:$M$254,1,'2024-25 Data'!$P$3:$P$254)/(SUMIF('2024-25 Data'!$M$3:$M$254,1,'2024-25 Data'!$C$3:$C$254)+SUMIF('2024-25 Data'!$M$3:$M$254,1,'2024-25 Data'!$D$3:$D$254)),"")) ->  | M18: =IF(ISERROR(SUM('2024-25 Data'!$P$3:$P$254)/SUM('2024-25 Data'!$C$3:$D$254)),"",SUM('2024-25 Data'!$P$3:$P$254)/SUM('2024-25 Data'!$C$3:$D$254)) -> 1357.622187 | N18: 0.198551182 | O18: 0.2067291431
B19: Premises staff | C19: E04 | D19: =IF(ISERROR(INDEX('2024-25 Data'!$B$3:$CF$254,MATCH($D$4,dfenums,0),MATCH(C19,'2024-25 Data'!$B$2:$CF$2,0))),"",INDEX('2024-25 Data'!$B$3:$CF$254,MATCH($D$4,dfenums,0),MATCH(C19,'2024-25 Data'!$B$2:$CF$2,0))) ->  | I19: =IF(ISERROR(IF(D4>0,SUMIF('2024-25 Data'!$M$3:$M$254,1,'2024-25 Data'!$Q$3:$Q$254)/(SUMIF('2024-25 Data'!$M$3:$M$254,1,'2024-25 Data'!$C$3:$C$254)+SUMIF('2024-25 Data'!$M$3:$M$254,1,'2024-25 Data'!$D$3:$D$254)),"")),"",IF(D4>0,SUMIF('2024-25 Data'!$M$3:$M$254,1,'2024-25 Data'!$Q$3:$Q$254)/(SUMIF('2024-25 Data'!$M$3:$M$254,1,'2024-25 Data'!$C$3:$C$254)+SUMIF('2024-25 Data'!$M$3:$M$254,1,'2024-25 Data'!$D$3:$D$254)),"")) ->  | M19: =IF(ISERROR(SUM('2024-25 Data'!$Q$3:$Q$254)/SUM('2024-25 Data'!$C$3:$D$254)),"",SUM('2024-25 Data'!$Q$3:$Q$254)/SUM('2024-25 Data'!$C$3:$D$254)) -> 157.1725344 | N19: 0.02298636011 | O19: 0.02393312636
B20: Administrative and clerical staff | C20: E05 | D20: =IF(ISERROR(INDEX('2024-25 Data'!$B$3:$CF$254,MATCH($D$4,dfenums,0),MATCH(C20,'2024-25 Data'!$B$2:$CF$2,0))),"",INDEX('2024-25 Data'!$B$3:$CF$254,MATCH($D$4,dfenums,0),MATCH(C20,'2024-25 Data'!$B$2:$CF$2,0))) ->  | I20: =IF(ISERROR(IF(D4>0,SUMIF('2024-25 Data'!$M$3:$M$254,1,'2024-25 Data'!$R$3:$R$254)/(SUMIF('2024-25 Data'!$M$3:$M$254,1,'2024-25 Data'!$C$3:$C$254)+SUMIF('2024-25 Data'!$M$3:$M$254,1,'2024-25 Data'!$D$3:$D$254)),"")),"",IF(D4>0,SUMIF('2024-25 Data'!$M$3:$M$254,1,'2024-25 Data'!$R$3:$R$254)/(SUMIF('2024-25 Data'!$M$3:$M$254,1,'2024-25 Data'!$C$3:$C$254)+SUMIF('2024-25 Data'!$M$3:$M$254,1,'2024-25 Data'!$D$3:$D$254)),"")) ->  | M20: =IF(ISERROR(SUM('2024-25 Data'!$R$3:$R$254)/SUM('2024-25 Data'!$C$3:$D$254)),"",SUM('2024-25 Data'!$R$3:$R$254)/SUM('2024-25 Data'!$C$3:$D$254)) -> 308.1672171 | N20: 0.04506921425 | O20: 0.046925533
B21: Catering staff | C21: E06 | D21: =IF(ISERROR(INDEX('2024-25 Data'!$B$3:$CF$254,MATCH($D$4,dfenums,0),MATCH(C21,'2024-25 Data'!$B$2:$CF$2,0))),"",INDEX('2024-25 Data'!$B$3:$CF$254,MATCH($D$4,dfenums,0),MATCH(C21,'2024-25 Data'!$B$2:$CF$2,0))) ->  | I21: =IF(ISERROR(IF(D4>0,SUMIF('2024-25 Data'!$M$3:$M$254,1,'2024-25 Data'!$S$3:$S$254)/(SUMIF('2024-25 Data'!$M$3:$M$254,1,'2024-25 Data'!$C$3:$C$254)+SUMIF('2024-25 Data'!$M$3:$M$254,1,'2024-25 Data'!$D$3:$D$254)),"")),"",IF(D4>0,SUMIF('2024-25 Data'!$M$3:$M$254,1,'2024-25 Data'!$S$3:$S$254)/(SUMIF('2024-25 Data'!$M$3:$M$254,1,'2024-25 Data'!$C$3:$C$254)+SUMIF('2024-25 Data'!$M$3:$M$254,1,'2024-25 Data'!$D$3:$D$254)),"")) ->  | M21: =IF(ISERROR(SUM('2024-25 Data'!$S$3:$S$254)/SUM('2024-25 Data'!$C$3:$D$254)),"",SUM('2024-25 Data'!$S$3:$S$254)/SUM('2024-25 Data'!$C$3:$D$254)) -> 26.45971513 | N21: 0.003869712624 | O21: 0.00402909903
B22: Cost of other staff | C22: E07 | D22: =IF(ISERROR(INDEX('2024-25 Data'!$B$3:$CF$254,MATCH($D$4,dfenums,0),MATCH(C22,'2024-25 Data'!$B$2:$CF$2,0))),"",INDEX('2024-25 Data'!$B$3:$CF$254,MATCH($D$4,dfenums,0),MATCH(C22,'2024-25 Data'!$B$2:$CF$2,0))) ->  | I22: =IF(ISERROR(IF(D4>0,SUMIF('2024-25 Data'!$M$3:$M$254,1,'2024-25 Data'!$T$3:$T$254)/(SUMIF('2024-25 Data'!$M$3:$M$254,1,'2024-25 Data'!$C$3:$C$254)+SUMIF('2024-25 Data'!$M$3:$M$254,1,'2024-25 Data'!$D$3:$D$254)),"")),"",IF(D4>0,SUMIF('2024-25 Data'!$M$3:$M$254,1,'2024-25 Data'!$T$3:$T$254)/(SUMIF('2024-25 Data'!$M$3:$M$254,1,'2024-25 Data'!$C$3:$C$254)+SUMIF('2024-25 Data'!$M$3:$M$254,1,'2024-25 Data'!$D$3:$D$254)),"")) ->  | M22: =IF(ISERROR(SUM('2024-25 Data'!$T$3:$T$254)/SUM('2024-25 Data'!$C$3:$D$254)),"",SUM('2024-25 Data'!$T$3:$T$254)/SUM('2024-25 Data'!$C$3:$D$254)) -> 188.0733905 | N22: 0.02750558613 | O22: 0.02863849106
B23: Indirect employee expenses | C23: E08 | D23: =IF(ISERROR(INDEX('2024-25 Data'!$B$3:$CF$254,MATCH($D$4,dfenums,0),MATCH(C23,'2024-25 Data'!$B$2:$CF$2,0))),"",INDEX('2024-25 Data'!$B$3:$CF$254,MATCH($D$4,dfenums,0),MATCH(C23,'2024-25 Data'!$B$2:$CF$2,0))) ->  | I23: =IF(ISERROR(IF(D4>0,SUMIF('2024-25 Data'!$M$3:$M$254,1,'2024-25 Data'!$U$3:$U$254)/(SUMIF('2024-25 Data'!$M$3:$M$254,1,'2024-25 Data'!$C$3:$C$254)+SUMIF('2024-25 Data'!$M$3:$M$254,1,'2024-25 Data'!$D$3:$D$254)),"")),"",IF(D4>0,SUMIF('2024-25 Data'!$M$3:$M$254,1,'2024-25 Data'!$U$3:$U$254)/(SUMIF('2024-25 Data'!$M$3:$M$254,1,'2024-25 Data'!$C$3:$C$254)+SUMIF('2024-25 Data'!$M$3:$M$254,1,'2024-25 Data'!$D$3:$D$254)),"")) ->  | M23: =IF(ISERROR(SUM('2024-25 Data'!$U$3:$U$254)/SUM('2024-25 Data'!$C$3:$D$254)),"",SUM('2024-25 Data'!$U$3:$U$254)/SUM('2024-25 Data'!$C$3:$D$254)) -> 23.416223 | N23: 0.003424604283 | O23: 0.003565657488
B24: Development and training | C24: E09 | D24: =IF(ISERROR(INDEX('2024-25 Data'!$B$3:$CF$254,MATCH($D$4,dfenums,0),MATCH(C24,'2024-25 Data'!$B$2:$CF$2,0))),"",INDEX('2024-25 Data'!$B$3:$CF$254,MATCH($D$4,dfenums,0),MATCH(C24,'2024-25 Data'!$B$2:$CF$2,0))) ->  | I24: =IF(ISERROR(IF(D4>0,SUMIF('2024-25 Data'!$M$3:$M$254,1,'2024-25 Data'!$V$3:$V$254)/(SUMIF('2024-25 Data'!$M$3:$M$254,1,'2024-25 Data'!$C$3:$C$254)+SUMIF('2024-25 Data'!$M$3:$M$254,1,'2024-25 Data'!$D$3:$D$254)),"")),"",IF(D4>0,SUMIF('2024-25 Data'!$M$3:$M$254,1,'2024-25 Data'!$V$3:$V$254)/(SUMIF('2024-25 Data'!$M$3:$M$254,1,'2024-25 Data'!$C$3:$C$254)+SUMIF('2024-25 Data'!$M$3:$M$254,1,'2024-25 Data'!$D$3:$D$254)),"")) ->  | M24: =IF(ISERROR(SUM('2024-25 Data'!$V$3:$V$254)/SUM('2024-25 Data'!$C$3:$D$254)),"",SUM('2024-25 Data'!$V$3:$V$254)/SUM('2024-25 Data'!$C$3:$D$254)) -> 25.78116706 | N24: 0.003770475499 | O24: 0.003925774509
B25: Supply teacher insurance | C25: E10 | D25: =IF(ISERROR(INDEX('2024-25 Data'!$B$3:$CF$254,MATCH($D$4,dfenums,0),MATCH(C25,'2024-25 Data'!$B$2:$CF$2,0))),"",INDEX('2024-25 Data'!$B$3:$CF$254,MATCH($D$4,dfenums,0),MATCH(C25,'2024-25 Data'!$B$2:$CF$2,0))) ->  | I25: =IF(ISERROR(IF(D4>0,SUMIF('2024-25 Data'!$M$3:$M$254,1,'2024-25 Data'!$W$3:$W$254)/(SUMIF('2024-25 Data'!$M$3:$M$254,1,'2024-25 Data'!$C$3:$C$254)+SUMIF('2024-25 Data'!$M$3:$M$254,1,'2024-25 Data'!$D$3:$D$254)),"")),"",IF(D4>0,SUMIF('2024-25 Data'!$M$3:$M$254,1,'2024-25 Data'!$W$3:$W$254)/(SUMIF('2024-25 Data'!$M$3:$M$254,1,'2024-25 Data'!$C$3:$C$254)+SUMIF('2024-25 Data'!$M$3:$M$254,1,'2024-25 Data'!$D$3:$D$254)),"")) ->  | M25: =IF(ISERROR(SUM('2024-25 Data'!$W$3:$W$254)/SUM('2024-25 Data'!$C$3:$D$254)),"",SUM('2024-25 Data'!$W$3:$W$254)/SUM('2024-25 Data'!$C$3:$D$254)) -> 15.99946283 | N25: 0.002339908914 | O25: 0.002436285495
B26: Staff related insurance | C26: E11 | D26: =IF(ISERROR(INDEX('2024-25 Data'!$B$3:$CF$254,MATCH($D$4,dfenums,0),MATCH(C26,'2024-25 Data'!$B$2:$CF$2,0))),"",INDEX('2024-25 Data'!$B$3:$CF$254,MATCH($D$4,dfenums,0),MATCH(C26,'2024-25 Data'!$B$2:$CF$2,0))) ->  | I26: =IF(ISERROR(IF(D4>0,SUMIF('2024-25 Data'!$M$3:$M$254,1,'2024-25 Data'!$X$3:$X$254)/(SUMIF('2024-25 Data'!$M$3:$M$254,1,'2024-25 Data'!$C$3:$C$254)+SUMIF('2024-25 Data'!$M$3:$M$254,1,'2024-25 Data'!$D$3:$D$254)),"")),"",IF(D4>0,SUMIF('2024-25 Data'!$M$3:$M$254,1,'2024-25 Data'!$X$3:$X$254)/(SUMIF('2024-25 Data'!$M$3:$M$254,1,'2024-25 Data'!$C$3:$C$254)+SUMIF('2024-25 Data'!$M$3:$M$254,1,'2024-25 Data'!$D$3:$D$254)),"")) ->  | M26: =IF(ISERROR(SUM('2024-25 Data'!$X$3:$X$254)/SUM('2024-25 Data'!$C$3:$D$254)),"",SUM('2024-25 Data'!$X$3:$X$254)/SUM('2024-25 Data'!$C$3:$D$254)) -> 28.45842419 | N26: 0.004162022259 | O26: 0.004333448365
B27: Building maintenance and improvement | C27: E12 | D27: =IF(ISERROR(INDEX('2024-25 Data'!$B$3:$CF$254,MATCH($D$4,dfenums,0),MATCH(C27,'2024-25 Data'!$B$2:$CF$2,0))),"",INDEX('2024-25 Data'!$B$3:$CF$254,MATCH($D$4,dfenums,0),MATCH(C27,'2024-25 Data'!$B$2:$CF$2,0))) ->  | I27: =IF(ISERROR(IF(D4>0,SUMIF('2024-25 Data'!$M$3:$M$254,1,'2024-25 Data'!$Y$3:$Y$254)/(SUMIF('2024-25 Data'!$M$3:$M$254,1,'2024-25 Data'!$C$3:$C$254)+SUMIF('2024-25 Data'!$M$3:$M$254,1,'2024-25 Data'!$D$3:$D$254)),"")),"",IF(D4>0,SUMIF('2024-25 Data'!$M$3:$M$254,1,'2024-25 Data'!$Y$3:$Y$254)/(SUMIF('2024-25 Data'!$M$3:$M$254,1,'2024-25 Data'!$C$3:$C$254)+SUMIF('2024-25 Data'!$M$3:$M$254,1,'2024-25 Data'!$D$3:$D$254)),"")) ->  | M27: =IF(ISERROR(SUM('2024-25 Data'!$Y$3:$Y$254)/SUM('2024-25 Data'!$C$3:$D$254)),"",SUM('2024-25 Data'!$Y$3:$Y$254)/SUM('2024-25 Data'!$C$3:$D$254)) -> 59.05485234 | N27: 0.008636725924 | O27: 0.008992456914
B28: Grounds maintenance and improvement | C28: E13 | D28: =IF(ISERROR(INDEX('2024-25 Data'!$B$3:$CF$254,MATCH($D$4,dfenums,0),MATCH(C28,'2024-25 Data'!$B$2:$CF$2,0))),"",INDEX('2024-25 Data'!$B$3:$CF$254,MATCH($D$4,dfenums,0),MATCH(C28,'2024-25 Data'!$B$2:$CF$2,0))) ->  | I28: =IF(ISERROR(IF(D4>0,SUMIF('2024-25 Data'!$M$3:$M$254,1,'2024-25 Data'!$Z$3:$Z$254)/(SUMIF('2024-25 Data'!$M$3:$M$254,1,'2024-25 Data'!$C$3:$C$254)+SUMIF('2024-25 Data'!$M$3:$M$254,1,'2024-25 Data'!$D$3:$D$254)),"")),"",IF(D4>0,SUMIF('2024-25 Data'!$M$3:$M$254,1,'2024-25 Data'!$Z$3:$Z$254)/(SUMIF('2024-25 Data'!$M$3:$M$254,1,'2024-25 Data'!$C$3:$C$254)+SUMIF('2024-25 Data'!$M$3:$M$254,1,'2024-25 Data'!$D$3:$D$254)),"")) ->  | M28: =IF(ISERROR(SUM('2024-25 Data'!$Z$3:$Z$254)/SUM('2024-25 Data'!$C$3:$D$254)),"",SUM('2024-25 Data'!$Z$3:$Z$254)/SUM('2024-25 Data'!$C$3:$D$254)) -> 30.99986863 | N28: 0.004533706519 | O28: 0.004720441622
B29: Cleaning and caretaking | C29: E14 | D29: =IF(ISERROR(INDEX('2024-25 Data'!$B$3:$CF$254,MATCH($D$4,dfenums,0),MATCH(C29,'2024-25 Data'!$B$2:$CF$2,0))),"",INDEX('2024-25 Data'!$B$3:$CF$254,MATCH($D$4,dfenums,0),MATCH(C29,'2024-25 Data'!$B$2:$CF$2,0))) ->  | I29: =IF(ISERROR(IF(D4>0,SUMIF('2024-25 Data'!$M$3:$M$254,1,'2024-25 Data'!$AA$3:$AA$254)/(SUMIF('2024-25 Data'!$M$3:$M$254,1,'2024-25 Data'!$C$3:$C$254)+SUMIF('2024-25 Data'!$M$3:$M$254,1,'2024-25 Data'!$D$3:$D$254)),"")),"",IF(D4>0,SUMIF('2024-25 Data'!$M$3:$M$254,1,'2024-25 Data'!$AA$3:$AA$254)/(SUMIF('2024-25 Data'!$M$3:$M$254,1,'2024-25 Data'!$C$3:$C$254)+SUMIF('2024-25 Data'!$M$3:$M$254,1,'2024-25 Data'!$D$3:$D$254)),"")) ->  | M29: =IF(ISERROR(SUM('2024-25 Data'!$AA$3:$AA$254)/SUM('2024-25 Data'!$C$3:$D$254)),"",SUM('2024-25 Data'!$AA$3:$AA$254)/SUM('2024-25 Data'!$C$3:$D$254)) -> 76.72800748 | N29: 0.01122141103 | O29: 0.01168360048
B30: Water and sewerage | C30: E15 | D30: =IF(ISERROR(INDEX('2024-25 Data'!$B$3:$CF$254,MATCH($D$4,dfenums,0),MATCH(C30,'2024-25 Data'!$B$2:$CF$2,0))),"",INDEX('2024-25 Data'!$B$3:$CF$254,MATCH($D$4,dfenums,0),MATCH(C30,'2024-25 Data'!$B$2:$CF$2,0))) ->  | I30: =IF(ISERROR(IF(D4>0,SUMIF('2024-25 Data'!$M$3:$M$254,1,'2024-25 Data'!$AB$3:$AB$254)/(SUMIF('2024-25 Data'!$M$3:$M$254,1,'2024-25 Data'!$C$3:$C$254)+SUMIF('2024-25 Data'!$M$3:$M$254,1,'2024-25 Data'!$D$3:$D$254)),"")),"",IF(D4>0,SUMIF('2024-25 Data'!$M$3:$M$254,1,'2024-25 Data'!$AB$3:$AB$254)/(SUMIF('2024-25 Data'!$M$3:$M$254,1,'2024-25 Data'!$C$3:$C$254)+SUMIF('2024-25 Data'!$M$3:$M$254,1,'2024-25 Data'!$D$3:$D$254)),"")) ->  | M30: =IF(ISERROR(SUM('2024-25 Data'!$AB$3:$AB$254)/SUM('2024-25 Data'!$C$3:$D$254)),"",SUM('2024-25 Data'!$AB$3:$AB$254)/SUM('2024-25 Data'!$C$3:$D$254)) -> 23.58788172 | N30: 0.003449709237 | O30: 0.003591796469
B31: Energy | C31: E16 | D31: =IF(ISERROR(INDEX('2024-25 Data'!$B$3:$CF$254,MATCH($D$4,dfenums,0),MATCH(C31,'2024-25 Data'!$B$2:$CF$2,0))),"",INDEX('2024-25 Data'!$B$3:$CF$254,MATCH($D$4,dfenums,0),MATCH(C31,'2024-25 Data'!$B$2:$CF$2,0))) ->  | I31: =IF(ISERROR(IF(D4>0,SUMIF('2024-25 Data'!$M$3:$M$254,1,'2024-25 Data'!$AC$3:$AC$254)/(SUMIF('2024-25 Data'!$M$3:$M$254,1,'2024-25 Data'!$C$3:$C$254)+SUMIF('2024-25 Data'!$M$3:$M$254,1,'2024-25 Data'!$D$3:$D$254)),"")),"",IF(D4>0,SUMIF('2024-25 Data'!$M$3:$M$254,1,'2024-25 Data'!$AC$3:$AC$254)/(SUMIF('2024-25 Data'!$M$3:$M$254,1,'2024-25 Data'!$C$3:$C$254)+SUMIF('2024-25 Data'!$M$3:$M$254,1,'2024-25 Data'!$D$3:$D$254)),"")) ->  | M31: =IF(ISERROR(SUM('2024-25 Data'!$AC$3:$AC$254)/SUM('2024-25 Data'!$C$3:$D$254)),"",SUM('2024-25 Data'!$AC$3:$AC$254)/SUM('2024-25 Data'!$C$3:$D$254)) -> 115.3085489 | N31: 0.016863785 | O31: 0.01755837355
B32: Rates | C32: E17 | D32: =IF(ISERROR(INDEX('2024-25 Data'!$B$3:$CF$254,MATCH($D$4,dfenums,0),MATCH(C32,'2024-25 Data'!$B$2:$CF$2,0))),"",INDEX('2024-25 Data'!$B$3:$CF$254,MATCH($D$4,dfenums,0),MATCH(C32,'2024-25 Data'!$B$2:$CF$2,0))) ->  | I32: =IF(ISERROR(IF(D4>0,SUMIF('2024-25 Data'!$M$3:$M$254,1,'2024-25 Data'!$AD$3:$AD$254)/(SUMIF('2024-25 Data'!$M$3:$M$254,1,'2024-25 Data'!$C$3:$C$254)+SUMIF('2024-25 Data'!$M$3:$M$254,1,'2024-25 Data'!$D$3:$D$254)),"")),"",IF(D4>0,SUMIF('2024-25 Data'!$M$3:$M$254,1,'2024-25 Data'!$AD$3:$AD$254)/(SUMIF('2024-25 Data'!$M$3:$M$254,1,'2024-25 Data'!$C$3:$C$254)+SUMIF('2024-25 Data'!$M$3:$M$254,1,'2024-25 Data'!$D$3:$D$254)),"")) ->  | M32: =IF(ISERROR(SUM('2024-25 Data'!$AD$3:$AD$254)/SUM('2024-25 Data'!$C$3:$D$254)),"",SUM('2024-25 Data'!$AD$3:$AD$254)/SUM('2024-25 Data'!$C$3:$D$254)) -> 108.6081415 | N32: 0.01588385567 | O32: 0.01653808272
B33: Other occupation costs | C33: E18 | D33: =IF(ISERROR(INDEX('2024-25 Data'!$B$3:$CF$254,MATCH($D$4,dfenums,0),MATCH(C33,'2024-25 Data'!$B$2:$CF$2,0))),"",INDEX('2024-25 Data'!$B$3:$CF$254,MATCH($D$4,dfenums,0),MATCH(C33,'2024-25 Data'!$B$2:$CF$2,0))) ->  | I33: =IF(ISERROR(IF(D4>0,SUMIF('2024-25 Data'!$M$3:$M$254,1,'2024-25 Data'!$AE$3:$AE$254)/(SUMIF('2024-25 Data'!$M$3:$M$254,1,'2024-25 Data'!$C$3:$C$254)+SUMIF('2024-25 Data'!$M$3:$M$254,1,'2024-25 Data'!$D$3:$D$254)),"")),"",IF(D4>0,SUMIF('2024-25 Data'!$M$3:$M$254,1,'2024-25 Data'!$AE$3:$AE$254)/(SUMIF('2024-25 Data'!$M$3:$M$254,1,'2024-25 Data'!$C$3:$C$254)+SUMIF('2024-25 Data'!$M$3:$M$254,1,'2024-25 Data'!$D$3:$D$254)),"")) ->  | M33: =IF(ISERROR(SUM('2024-25 Data'!$AE$3:$AE$254)/SUM('2024-25 Data'!$C$3:$D$254)),"",SUM('2024-25 Data'!$AE$3:$AE$254)/SUM('2024-25 Data'!$C$3:$D$254)) -> 45.65228253 | N33: 0.006676610582 | O33: 0.006951607996
B34: Learning resources (not ICT equipment) | C34: E19 | D34: =IF(ISERROR(INDEX('2024-25 Data'!$B$3:$CF$254,MATCH($D$4,dfenums,0),MATCH(C34,'2024-25 Data'!$B$2:$CF$2,0))),"",INDEX('2024-25 Data'!$B$3:$CF$254,MATCH($D$4,dfenums,0),MATCH(C34,'2024-25 Data'!$B$2:$CF$2,0))) ->  | I34: =IF(ISERROR(IF(D4>0,SUMIF('2024-25 Data'!$M$3:$M$254,1,'2024-25 Data'!$AF$3:$AF$254)/(SUMIF('2024-25 Data'!$M$3:$M$254,1,'2024-25 Data'!$C$3:$C$254)+SUMIF('2024-25 Data'!$M$3:$M$254,1,'2024-25 Data'!$D$3:$D$254)),"")),"",IF(D4>0,SUMIF('2024-25 Data'!$M$3:$M$254,1,'2024-25 Data'!$AF$3:$AF$254)/(SUMIF('2024-25 Data'!$M$3:$M$254,1,'2024-25 Data'!$C$3:$C$254)+SUMIF('2024-25 Data'!$M$3:$M$254,1,'2024-25 Data'!$D$3:$D$254)),"")) ->  | M34: =IF(ISERROR(SUM('2024-25 Data'!$AF$3:$AF$254)/SUM('2024-25 Data'!$C$3:$D$254)),"",SUM('2024-25 Data'!$AF$3:$AF$254)/SUM('2024-25 Data'!$C$3:$D$254)) -> 243.8314525 | N34: 0.03566015905 | O34: 0.03712893597
B35: Connectivity | C35: E20A | D35: =IF(ISERROR(INDEX('2024-25 Data'!$B$3:$CF$254,MATCH($D$4,dfenums,0),MATCH(C35,'2024-25 Data'!$B$2:$CF$2,0))),"",INDEX('2024-25 Data'!$B$3:$CF$254,MATCH($D$4,dfenums,0),MATCH(C35,'2024-25 Data'!$B$2:$CF$2,0))) ->  | E35: =IF(ISERROR(D35/($F$4+$G$4)),"",D35/($F$4+$G$4)) ->  | F35: =IF(ISERROR(D35/$D$55),"",D35/$D$55) ->  | G35: =IF(ISERROR(D35/$D$81),"",D35/-$D$81) ->  | I35: =IF(ISERROR(IF(D4>0,SUMIF('2024-25 Data'!$M$3:$M$254,1,'2024-25 Data'!$AG$3:$AG$254)/(SUMIF('2024-25 Data'!$M$3:$M$254,1,'2024-25 Data'!$C$3:$C$254)+SUMIF('2024-25 Data'!$M$3:$M$254,1,'2024-25 Data'!$D$3:$D$254)),"")),"",IF(D4>0,SUMIF('2024-25 Data'!$M$3:$M$254,1,'2024-25 Data'!$AG$3:$AG$254)/(SUMIF('2024-25 Data'!$M$3:$M$254,1,'2024-25 Data'!$C$3:$C$254)+SUMIF('2024-25 Data'!$M$3:$M$254,1,'2024-25 Data'!$D$3:$D$254)),"")) ->  | K35: =IF(ISERROR(I35/$I$81),"",I35/-$I$81) ->  | M35: =IF(ISERROR(SUM('2024-25 Data'!$AG$3:$AG$254)/SUM('2024-25 Data'!$C$3:$D$254)),"",SUM('2024-25 Data'!$AG$3:$AG$254)/SUM('2024-25 Data'!$C$3:$D$254)) -> 19.39180645 | N35: 0.002836036513 | O35: =IF(ISERROR(M35/-$M$81),"",M35/-$M$81) -> 0.002952847685
B36: Onsite servers | C36: E20B | D36: =IF(ISERROR(INDEX('2024-25 Data'!$B$3:$CF$254,MATCH($D$4,dfenums,0),MATCH(C36,'2024-25 Data'!$B$2:$CF$2,0))),"",INDEX('2024-25 Data'!$B$3:$CF$254,MATCH($D$4,dfenums,0),MATCH(C36,'2024-25 Data'!$B$2:$CF$2,0))) ->  | I36: =IF(ISERROR(IF(D4>0,SUMIF('2024-25 Data'!$M$3:$M$254,1,'2024-25 Data'!$AH$3:$AH$254)/(SUMIF('2024-25 Data'!$M$3:$M$254,1,'2024-25 Data'!$C$3:$C$254)+SUMIF('2024-25 Data'!$M$3:$M$254,1,'2024-25 Data'!$D$3:$D$254)),"")),"",IF(D4>0,SUMIF('2024-25 Data'!$M$3:$M$254,1,'2024-25 Data'!$AH$3:$AH$254)/(SUMIF('2024-25 Data'!$M$3:$M$254,1,'2024-25 Data'!$C$3:$C$254)+SUMIF('2024-25 Data'!$M$3:$M$254,1,'2024-25 Data'!$D$3:$D$254)),"")) ->  | M36: =IF(ISERROR(SUM('2024-25 Data'!$AH$3:$AH$254)/SUM('2024-25 Data'!$C$3:$D$254)),"",SUM('2024-25 Data'!$AH$3:$AH$254)/SUM('2024-25 Data'!$C$3:$D$254)) -> 1.390314321 | N36: 0.0002033323811 | O36: 0.0002117072711
B37: IT learning resources | C37: E20C | D37: =IF(ISERROR(INDEX('2024-25 Data'!$B$3:$CF$254,MATCH($D$4,dfenums,0),MATCH(C37,'2024-25 Data'!$B$2:$CF$2,0))),"",INDEX('2024-25 Data'!$B$3:$CF$254,MATCH($D$4,dfenums,0),MATCH(C37,'2024-25 Data'!$B$2:$CF$2,0))) ->  | I37: =IF(ISERROR(IF(D4>0,SUMIF('2024-25 Data'!$M$3:$M$254,1,'2024-25 Data'!$AI$3:$AI$254)/(SUMIF('2024-25 Data'!$M$3:$M$254,1,'2024-25 Data'!$C$3:$C$254)+SUMIF('2024-25 Data'!$M$3:$M$254,1,'2024-25 Data'!$D$3:$D$254)),"")),"",IF(D4>0,SUMIF('2024-25 Data'!$M$3:$M$254,1,'2024-25 Data'!$AI$3:$AI$254)/(SUMIF('2024-25 Data'!$M$3:$M$254,1,'2024-25 Data'!$C$3:$C$254)+SUMIF('2024-25 Data'!$M$3:$M$254,1,'2024-25 Data'!$D$3:$D$254)),"")) ->  | M37: =IF(ISERROR(SUM('2024-25 Data'!$AI$3:$AI$254)/SUM('2024-25 Data'!$C$3:$D$254)),"",SUM('2024-25 Data'!$AI$3:$AI$254)/SUM('2024-25 Data'!$C$3:$D$254)) -> 23.69525651 | N37: 0.003465412714 | O37: 0.003608146744
B38: Administration software and systems | C38: E20D | D38: =IF(ISERROR(INDEX('2024-25 Data'!$B$3:$CF$254,MATCH($D$4,dfenums,0),MATCH(C38,'2024-25 Data'!$B$2:$CF$2,0))),"",INDEX('2024-25 Data'!$B$3:$CF$254,MATCH($D$4,dfenums,0),MATCH(C38,'2024-25 Data'!$B$2:$CF$2,0))) ->  | I38: =IF(ISERROR(IF(D4>0,SUMIF('2024-25 Data'!$M$3:$M$254,1,'2024-25 Data'!$AJ$3:$AJ$254)/(SUMIF('2024-25 Data'!$M$3:$M$254,1,'2024-25 Data'!$C$3:$C$254)+SUMIF('2024-25 Data'!$M$3:$M$254,1,'2024-25 Data'!$D$3:$D$254)),"")),"",IF(D4>0,SUMIF('2024-25 Data'!$M$3:$M$254,1,'2024-25 Data'!$AJ$3:$AJ$254)/(SUMIF('2024-25 Data'!$M$3:$M$254,1,'2024-25 Data'!$C$3:$C$254)+SUMIF('2024-25 Data'!$M$3:$M$254,1,'2024-25 Data'!$D$3:$D$254)),"")) ->  | M38: =IF(ISERROR(SUM('2024-25 Data'!$AJ$3:$AJ$254)/SUM('2024-25 Data'!$C$3:$D$254)),"",SUM('2024-25 Data'!$AJ$3:$AJ$254)/SUM('2024-25 Data'!$C$3:$D$254)) -> 36.96674614 | N38: 0.005406357684 | O38: 0.005629035698
B39: Laptops, desktops and tablets | C39: E20E | D39: =IF(ISERROR(INDEX('2024-25 Data'!$B$3:$CF$254,MATCH($D$4,dfenums,0),MATCH(C39,'2024-25 Data'!$B$2:$CF$2,0))),"",INDEX('2024-25 Data'!$B$3:$CF$254,MATCH($D$4,dfenums,0),MATCH(C39,'2024-25 Data'!$B$2:$CF$2,0))) ->  | I39: =IF(ISERROR(IF(D4>0,SUMIF('2024-25 Data'!$M$3:$M$254,1,'2024-25 Data'!$AK$3:$AK$254)/(SUMIF('2024-25 Data'!$M$3:$M$254,1,'2024-25 Data'!$C$3:$C$254)+SUMIF('2024-25 Data'!$M$3:$M$254,1,'2024-25 Data'!$D$3:$D$254)),"")),"",IF(D4>0,SUMIF('2024-25 Data'!$M$3:$M$254,1,'2024-25 Data'!$AK$3:$AK$254)/(SUMIF('2024-25 Data'!$M$3:$M$254,1,'2024-25 Data'!$C$3:$C$254)+SUMIF('2024-25 Data'!$M$3:$M$254,1,'2024-25 Data'!$D$3:$D$254)),"")) ->  | M39: =IF(ISERROR(SUM('2024-25 Data'!$AK$3:$AK$254)/SUM('2024-25 Data'!$C$3:$D$254)),"",SUM('2024-25 Data'!$AK$3:$AK$254)/SUM('2024-25 Data'!$C$3:$D$254)) -> 10.67815085 | N39: 0.001561671202 | O39: 0.001625993591
B40: Other hardware | C40: E20F | D40: =IF(ISERROR(INDEX('2024-25 Data'!$B$3:$CF$254,MATCH($D$4,dfenums,0),MATCH(C40,'2024-25 Data'!$B$2:$CF$2,0))),"",INDEX('2024-25 Data'!$B$3:$CF$254,MATCH($D$4,dfenums,0),MATCH(C40,'2024-25 Data'!$B$2:$CF$2,0))) ->  | I40: =IF(ISERROR(IF(D4>0,SUMIF('2024-25 Data'!$M$3:$M$254,1,'2024-25 Data'!$AL$3:$AL$254)/(SUMIF('2024-25 Data'!$M$3:$M$254,1,'2024-25 Data'!$C$3:$C$254)+SUMIF('2024-25 Data'!$M$3:$M$254,1,'2024-25 Data'!$D$3:$D$254)),"")),"",IF(D4>0,SUMIF('2024-25 Data'!$M$3:$M$254,1,'2024-25 Data'!$AL$3:$AL$254)/(SUMIF('2024-25 Data'!$M$3:$M$254,1,'2024-25 Data'!$C$3:$C$254)+SUMIF('2024-25 Data'!$M$3:$M$254,1,'2024-25 Data'!$D$3:$D$254)),"")) ->  | M40: =IF(ISERROR(SUM('2024-25 Data'!$AL$3:$AL$254)/SUM('2024-25 Data'!$C$3:$D$254)),"",SUM('2024-25 Data'!$AL$3:$AL$254)/SUM('2024-25 Data'!$C$3:$D$254)) -> 7.010709677 | N40: 0.001025310802 | O40: 0.001067541484
B41: IT support | C41: E20G | D41: =IF(ISERROR(INDEX('2024-25 Data'!$B$3:$CF$254,MATCH($D$4,dfenums,0),MATCH(C41,'2024-25 Data'!$B$2:$CF$2,0))),"",INDEX('2024-25 Data'!$B$3:$CF$254,MATCH($D$4,dfenums,0),MATCH(C41,'2024-25 Data'!$B$2:$CF$2,0))) ->  | I41: =IF(ISERROR(IF(D4>0,SUMIF('2024-25 Data'!$M$3:$M$254,1,'2024-25 Data'!$AM$3:$AM$254)/(SUMIF('2024-25 Data'!$M$3:$M$254,1,'2024-25 Data'!$C$3:$C$254)+SUMIF('2024-25 Data'!$M$3:$M$254,1,'2024-25 Data'!$D$3:$D$254)),"")),"",IF(D4>0,SUMIF('2024-25 Data'!$M$3:$M$254,1,'2024-25 Data'!$AM$3:$AM$254)/(SUMIF('2024-25 Data'!$M$3:$M$254,1,'2024-25 Data'!$C$3:$C$254)+SUMIF('2024-25 Data'!$M$3:$M$254,1,'2024-25 Data'!$D$3:$D$254)),"")) ->  | M41: =IF(ISERROR(SUM('2024-25 Data'!$AM$3:$AM$254)/SUM('2024-25 Data'!$C$3:$D$254)),"",SUM('2024-25 Data'!$AM$3:$AM$254)/SUM('2024-25 Data'!$C$3:$D$254)) -> 24.97666807 | N41: 0.003652818152 | O41: 0.003803271071
B42: Exam fees | C42: E21 | D42: =IF(ISERROR(INDEX('2024-25 Data'!$B$3:$CF$254,MATCH($D$4,dfenums,0),MATCH(C42,'2024-25 Data'!$B$2:$CF$2,0))),"",INDEX('2024-25 Data'!$B$3:$CF$254,MATCH($D$4,dfenums,0),MATCH(C42,'2024-25 Data'!$B$2:$CF$2,0))) ->  | I42: =IF(ISERROR(IF(D4>0,SUMIF('2024-25 Data'!$M$3:$M$254,1,'2024-25 Data'!$AN$3:$AN$254)/(SUMIF('2024-25 Data'!$M$3:$M$254,1,'2024-25 Data'!$C$3:$C$254)+SUMIF('2024-25 Data'!$M$3:$M$254,1,'2024-25 Data'!$D$3:$D$254)),"")),"",IF(D4>0,SUMIF('2024-25 Data'!$M$3:$M$254,1,'2024-25 Data'!$AN$3:$AN$254)/(SUMIF('2024-25 Data'!$M$3:$M$254,1,'2024-25 Data'!$C$3:$C$254)+SUMIF('2024-25 Data'!$M$3:$M$254,1,'2024-25 Data'!$D$3:$D$254)),"")) ->  | M42: =IF(ISERROR(SUM('2024-25 Data'!$AN$3:$AN$254)/SUM('2024-25 Data'!$C$3:$D$254)),"",SUM('2024-25 Data'!$AN$3:$AN$254)/SUM('2024-25 Data'!$C$3:$D$254)) -> 0.0001238896681 | N42: 1.811876697e-08 | O42: 1.886504594e-08
B43: Administrative supplies | C43: E22 | D43: =IF(ISERROR(INDEX('2024-25 Data'!$B$3:$CF$254,MATCH($D$4,dfenums,0),MATCH(C43,'2024-25 Data'!$B$2:$CF$2,0))),"",INDEX('2024-25 Data'!$B$3:$CF$254,MATCH($D$4,dfenums,0),MATCH(C43,'2024-25 Data'!$B$2:$CF$2,0))) ->  | I43: =IF(ISERROR(IF(D4>0,SUMIF('2024-25 Data'!$M$3:$M$254,1,'2024-25 Data'!$AO$3:$AO$254)/(SUMIF('2024-25 Data'!$M$3:$M$254,1,'2024-25 Data'!$C$3:$C$254)+SUMIF('2024-25 Data'!$M$3:$M$254,1,'2024-25 Data'!$D$3:$D$254)),"")),"",IF(D4>0,SUMIF('2024-25 Data'!$M$3:$M$254,1,'2024-25 Data'!$AO$3:$AO$254)/(SUMIF('2024-25 Data'!$M$3:$M$254,1,'2024-25 Data'!$C$3:$C$254)+SUMIF('2024-25 Data'!$M$3:$M$254,1,'2024-25 Data'!$D$3:$D$254)),"")) ->  | M43: =IF(ISERROR(SUM('2024-25 Data'!$AO$3:$AO$254)/SUM('2024-25 Data'!$C$3:$D$254)),"",SUM('2024-25 Data'!$AO$3:$AO$254)/SUM('2024-25 Data'!$C$3:$D$254)) -> 41.48998395 | N43: 0.006067877673 | O43: 0.006317802488
B44: Other insurance premiums | C44: E23 | D44: =IF(ISERROR(INDEX('2024-25 Data'!$B$3:$CF$254,MATCH($D$4,dfenums,0),MATCH(C44,'2024-25 Data'!$B$2:$CF$2,0))),"",INDEX('2024-25 Data'!$B$3:$CF$254,MATCH($D$4,dfenums,0),MATCH(C44,'2024-25 Data'!$B$2:$CF$2,0))) ->  | I44: =IF(ISERROR(IF(D4>0,SUMIF('2024-25 Data'!$M$3:$M$254,1,'2024-25 Data'!$AP$3:$AP$254)/(SUMIF('2024-25 Data'!$M$3:$M$254,1,'2024-25 Data'!$C$3:$C$254)+SUMIF('2024-25 Data'!$M$3:$M$254,1,'2024-25 Data'!$D$3:$D$254)),"")),"",IF(D4>0,SUMIF('2024-25 Data'!$M$3:$M$254,1,'2024-25 Data'!$AP$3:$AP$254)/(SUMIF('2024-25 Data'!$M$3:$M$254,1,'2024-25 Data'!$C$3:$C$254)+SUMIF('2024-25 Data'!$M$3:$M$254,1,'2024-25 Data'!$D$3:$D$254)),"")) ->  | M44: =IF(ISERROR(SUM('2024-25 Data'!$AP$3:$AP$254)/SUM('2024-25 Data'!$C$3:$D$254)),"",SUM('2024-25 Data'!$AP$3:$AP$254)/SUM('2024-25 Data'!$C$3:$D$254)) -> 38.79366292 | N44: 0.005673542833 | O44: 0.005907225716
B45: Special facilities | C45: E24 | D45: =IF(ISERROR(INDEX('2024-25 Data'!$B$3:$CF$254,MATCH($D$4,dfenums,0),MATCH(C45,'2024-25 Data'!$B$2:$CF$2,0))),"",INDEX('2024-25 Data'!$B$3:$CF$254,MATCH($D$4,dfenums,0),MATCH(C45,'2024-25 Data'!$B$2:$CF$2,0))) ->  | I45: =IF(ISERROR(IF(D4>0,SUMIF('2024-25 Data'!$M$3:$M$254,1,'2024-25 Data'!$AQ$3:$AQ$254)/(SUMIF('2024-25 Data'!$M$3:$M$254,1,'2024-25 Data'!$C$3:$C$254)+SUMIF('2024-25 Data'!$M$3:$M$254,1,'2024-25 Data'!$D$3:$D$254)),"")),"",IF(D4>0,SUMIF('2024-25 Data'!$M$3:$M$254,1,'2024-25 Data'!$AQ$3:$AQ$254)/(SUMIF('2024-25 Data'!$M$3:$M$254,1,'2024-25 Data'!$C$3:$C$254)+SUMIF('2024-25 Data'!$M$3:$M$254,1,'2024-25 Data'!$D$3:$D$254)),"")) ->  | M45: =IF(ISERROR(SUM('2024-25 Data'!$AQ$3:$AQ$254)/SUM('2024-25 Data'!$C$3:$D$254)),"",SUM('2024-25 Data'!$AQ$3:$AQ$254)/SUM('2024-25 Data'!$C$3:$D$254)) -> 59.53399066 | N45: 0.008706799528 | O45: 0.009065416722
B46: Catering supplies | C46: E25 | D46: =IF(ISERROR(INDEX('2024-25 Data'!$B$3:$CF$254,MATCH($D$4,dfenums,0),MATCH(C46,'2024-25 Data'!$B$2:$CF$2,0))),"",INDEX('2024-25 Data'!$B$3:$CF$254,MATCH($D$4,dfenums,0),MATCH(C46,'2024-25 Data'!$B$2:$CF$2,0))) ->  | I46: =IF(ISERROR(IF(D4>0,SUMIF('2024-25 Data'!$M$3:$M$254,1,'2024-25 Data'!$AR$3:$AR$254)/(SUMIF('2024-25 Data'!$M$3:$M$254,1,'2024-25 Data'!$C$3:$C$254)+SUMIF('2024-25 Data'!$M$3:$M$254,1,'2024-25 Data'!$D$3:$D$254)),"")),"",IF(D4>0,SUMIF('2024-25 Data'!$M$3:$M$254,1,'2024-25 Data'!$AR$3:$AR$254)/(SUMIF('2024-25 Data'!$M$3:$M$254,1,'2024-25 Data'!$C$3:$C$254)+SUMIF('2024-25 Data'!$M$3:$M$254,1,'2024-25 Data'!$D$3:$D$254)),"")) ->  | M46: =IF(ISERROR(SUM('2024-25 Data'!$AR$3:$AR$254)/SUM('2024-25 Data'!$C$3:$D$254)),"",SUM('2024-25 Data'!$AR$3:$AR$254)/SUM('2024-25 Data'!$C$3:$D$254)) -> 220.0429088 | N46: 0.03218110316 | O46: 0.03350658411
B47: Agency supply teaching staff | C47: E26 | D47: =IF(ISERROR(INDEX('2024-25 Data'!$B$3:$CF$254,MATCH($D$4,dfenums,0),MATCH(C47,'2024-25 Data'!$B$2:$CF$2,0))),"",INDEX('2024-25 Data'!$B$3:$CF$254,MATCH($D$4,dfenums,0),MATCH(C47,'2024-25 Data'!$B$2:$CF$2,0))) ->  | I47: =IF(ISERROR(IF(D4>0,SUMIF('2024-25 Data'!$M$3:$M$254,1,'2024-25 Data'!$AS$3:$AS$254)/(SUMIF('2024-25 Data'!$M$3:$M$254,1,'2024-25 Data'!$C$3:$C$254)+SUMIF('2024-25 Data'!$M$3:$M$254,1,'2024-25 Data'!$D$3:$D$254)),"")),"",IF(D4>0,SUMIF('2024-25 Data'!$M$3:$M$254,1,'2024-25 Data'!$AS$3:$AS$254)/(SUMIF('2024-25 Data'!$M$3:$M$254,1,'2024-25 Data'!$C$3:$C$254)+SUMIF('2024-25 Data'!$M$3:$M$254,1,'2024-25 Data'!$D$3:$D$254)),"")) ->  | M47: =IF(ISERROR(SUM('2024-25 Data'!$AS$3:$AS$254)/SUM('2024-25 Data'!$C$3:$D$254)),"",SUM('2024-25 Data'!$AS$3:$AS$254)/SUM('2024-25 Data'!$C$3:$D$254)) -> 49.67557052 | N47: 0.0072650133 | O47: 0.007564245949
B48: Bought in professional services - curriculum | C48: E27 | D48: =IF(ISERROR(INDEX('2024-25 Data'!$B$3:$CF$254,MATCH($D$4,dfenums,0),MATCH(C48,'2024-25 Data'!$B$2:$CF$2,0))),"",INDEX('2024-25 Data'!$B$3:$CF$254,MATCH($D$4,dfenums,0),MATCH(C48,'2024-25 Data'!$B$2:$CF$2,0))) ->  | I48: =IF(ISERROR(IF(D4>0,SUMIF('2024-25 Data'!$M$3:$M$254,1,'2024-25 Data'!$AT$3:$AT$254)/(SUMIF('2024-25 Data'!$M$3:$M$254,1,'2024-25 Data'!$C$3:$C$254)+SUMIF('2024-25 Data'!$M$3:$M$254,1,'2024-25 Data'!$D$3:$D$254)),"")),"",IF(D4>0,SUMIF('2024-25 Data'!$M$3:$M$254,1,'2024-25 Data'!$AT$3:$AT$254)/(SUMIF('2024-25 Data'!$M$3:$M$254,1,'2024-25 Data'!$C$3:$C$254)+SUMIF('2024-25 Data'!$M$3:$M$254,1,'2024-25 Data'!$D$3:$D$254)),"")) ->  | M48: =IF(ISERROR(SUM('2024-25 Data'!$AT$3:$AT$254)/SUM('2024-25 Data'!$C$3:$D$254)),"",SUM('2024-25 Data'!$AT$3:$AT$254)/SUM('2024-25 Data'!$C$3:$D$254)) -> 81.55757036 | N48: 0.01192773082 | O48: 0.0124190123
B49: Bought in professional services other - Non PFI | C49: E28 | D49: =IF(ISERROR(INDEX('2024-25 Data'!$B$3:$CF$254,MATCH($D$4,dfenums,0),MATCH(C49,'2024-25 Data'!$B$2:$CF$2,0))),"",INDEX('2024-25 Data'!$B$3:$CF$254,MATCH($D$4,dfenums,0),MATCH(C49,'2024-25 Data'!$B$2:$CF$2,0))) ->  | I49: =IF(ISERROR(IF(D4>0,SUMIF('2024-25 Data'!$M$3:$M$254,1,'2024-25 Data'!$AU$3:$AU$254)/(SUMIF('2024-25 Data'!$M$3:$M$254,1,'2024-25 Data'!$C$3:$C$254)+SUMIF('2024-25 Data'!$M$3:$M$254,1,'2024-25 Data'!$D$3:$D$254)),"")),"",IF(D4>0,SUMIF('2024-25 Data'!$M$3:$M$254,1,'2024-25 Data'!$AU$3:$AU$254)/(SUMIF('2024-25 Data'!$M$3:$M$254,1,'2024-25 Data'!$C$3:$C$254)+SUMIF('2024-25 Data'!$M$3:$M$254,1,'2024-25 Data'!$D$3:$D$254)),"")) ->  | M49: =IF(ISERROR(SUM('2024-25 Data'!$AU$3:$AU$254)/SUM('2024-25 Data'!$C$3:$D$254)),"",SUM('2024-25 Data'!$AU$3:$AU$254)/SUM('2024-25 Data'!$C$3:$D$254)) -> 105.5961293 | N49: 0.01544335124 | O49: 0.01607943472
B50: Bought in professional services other - PFI only | C50: E28b | D50: =IF(ISERROR(INDEX('2024-25 Data'!$B$3:$CF$254,MATCH($D$4,dfenums,0),MATCH(C50,'2024-25 Data'!$B$2:$CF$2,0))),"",INDEX('2024-25 Data'!$B$3:$CF$254,MATCH($D$4,dfenums,0),MATCH(C50,'2024-25 Data'!$B$2:$CF$2,0))) ->  | I50: =IF(ISERROR(IF(D4>0,SUMIF('2024-25 Data'!$M$3:$M$254,1,'2024-25 Data'!$AV$3:$AV$254)/(SUMIF('2024-25 Data'!$M$3:$M$254,1,'2024-25 Data'!$C$3:$C$254)+SUMIF('2024-25 Data'!$M$3:$M$254,1,'2024-25 Data'!$D$3:$D$254)),"")),"",IF(D4>0,SUMIF('2024-25 Data'!$M$3:$M$254,1,'2024-25 Data'!$AV$3:$AV$254)/(SUMIF('2024-25 Data'!$M$3:$M$254,1,'2024-25 Data'!$C$3:$C$254)+SUMIF('2024-25 Data'!$M$3:$M$254,1,'2024-25 Data'!$D$3:$D$254)),"")) ->  | M50: =IF(ISERROR(SUM('2024-25 Data'!$AV$3:$AV$254)/SUM('2024-25 Data'!$C$3:$D$254)),"",SUM('2024-25 Data'!$AV$3:$AV$254)/SUM('2024-25 Data'!$C$3:$D$254)) -> 0 | N50: 0 | O50: 0
B51: Loan interest | C51: E29 | D51: =IF(ISERROR(INDEX('2024-25 Data'!$B$3:$CF$254,MATCH($D$4,dfenums,0),MATCH(C51,'2024-25 Data'!$B$2:$CF$2,0))),"",INDEX('2024-25 Data'!$B$3:$CF$254,MATCH($D$4,dfenums,0),MATCH(C51,'2024-25 Data'!$B$2:$CF$2,0))) ->  | I51: =IF(ISERROR(IF(D4>0,SUMIF('2024-25 Data'!$M$3:$M$254,1,'2024-25 Data'!$AW$3:$AW$254)/(SUMIF('2024-25 Data'!$M$3:$M$254,1,'2024-25 Data'!$C$3:$C$254)+SUMIF('2024-25 Data'!$M$3:$M$254,1,'2024-25 Data'!$D$3:$D$254)),"")),"",IF(D4>0,SUMIF('2024-25 Data'!$M$3:$M$254,1,'2024-25 Data'!$AW$3:$AW$254)/(SUMIF('2024-25 Data'!$M$3:$M$254,1,'2024-25 Data'!$C$3:$C$254)+SUMIF('2024-25 Data'!$M$3:$M$254,1,'2024-25 Data'!$D$3:$D$254)),"")) ->  | M51: =IF(ISERROR(SUM('2024-25 Data'!$AW$3:$AW$254)/SUM('2024-25 Data'!$C$3:$D$254)),"",SUM('2024-25 Data'!$AW$3:$AW$254)/SUM('2024-25 Data'!$C$3:$D$254)) -> 0.09215303101 | N51: 1.347730864e-05 | O51: 1.403241441e-05
B52: Direct revenue financing (rev contrib. to cap) | C52: E30 | D52: =IF(ISERROR(INDEX('2024-25 Data'!$B$3:$CF$254,MATCH($D$4,dfenums,0),MATCH(C52,'2024-25 Data'!$B$2:$CF$2,0))),"",INDEX('2024-25 Data'!$B$3:$CF$254,MATCH($D$4,dfenums,0),MATCH(C52,'2024-25 Data'!$B$2:$CF$2,0))) ->  | I52: =IF(ISERROR(IF(D4>0,SUMIF('2024-25 Data'!$M$3:$M$254,1,'2024-25 Data'!$AX$3:$AX$254)/(SUMIF('2024-25 Data'!$M$3:$M$254,1,'2024-25 Data'!$C$3:$C$254)+SUMIF('2024-25 Data'!$M$3:$M$254,1,'2024-25 Data'!$D$3:$D$254)),"")),"",IF(D4>0,SUMIF('2024-25 Data'!$M$3:$M$254,1,'2024-25 Data'!$AX$3:$AX$254)/(SUMIF('2024-25 Data'!$M$3:$M$254,1,'2024-25 Data'!$C$3:$C$254)+SUMIF('2024-25 Data'!$M$3:$M$254,1,'2024-25 Data'!$D$3:$D$254)),"")) ->  | M52: =IF(ISERROR(SUM('2024-25 Data'!$AX$3:$AX$254)/SUM('2024-25 Data'!$C$3:$D$254)),"",SUM('2024-25 Data'!$AX$3:$AX$254)/SUM('2024-25 Data'!$C$3:$D$254)) -> 42.02922705 | N52: 0.006146741554 | O52: 0.006399914629
B53: Community focussed extended school staff | C53: E31 | D53: =IF(ISERROR(INDEX('2024-25 Data'!$B$3:$CF$254,MATCH($D$4,dfenums,0),MATCH(C53,'2024-25 Data'!$B$2:$CF$2,0))),"",INDEX('2024-25 Data'!$B$3:$CF$254,MATCH($D$4,dfenums,0),MATCH(C53,'2024-25 Data'!$B$2:$CF$2,0))) ->  | I53: =IF(ISERROR(IF(D4>0,SUMIF('2024-25 Data'!$M$3:$M$254,1,'2024-25 Data'!$AY$3:$AY$254)/(SUMIF('2024-25 Data'!$M$3:$M$254,1,'2024-25 Data'!$C$3:$C$254)+SUMIF('2024-25 Data'!$M$3:$M$254,1,'2024-25 Data'!$D$3:$D$254)),"")),"",IF(D4>0,SUMIF('2024-25 Data'!$M$3:$M$254,1,'2024-25 Data'!$AY$3:$AY$254)/(SUMIF('2024-25 Data'!$M$3:$M$254,1,'2024-25 Data'!$C$3:$C$254)+SUMIF('2024-25 Data'!$M$3:$M$254,1,'2024-25 Data'!$D$3:$D$254)),"")) ->  | M53: =IF(ISERROR(SUM('2024-25 Data'!$AY$3:$AY$254)/SUM('2024-25 Data'!$C$3:$D$254)),"",SUM('2024-25 Data'!$AY$3:$AY$254)/SUM('2024-25 Data'!$C$3:$D$254)) -> 11.87238943 | N53: 0.001736327661 | O53: 0.00180784383
B54: Community focussed extended school costs | C54: E32 | D54: =IF(ISERROR(INDEX('2024-25 Data'!$B$3:$CF$254,MATCH($D$4,dfenums,0),MATCH(C54,'2024-25 Data'!$B$2:$CF$2,0))),"",INDEX('2024-25 Data'!$B$3:$CF$254,MATCH($D$4,dfenums,0),MATCH(C54,'2024-25 Data'!$B$2:$CF$2,0))) ->  | I54: =IF(ISERROR(IF(D4>0,SUMIF('2024-25 Data'!$M$3:$M$254,1,'2024-25 Data'!$AZ$3:$AZ$254)/(SUMIF('2024-25 Data'!$M$3:$M$254,1,'2024-25 Data'!$C$3:$C$254)+SUMIF('2024-25 Data'!$M$3:$M$254,1,'2024-25 Data'!$D$3:$D$254)),"")),"",IF(D4>0,SUMIF('2024-25 Data'!$M$3:$M$254,1,'2024-25 Data'!$AZ$3:$AZ$254)/(SUMIF('2024-25 Data'!$M$3:$M$254,1,'2024-25 Data'!$C$3:$C$254)+SUMIF('2024-25 Data'!$M$3:$M$254,1,'2024-25 Data'!$D$3:$D$254)),"")) ->  | M54: =IF(ISERROR(SUM('2024-25 Data'!$AZ$3:$AZ$254)/SUM('2024-25 Data'!$C$3:$D$254)),"",SUM('2024-25 Data'!$AZ$3:$AZ$254)/SUM('2024-25 Data'!$C$3:$D$254)) -> 5.20345099 | N54: 0.0007610006338 | O54: 0.000792344862
B55: Total Expenditure | D55: =IF(ISERROR(SUM(D16:D54)),"",SUM(D16:D54)) -> 0 | E55: =IF(ISERROR(SUM(E16:E54)),"",SUM(E16:E54)) -> 0 | F55: =IF(ISERROR(SUM(F16:F54)),"",SUM(F16:F54)) -> 0 | G55: =IF(ISERROR(SUM(G16:G54)),"",SUM(G16:G54)) -> 0 | I55: =IF(ISERROR(SUM(I16:I54)),"",SUM(I16:I54)) -> 0 | J55: =IF(ISERROR(SUM(J16:J54)),"",SUM(J16:J54)) -> 0 | K55: =IF(ISERROR(SUM(K16:K54)),"",SUM(K16:K54)) -> 0 | M55: =IF(ISERROR(SUM(M16:M54)),"",SUM(M16:M54)) -> 6837.643438 | N55: =IF(ISERROR(SUM(N16:N54)),"",SUM(N16:N54)) -> 1 | O55: =IF(ISERROR(SUM(O16:O54)),"",SUM(O16:O54)) -> 1.041188176
B57: INCOME
B58: Funds delegated by the LEA (excluding High Needs) | C58: I01 | D58: =IF(ISERROR(INDEX('2024-25 Data'!$B$3:$CF$254,MATCH($D$4,dfenums,0),MATCH(B58,'2024-25 Data'!$B$2:$CF$2,0))),"",INDEX('2024-25 Data'!$B$3:$CF$254,MATCH($D$4,dfenums,0),MATCH(B58,'2024-25 Data'!$B$2:$CF$2,0))) ->  | E58: =IF(ISERROR(D58/($F$4+$G$4-VLOOKUP($D$4,'2024-25 Data'!$A$3:$E$254,5,0))),"",D58/($F$4+$G$4-VLOOKUP($D$4,'2024-25 Data'!$A$3:$E$254,5,0))) ->  | F58: =IF(ISERROR(D58/$D$81),"",D58/$D$81) ->  | I58: =IF(ISERROR(IF(D4>0,SUMIF('2024-25 Data'!$M$3:$M$254,1,'2024-25 Data'!$BA$3:$BA$254)/(SUMIF('2024-25 Data'!$M$3:$M$254,1,'2024-25 Data'!$C$3:$C$254)-SUMIF('2024-25 Data'!M3:M254,1,'2024-25 Data'!E3:E254)+SUMIF('2024-25 Data'!$M$3:$M$254,1,'2024-25 Data'!$D$3:$D$254)),"")),"",IF(D4>0,SUMIF('2024-25 Data'!$M$3:$M$254,1,'2024-25 Data'!$BA$3:$BA$254)/(SUMIF('2024-25 Data'!$M$3:$M$254,1,'2024-25 Data'!$C$3:$C$254)-SUMIF('2024-25 Data'!M3:M254,1,'2024-25 Data'!E3:E254)+SUMIF('2024-25 Data'!$M$3:$M$254,1,'2024-25 Data'!$D$3:$D$254)),"")) ->  | J58: =IF(ISERROR(I58/$I$81),"",I58/$I$81) ->  | M58: =IF(ISERROR(SUM('2024-25 Data'!$BA$3:$BA$254)/(SUM('2024-25 Data'!$C$3:$D$254)-SUM('2024-25 Data'!$E$3:$E$254))),"", SUM('2024-25 Data'!$BA$3:$BA$254)/(SUM('2024-25 Data'!$C$3:$D$254)-SUM('2024-25 Data'!$E$3:$E$254))) -> -4621.441775 | N58: =IF(ISERROR(M58/$M$81),"",M58/$M$81) -> 0.7037205987
B59: Notional SEN Budget | C59: I01 | D59: =IF(ISERROR(INDEX('2024-25 Data'!$B$3:$CF$254,MATCH($D$4,dfenums,0),MATCH(B59,'2024-25 Data'!$B$2:$CF$2,0))),"",INDEX('2024-25 Data'!$B$3:$CF$254,MATCH($D$4,dfenums,0),MATCH(B59,'2024-25 Data'!$B$2:$CF$2,0))) ->  | E59: =IF(ISERROR(D59/($G$4-VLOOKUP($D$4,'2024-25 Data'!$A$3:$E$254,5,0))),"",D59/($G$4-VLOOKUP($D$4,'2024-25 Data'!$A$3:$E$254,5,0))) ->  | F59: =IF(ISERROR(D59/$D$81),"",D59/$D$81) ->  | I59: =IF(ISERROR(IF(D4>0,SUMIF('2024-25 Data'!$M$3:$M$254,1,'2024-25 Data'!$BB$3:$BB$254)/(SUMIF('2024-25 Data'!$M$3:$M$254,1,'2024-25 Data'!$D$3:$D$254)-SUMIF('2024-25 Data'!$M$3:$M$254,1,'2024-25 Data'!$E$3:$E$254)),"")),"",IF(D4>0,SUMIF('2024-25 Data'!$M$3:$M$254,1,'2024-25 Data'!$BB$3:$BB$254)/(SUMIF('2024-25 Data'!$M$3:$M$254,1,'2024-25 Data'!$D$3:$D$254)-SUMIF('2024-25 Data'!$M$3:$M$254,1,'2024-25 Data'!$E$3:$E$254)),"")) ->  | J59: =IF(ISERROR(I59/$I$81),"",I59/$I$81) ->  | M59: =IF(ISERROR(SUM('2024-25 Data'!$BB$3:$BB$254)/(SUM('2024-25 Data'!$D$3:$D$254)-SUM('2024-25 Data'!$E$3:$E$254))),"", SUM('2024-25 Data'!$BB$3:$BB$254)/(SUM('2024-25 Data'!$D$3:$D$254)-SUM('2024-25 Data'!$E$3:$E$254))) -> -747.9417984 | N59: =IF(ISERROR(M59/$M$81),"",M59/$M$81) -> 0.1138913083
B60: Funding for sixth form students (excluding High Needs) | C60: I02 | D60: =IF(D4>0,0,"") ->  | E60: =IF(D4>0,0,"") ->  | F60: =IF(D4>0,0,"") ->  | I60: =IF(D4>0,0,"") ->  | J60: =IF(D4>0,0,"") ->  | M60: =IF(D4>0,0,"") ->  | N60: =IF(D4>0,0,"") -> 
B61: Specially Rescourced Provision (Unit) Funding | C61: I01/2/3 | D61: =IF(ISERROR(INDEX('2024-25 Data'!$B$3:$CF$254,MATCH($D$4,dfenums,0),MATCH(B61,'2024-25 Data'!$B$2:$CF$2,0))),"",INDEX('2024-25 Data'!$B$3:$CF$254,MATCH($D$4,dfenums,0),MATCH(B61,'2024-25 Data'!$B$2:$CF$2,0))) ->  | E61: Meaningful comparison is not possible in this area
B62: Funding for High Needs Pupils | C62: I01/2/3 | D62: =IF(ISERROR(INDEX('2024-25 Data'!$B$3:$CF$254,MATCH($D$4,dfenums,0),MATCH(B62,'2024-25 Data'!$B$2:$CF$2,0))),"",INDEX('2024-25 Data'!$B$3:$CF$254,MATCH($D$4,dfenums,0),MATCH(B62,'2024-25 Data'!$B$2:$CF$2,0))) -> 
B63: Funding for minority ethnic pupils | C63: I04 | D63: =IF(ISERROR(INDEX('2024-25 Data'!$B$3:$CF$254,MATCH($D$4,dfenums,0),MATCH(C63,'2024-25 Data'!$B$2:$CF$2,0))),"",INDEX('2024-25 Data'!$B$3:$CF$254,MATCH($D$4,dfenums,0),MATCH(C63,'2024-25 Data'!$B$2:$CF$2,0))) ->  | E63: =IF(ISERROR(D63/($F$4+$G$4)),"",D63/($F$4+$G$4)) ->  | I63: =IF(ISERROR(IF(D4>0,SUMIF('2024-25 Data'!$M$3:$M$254,1,'2024-25 Data'!$BE$3:$BE$254)/(SUMIF('2024-25 Data'!$M$3:$M$254,1,'2024-25 Data'!$C$3:$C$254)+SUMIF('2024-25 Data'!$M$3:$M$254,1,'2024-25 Data'!$D$3:$D$254)),"")),"",IF(D4>0,SUMIF('2024-25 Data'!$M$3:$M$254,1,'2024-25 Data'!$BE$3:$BE$254)/(SUMIF('2024-25 Data'!$M$3:$M$254,1,'2024-25 Data'!$C$3:$C$254)+SUMIF('2024-25 Data'!$M$3:$M$254,1,'2024-25 Data'!$D$3:$D$254)),"")) ->  | M63: =IF(ISERROR(SUM('2024-25 Data'!$BE$3:$BE$254)/SUM('2024-25 Data'!$C$3:$D$254)),"",SUM('2024-25 Data'!$BE$3:$BE$254)/SUM('2024-25 Data'!$C$3:$D$254)) -> -1.227208976 | N63: 0.0001868707381
B64: Pupil Premium | C64: I05 | D64: =IF(ISERROR(INDEX('2024-25 Data'!$B$3:$CF$254,MATCH($D$4,dfenums,0),MATCH(C64,'2024-25 Data'!$B$2:$CF$2,0))),"",INDEX('2024-25 Data'!$B$3:$CF$254,MATCH($D$4,dfenums,0),MATCH(C64,'2024-25 Data'!$B$2:$CF$2,0))) ->  | E64: =IF(ISERROR(D64/($F$4+$G$4)),"",D64/($F$4+$G$4)) ->  | I64: =IF(ISERROR(IF(D4>0,SUMIF('2024-25 Data'!$M$3:$M$254,1,'2024-25 Data'!$BF$3:$BF$254)/(SUMIF('2024-25 Data'!$M$3:$M$254,1,'2024-25 Data'!$C$3:$C$254)+SUMIF('2024-25 Data'!$M$3:$M$254,1,'2024-25 Data'!$D$3:$D$254)),"")),"",IF(D4>0,SUMIF('2024-25 Data'!$M$3:$M$254,1,'2024-25 Data'!$BF$3:$BF$254)/(SUMIF('2024-25 Data'!$M$3:$M$254,1,'2024-25 Data'!$C$3:$C$254)+SUMIF('2024-25 Data'!$M$3:$M$254,1,'2024-25 Data'!$D$3:$D$254)),"")) ->  | M64: =IF(ISERROR(SUM('2024-25 Data'!$BF$3:$BF$254)/SUM('2024-25 Data'!$C$3:$D$254)),"",SUM('2024-25 Data'!$BF$3:$BF$254)/SUM('2024-25 Data'!$C$3:$D$254)) -> -347.0155849 | N64: 0.05284108878
B65: Other government grants | C65: I06 | D65: =IF(ISERROR(INDEX('2024-25 Data'!$B$3:$CF$254,MATCH($D$4,dfenums,0),MATCH(C65,'2024-25 Data'!$B$2:$CF$2,0))),"",INDEX('2024-25 Data'!$B$3:$CF$254,MATCH($D$4,dfenums,0),MATCH(C65,'2024-25 Data'!$B$2:$CF$2,0))) ->  | I65: =IF(ISERROR(IF(D4>0,SUMIF('2024-25 Data'!$M$3:$M$254,1,'2024-25 Data'!$BG$3:$BG$254)/(SUMIF('2024-25 Data'!$M$3:$M$254,1,'2024-25 Data'!$C$3:$C$254)+SUMIF('2024-25 Data'!$M$3:$M$254,1,'2024-25 Data'!$D$3:$D$254)),"")),"",IF(D4>0,SUMIF('2024-25 Data'!$M$3:$M$254,1,'2024-25 Data'!$BG$3:$BG$254)/(SUMIF('2024-25 Data'!$M$3:$M$254,1,'2024-25 Data'!$C$3:$C$254)+SUMIF('2024-25 Data'!$M$3:$M$254,1,'2024-25 Data'!$D$3:$D$254)),"")) ->  | M65: =IF(ISERROR(SUM('2024-25 Data'!$BG$3:$BG$254)/SUM('2024-25 Data'!$C$3:$D$254)),"",SUM('2024-25 Data'!$BG$3:$BG$254)/SUM('2024-25 Data'!$C$3:$D$254)) -> -13.04385772 | N65: 0.001986226769
B66: Other grants and payments | C66: I07 | D66: =IF(ISERROR(INDEX('2024-25 Data'!$B$3:$CF$254,MATCH($D$4,dfenums,0),MATCH(C66,'2024-25 Data'!$B$2:$CF$2,0))),"",INDEX('2024-25 Data'!$B$3:$CF$254,MATCH($D$4,dfenums,0),MATCH(C66,'2024-25 Data'!$B$2:$CF$2,0))) ->  | I66: =IF(ISERROR(IF(D4>0,SUMIF('2024-25 Data'!$M$3:$M$254,1,'2024-25 Data'!$BH$3:$BH$254)/(SUMIF('2024-25 Data'!$M$3:$M$254,1,'2024-25 Data'!$C$3:$C$254)+SUMIF('2024-25 Data'!$M$3:$M$254,1,'2024-25 Data'!$D$3:$D$254)),"")),"",IF(D4>0,SUMIF('2024-25 Data'!$M$3:$M$254,1,'2024-25 Data'!$BH$3:$BH$254)/(SUMIF('2024-25 Data'!$M$3:$M$254,1,'2024-25 Data'!$C$3:$C$254)+SUMIF('2024-25 Data'!$M$3:$M$254,1,'2024-25 Data'!$D$3:$D$254)),"")) ->  | M66: =IF(ISERROR(SUM('2024-25 Data'!$BH$3:$BH$254)/SUM('2024-25 Data'!$C$3:$D$254)),"",SUM('2024-25 Data'!$BH$3:$BH$254)/SUM('2024-25 Data'!$C$3:$D$254)) -> -35.86366542 | N66: 0.005461066336
B67: Income from Letting premises | C67: I08 | D67: =IF(ISERROR(INDEX('2024-25 Data'!$B$3:$CF$254,MATCH($D$4,dfenums,0),MATCH(C67,'2024-25 Data'!$B$2:$CF$2,0))),"",INDEX('2024-25 Data'!$B$3:$CF$254,MATCH($D$4,dfenums,0),MATCH(C67,'2024-25 Data'!$B$2:$CF$2,0))) ->  | E67: =IF(ISERROR(D67/($F$4+$G$4)),"",D67/($F$4+$G$4)) ->  | F67: =IF(ISERROR(D67/$D$81),"",D67/$D$81) ->  | I67: =IF(ISERROR(IF(D4>0,SUMIF('2024-25 Data'!$M$3:$M$254,1,'2024-25 Data'!$BI$3:$BI$254)/(SUMIF('2024-25 Data'!$M$3:$M$254,1,'2024-25 Data'!$C$3:$C$254)+SUMIF('2024-25 Data'!$M$3:$M$254,1,'2024-25 Data'!$D$3:$D$254)),"")),"",IF(D4>0,SUMIF('2024-25 Data'!$M$3:$M$254,1,'2024-25 Data'!$BI$3:$BI$254)/(SUMIF('2024-25 Data'!$M$3:$M$254,1,'2024-25 Data'!$C$3:$C$254)+SUMIF('2024-25 Data'!$M$3:$M$254,1,'2024-25 Data'!$D$3:$D$254)),"")) ->  | J67: =IF(ISERROR(I67/$I$81),"",I67/$I$81) ->  | M67: =IF(ISERROR(SUM('2024-25 Data'!$BJ$3:$BJ$254)/SUM('2024-25 Data'!$C$3:$D$254)),"",SUM('2024-25 Data'!$BJ$3:$BJ$254)/SUM('2024-25 Data'!$C$3:$D$254)) -> -190.7733782 | N67: =IF(ISERROR(M67/$M$81),"",M67/$M$81) -> 0.02904962617
B68: Other income from facilities and services | C68: I08b | D68: =IF(ISERROR(INDEX('2024-25 Data'!$B$3:$CF$254,MATCH($D$4,dfenums,0),MATCH(C68,'2024-25 Data'!$B$2:$CF$2,0))),"",INDEX('2024-25 Data'!$B$3:$CF$254,MATCH($D$4,dfenums,0),MATCH(C68,'2024-25 Data'!$B$2:$CF$2,0))) ->  | I68: =IF(ISERROR(IF(D4>0,SUMIF('2024-25 Data'!$M$3:$M$254,1,'2024-25 Data'!$BJ$3:$BJ$254)/(SUMIF('2024-25 Data'!$M$3:$M$254,1,'2024-25 Data'!$C$3:$C$254)+SUMIF('2024-25 Data'!$M$3:$M$254,1,'2024-25 Data'!$D$3:$D$254)),"")),"",IF(D4>0,SUMIF('2024-25 Data'!$M$3:$M$254,1,'2024-25 Data'!$BJ$3:$BJ$254)/(SUMIF('2024-25 Data'!$M$3:$M$254,1,'2024-25 Data'!$C$3:$C$254)+SUMIF('2024-25 Data'!$M$3:$M$254,1,'2024-25 Data'!$D$3:$D$254)),"")) ->  | M68: =IF(ISERROR(SUM('2024-25 Data'!$BJ$3:$BJ$254)/SUM('2024-25 Data'!$C$3:$D$254)),"",SUM('2024-25 Data'!$BJ$3:$BJ$254)/SUM('2024-25 Data'!$C$3:$D$254)) -> -190.7733782 | N68: 0.02904962617
B69: Income from catering | C69: I09 | D69: =IF(ISERROR(INDEX('2024-25 Data'!$B$3:$CF$254,MATCH($D$4,dfenums,0),MATCH(C69,'2024-25 Data'!$B$2:$CF$2,0))),"",INDEX('2024-25 Data'!$B$3:$CF$254,MATCH($D$4,dfenums,0),MATCH(C69,'2024-25 Data'!$B$2:$CF$2,0))) ->  | I69: =IF(ISERROR(IF(D4>0,SUMIF('2024-25 Data'!$M$3:$M$254,1,'2024-25 Data'!$BK$3:$BK$254)/(SUMIF('2024-25 Data'!$M$3:$M$254,1,'2024-25 Data'!$C$3:$C$254)+SUMIF('2024-25 Data'!$M$3:$M$254,1,'2024-25 Data'!$D$3:$D$254)),"")),"",IF(D4>0,SUMIF('2024-25 Data'!$M$3:$M$254,1,'2024-25 Data'!$BK$3:$BK$254)/(SUMIF('2024-25 Data'!$M$3:$M$254,1,'2024-25 Data'!$C$3:$C$254)+SUMIF('2024-25 Data'!$M$3:$M$254,1,'2024-25 Data'!$D$3:$D$254)),"")) ->  | M69: =IF(ISERROR(SUM('2024-25 Data'!$BK$3:$BK$254)/SUM('2024-25 Data'!$C$3:$D$254)),"",SUM('2024-25 Data'!$BK$3:$BK$254)/SUM('2024-25 Data'!$C$3:$D$254)) -> -30.39365139 | N69: 0.004628131133
B70: Receipts from supply teachers insurance claims | C70: I10 | D70: =IF(ISERROR(INDEX('2024-25 Data'!$B$3:$CF$254,MATCH($D$4,dfenums,0),MATCH(C70,'2024-25 Data'!$B$2:$CF$2,0))),"",INDEX('2024-25 Data'!$B$3:$CF$254,MATCH($D$4,dfenums,0),MATCH(C70,'2024-25 Data'!$B$2:$CF$2,0))) ->  | I70: =IF(ISERROR(IF(D4>0,SUMIF('2024-25 Data'!$M$3:$M$254,1,'2024-25 Data'!$BL$3:$BL$254)/(SUMIF('2024-25 Data'!$M$3:$M$254,1,'2024-25 Data'!$C$3:$C$254)+SUMIF('2024-25 Data'!$M$3:$M$254,1,'2024-25 Data'!$D$3:$D$254)),"")),"",IF(D4>0,SUMIF('2024-25 Data'!$M$3:$M$254,1,'2024-25 Data'!$BL$3:$BL$254)/(SUMIF('2024-25 Data'!$M$3:$M$254,1,'2024-25 Data'!$C$3:$C$254)+SUMIF('2024-25 Data'!$M$3:$M$254,1,'2024-25 Data'!$D$3:$D$254)),"")) ->  | M70: =IF(ISERROR(SUM('2024-25 Data'!$BL$3:$BL$254)/SUM('2024-25 Data'!$C$3:$D$254)),"",SUM('2024-25 Data'!$BL$3:$BL$254)/SUM('2024-25 Data'!$C$3:$D$254)) -> -9.347179523 | N70: 0.001423322653
B71: Receipts from other insurance claims | C71: I11 | D71: =IF(ISERROR(INDEX('2024-25 Data'!$B$3:$CF$254,MATCH($D$4,dfenums,0),MATCH(C71,'2024-25 Data'!$B$2:$CF$2,0))),"",INDEX('2024-25 Data'!$B$3:$CF$254,MATCH($D$4,dfenums,0),MATCH(C71,'2024-25 Data'!$B$2:$CF$2,0))) ->  | I71: =IF(ISERROR(IF(D4>0,SUMIF('2024-25 Data'!$M$3:$M$254,1,'2024-25 Data'!$BM$3:$BM$254)/(SUMIF('2024-25 Data'!$M$3:$M$254,1,'2024-25 Data'!$C$3:$C$254)+SUMIF('2024-25 Data'!$M$3:$M$254,1,'2024-25 Data'!$D$3:$D$254)),"")),"",IF(D4>0,SUMIF('2024-25 Data'!$M$3:$M$254,1,'2024-25 Data'!$BM$3:$BM$254)/(SUMIF('2024-25 Data'!$M$3:$M$254,1,'2024-25 Data'!$C$3:$C$254)+SUMIF('2024-25 Data'!$M$3:$M$254,1,'2024-25 Data'!$D$3:$D$254)),"")) ->  | M71: =IF(ISERROR(SUM('2024-25 Data'!$BM$3:$BM$254)/SUM('2024-25 Data'!$C$3:$D$254)),"",SUM('2024-25 Data'!$BM$3:$BM$254)/SUM('2024-25 Data'!$C$3:$D$254)) -> -32.28240019 | N71: 0.004915736494
B72: Income from contributions to visits etc. | C72: I12 | D72: =IF(ISERROR(INDEX('2024-25 Data'!$B$3:$CF$254,MATCH($D$4,dfenums,0),MATCH(C72,'2024-25 Data'!$B$2:$CF$2,0))),"",INDEX('2024-25 Data'!$B$3:$CF$254,MATCH($D$4,dfenums,0),MATCH(C72,'2024-25 Data'!$B$2:$CF$2,0))) ->  | I72: =IF(ISERROR(IF(D4>0,SUMIF('2024-25 Data'!$M$3:$M$254,1,'2024-25 Data'!$BN$3:$BN$254)/(SUMIF('2024-25 Data'!$M$3:$M$254,1,'2024-25 Data'!$C$3:$C$254)+SUMIF('2024-25 Data'!$M$3:$M$254,1,'2024-25 Data'!$D$3:$D$254)),"")),"",IF(D4>0,SUMIF('2024-25 Data'!$M$3:$M$254,1,'2024-25 Data'!$BN$3:$BN$254)/(SUMIF('2024-25 Data'!$M$3:$M$254,1,'2024-25 Data'!$C$3:$C$254)+SUMIF('2024-25 Data'!$M$3:$M$254,1,'2024-25 Data'!$D$3:$D$254)),"")) ->  | M72: =IF(ISERROR(SUM('2024-25 Data'!$BN$3:$BN$254)/SUM('2024-25 Data'!$C$3:$D$254)),"",SUM('2024-25 Data'!$BN$3:$BN$254)/SUM('2024-25 Data'!$C$3:$D$254)) -> -72.34732757 | N72: 0.01101654141
B73: Donations and/or voluntary funds | C73: I13 | D73: =IF(ISERROR(INDEX('2024-25 Data'!$B$3:$CF$254,MATCH($D$4,dfenums,0),MATCH(C73,'2024-25 Data'!$B$2:$CF$2,0))),"",INDEX('2024-25 Data'!$B$3:$CF$254,MATCH($D$4,dfenums,0),MATCH(C73,'2024-25 Data'!$B$2:$CF$2,0))) ->  | I73: =IF(ISERROR(IF(D4>0,SUMIF('2024-25 Data'!$M$3:$M$254,1,'2024-25 Data'!$BO$3:$BO$254)/(SUMIF('2024-25 Data'!$M$3:$M$254,1,'2024-25 Data'!$C$3:$C$254)+SUMIF('2024-25 Data'!$M$3:$M$254,1,'2024-25 Data'!$D$3:$D$254)),"")),"",IF(D4>0,SUMIF('2024-25 Data'!$M$3:$M$254,1,'2024-25 Data'!$BO$3:$BO$254)/(SUMIF('2024-25 Data'!$M$3:$M$254,1,'2024-25 Data'!$C$3:$C$254)+SUMIF('2024-25 Data'!$M$3:$M$254,1,'2024-25 Data'!$D$3:$D$254)),"")) ->  | M73: =IF(ISERROR(SUM('2024-25 Data'!$BO$3:$BO$254)/SUM('2024-25 Data'!$C$3:$D$254)),"",SUM('2024-25 Data'!$BO$3:$BO$254)/SUM('2024-25 Data'!$C$3:$D$254)) -> -45.72995496 | N73: 0.006963435407
B74: Pupil focussed extended school funding &/or grants | C74: I15 | D74: =IF(ISERROR(INDEX('2024-25 Data'!$B$3:$CF$254,MATCH($D$4,dfenums,0),MATCH(C74,'2024-25 Data'!$B$2:$CF$2,0))),"",INDEX('2024-25 Data'!$B$3:$CF$254,MATCH($D$4,dfenums,0),MATCH(C74,'2024-25 Data'!$B$2:$CF$2,0))) ->  | I74: =IF(ISERROR(IF(D4>0,SUMIF('2024-25 Data'!$M$3:$M$254,1,'2024-25 Data'!$BP$3:$BP$254)/(SUMIF('2024-25 Data'!$M$3:$M$254,1,'2024-25 Data'!$C$3:$C$254)+SUMIF('2024-25 Data'!$M$3:$M$254,1,'2024-25 Data'!$D$3:$D$254)),"")),"",IF(D4>0,SUMIF('2024-25 Data'!$M$3:$M$254,1,'2024-25 Data'!$BP$3:$BP$254)/(SUMIF('2024-25 Data'!$M$3:$M$254,1,'2024-25 Data'!$C$3:$C$254)+SUMIF('2024-25 Data'!$M$3:$M$254,1,'2024-25 Data'!$D$3:$D$254)),"")) ->  | M74: =IF(ISERROR(SUM('2024-25 Data'!$BP$3:$BP$254)/SUM('2024-25 Data'!$C$3:$D$254)),"",SUM('2024-25 Data'!$BP$3:$BP$254)/SUM('2024-25 Data'!$C$3:$D$254)) -> 0 | N74: 0
B75: Com focussed extended school funding &/or grants | C75: I16 | D75: =IF(ISERROR(INDEX('2024-25 Data'!$B$3:$CF$254,MATCH($D$4,dfenums,0),MATCH(C75,'2024-25 Data'!$B$2:$CF$2,0))),"",INDEX('2024-25 Data'!$B$3:$CF$254,MATCH($D$4,dfenums,0),MATCH(C75,'2024-25 Data'!$B$2:$CF$2,0))) ->  | I75: =IF(ISERROR(IF(D4>0,SUMIF('2024-25 Data'!$M$3:$M$254,1,'2024-25 Data'!$BQ$3:$BQ$254)/(SUMIF('2024-25 Data'!$M$3:$M$254,1,'2024-25 Data'!$C$3:$C$254)+SUMIF('2024-25 Data'!$M$3:$M$254,1,'2024-25 Data'!$D$3:$D$254)),"")),"",IF(D4>0,SUMIF('2024-25 Data'!$M$3:$M$254,1,'2024-25 Data'!$BQ$3:$BQ$254)/(SUMIF('2024-25 Data'!$M$3:$M$254,1,'2024-25 Data'!$C$3:$C$254)+SUMIF('2024-25 Data'!$M$3:$M$254,1,'2024-25 Data'!$D$3:$D$254)),"")) ->  | M75: =IF(ISERROR(SUM('2024-25 Data'!$BQ$3:$BQ$254)/SUM('2024-25 Data'!$C$3:$D$254)),"",SUM('2024-25 Data'!$BQ$3:$BQ$254)/SUM('2024-25 Data'!$C$3:$D$254)) -> -0.09419323671 | N75: 1.434308256e-05
B76: Com focussed extended school facilities income | C76: I17 | D76: =IF(ISERROR(INDEX('2024-25 Data'!$B$3:$CF$254,MATCH($D$4,dfenums,0),MATCH(C76,'2024-25 Data'!$B$2:$CF$2,0))),"",INDEX('2024-25 Data'!$B$3:$CF$254,MATCH($D$4,dfenums,0),MATCH(C76,'2024-25 Data'!$B$2:$CF$2,0))) ->  | I76: =IF(ISERROR(IF(D4>0,SUMIF('2024-25 Data'!$M$3:$M$254,1,'2024-25 Data'!$BR$3:$BR$254)/(SUMIF('2024-25 Data'!$M$3:$M$254,1,'2024-25 Data'!$C$3:$C$254)+SUMIF('2024-25 Data'!$M$3:$M$254,1,'2024-25 Data'!$D$3:$D$254)),"")),"",IF(D4>0,SUMIF('2024-25 Data'!$M$3:$M$254,1,'2024-25 Data'!$BR$3:$BR$254)/(SUMIF('2024-25 Data'!$M$3:$M$254,1,'2024-25 Data'!$C$3:$C$254)+SUMIF('2024-25 Data'!$M$3:$M$254,1,'2024-25 Data'!$D$3:$D$254)),"")) ->  | M76: =IF(ISERROR(SUM('2024-25 Data'!$BR$3:$BR$254)/SUM('2024-25 Data'!$C$3:$D$254)),"",SUM('2024-25 Data'!$BR$3:$BR$254)/SUM('2024-25 Data'!$C$3:$D$254)) -> -17.94806748 | N76: 0.002733005284
B77: Additional Grant for Schools | C77: I18 | D77: =IF(ISERROR(INDEX('2024-25 Data'!$B$3:$CF$254,MATCH($D$4,dfenums,0),MATCH(C77,'2024-25 Data'!$B$2:$CF$2,0))),"",INDEX('2024-25 Data'!$B$3:$CF$254,MATCH($D$4,dfenums,0),MATCH(C77,'2024-25 Data'!$B$2:$CF$2,0))) ->  | I77: =IF(ISERROR(IF(D4>0,SUMIF('2024-25 Data'!$M$3:$M$254,1,'2024-25 Data'!$BS$3:$BS$254)/(SUMIF('2024-25 Data'!$M$3:$M$254,1,'2024-25 Data'!$C$3:$C$254)+SUMIF('2024-25 Data'!$M$3:$M$254,1,'2024-25 Data'!$D$3:$D$254)),"")),"",IF(D4>0,SUMIF('2024-25 Data'!$M$3:$M$254,1,'2024-25 Data'!$BS$3:$BS$254)/(SUMIF('2024-25 Data'!$M$3:$M$254,1,'2024-25 Data'!$C$3:$C$254)+SUMIF('2024-25 Data'!$M$3:$M$254,1,'2024-25 Data'!$D$3:$D$254)),"")) ->  | M77: =IF(ISERROR(SUM('2024-25 Data'!$BS$3:$BS$254)/SUM('2024-25 Data'!$C$3:$D$254)),"",SUM('2024-25 Data'!$BS$3:$BS$254)/SUM('2024-25 Data'!$C$3:$D$254)) -> -210.9309062 | N77: 0.03211907253
B78: Covid-19 furloughed Staff | C78: I18A | D78: =IF(ISERROR(INDEX('2024-25 Data'!$B$3:$CF$254,MATCH($D$4,dfenums,0),MATCH(C78,'2024-25 Data'!$B$2:$CF$2,0))),"",INDEX('2024-25 Data'!$B$3:$CF$254,MATCH($D$4,dfenums,0),MATCH(C78,'2024-25 Data'!$B$2:$CF$2,0))) ->  | E78: =IF(ISERROR(D78/($F$4+$G$4)),"",D78/($F$4+$G$4)) ->  | F78: =IF(ISERROR(D78/$D$81),"",D78/$D$81) ->  | I78: =IF(ISERROR(IF(D4>0,SUMIF('2024-25 Data'!$M$3:$M$254,1,'2024-25 Data'!$BT$3:$BT$254)/(SUMIF('2024-25 Data'!$M$3:$M$254,1,'2024-25 Data'!$C$3:$C$254)+SUMIF('2024-25 Data'!$M$3:$M$254,1,'2024-25 Data'!$D$3:$D$254)),"")),"",IF(D4>0,SUMIF('2024-25 Data'!$M$3:$M$254,1,'2024-25 Data'!$BT$3:$BT$254)/(SUMIF('2024-25 Data'!$M$3:$M$254,1,'2024-25 Data'!$C$3:$C$254)+SUMIF('2024-25 Data'!$M$3:$M$254,1,'2024-25 Data'!$D$3:$D$254)),"")) ->  | J78: =IF(ISERROR(I78/$I$81),"",I78/$I$81) ->  | M78: =IF(ISERROR(SUM('2024-25 Data'!$BT$3:$BT$254)/SUM('2024-25 Data'!$C$3:$D$254)),"",SUM('2024-25 Data'!$BT$3:$BT$254)/SUM('2024-25 Data'!$C$3:$D$254)) -> 0 | N78: =IF(ISERROR(M78/$M$81),"",M78/$M$81) -> 0
B79: Covid-19 any other Covid-19 related grant | C79: I18B | D79: =IF(ISERROR(INDEX('2024-25 Data'!$B$3:$CF$254,MATCH($D$4,dfenums,0),MATCH(C79,'2024-25 Data'!$B$2:$CF$2,0))),"",INDEX('2024-25 Data'!$B$3:$CF$254,MATCH($D$4,dfenums,0),MATCH(C79,'2024-25 Data'!$B$2:$CF$2,0))) ->  | E79: =IF(ISERROR(D79/($F$4+$G$4)),"",D79/($F$4+$G$4)) ->  | F79: =IF(ISERROR(D79/$D$81),"",D79/$D$81) ->  | I79: =IF(ISERROR(IF(D4>0,SUMIF('2024-25 Data'!$M$3:$M$254,1,'2024-25 Data'!$BU$3:$BU$254)/(SUMIF('2024-25 Data'!$M$3:$M$254,1,'2024-25 Data'!$C$3:$C$254)+SUMIF('2024-25 Data'!$M$3:$M$254,1,'2024-25 Data'!$D$3:$D$254)),"")),"",IF(D4>0,SUMIF('2024-25 Data'!$M$3:$M$254,1,'2024-25 Data'!$BU$3:$BU$254)/(SUMIF('2024-25 Data'!$M$3:$M$254,1,'2024-25 Data'!$C$3:$C$254)+SUMIF('2024-25 Data'!$M$3:$M$254,1,'2024-25 Data'!$D$3:$D$254)),"")) ->  | J79: =IF(ISERROR(I79/$I$81),"",I79/$I$81) ->  | M79: =IF(ISERROR(SUM('2024-25 Data'!$BU$3:$BU$254)/SUM('2024-25 Data'!$C$3:$D$254)),"",SUM('2024-25 Data'!$BU$3:$BU$254)/SUM('2024-25 Data'!$C$3:$D$254)) -> 0 | N79: =IF(ISERROR(M79/$M$81),"",M79/$M$81) -> 0
B80: Covid-19 £1bn package | C80: I18C | D80: =IF(ISERROR(INDEX('2024-25 Data'!$B$3:$CF$254,MATCH($D$4,dfenums,0),MATCH(C80,'2024-25 Data'!$B$2:$CF$2,0))),"",INDEX('2024-25 Data'!$B$3:$CF$254,MATCH($D$4,dfenums,0),MATCH(C80,'2024-25 Data'!$B$2:$CF$2,0))) ->  | I80: =IF(ISERROR(IF(D4>0,SUMIF('2024-25 Data'!$M$3:$M$254,1,'2024-25 Data'!$CF$3:$CF$254)/(SUMIF('2024-25 Data'!$M$3:$M$254,1,'2024-25 Data'!$C$3:$C$254)+SUMIF('2024-25 Data'!$M$3:$M$254,1,'2024-25 Data'!$D$3:$D$254)),"")),"",IF(D4>0,SUMIF('2024-25 Data'!$M$3:$M$254,1,'2024-25 Data'!$CF$3:$CF$254)/(SUMIF('2024-25 Data'!$M$3:$M$254,1,'2024-25 Data'!$C$3:$C$254)+SUMIF('2024-25 Data'!$M$3:$M$254,1,'2024-25 Data'!$D$3:$D$254)),"")) ->  | M80: =IF(ISERROR(SUM('2024-25 Data'!$CF$3:$CF$254)/SUM('2024-25 Data'!$C$3:$D$254)),"",SUM('2024-25 Data'!$CF$3:$CF$254)/SUM('2024-25 Data'!$C$3:$D$254)) -> 0 | N80: 0
B81: Total Income (excluding reserves and high needs) | D81: =IF(ISERROR(SUM(D58:D80)),"",SUM(D58:D60)+SUM(D63:D80)) -> 0 | E81: =IF(ISERROR(SUM(E58:E80)),"",SUM(E58:E60)+SUM(E63:E80)) -> 0 | F81: =IF(ISERROR(SUM(F58:F80)),"",SUM(F58:F60)+SUM(F63:F80)) -> 0 | I81: =IF(ISERROR(SUM(I58:I80)),"",SUM(I58:I60)+SUM(I63:I80)) -> 0 | J81: =IF(ISERROR(SUM(J58:J80)),"",SUM(J58:J60)+SUM(J63:J80)) -> 0 | M81: =IF(ISERROR(SUM(M58:M80)),"",SUM(M58:M60)+SUM(M63:M80)) -> -6567.154327 | N81: =IF(ISERROR(SUM(N58:N80)),"",SUM(N58:N60)+SUM(N63:N80)) -> 1

Sheet 2024-25 Data (hidden)
B1: PFI School | C1: ="Autumn "&LEFT(Benchmarking!C1,4)-1&" Roll" -> Autumn 2023 Roll | D1: =Benchmarking!C1&" School Budget Templates" -> 2024-25 School Budget Templates | E1: KCC Finance & Procurement | G1: Self generating | N1: ="From "&Benchmarking!C1&" Checking Spreadsheet" -> From 2024-25 Checking Spreadsheet | BA1: Self generating | BB1: KCC Finance & Procurement All Negative figures | BC1: Self generating (HNOU, HNTU & HN3U) | BD1: Self generating (HNMT & HN3M) | BE1: =N1 -> From 2024-25 Checking Spreadsheet | BX1: ="From March 20"&RIGHT(Benchmarking!C1,2)&" Advances" -> From March 2025 Advances | CA1: Self generating | CB1: ="From March 20"&RIGHT(Benchmarking!C1,2)&" Advances" -> From March 2025 Advances | CD1: Self generating
A2: DFE | B2: SCHOOL | C2: NURSERY NUMS | D2: YR R-6 INC SRP | E2: SRP FTE | F2: HNP FTE | G2: NURSERY | H2: PHASE | I2: SIZE CLASS | J2: NURSERY SELECTA | K2: PHASE SELECTA | L2: SIZE SELECTA | M2: OVERALL SLECTA | N2: E01 | O2: E02 | P2: E03 | Q2: E04 | R2: E05 | S2: E06 | T2: E07 | U2: E08 | V2: E09 | W2: E10 | X2: E11 | Y2: E12 | Z2: E13 | AA2: E14 | AB2: E15 | AC2: E16 | AD2: E17 | AE2: E18 | AF2: E19 | AG2: E20A | AH2: E20B | AI2: E20C | AJ2: E20D | AK2: E20E | AL2: E20F | AM2: E20G | AN2: E21 | AO2: E22 | AP2: E23 | AQ2: E24 | AR2: E25 | AS2: E26 | AT2: E27 | AU2: E28 | AV2: E28B | AW2: E29 | AX2: E30 | AY2: E31 | AZ2: E32 | BA2: Funds delegated by the LEA (excluding High Needs) | BB2: Notional SEN Budget | BC2: Specially Rescourced Provision (Unit) Funding | BD2: Funding for High Needs Pupils | BE2: I04 | BF2: I05 | BG2: I06 | BH2: I07 | BI2: I08 | BJ2: I08b | BK2: I09 | BL2: I10 | BM2: I11 | BN2: I12 | BO2: I13 | BP2: I15 | BQ2: I16 | BR2: I17 | BS2: I18 | BT2: I18A | BU2: I18B | BV2: I18C | BW2: I01 + I03 | BX2: HNOU | BY2: HNTU | BZ2: HN3U | CA2: AV Total | CB2: HNMT | CC2: HN3M | CD2: AW Total
A3: 2000 | B3: St Johns CE Primary School, Canterbury | C3: 27 | D3: 404 | E3: 0 | F3: 23.8 | G3: =IF(C3=0,"No","Yes") -> Yes | H3: Primary | I3: =IFERROR(VLOOKUP($D3,$D$256:$F$261,3,TRUE),0) -> 400-499 | J3: =IF(G3=Benchmarking!$I$4,1,0) -> 0 | K3: =IF(Benchmarking!$I$6="All",1,IF(Benchmarking!$I$6=H3,1,0)) -> 0 | L3: =SUBTOTAL(9,C3:K3) -> 454.8 | M3: =IF(SUM(J3:L3)=3,1,0) -> 0 | N3: 1647662.42 | O3: 0 | P3: 632071.97 | Q3: 75664.5 | R3: 137979.28 | S3: 0 | T3: 66416.66 | U3: 10279.79 | V3: 18720.61 | W3: 812.04 | X3: 11824.56 | Y3: 26283.16 | Z3: 26738.61 | AA3: 38335.48 | AB3: 8114.06 | AC3: 54944.17 | AD3: 39839.64 | AE3: 19295.32 | AF3: 104496.45 | AG3: 2958.19 | AH3: 960 | AI3: 10713.96 | AJ3: 23464.86 | AK3: 570 | AL3: 1814.93 | AM3: 4949.09 | AN3: 0 | AO3: 4741.18 | AP3: 15972.24 | AQ3: 4862.92 | AR3: 124481.16 | AS3: 26344.92 | AT3: 92651.06 | AU3: 15113.96 | AV3: 0 | AW3: 0 | AX3: 1005.25 | AY3: 0 | AZ3: 0 | BA3: =BW3-BB3-BC3-BD3 -> -2046198.031 | BB3: -472765.0492 | BC3: =-CA3 -> 0 | BD3: =-CD3 -> -141156.61 | BE3: -4500 | BF3: -302410 | BG3: -6856.93 | BH3: -76173.87 | BI3: -50817.5 | BJ3: -8184.12 | BK3: -10289.37 | BL3: 0 | BM3: -31597.1 | BN3: -5795.23 | BO3: -5274.52 | BP3: 0 | BQ3: 0 | BR3: 0 | BS3: -51198 | BT3: 0 | BU3: 0 | BV3: -17910.42 | BW3: -2660119.69 | BX3: 0 | BY3: 0 | BZ3: 0 | CA3: =SUM(BX3:BZ3) -> 0 | CB3: 141156.61 | CC3: 0 | CD3: =SUM(CB3:CC3) -> 141156.61
A4: 2002 | B4: Repton Manor Primary School | C4: 0 | D4: 446 | E4: 0 | F4: 22.4 | G4: No | H4: Primary | I4: 400-499 | J4: =IF(G4=Benchmarking!$I$4,1,0) -> 0 | K4: =IF(Benchmarking!$I$6="All",1,IF(Benchmarking!$I$6=H4,1,0)) -> 0 | L4: =IF(Benchmarking!$I$8="All",1,IF(Benchmarking!$I$8=I4,1,0)) -> 0 | M4: 0 | N4: 1230107.44 | O4: 0 | P4: 486081.91 | Q4: 47116.94 | R4: 149486.78 | S4: 0 | T4: 208902.6 | U4: 1077.65 | V4: 6830.49 | W4: 896.46 | X4: 12911.76 | Y4: 23255.81 | Z4: 4844.2 | AA4: 62729.77 | AB4: 8462.12 | AC4: 78085.17 | AD4: 10650 | AE4: 23249.09 | AF4: 143655.33 | AG4: 4292.32 | AH4: 0 | AI4: 12563.53 | AJ4: 21537.7 | AK4: 0 | AL4: 2933.62 | AM4: 19384.63 | AN4: 0 | AO4: 18577.08 | AP4: 17064 | AQ4: 20775 | AR4: 148713.42 | AS4: 48449.25 | AT4: 9769.25 | AU4: 14934.15 | AV4: 0 | AW4: 0 | AX4: 45803.96 | AY4: 0 | AZ4: 0 | BA4: -1877967.262 | BB4: -295409.3875 | BC4: 0 | BD4: -177384.66 | BE4: 0 | BF4: -138050 | BG4: -5056.93 | BH4: -115600.86 | BI4: -18470 | BJ4: -88561.27 | BK4: -44792.28 | BL4: 0 | BM4: -13149.16 | BN4: -13486.68 | BO4: -12844.68 | BP4: 0 | BQ4: 0 | BR4: 0 | BS4: -81167 | BT4: 0 | BU4: 0 | BV4: -8025 | BW4: -2350761.31 | BX4: 0 | BY4: 0 | BZ4: 0 | CA4: 0 | CB4: 177384.66 | CC4: 0 | CD4: 177384.66
A5: 2065 | B5: Discovery School, The | C5: 0 | D5: 626 | E5: 0 | F5: 15.9 | G5: No | H5: Primary | I5: 500+ | J5: =IF(G5=Benchmarking!$I$4,1,0) -> 0 | K5: =IF(Benchmarking!$I$6="All",1,IF(Benchmarking!$I$6=H5,1,0)) -> 0 | L5: =IF(Benchmarking!$I$8="All",1,IF(Benchmarking!$I$8=I5,1,0)) -> 0 | M5: 0 | N5: 1846766.14 | O5: 0 | P5: 754812.61 | Q5: 73129.53 | R5: 159295.94 | S5: 0 | T5: 238033.51 | U5: 17738.67 | V5: 7445 | W5: 1258.26 | X5: 18362.88 | Y5: 36706.82 | Z5: 13660.3 | AA5: 29188.49 | AB5: 6785.83 | AC5: 47004.66 | AD5: 94458 | AE5: 19931.96 | AF5: 88719.96 | AG5: 4495 | AH5: 0 | AI5: 8873.6 | AJ5: 14552.89 | AK5: 751.5 | AL5: 13908.19 | AM5: 28342.35 | AN5: 0 | AO5: 23057.72 | AP5: 25086.98 | AQ5: 19102.34 | AR5: 194727.92 | AS5: 27641.83 | AT5: 15235.99 | AU5: 36606.6 | AV5: 0 | AW5: 0 | AX5: 0 | AY5: 0 | AZ5: 0 | BA5: -2718048.163 | BB5: -414196.1467 | BC5: 0 | BD5: -160835.45 | BE5: 0 | BF5: -90200 | BG5: -4713.86 | BH5: -2430 | BI5: -25869.65 | BJ5: -130318.52 | BK5: -92015.52 | BL5: 0 | BM5: -28918.58 | BN5: -42257.67 | BO5: -7104.85 | BP5: 0 | BQ5: 0 | BR5: 0 | BS5: -134697 | BT5: 0 | BU5: 0 | BV5: -4431.8 | BW5: -3293079.76 | BX5: 0 | BY5: 0 | BZ5: 0 | CA5: 0 | CB5: 160835.45 | CC5: 0 | CD5: 160835.45
A6: 2079 | B6: Woodlands Primary School | C6: 0 | D6: 592 | E6: 0 | F6: 14.8 | G6: No | H6: Primary | I6: 500+ | J6: =IF(G6=Benchmarking!$I$4,1,0) -> 0 | K6: =IF(Benchmarking!$I$6="All",1,IF(Benchmarking!$I$6=H6,1,0)) -> 0 | L6: =IF(Benchmarking!$I$8="All",1,IF(Benchmarking!$I$8=I6,1,0)) -> 0 | M6: 0 | N6: 1849732.1 | O6: 31190.42 | P6: 619718.34 | Q6: 53619.92 | R6: 132708.96 | S6: 0 | T6: 2512.64 | U6: 14888.48 | V6: 9802.01 | W6: 3673.92 | X6: 17138.4 | Y6: 47170.48 | Z6: 14863.89 | AA6: 98747.83 | AB6: 15534.62 | AC6: 66298.12 | AD6: 69342 | AE6: 31227.31 | AF6: 177239.99 | AG6: 7028.5 | AH6: 0 | AI6: 561.84 | AJ6: 20059.75 | AK6: 5513.6 | AL6: 3935.64 | AM6: 13095.69 | AN6: 0 | AO6: 27473.31 | AP6: 22649.88 | AQ6: 42935.47 | AR6: 114949.46 | AS6: 18494.89 | AT6: 12668 | AU6: 23386.51 | AV6: 0 | AW6: 0 | AX6: 13522.05 | AY6: 0 | AZ6: 0 | BA6: -2515330.339 | BB6: -422167.5208 | BC6: 0 | BD6: -131650.74 | BE6: 0 | BF6: -223870.68 | BG6: -8170.79 | BH6: 0 | BI6: -33601.06 | BJ6: -17657.88 | BK6: 0 | BL6: 0 | BM6: 0 | BN6: -92970.69 | BO6: -35336.97 | BP6: 0 | BQ6: 0 | BR6: 0 | BS6: -91177 | BT6: 0 | BU6: 0 | BV6: -11281.25 | BW6: -3069148.6 | BX6: 0 | BY6: 0 | BZ6: 0 | CA6: 0 | CB6: 131650.74 | CC6: 0 | CD6: 131650.74
A7: 2088 | B7: Crockenhill Primary School | C7: 0 | D7: 192 | E7: 0 | F7: 1.8 | G7: No | H7: Primary | I7: 100-199 | J7: =IF(G7=Benchmarking!$I$4,1,0) -> 0 | K7: =IF(Benchmarking!$I$6="All",1,IF(Benchmarking!$I$6=H7,1,0)) -> 0 | L7: =IF(Benchmarking!$I$8="All",1,IF(Benchmarking!$I$8=I7,1,0)) -> 0 | M7: 0 | N7: 741936.39 | O7: 0 | P7: 119125.96 | Q7: 33090.53 | R7: 69882.76 | S7: 0 | T7: 49628.09 | U7: 4359.44 | V7: 4263.3 | W7: 6020.91 | X7: 5558.4 | Y7: 5121.12 | Z7: 2131.99 | AA7: 8968.22 | AB7: 7344.8 | AC7: 19497.77 | AD7: 34398 | AE7: 12989.9 | AF7: 39790.87 | AG7: 5245 | AH7: 0 | AI7: 9571.05 | AJ7: 11917.6 | AK7: 0 | AL7: 103.49 | AM7: 10945.75 | AN7: 0 | AO7: 3113.32 | AP7: 7488.91 | AQ7: 5631.94 | AR7: 53667.91 | AS7: 4265 | AT7: 22417.62 | AU7: 21995.53 | AV7: 0 | AW7: 0 | AX7: 0 | AY7: 0 | AZ7: 0 | BA7: -952323.9528 | BB7: -160049.3872 | BC7: 0 | BD7: -8527.5 | BE7: 0 | BF7: -92749.8 | BG7: -600 | BH7: 0 | BI7: -2378.72 | BJ7: -55890.8 | BK7: 0 | BL7: 0 | BM7: -10032.78 | BN7: -12727.45 | BO7: -8362.01 | BP7: 0 | BQ7: 0 | BR7: 0 | BS7: -44758 | BT7: 0 | BU7: 0 | BV7: -1398.96 | BW7: -1120900.84 | BX7: 0 | BY7: 0 | BZ7: 0 | CA7: 0 | CB7: 8527.5 | CC7: 0 | CD7: 8527.5
A8: 2089 | B8: Anthony Roper Primary School, The | C8: 0 | D8: 272 | E8: 0 | F8: 4.416666667 | G8: No | H8: Primary | I8: 200-299 | J8: =IF(G8=Benchmarking!$I$4,1,0) -> 0 | K8: =IF(Benchmarking!$I$6="All",1,IF(Benchmarking!$I$6=H8,1,0)) -> 0 | L8: =IF(Benchmarking!$I$8="All",1,IF(Benchmarking!$I$8=I8,1,0)) -> 0 | M8: 0 | N8: 841332.13 | O8: 12457.11 | P8: 222625.46 | Q8: 14098.32 | R8: 74853.78 | S8: 0 | T8: 83905.19 | U8: 946.5 | V8: 6170 | W8: 8433.97 | X8: 7874.4 | Y8: 6725.91 | Z8: 10885 | AA8: 26930.8 | AB8: 3140.5 | AC8: 40938.43 | AD8: 7043.4 | AE8: 32411.66 | AF8: 59668.31 | AG8: 3746.39 | AH8: 0 | AI8: 2009.93 | AJ8: 18024.51 | AK8: 10020.86 | AL8: 0 | AM8: 7020 | AN8: 0 | AO8: 10195.2 | AP8: 10609.33 | AQ8: 13745.47 | AR8: 46013.93 | AS8: 12884.05 | AT8: 17816 | AU8: 28988.89 | AV8: 0 | AW8: 0 | AX8: 13130.28 | AY8: 0 | AZ8: 0 | BA8: -1190210.103 | BB8: -149416.7574 | BC8: 0 | BD8: -44592.45 | BE8: 0 | BF8: -50630 | BG8: -4000 | BH8: 0 | BI8: -23011.74 | BJ8: -2945.32 | BK8: 0 | BL8: 0 | BM8: -9085.91 | BN8: -29221.6 | BO8: -34361.15 | BP8: 0 | BQ8: 0 | BR8: 0 | BS8: -54639 | BT8: 0 | BU8: 0 | BV8: -715.42 | BW8: -1384219.31 | BX8: 0 | BY8: 0 | BZ8: 0 | CA8: 0 | CB8: 44592.45 | CC8: 0 | CD8: 44592.45
A9: 2094 | B9: Cobham Primary School | C9: 0 | D9: 215 | E9: 0 | F9: 9 | G9: No | H9: Primary | I9: 200-299 | J9: =IF(G9=Benchmarking!$I$4,1,0) -> 0 | K9: =IF(Benchmarking!$I$6="All",1,IF(Benchmarking!$I$6=H9,1,0)) -> 0 | L9: =IF(Benchmarking!$I$8="All",1,IF(Benchmarking!$I$8=I9,1,0)) -> 0 | M9: 0 | N9: 638162.27 | O9: 0 | P9: 290941.63 | Q9: 23944.67 | R9: 44962.73 | S9: 0 | T9: 15256.29 | U9: 4562.61 | V9: 5201.26 | W9: 1962.93 | X9: 6224.28 | Y9: 5658.82 | Z9: 4937.96 | AA9: 3508.76 | AB9: 350 | AC9: 24524.71 | AD9: 17216 | AE9: 8333.58 | AF9: 50069.07 | AG9: 4681.28 | AH9: 0 | AI9: 3592.01 | AJ9: 8830.57 | AK9: 0 | AL9: 71.74 | AM9: 2055 | AN9: 0 | AO9: 4080.9 | AP9: 8225.94 | AQ9: 7032.33 | AR9: 35694.51 | AS9: 0 | AT9: 26010.95 | AU9: 20155.53 | AV9: 0 | AW9: 0 | AX9: 0 | AY9: 0 | AZ9: 0 | BA9: -962596.4976 | BB9: -103767.5124 | BC9: 0 | BD9: -44328.04 | BE9: 0 | BF9: -35750 | BG9: -200 | BH9: -1888 | BI9: -3202.5 | BJ9: -13173.14 | BK9: 0 | BL9: -720 | BM9: -13926.5 | BN9: -21616.61 | BO9: -15158.92 | BP9: 0 | BQ9: 0 | BR9: 0 | BS9: -56273 | BT9: 0 | BU9: 0 | BV9: -1658.33 | BW9: -1110692.05 | BX9: 0 | BY9: 0 | BZ9: 0 | CA9: 0 | CB9: 44328.04 | CC9: 0 | CD9: 44328.04
A10: 2095 | B10: Cecil Road Primary School | C10: 49 | D10: 371 | E10: 0 | F10: 20.16666667 | G10: Yes | H10: Primary | I10: 300-399 | J10: =IF(G10=Benchmarking!$I$4,1,0) -> 0 | K10: =IF(Benchmarking!$I$6="All",1,IF(Benchmarking!$I$6=H10,1,0)) -> 0 | L10: =IF(Benchmarking!$I$8="All",1,IF(Benchmarking!$I$8=I10,1,0)) -> 0 | M10: 0 | N10: 1336690.26 | O10: 0 | P10: 692276.19 | Q10: 45537.78 | R10: 99268.8 | S10: 0 | T10: 26808.9 | U10: 1099.85 | V10: 7915.86 | W10: 14885.95 | X10: 10984.2 | Y10: 15481.22 | Z10: 996.04 | AA10: 43245.95 | AB10: 11619.63 | AC10: 44716.91 | AD10: 34048 | AE10: 12933.56 | AF10: 51990.44 | AG10: 3186.32 | AH10: 0 | AI10: 6311.4 | AJ10: 18706.87 | AK10: 0 | AL10: 2451.41 | AM10: 7124.5 | AN10: 0 | AO10: 22556.3 | AP10: 15169.62 | AQ10: 12422.98 | AR10: 74411.37 | AS10: 8667.5 | AT10: 14636.04 | AU10: 23423.8 | AV10: 0 | AW10: 0 | AX10: 0 | AY10: 0 | AZ10: 0 | BA10: -1916513.402 | BB10: -260550.2376 | BC10: 0 | BD10: -149596.11 | BE10: 0 | BF10: -90940 | BG10: -5771.29 | BH10: -13418.58 | BI10: -42106.25 | BJ10: -35198.03 | BK10: 0 | BL10: -10138 | BM10: -24405.53 | BN10: -19322.72 | BO10: -5387.73 | BP10: 0 | BQ10: 0 | BR10: 0 | BS10: -69877 | BT10: 0 | BU10: 0 | BV10: -5316.67 | BW10: -2326659.75 | BX10: 0 | BY10: 0 | BZ10: 0 | CA10: 0 | CB10: 149596.11 | CC10: 0 | CD10: 149596.11
A11: 2109 | B11: Higham Primary School | C11: 0 | D11: 210 | E11: 0 | F11: 9.666666667 | G11: No | H11: Primary | I11: 200-299 | J11: =IF(G11=Benchmarking!$I$4,1,0) -> 0 | K11: =IF(Benchmarking!$I$6="All",1,IF(Benchmarking!$I$6=H11,1,0)) -> 0 | L11: =IF(Benchmarking!$I$8="All",1,IF(Benchmarking!$I$8=I11,1,0)) -> 0 | M11: 0 | N11: 691820.05 | O11: 3196.99 | P11: 241820.55 | Q11: 64688.83 | R11: 90109.77 | S11: 43408.03 | T11: 47632.5 | U11: 5114.69 | V11: 7452.5 | W11: 7078.14 | X11: 6795.96 | Y11: 4499.51 | Z11: 9448.55 | AA11: 2893.95 | AB11: 2491.22 | AC11: 25897.4 | AD11: 24950 | AE11: 5711.7 | AF11: 45754.59 | AG11: 2487 | AH11: 0 | AI11: 1946.02 | AJ11: 9282.03 | AK11: 8400 | AL11: 563.73 | AM11: 378.72 | AN11: 0 | AO11: 3655.86 | AP11: 8034.6 | AQ11: 2345.02 | AR11: 24637.03 | AS11: 10454.2 | AT11: 1035 | AU11: 10995.06 | AV11: 0 | AW11: 0 | AX11: 0 | AY11: 0 | AZ11: 0 | BA11: -938997.7726 | BB11: -142743.0874 | BC11: 0 | BD11: -100472.69 | BE11: 0 | BF11: -46190 | BG11: -400 | BH11: -4490 | BI11: -4860.39 | BJ11: -44851.15 | BK11: -31457.45 | BL11: -5616 | BM11: -8826.4 | BN11: -19952.69 | BO11: -18024.03 | BP11: 0 | BQ11: 0 | BR11: 0 | BS11: -56619 | BT11: 0 | BU11: 0 | BV11: -1255.63 | BW11: -1182213.55 | BX11: 0 | BY11: 0 | BZ11: 0 | CA11: 0 | CB11: 100472.69 | CC11: 0 | CD11: 100472.69
A12: 2116 | B12: Lawn Primary School | C12: 27 | D12: 207 | E12: 0 | F12: 6.416666667 | G12: Yes | H12: Primary | I12: 200-299 | J12: =IF(G12=Benchmarking!$I$4,1,0) -> 0 | K12: =IF(Benchmarking!$I$6="All",1,IF(Benchmarking!$I$6=H12,1,0)) -> 0 | L12: =IF(Benchmarking!$I$8="All",1,IF(Benchmarking!$I$8=I12,1,0)) -> 0 | M12: 0 | N12: 754071.5 | O12: 0 | P12: 407406.78 | Q12: 73418.43 | R12: 81478.84 | S12: 61949.73 | T12: 69899 | U12: 811.72 | V12: 9282.95 | W12: 416.07 | X12: 6080.04 | Y12: 10850.28 | Z12: 8828.86 | AA12: 1703.93 | AB12: 7335.04 | AC12: 27921.66 | AD12: 20459 | AE12: 8817.34 | AF12: 88776.84 | AG12: 3001.5 | AH12: 0 | AI12: 9373.51 | AJ12: 12608.43 | AK12: 0 | AL12: 9066.42 | AM12: 7738.59 | AN12: 0 | AO12: 4545.21 | AP12: 8269.38 | AQ12: 1256.31 | AR12: 32570.94 | AS12: 0 | AT12: 7820 | AU12: 25678.77 | AV12: 0 | AW12: 0 | AX12: 0 | AY12: 0 | AZ12: 0 | BA12: -1197407.897 | BB12: -255919.7729 | BC12: 0 | BD12: -56961.84 | BE12: 0 | BF12: -153320 | BG12: -1056.93 | BH12: -24824.88 | BI12: 0 | BJ12: -21954.46 | BK12: -12359.12 | BL12: 0 | BM12: -4838.53 | BN12: -13963.01 | BO12: -4862.9 | BP12: 0 | BQ12: 0 | BR12: 0 | BS12: -40499 | BT12: 0 | BU12: 0 | BV12: -2626.88 | BW12: -1510289.51 | BX12: 0 | BY12: 0 | BZ12: 0 | CA12: 0 | CB12: 56961.84 | CC12: 0 | CD12: 56961.84
A13: 2120 | B13: Bean Primary School | C13: 0 | D13: 194 | E13: 0 | F13: 1.833333333 | G13: No | H13: Infant | I13: 100-199 | J13: =IF(G13=Benchmarking!$I$4,1,0) -> 0 | K13: =IF(Benchmarking!$I$6="All",1,IF(Benchmarking!$I$6=H13,1,0)) -> 0 | L13: =IF(Benchmarking!$I$8="All",1,IF(Benchmarking!$I$8=I13,1,0)) -> 0 | M13: 0 | N13: 654908.2 | O13: 0 | P13: 178032.56 | Q13: 37818.35 | R13: 64039.2 | S13: 0 | T13: 28140.79 | U13: 3631.46 | V13: 3409.67 | W13: 404.56 | X13: 5701.32 | Y13: 9224.7 | Z13: 6697.93 | AA13: 21409.51 | AB13: 1780.04 | AC13: 22728.55 | AD13: 16717 | AE13: 8061.21 | AF13: 65577.41 | AG13: 11287.38 | AH13: 0 | AI13: 2036.87 | AJ13: 9329.32 | AK13: 7887.86 | AL13: 1639.08 | AM13: 7920.75 | AN13: 0 | AO13: 14107.33 | AP13: 8204.94 | AQ13: 3384.83 | AR13: 59679.56 | AS13: 0 | AT13: 10904 | AU13: 21093.53 | AV13: 0 | AW13: 0 | AX13: 0.5 | AY13: 0 | AZ13: 0 | BA13: -980008.141 | BB13: -155946.009 | BC13: 0 | BD13: -18850.73 | BE13: 0 | BF13: -71040 | BG13: -882.53 | BH13: -1870 | BI13: -5785 | BJ13: -18638.4 | BK13: 0 | BL13: 0 | BM13: -13308.44 | BN13: -15717.81 | BO13: 0 | BP13: 0 | BQ13: 0 | BR13: 0 | BS13: -49196 | BT13: 0 | BU13: 0 | BV13: -3368.75 | BW13: -1154804.88 | BX13: 0 | BY13: 0 | BZ13: 0 | CA13: 0 | CB13: 18850.73 | CC13: 0 | CD13: 18850.73
A14: 2128 | B14: Capel Primary School | C14: 0 | D14: 207 | E14: 0 | F14: 3.25 | G14: No | H14: Primary | I14: 200-299 | J14: =IF(G14=Benchmarking!$I$4,1,0) -> 0 | K14: =IF(Benchmarking!$I$6="All",1,IF(Benchmarking!$I$6=H14,1,0)) -> 0 | L14: =IF(Benchmarking!$I$8="All",1,IF(Benchmarking!$I$8=I14,1,0)) -> 0 | M14: 0 | N14: 622520.62 | O14: 0 | P14: 246614.07 | Q14: 42951.29 | R14: 83360.45 | S14: 41178.37 | T14: 66876.66 | U14: 7869.52 | V14: 5800.17 | W14: 416.07 | X14: 5992.68 | Y14: 2378.36 | Z14: 5348.94 | AA14: 2174.88 | AB14: 4308.73 | AC14: 26194.62 | AD14: 23827.25 | AE14: 10030.3 | AF14: 55747.26 | AG14: 3954 | AH14: 0 | AI14: 4976.81 | AJ14: 6380.18 | AK14: 0 | AL14: 2990.69 | AM14: 8610.94 | AN14: 0 | AO14: 5652.59 | AP14: 7919.82 | AQ14: 5825.99 | AR14: 27905.61 | AS14: 2276.73 | AT14: 18108.03 | AU14: 12725.41 | AV14: 0 | AW14: 0 | AX14: 0 | AY14: 0 | AZ14: 0 | BA14: -942248.59 | BB14: -119034.75 | BC14: 0 | BD14: -24354.49 | BE14: 0 | BF14: -60290 | BG14: -3256.93 | BH14: 0 | BI14: -500 | BJ14: -63033.31 | BK14: -17043.98 | BL14: 0 | BM14: -3580.63 | BN14: -15858.1 | BO14: -10696.4 | BP14: 0 | BQ14: 0 | BR14: 0 | BS14: -50767.67 | BT14: 0 | BU14: 0 | BV14: -2054.18 | BW14: -1085637.83 | BX14: 0 | BY14: 0 | BZ14: 0 | CA14: 0 | CB14: 24354.49 | CC14: 0 | CD14: 24354.49
A15: 2130 | B15: Dunton Green Primary School | C15: 0 | D15: 160 | E15: 0 | F15: 8.333333333 | G15: No | H15: Primary | I15: 100-199 | J15: =IF(G15=Benchmarking!$I$4,1,0) -> 0 | K15: =IF(Benchmarking!$I$6="All",1,IF(Benchmarking!$I$6=H15,1,0)) -> 0 | L15: =IF(Benchmarking!$I$8="All",1,IF(Benchmarking!$I$8=I15,1,0)) -> 0 | M15: 0 | N15: 524738.44 | O15: 0 | P15: 270859.98 | Q15: 47419.9 | R15: 60472.95 | S15: 0 | T15: 0 | U15: 3377.66 | V15: 2492 | W15: 333.66 | X15: 4632 | Y15: 54121.7 | Z15: 7792 | AA15: 10704.99 | AB15: 1371.36 | AC15: 25783.85 | AD15: 24576 | AE15: 3193.41 | AF15: 64731.84 | AG15: 0 | AH15: 0 | AI15: 0 | AJ15: 1227.36 | AK15: 7407.16 | AL15: 0 | AM15: 1322.16 | AN15: 0 | AO15: 34488.7 | AP15: 6240.72 | AQ15: 0 | AR15: 45973.35 | AS15: 0 | AT15: 1530.36 | AU15: 89267.72 | AV15: 0 | AW15: 0 | AX15: 0 | AY15: 0 | AZ15: 0 | BA15: -824515.2152 | BB15: -109610.6648 | BC15: 0 | BD15: -50348.62 | BE15: 0 | BF15: -78780 | BG15: -5882.53 | BH15: -6180.97 | BI15: -8809.2 | BJ15: -28356.53 | BK15: 0 | BL15: -2000 | BM15: -35272.67 | BN15: -26225.76 | BO15: -16068.73 | BP15: 0 | BQ15: 0 | BR15: 0 | BS15: -38948 | BT15: 0 | BU15: 0 | BV15: -5200 | BW15: -984474.5 | BX15: 0 | BY15: 0 | BZ15: 0 | CA15: 0 | CB15: 50348.62 | CC15: 0 | CD15: 50348.62
A16: 2132 | B16: Hadlow Primary School | C16: 0 | D16: 179 | E16: 0 | F16: 9.416666667 | G16: No | H16: Primary | I16: 100-199 | J16: =IF(G16=Benchmarking!$I$4,1,0) -> 0 | K16: =IF(Benchmarking!$I$6="All",1,IF(Benchmarking!$I$6=H16,1,0)) -> 0 | L16: =IF(Benchmarking!$I$8="All",1,IF(Benchmarking!$I$8=I16,1,0)) -> 0 | M16: 0 | N16: 605342.19 | O16: 2224.66 | P16: 323229.56 | Q16: 48578.06 | R16: 45441.26 | S16: 0 | T16: 15432.03 | U16: 4202.41 | V16: 2618.5 | W16: 4252.84 | X16: 5186.64 | Y16: 7304.48 | Z16: 5714.08 | AA16: 8014.99 | AB16: 6961.01 | AC16: 29436.38 | AD16: 25199.5 | AE16: 3765 | AF16: 71840.43 | AG16: 4223 | AH16: 0 | AI16: 1772.82 | AJ16: 1412.64 | AK16: 0 | AL16: 0 | AM16: 3246.33 | AN16: 0 | AO16: 12019.55 | AP16: 6866.94 | AQ16: 6238.95 | AR16: 47903.01 | AS16: 1560 | AT16: 5082.42 | AU16: 19427.46 | AV16: 0 | AW16: 0 | AX16: 0 | AY16: 0 | AZ16: 0 | BA16: -872676.6755 | BB16: -168328.7945 | BC16: 0 | BD16: -104011 | BE16: 0 | BF16: -99620 | BG16: -856.93 | BH16: -12095.93 | BI16: -12335.6 | BJ16: -16105.46 | BK16: 0 | BL16: 0 | BM16: -4459.06 | BN16: -20447.81 | BO16: -6125.24 | BP16: 0 | BQ16: 0 | BR16: 0 | BS16: -32739 | BT16: 0 | BU16: 0 | BV16: -1885 | BW16: -1145016.47 | BX16: 0 | BY16: 0 | BZ16: 0 | CA16: 0 | CB16: 104011 | CC16: 0 | CD16: 104011
A17: 2136 | B17: Kemsing Primary School | C17: 0 | D17: 181 | E17: 0 | F17: 5.166666667 | G17: No | H17: Primary | I17: 100-199 | J17: =IF(G17=Benchmarking!$I$4,1,0) -> 0 | K17: =IF(Benchmarking!$I$6="All",1,IF(Benchmarking!$I$6=H17,1,0)) -> 0 | L17: =IF(Benchmarking!$I$8="All",1,IF(Benchmarking!$I$8=I17,1,0)) -> 0 | M17: 0 | N17: 519777.24 | O17: 0 | P17: 196406.37 | Q17: 34931.85 | R17: 68086.72 | S17: 0 | T17: 60092.7 | U17: 7790.9 | V17: 4235.76 | W17: 377.45 | X17: 5239.92 | Y17: 2811.32 | Z17: 6275.98 | AA17: 26125.94 | AB17: 4453.39 | AC17: 24113.67 | AD17: 24700.5 | AE17: 11249.42 | AF17: 32714.3 | AG17: 4988.7 | AH17: 0 | AI17: 6556.88 | AJ17: 10730.13 | AK17: 289.99 | AL17: 166.64 | AM17: 6928.68 | AN17: 0 | AO17: 2871.87 | AP17: 7059.82 | AQ17: 2995.29 | AR17: 33533.4 | AS17: 19163.38 | AT17: 14224.37 | AU17: 12187.07 | AV17: 0 | AW17: 0 | AX17: 0 | AY17: 0 | AZ17: 0 | BA17: -875231.4758 | BB17: -112824.4342 | BC17: 0 | BD17: -42926.94 | BE17: 0 | BF17: -43320 | BG17: -588.35 | BH17: -171.18 | BI17: -13211.23 | BJ17: -17227.17 | BK17: 0 | BL17: 0 | BM17: -2003.54 | BN17: -6093.25 | BO17: -14598.58 | BP17: 0 | BQ17: 0 | BR17: 0 | BS17: -45689 | BT17: 0 | BU17: 0 | BV17: -523.33 | BW17: -1030982.85 | BX17: 0 | BY17: 0 | BZ17: 0 | CA17: 0 | CB17: 42926.94 | CC17: 0 | CD17: 42926.94
A18: 2137 | B18: Leigh Primary School | C18: 0 | D18: 148 | E18: 0 | F18: 9.833333333 | G18: No | H18: Primary | I18: 100-199 | J18: =IF(G18=Benchmarking!$I$4,1,0) -> 0 | K18: =IF(Benchmarking!$I$6="All",1,IF(Benchmarking!$I$6=H18,1,0)) -> 0 | L18: =IF(Benchmarking!$I$8="All",1,IF(Benchmarking!$I$8=I18,1,0)) -> 0 | M18: 0 | N18: 523143.86 | O18: 11722.58 | P18: 298912.71 | Q18: 0 | R18: 51774.4 | S18: 0 | T18: 13796.79 | U18: 8857.02 | V18: 4894.66 | W18: 5282.81 | X18: 4284.6 | Y18: 1872.55 | Z18: 4468.45 | AA18: 24053.62 | AB18: 9550.45 | AC18: 21978.38 | AD18: 10853 | AE18: 2960.31 | AF18: 59598.3 | AG18: 3648.44 | AH18: 0 | AI18: 10358.73 | AJ18: 5328.57 | AK18: 609.98 | AL18: 69.93 | AM18: 3500 | AN18: 0 | AO18: 5597.65 | AP18: 5772.66 | AQ18: 0.5 | AR18: 23061.4 | AS18: 15002.31 | AT18: 21124.52 | AU18: 24837.47 | AV18: 0 | AW18: 0 | AX18: 0 | AY18: 0 | AZ18: 0 | BA18: -771830.279 | BB18: -99507.431 | BC18: 0 | BD18: -106569.29 | BE18: 0 | BF18: -52500 | BG18: -9582.53 | BH18: -7718.63 | BI18: -577.5 | BJ18: -759.92 | BK18: 0 | BL18: -2850 | BM18: -7455.14 | BN18: -25212.5 | BO18: -30804.71 | BP18: 0 | BQ18: 0 | BR18: 0 | BS18: -38637 | BT18: 0 | BU18: 0 | BV18: -2926.05 | BW18: -977907 | BX18: 0 | BY18: 0 | BZ18: 0 | CA18: 0 | CB18: 106569.29 | CC18: 0 | CD18: 106569.29
A19: 2138 | B19: Otford Primary School | C19: 0 | D19: 308 | E19: 0 | F19: 6.25 | G19: No | H19: Primary | I19: 300-399 | J19: =IF(G19=Benchmarking!$I$4,1,0) -> 0 | K19: =IF(Benchmarking!$I$6="All",1,IF(Benchmarking!$I$6=H19,1,0)) -> 0 | L19: =IF(Benchmarking!$I$8="All",1,IF(Benchmarking!$I$8=I19,1,0)) -> 0 | M19: 0 | N19: 1100544.41 | O19: 9968.07 | P19: 174536 | Q19: 12179.77 | R19: 76453.84 | S19: 0 | T19: 6071.95 | U19: 7213.34 | V19: 1327 | W19: 6853.49 | X19: 8916.6 | Y19: 19635.57 | Z19: 9961.25 | AA19: 50256.4 | AB19: 6237.92 | AC19: 19760.34 | AD19: 29440 | AE19: 20056.78 | AF19: 76531.53 | AG19: 2950 | AH19: 0 | AI19: 8646.75 | AJ19: 17586.26 | AK19: 220.82 | AL19: 697.18 | AM19: 8572.26 | AN19: 0 | AO19: 19409.16 | AP19: 12218.5 | AQ19: 1501.98 | AR19: 52715.88 | AS19: 19017.89 | AT19: 6699.6 | AU19: 40667.28 | AV19: 0 | AW19: 0 | AX19: 26576 | AY19: 0 | AZ19: 0 | BA19: -1382724.93 | BB19: -159250.0203 | BC19: 0 | BD19: -38272.35 | BE19: 0 | BF19: -69100 | BG19: -8676.71 | BH19: -1620 | BI19: 0 | BJ19: -35297.8 | BK19: -3469.65 | BL19: -1710 | BM19: -6952.19 | BN19: -28063.91 | BO19: -24696.9 | BP19: 0 | BQ19: 0 | BR19: 0 | BS19: -59525 | BT19: 0 | BU19: 0 | BV19: -1004.58 | BW19: -1580247.3 | BX19: 0 | BY19: 0 | BZ19: 0 | CA19: 0 | CB19: 38272.35 | CC19: 0 | CD19: 38272.35
A20: 2139 | B20: Pembury School | C20: 0 | D20: 397 | E20: 0 | F20: 6.416666667 | G20: No | H20: Primary | I20: 300-399 | J20: =IF(G20=Benchmarking!$I$4,1,0) -> 0 | K20: =IF(Benchmarking!$I$6="All",1,IF(Benchmarking!$I$6=H20,1,0)) -> 0 | L20: =IF(Benchmarking!$I$8="All",1,IF(Benchmarking!$I$8=I20,1,0)) -> 0 | M20: 0 | N20: 1057333.28 | O20: 64308.49 | P20: 404381.06 | Q20: 21480.08 | R20: 70426.88 | S20: 0 | T20: 41485.6 | U20: 6166.2 | V20: 7713.04 | W20: 12318.57 | X20: 11493.12 | Y20: 64189.91 | Z20: 19513.82 | AA20: 37806.65 | AB20: 7857.94 | AC20: 45804.21 | AD20: 50232 | AE20: 28234.3 | AF20: 68219.45 | AG20: 5868.84 | AH20: 312.42 | AI20: 10446.89 | AJ20: 10766.69 | AK20: 5736.17 | AL20: 140.36 | AM20: 13790.81 | AN20: 0 | AO20: 5582.5 | AP20: 15189.18 | AQ20: 0 | AR20: 64031.15 | AS20: 86213.76 | AT20: 33148.07 | AU20: 32735.04 | AV20: 0 | AW20: 0 | AX20: 15472.54 | AY20: 0 | AZ20: 0 | BA20: -1729731.135 | BB20: -254510.6953 | BC20: 0 | BD20: -68177.83 | BE20: 0 | BF20: -71350 | BG20: -6428.22 | BH20: -1345.06 | BI20: -29040.61 | BJ20: -910.51 | BK20: 0 | BL20: -7590 | BM20: -30929.2 | BN20: -9963.46 | BO20: -8607.9 | BP20: 0 | BQ20: 0 | BR20: 0 | BS20: -71435 | BT20: 0 | BU20: 0 | BV20: -4016.67 | BW20: -2052419.66 | BX20: 0 | BY20: 0 | BZ20: 0 | CA20: 0 | CB20: 68177.83 | CC20: 0 | CD20: 68177.83
A21: 2142 | B21: Sandhurst Primary School | C21: 0 | D21: 161 | E21: 0 | F21: 7.25 | G21: No | H21: Primary | I21: 100-199 | J21: =IF(G21=Benchmarking!$I$4,1,0) -> 0 | K21: =IF(Benchmarking!$I$6="All",1,IF(Benchmarking!$I$6=H21,1,0)) -> 0 | L21: =IF(Benchmarking!$I$8="All",1,IF(Benchmarking!$I$8=I21,1,0)) -> 0 | M21: 0 | N21: 531919.91 | O21: 0 | P21: 228627.95 | Q21: 15303.22 | R21: 47999.49 | S21: 0 | T21: 39797.33 | U21: 4711.56 | V21: 1896 | W21: 3558.21 | X21: 4661.04 | Y21: 4799.35 | Z21: 7040.7 | AA21: 20395.73 | AB21: 5712.15 | AC21: 22610.2 | AD21: 28119 | AE21: 6554.3 | AF21: 35149.06 | AG21: 1870 | AH21: 0 | AI21: 8958.77 | AJ21: 12816.18 | AK21: 444.85 | AL21: 0 | AM21: 4550 | AN21: 0 | AO21: 3173.13 | AP21: 6159.9 | AQ21: 7063.27 | AR21: 43280.36 | AS21: 0 | AT21: 12678.35 | AU21: 22305.67 | AV21: 0 | AW21: 0 | AX21: 5334.95 | AY21: 0 | AZ21: 0 | BA21: -808764.668 | BB21: -94173.102 | BC21: 0 | BD21: -67214.37 | BE21: 0 | BF21: -50320 | BG21: -400 | BH21: -1000 | BI21: 0 | BJ21: -33728.78 | BK21: -711.11 | BL21: 0 | BM21: -14050.45 | BN21: -13743.4 | BO21: -5610.44 | BP21: 0 | BQ21: 0 | BR21: 0 | BS21: -42980 | BT21: 0 | BU21: 0 | BV21: -875.63 | BW21: -970152.14 | BX21: 0 | BY21: 0 | BZ21: 0 | CA21: 0 | CB21: 67214.37 | CC21: 0 | CD21: 67214.37
A22: 2147 | B22: Weald Community Primary School | C22: 0 | D22: 111 | E22: 0 | F22: 4.666666667 | G22: No | H22: Primary | I22: 100-199 | J22: =IF(G22=Benchmarking!$I$4,1,0) -> 0 | K22: =IF(Benchmarking!$I$6="All",1,IF(Benchmarking!$I$6=H22,1,0)) -> 0 | L22: =IF(Benchmarking!$I$8="All",1,IF(Benchmarking!$I$8=I22,1,0)) -> 0 | M22: 0 | N22: 466878.27 | O22: 0.05 | P22: 137540.3 | Q22: 26861.74 | R22: 48044.24 | S22: 0 | T22: 0 | U22: 3520.55 | V22: 3570.34 | W22: 231.48 | X22: 2482.56 | Y22: 2810.16 | Z22: 3693.71 | AA22: 3407.55 | AB22: 4126.08 | AC22: 19284.28 | AD22: 15220 | AE22: 2434.79 | AF22: 36622.61 | AG22: 5711.83 | AH22: 0 | AI22: 0 | AJ22: 4234.48 | AK22: 0 | AL22: 33.69 | AM22: 9975 | AN22: 0 | AO22: 2501.33 | AP22: 5910.53 | AQ22: 1370.33 | AR22: 22710.95 | AS22: 250 | AT22: 2350 | AU22: 2325.46 | AV22: 0 | AW22: 0 | AX22: 0 | AY22: 0 | AZ22: 0 | BA22: -627596.662 | BB22: -71803.42804 | BC22: 0 | BD22: -39630.07 | BE22: 0 | BF22: -26640 | BG22: -1683.18 | BH22: -3063.65 | BI22: -3557.32 | BJ22: -7351.01 | BK22: 0 | BL22: -1650 | BM22: 0 | BN22: -8982.37 | BO22: -12207.79 | BP22: 0 | BQ22: 0 | BR22: 0 | BS22: -30485.93 | BT22: 0 | BU22: 0 | BV22: -1482.51 | BW22: -739030.16 | BX22: 0 | BY22: 0 | BZ22: 0 | CA22: 0 | CB22: 39630.07 | CC22: 0 | CD22: 39630.07
A23: 2148 | B23: Shoreham Village School | C23: 0 | D23: 81 | E23: 0 | F23: 0 | G23: No | H23: Primary | I23: 0-99 | J23: =IF(G23=Benchmarking!$I$4,1,0) -> 0 | K23: =IF(Benchmarking!$I$6="All",1,IF(Benchmarking!$I$6=H23,1,0)) -> 0 | L23: =IF(Benchmarking!$I$8="All",1,IF(Benchmarking!$I$8=I23,1,0)) -> 0 | M23: 0 | N23: 362004.97 | O23: 0 | P23: 82636.87 | Q23: 6893.45 | R23: 34242.76 | S23: 0 | T23: 30308.5 | U23: 2327.93 | V23: 1364 | W23: 168.92 | X23: 1798.85 | Y23: 2469.86 | Z23: 3433.54 | AA23: 10532.48 | AB23: 1439.16 | AC23: 12529.98 | AD23: 14097 | AE23: 4341.7 | AF23: 33759.22 | AG23: 2311.5 | AH23: 0 | AI23: 188.32 | AJ23: 7764.63 | AK23: 330 | AL23: 52.86 | AM23: 630.56 | AN23: 0 | AO23: 4314.32 | AP23: 3531.98 | AQ23: 65123.63 | AR23: 12356.85 | AS23: 0 | AT23: 915 | AU23: 9581.11 | AV23: 0 | AW23: 0 | AX23: 13507.01 | AY23: 0 | AZ23: 0 | BA23: -442378.5879 | BB23: -48632.88213 | BC23: 0 | BD23: -24452.47 | BE23: 0 | BF23: -24666.63 | BG23: -800 | BH23: 0 | BI23: -6148.06 | BJ23: -21354.15 | BK23: 0 | BL23: 0 | BM23: 0 | BN23: -9385 | BO23: -28538.77 | BP23: 0 | BQ23: 0 | BR23: 0 | BS23: -28260 | BT23: 0 | BU23: 0 | BV23: -1863.55 | BW23: -515463.94 | BX23: 0 | BY23: 0 | BZ23: 0 | CA23: 0 | CB23: 19431.78 | CC23: 5020.69 | CD23: 24452.47
A24: 2155 | B24: Slade Primary School | C24: 0 | D24: 417 | E24: 7.5 | F24: 22.33333333 | G24: No | H24: Primary | I24: 400-499 | J24: =IF(G24=Benchmarking!$I$4,1,0) -> 0 | K24: =IF(Benchmarking!$I$6="All",1,IF(Benchmarking!$I$6=H24,1,0)) -> 0 | L24: =IF(Benchmarking!$I$8="All",1,IF(Benchmarking!$I$8=I24,1,0)) -> 0 | M24: 0 | N24: 1386938.55 | O24: 11283.11 | P24: 591170.71 | Q24: 52634.51 | R24: 139017.31 | S24: 0 | T24: 80354.5 | U24: 12043.87 | V24: 9631.98 | W24: 18712.99 | X24: 12079.12 | Y24: 22820.73 | Z24: 11833.87 | AA24: 46204.39 | AB24: 2213.42 | AC24: 45015.8 | AD24: 34671 | AE24: 13274.24 | AF24: 100948.44 | AG24: 7956.54 | AH24: 0 | AI24: 5599.34 | AJ24: 19492.29 | AK24: 0 | AL24: 2474.87 | AM24: 829 | AN24: 0 | AO24: 3727.11 | AP24: 15954.42 | AQ24: 0 | AR24: 153834.07 | AS24: 29431.47 | AT24: 46366.16 | AU24: 27096.99 | AV24: 0 | AW24: 0 | AX24: 0 | AY24: 0 | AZ24: 0 | BA24: -1764600.743 | BB24: -284051.7974 | BC24: -163959.81 | BD24: -235060.79 | BE24: 0 | BF24: -98690 | BG24: -3456.93 | BH24: -150 | BI24: 0 | BJ24: -84985.33 | BK24: -51893 | BL24: -3950 | BM24: -17922.94 | BN24: -48201.16 | BO24: -22737.68 | BP24: 0 | BQ24: 0 | BR24: 0 | BS24: -88491 | BT24: 0 | BU24: 0 | BV24: -4101.77 | BW24: -2447673.14 | BX24: 8000 | BY24: 54000 | BZ24: 101959.81 | CA24: 163959.81 | CB24: 235060.79 | CC24: 0 | CD24: 235060.79
A25: 2156 | B25: Sussex Road Community Primary School | C25: 0 | D25: 415 | E25: 0 | F25: 7.583333333 | G25: No | H25: Primary | I25: 400-499 | J25: =IF(G25=Benchmarking!$I$4,1,0) -> 0 | K25: =IF(Benchmarking!$I$6="All",1,IF(Benchmarking!$I$6=H25,1,0)) -> 0 | L25: =IF(Benchmarking!$I$8="All",1,IF(Benchmarking!$I$8=I25,1,0)) -> 0 | M25: 0 | N25: 1276672.31 | O25: 22440.99 | P25: 373904 | Q25: 34932.46 | R25: 93010.76 | S25: 0 | T25: 27083.23 | U25: 9731.81 | V25: 12884.17 | W25: 10610.66 | X25: 12014.16 | Y25: 17587.24 | Z25: 6783.85 | AA25: 44324.6 | AB25: 2469.87 | AC25: 30646.19 | AD25: 62790 | AE25: 9096.59 | AF25: 62248.59 | AG25: 6839.61 | AH25: 9034.48 | AI25: 5965.32 | AJ25: 28601.13 | AK25: 5644.97 | AL25: 29387.36 | AM25: 15794 | AN25: 0 | AO25: 1889.12 | AP25: 15877.86 | AQ25: 0 | AR25: 76539.4 | AS25: 13239 | AT25: 22037.21 | AU25: 23893.16 | AV25: 0 | AW25: 0 | AX25: 77.25 | AY25: 0 | AZ25: 0 | BA25: -1816631.515 | BB25: -254427.8845 | BC25: 0 | BD25: -61380.99 | BE25: 0 | BF25: -72760 | BG25: -5685.64 | BH25: -4299.59 | BI25: -11458 | BJ25: -1175.28 | BK25: 0 | BL25: -1044 | BM25: -4220.49 | BN25: 0 | BO25: -27002.02 | BP25: 0 | BQ25: 0 | BR25: 0 | BS25: -84993 | BT25: 0 | BU25: 0 | BV25: -5204.17 | BW25: -2132440.39 | BX25: 0 | BY25: 0 | BZ25: 0 | CA25: 0 | CB25: 61380.99 | CC25: 0 | CD25: 61380.99
A26: 2161 | B26: Boughton Monchelsea Primary School | C26: 0 | D26: 210 | E26: 0 | F26: 16.58333333 | G26: No | H26: Primary | I26: 200-299 | J26: =IF(G26=Benchmarking!$I$4,1,0) -> 0 | K26: =IF(Benchmarking!$I$6="All",1,IF(Benchmarking!$I$6=H26,1,0)) -> 0 | L26: =IF(Benchmarking!$I$8="All",1,IF(Benchmarking!$I$8=I26,1,0)) -> 0 | M26: 0 | N26: 636302.92 | O26: 0 | P26: 371044.12 | Q26: 32941.25 | R26: 71617.34 | S26: 0 | T26: 56022.63 | U26: 5674.12 | V26: 7544.42 | W26: 422.1 | X26: 6079.56 | Y26: 14727.1 | Z26: 3678.4 | AA26: 37644.45 | AB26: 17050.22 | AC26: 48191.2 | AD26: 22580 | AE26: 14343.46 | AF26: 61803.13 | AG26: 3495 | AH26: 0 | AI26: 4977.11 | AJ26: 9323.23 | AK26: 2224.85 | AL26: 25.3 | AM26: 5488.1 | AN26: 0 | AO26: 5992.16 | AP26: 8034.6 | AQ26: 16609.14 | AR26: 55879.65 | AS26: 12185.34 | AT26: 11344.4 | AU26: 13214.26 | AV26: 0 | AW26: 0 | AX26: 0 | AY26: 0 | AZ26: 0 | BA26: -981667.4401 | BB26: -152593.5299 | BC26: 0 | BD26: -172227.65 | BE26: 0 | BF26: -60680 | BG26: -2885.64 | BH26: 0 | BI26: -73703.26 | BJ26: -22827.52 | BK26: 0 | BL26: 0 | BM26: 0 | BN26: -19579.89 | BO26: -3116.66 | BP26: 0 | BQ26: 0 | BR26: 0 | BS26: -55281 | BT26: 0 | BU26: 0 | BV26: -1781.62 | BW26: -1306488.62 | BX26: 0 | BY26: 0 | BZ26: 0 | CA26: 0 | CB26: 172227.65 | CC26: 0 | CD26: 172227.65
A27: 2163 | B27: East Farleigh Primary School | C27: 0 | D27: 210 | E27: 0 | F27: 18.58333333 | G27: No | H27: Primary | I27: 200-299 | J27: =IF(G27=Benchmarking!$I$4,1,0) -> 0 | K27: =IF(Benchmarking!$I$6="All",1,IF(Benchmarking!$I$6=H27,1,0)) -> 0 | L27: =IF(Benchmarking!$I$8="All",1,IF(Benchmarking!$I$8=I27,1,0)) -> 0 | M27: 0 | N27: 630147.28 | O27: 3797.56 | P27: 387921.47 | Q27: 29480.56 | R27: 53494.68 | S27: 0 | T27: 12447.52 | U27: 0 | V27: 10128.5 | W27: 3082.12 | X27: 6079.56 | Y27: 11565.52 | Z27: 4441.01 | AA27: 21614.2 | AB27: 4703.41 | AC27: 15140.94 | AD27: 21706.5 | AE27: 11049.08 | AF27: 86789.66 | AG27: 6234.1 | AH27: 0 | AI27: 138.59 | AJ27: 4565.22 | AK27: 616 | AL27: 587 | AM27: 4368 | AN27: 0 | AO27: 3763.76 | AP27: 8034.6 | AQ27: 0 | AR27: 45253.73 | AS27: 10248 | AT27: 43652.09 | AU27: 40570.93 | AV27: 0 | AW27: 0 | AX27: 510.74 | AY27: 0 | AZ27: 0 | BA27: -1001395.578 | BB27: -130548.9622 | BC27: 0 | BD27: -179385.98 | BE27: 0 | BF27: -62860 | BG27: -1200 | BH27: -14834.72 | BI27: -3470 | BJ27: -13657.58 | BK27: 0 | BL27: 0 | BM27: -1831.67 | BN27: -16686.94 | BO27: -1394.67 | BP27: 0 | BQ27: 0 | BR27: 0 | BS27: -47095 | BT27: 0 | BU27: 0 | BV27: -670.63 | BW27: -1311330.52 | BX27: 0 | BY27: 0 | BZ27: 0 | CA27: 0 | CB27: 179385.98 | CC27: 0 | CD27: 179385.98
A28: 2164 | B28: East Peckham Primary School | C28: 0 | D28: 180 | E28: 0 | F28: 6.583333333 | G28: No | H28: Primary | I28: 100-199 | J28: =IF(G28=Benchmarking!$I$4,1,0) -> 0 | K28: =IF(Benchmarking!$I$6="All",1,IF(Benchmarking!$I$6=H28,1,0)) -> 0 | L28: =IF(Benchmarking!$I$8="All",1,IF(Benchmarking!$I$8=I28,1,0)) -> 0 | M28: 0 | N28: 575787.35 | O28: 19504.31 | P28: 234557.56 | Q28: 21647.77 | R28: 58360.97 | S28: 0 | T28: 0 | U28: 3394.47 | V28: 2044.45 | W28: 4992.84 | X28: 5572.8 | Y28: 21711.82 | Z28: 2722.5 | AA28: 28192.62 | AB28: 25561.29 | AC28: 14163.1 | AD28: 20334.25 | AE28: 6105.73 | AF28: 28750.33 | AG28: 4924 | AH28: 0 | AI28: 631.68 | AJ28: 9783.65 | AK28: 2262.29 | AL28: 7126.77 | AM28: 990 | AN28: 0 | AO28: 10435.02 | AP28: 6886.8 | AQ28: 7074.76 | AR28: 39716.19 | AS28: 3873.42 | AT28: 2223.2 | AU28: 21730.89 | AV28: 0 | AW28: 0 | AX28: 0 | AY28: 0 | AZ28: 0 | BA28: -839083.5173 | BB28: -123958.7627 | BC28: 0 | BD28: -61859.47 | BE28: 0 | BF28: -49930 | BG28: -2885.64 | BH28: -5856.06 | BI28: -949 | BJ28: -8907 | BK28: -1206.64 | BL28: 0 | BM28: 0 | BN28: -12460.53 | BO28: -29503.2 | BP28: 0 | BQ28: 0 | BR28: 0 | BS28: -51543 | BT28: 0 | BU28: 0 | BV28: -2390.63 | BW28: -1024901.75 | BX28: 0 | BY28: 0 | BZ28: 0 | CA28: 0 | CB28: 61859.47 | CC28: 0 | CD28: 61859.47
A29: 2165 | B29: Headcorn Primary School | C29: 0 | D29: 398 | E29: 0 | F29: 15.33333333 | G29: No | H29: Primary | I29: 300-399 | J29: =IF(G29=Benchmarking!$I$4,1,0) -> 0 | K29: =IF(Benchmarking!$I$6="All",1,IF(Benchmarking!$I$6=H29,1,0)) -> 0 | L29: =IF(Benchmarking!$I$8="All",1,IF(Benchmarking!$I$8=I29,1,0)) -> 0 | M29: 0 | N29: 1199631.67 | O29: 0 | P29: 582043.35 | Q29: 61601.17 | R29: 118655.57 | S29: 89.54 | T29: 111214.18 | U29: 10191.79 | V29: 8500.38 | W29: 5660.98 | X29: 11522.16 | Y29: 8808.99 | Z29: 38867.84 | AA29: 37599.7 | AB29: 5872.56 | AC29: 45913.5 | AD29: 57330 | AE29: 11856.52 | AF29: 78938.32 | AG29: 8257.04 | AH29: 0 | AI29: 8202.91 | AJ29: 13078.18 | AK29: 246.05 | AL29: 1127.49 | AM29: 5361 | AN29: 0 | AO29: 4700.48 | AP29: 15227.52 | AQ29: 8677.16 | AR29: 93237.53 | AS29: 0 | AT29: 16038.33 | AU29: 15768.68 | AV29: 0 | AW29: 0 | AX29: 0 | AY29: 0 | AZ29: 0 | BA29: -1728244.02 | BB29: -256821.3595 | BC29: 0 | BD29: -127820.16 | BE29: 0 | BF29: -133290 | BG29: -971.29 | BH29: -2929 | BI29: -5760.05 | BJ29: -75579.93 | BK29: 0 | BL29: 0 | BM29: -10397.39 | BN29: -29276.9 | BO29: -28268.34 | BP29: 0 | BQ29: 0 | BR29: 0 | BS29: -79274 | BT29: 0 | BU29: 0 | BV29: -6648.96 | BW29: -2112885.54 | BX29: 0 | BY29: 0 | BZ29: 0 | CA29: 0 | CB29: 127820.16 | CC29: 0 | CD29: 127820.16
A30: 2166 | B30: Hollingbourne Primary School | C30: 0 | D30: 94 | E30: 0 | F30: 6.416666667 | G30: No | H30: Primary | I30: 0-99 | J30: =IF(G30=Benchmarking!$I$4,1,0) -> 0 | K30: =IF(Benchmarking!$I$6="All",1,IF(Benchmarking!$I$6=H30,1,0)) -> 0 | L30: =IF(Benchmarking!$I$8="All",1,IF(Benchmarking!$I$8=I30,1,0)) -> 0 | M30: 0 | N30: 382245.02 | O30: 0 | P30: 135553.08 | Q30: 16694.89 | R30: 37307.23 | S30: 0 | T30: 3162.3 | U30: 2733.61 | V30: 2431 | W30: 3184.24 | X30: 2721.24 | Y30: 16842.29 | Z30: 10362.3 | AA30: 16133.48 | AB30: 3691.05 | AC30: 15555.24 | AD30: 13723 | AE30: 4251.26 | AF30: 53407.1 | AG30: 4930 | AH30: 0 | AI30: 380.64 | AJ30: 1231.08 | AK30: 3000 | AL30: 1384.49 | AM30: 1328.07 | AN30: 0 | AO30: 12465.8 | AP30: 3596.4 | AQ30: 1582.89 | AR30: 20204.94 | AS30: 0 | AT30: 0 | AU30: 10323.77 | AV30: 0 | AW30: 0 | AX30: 0 | AY30: 0 | AZ30: 0 | BA30: -572238.2919 | BB30: -71307.66811 | BC30: 0 | BD30: -71051.05 | BE30: 0 | BF30: -42140 | BG30: -2400 | BH30: 0 | BI30: 0 | BJ30: -2518.67 | BK30: 0 | BL30: 0 | BM30: 0 | BN30: -18365.33 | BO30: -1200 | BP30: 0 | BQ30: 0 | BR30: 0 | BS30: -27708 | BT30: 0 | BU30: 0 | BV30: -683.55 | BW30: -714597.01 | BX30: 0 | BY30: 0 | BZ30: 0 | CA30: 0 | CB30: 71051.05 | CC30: 0 | CD30: 71051.05
A31: 2167 | B31: Ightham Primary School | C31: 0 | D31: 209 | E31: 0 | F31: 0 | G31: No | H31: Primary | I31: 200-299 | J31: =IF(G31=Benchmarking!$I$4,1,0) -> 0 | K31: =IF(Benchmarking!$I$6="All",1,IF(Benchmarking!$I$6=H31,1,0)) -> 0 | L31: =IF(Benchmarking!$I$8="All",1,IF(Benchmarking!$I$8=I31,1,0)) -> 0 | M31: 0 | N31: 538694.38 | O31: 1500.77 | P31: 197497.66 | Q31: 22235.36 | R31: 40793.12 | S31: 0 | T31: 46839.61 | U31: 1102.64 | V31: 2066.48 | W31: 3041.61 | X31: 5282.56 | Y31: 11254.23 | Z31: 4173.55 | AA31: 14855.71 | AB31: 1564.27 | AC31: 11970.16 | AD31: 21457 | AE31: 6861.71 | AF31: 75196.63 | AG31: 3000 | AH31: 0 | AI31: 2000 | AJ31: 1500 | AK31: 0 | AL31: 0 | AM31: 3290 | AN31: 0 | AO31: 19506.19 | AP31: 8316.85 | AQ31: 91661.92 | AR31: 24330.27 | AS31: 4033.43 | AT31: 3786.27 | AU31: 29336.1 | AV31: 0 | AW31: 0 | AX31: 0 | AY31: 0 | AZ31: 0 | BA31: -771133.6457 | BB31: -99696.45433 | BC31: 0 | BD31: -53226.5 | BE31: 0 | BF31: -13825 | BG31: -2600 | BH31: 0 | BI31: 0 | BJ31: -64011.54 | BK31: 0 | BL31: -41.25 | BM31: 0 | BN31: -53465.32 | BO31: -37833.66 | BP31: 0 | BQ31: 0 | BR31: 0 | BS31: -58163 | BT31: 0 | BU31: 0 | BV31: -1142.71 | BW31: -924056.6 | BX31: 0 | BY31: 0 | BZ31: 0 | CA31: 0 | CB31: 53226.5 | CC31: 0 | CD31: 53226.5
A32: 2168 | B32: Lenham Primary School | C32: 0 | D32: 208 | E32: 0 | F32: 8.333333333 | G32: No | H32: Primary | I32: 200-299 | J32: =IF(G32=Benchmarking!$I$4,1,0) -> 0 | K32: =IF(Benchmarking!$I$6="All",1,IF(Benchmarking!$I$6=H32,1,0)) -> 0 | L32: =IF(Benchmarking!$I$8="All",1,IF(Benchmarking!$I$8=I32,1,0)) -> 0 | M32: 0 | N32: 634906.07 | O32: 297.04 | P32: 259512.92 | Q32: 31221.88 | R32: 68611.22 | S32: 0 | T32: 12647.22 | U32: 3758.5 | V32: 3717 | W32: 4518.24 | X32: 956.76 | Y32: 4747.39 | Z32: 7460 | AA32: 23886.04 | AB32: 3457.14 | AC32: 19267.45 | AD32: 24799.5 | AE32: 9165.54 | AF32: 40492.16 | AG32: 5645.81 | AH32: 0 | AI32: 11676.32 | AJ32: 9460.58 | AK32: 668.08 | AL32: 28.53 | AM32: 13984.53 | AN32: 0 | AO32: 5097.19 | AP32: 7958.04 | AQ32: 4583.38 | AR32: 56629.47 | AS32: 26201.81 | AT32: 17050.83 | AU32: 26164.12 | AV32: 0 | AW32: 0 | AX32: 0 | AY32: 0 | AZ32: 0 | BA32: -945356.1788 | BB32: -149156.2412 | BC32: 0 | BD32: -67258.43 | BE32: 0 | BF32: -62860 | BG32: -5656.93 | BH32: -8020.62 | BI32: -15039.74 | BJ32: -16970.62 | BK32: -1526.55 | BL32: -960 | BM32: -2425.57 | BN32: -16499.5 | BO32: -8212.7 | BP32: 0 | BQ32: 0 | BR32: 0 | BS32: -48442 | BT32: 0 | BU32: 0 | BV32: -1025.63 | BW32: -1161770.85 | BX32: 0 | BY32: 0 | BZ32: 0 | CA32: 0 | CB32: 67258.43 | CC32: 0 | CD32: 67258.43
A33: 2169 | B33: Platts Heath Primary School | C33: 0 | D33: 51 | E33: 0 | F33: 9.666666667 | G33: No | H33: Primary | I33: 0-99 | J33: =IF(G33=Benchmarking!$I$4,1,0) -> 0 | K33: =IF(Benchmarking!$I$6="All",1,IF(Benchmarking!$I$6=H33,1,0)) -> 0 | L33: =IF(Benchmarking!$I$8="All",1,IF(Benchmarking!$I$8=I33,1,0)) -> 0 | M33: 0 | N33: 169144.46 | O33: 4190.99 | P33: 117260.43 | Q33: 6086.81 | R33: 27000.71 | S33: 0 | T33: 3363 | U33: 19155.7 | V33: 3113.17 | W33: 4136.06 | X33: 1476.48 | Y33: 5604.59 | Z33: 2251.38 | AA33: 962.15 | AB33: 1195.42 | AC33: 4531.73 | AD33: 2708.83 | AE33: 5717.84 | AF33: 15477.05 | AG33: 3839 | AH33: 0 | AI33: 1280.57 | AJ33: 3633.62 | AK33: 990.53 | AL33: 97.55 | AM33: 70 | AN33: 0 | AO33: 2287.79 | AP33: 1951.26 | AQ33: 163180.77 | AR33: 16854.52 | AS33: 2087.03 | AT33: 7494.2 | AU33: 10327.92 | AV33: 0 | AW33: 0 | AX33: 14162.53 | AY33: 0 | AZ33: 0 | BA33: -376980.0737 | BB33: -40622.53631 | BC33: 0 | BD33: -99184.55 | BE33: 0 | BF33: -24360 | BG33: -3800 | BH33: -18005.9 | BI33: 0 | BJ33: -5908.86 | BK33: -356.01 | BL33: 0 | BM33: -342.79 | BN33: -3554.1 | BO33: -1398.92 | BP33: 0 | BQ33: 0 | BR33: 0 | BS33: -21388 | BT33: 0 | BU33: 0 | BV33: -399.8 | BW33: -516787.16 | BX33: 0 | BY33: 0 | BZ33: 0 | CA33: 0 | CB33: 80452.87 | CC33: 18731.68 | CD33: 99184.55
A34: 2171 | B34: Brunswick House Primary School | C34: 0 | D34: 422 | E34: 0 | F34: 30.08333333 | G34: No | H34: Primary | I34: 400-499 | J34: =IF(G34=Benchmarking!$I$4,1,0) -> 0 | K34: =IF(Benchmarking!$I$6="All",1,IF(Benchmarking!$I$6=H34,1,0)) -> 0 | L34: =IF(Benchmarking!$I$8="All",1,IF(Benchmarking!$I$8=I34,1,0)) -> 0 | M34: 0 | N34: 1205161.47 | O34: 5191.16 | P34: 644970.74 | Q34: 35262.26 | R34: 127199.4 | S34: 0 | T34: 87527.7 | U34: 10751.24 | V34: 17501.52 | W34: 15162.75 | X34: 12216.96 | Y34: 22907.34 | Z34: 6585.35 | AA34: 59372.35 | AB34: 7873.08 | AC34: 51908.95 | AD34: 79170 | AE34: 32550.54 | AF34: 114687.38 | AG34: 4473.15 | AH34: 0 | AI34: 16787.74 | AJ34: 17788.18 | AK34: 2450.79 | AL34: 4442.29 | AM34: 21153.44 | AN34: 0 | AO34: 13067.6 | AP34: 16145.76 | AQ34: 24448.7 | AR34: 93336.28 | AS34: 3778.22 | AT34: 48539.09 | AU34: 27379 | AV34: 0 | AW34: 0 | AX34: 57288.43 | AY34: 0 | AZ34: 0 | BA34: -1888285.593 | BB34: -318027.2672 | BC34: 0 | BD34: -318553.7 | BE34: 0 | BF34: -159390 | BG34: -1200 | BH34: -4198 | BI34: -3607.87 | BJ34: -74613.66 | BK34: 0 | BL34: -5400 | BM34: -1615.26 | BN34: -37851.77 | BO34: -1537.8 | BP34: 0 | BQ34: 0 | BR34: 0 | BS34: -78399 | BT34: 0 | BU34: 0 | BV34: -9285.42 | BW34: -2524866.56 | BX34: 0 | BY34: 0 | BZ34: 0 | CA34: 0 | CB34: 318553.7 | CC34: 0 | CD34: 318553.7
A35: 2175 | B35: North Borough Junior School | C35: 0 | D35: 359 | E35: 0 | F35: 25.25 | G35: No | H35: Primary | I35: 300-399 | J35: =IF(G35=Benchmarking!$I$4,1,0) -> 0 | K35: =IF(Benchmarking!$I$6="All",1,IF(Benchmarking!$I$6=H35,1,0)) -> 0 | L35: =IF(Benchmarking!$I$8="All",1,IF(Benchmarking!$I$8=I35,1,0)) -> 0 | M35: 0 | N35: 1168214.87 | O35: 0 | P35: 563168.37 | Q35: 31844.69 | R35: 94807.07 | S35: 0 | T35: 95966.13 | U35: 13033.01 | V35: 9627.15 | W35: 4357.59 | X35: 10393.08 | Y35: 19137.58 | Z35: 8725 | AA35: 22554.3 | AB35: 4929.85 | AC35: 31779.79 | AD35: 27577.91 | AE35: 15567.14 | AF35: 108267.3 | AG35: 9350 | AH35: 0 | AI35: 2738 | AJ35: 6437.88 | AK35: 7464.56 | AL35: 2378.62 | AM35: 10255 | AN35: 0 | AO35: 17341.14 | AP35: 13735.38 | AQ35: 11314.11 | AR35: 79988.98 | AS35: 43684.07 | AT35: 64451.15 | AU35: 19657.09 | AV35: 0 | AW35: 0 | AX35: 21546.94 | AY35: 0 | AZ35: 0 | BA35: -1616894.386 | BB35: -264194.8442 | BC35: 0 | BD35: -229357.6 | BE35: 0 | BF35: -179060 | BG35: -4856.93 | BH35: -82073.67 | BI35: 0 | BJ35: -122942.22 | BK35: -40276.6 | BL35: 0 | BM35: -16462.89 | BN35: -20843.58 | BO35: 0 | BP35: 0 | BQ35: 0 | BR35: 0 | BS35: -19565 | BT35: 0 | BU35: 0 | BV35: -1962.3 | BW35: -2110446.83 | BX35: 0 | BY35: 0 | BZ35: 0 | CA35: 0 | CB35: 229357.6 | CC35: 0 | CD35: 229357.6
A36: 2176 | B36: Park Way Primary School | C36: 0 | D36: 310 | E36: 0 | F36: 4.25 | G36: No | H36: Primary | I36: 300-399 | J36: =IF(G36=Benchmarking!$I$4,1,0) -> 0 | K36: =IF(Benchmarking!$I$6="All",1,IF(Benchmarking!$I$6=H36,1,0)) -> 0 | L36: =IF(Benchmarking!$I$8="All",1,IF(Benchmarking!$I$8=I36,1,0)) -> 0 | M36: 0 | N36: 959550.98 | O36: 0 | P36: 312676.58 | Q36: 66409.62 | R36: 93204.69 | S36: 0 | T36: 55267.96 | U36: 7545.5 | V36: 16285.83 | W36: 623.1 | X36: 8974.44 | Y36: 7645.74 | Z36: 5230.56 | AA36: 3430.33 | AB36: 6011.55 | AC36: 33476.25 | AD36: 42588 | AE36: 27306.52 | AF36: 64542.24 | AG36: 5880 | AH36: 0 | AI36: 10147.04 | AJ36: 7251.06 | AK36: 0 | AL36: 0 | AM36: 1815.45 | AN36: 0 | AO36: 10433.16 | AP36: 11860.56 | AQ36: 5377.3 | AR36: 64940.99 | AS36: 37488.54 | AT36: 22550 | AU36: 26764.5 | AV36: 0 | AW36: 0 | AX36: 71946.36 | AY36: 0 | AZ36: 0 | BA36: -1417171.221 | BB36: -277765.0287 | BC36: 0 | BD36: -50427.09 | BE36: 0 | BF36: -135407.58 | BG36: -285.64 | BH36: -3733 | BI36: -8722.11 | BJ36: -7671.03 | BK36: -422.87 | BL36: 0 | BM36: 0 | BN36: 0 | BO36: 0 | BP36: 0 | BQ36: 0 | BR36: 0 | BS36: -51509 | BT36: 0 | BU36: 0 | BV36: -1604.58 | BW36: -1745363.34 | BX36: 0 | BY36: 0 | BZ36: 0 | CA36: 0 | CB36: 50427.09 | CC36: 0 | CD36: 50427.09
A37: 2185 | B37: Mereworth Community Primary School | C37: 0 | D37: 201 | E37: 0 | F37: 9.416666667 | G37: No | H37: Primary | I37: 200-299 | J37: =IF(G37=Benchmarking!$I$4,1,0) -> 0 | K37: =IF(Benchmarking!$I$6="All",1,IF(Benchmarking!$I$6=H37,1,0)) -> 0 | L37: =IF(Benchmarking!$I$8="All",1,IF(Benchmarking!$I$8=I37,1,0)) -> 0 | M37: 0 | N37: 630220.51 | O37: 0 | P37: 212401.59 | Q37: 45709 | R37: 78701.24 | S37: 0 | T37: 50775.06 | U37: 6059.6 | V37: 3133.45 | W37: 404.01 | X37: 11387.92 | Y37: 9161.63 | Z37: 49406.43 | AA37: 917.09 | AB37: 3908.89 | AC37: 27927.47 | AD37: 34398 | AE37: 15717.08 | AF37: 81566.26 | AG37: 14544.98 | AH37: 0 | AI37: 7676.55 | AJ37: 8180.19 | AK37: 3122.2 | AL37: 7058.54 | AM37: 10493.56 | AN37: 0 | AO37: 12056.55 | AP37: 7690.26 | AQ37: 12587.41 | AR37: 48406.85 | AS37: 14500.5 | AT37: 38188.86 | AU37: 14780.47 | AV37: 0 | AW37: 0 | AX37: 0 | AY37: 0 | AZ37: 0 | BA37: -928014.3516 | BB37: -106233.0384 | BC37: 0 | BD37: -97027.84 | BE37: 0 | BF37: -49162 | BG37: -685.64 | BH37: 0 | BI37: -1609.02 | BJ37: -64804.34 | BK37: -449.2 | BL37: -1000 | BM37: -21476.37 | BN37: -35277.68 | BO37: -24882.5 | BP37: 0 | BQ37: 0 | BR37: 0 | BS37: -51829 | BT37: 0 | BU37: 0 | BV37: -2982.3 | BW37: -1131275.23 | BX37: 0 | BY37: 0 | BZ37: 0 | CA37: 0 | CB37: 97027.84 | CC37: 0 | CD37: 97027.84
A38: 2187 | B38: Offham Primary School | C38: 0 | D38: 197 | E38: 0 | F38: 9.75 | G38: No | H38: Junior | I38: 100-199 | J38: =IF(G38=Benchmarking!$I$4,1,0) -> 0 | K38: =IF(Benchmarking!$I$6="All",1,IF(Benchmarking!$I$6=H38,1,0)) -> 0 | L38: =IF(Benchmarking!$I$8="All",1,IF(Benchmarking!$I$8=I38,1,0)) -> 0 | M38: 0 | N38: 662406.06 | O38: 1396.39 | P38: 213950.66 | Q38: 36182.51 | R38: 51403.69 | S38: 37839.63 | T38: 74695.56 | U38: 7862.19 | V38: 5784.6 | W38: 9921.95 | X38: 5873.16 | Y38: 11377.14 | Z38: 13713.8 | AA38: 4198.77 | AB38: 6582.54 | AC38: 23097.94 | AD38: 31668 | AE38: 7022.91 | AF38: 56603.32 | AG38: 4145.67 | AH38: 0 | AI38: 8384.53 | AJ38: 6011.46 | AK38: 3576.65 | AL38: 44.15 | AM38: 7004 | AN38: 0 | AO38: 22815.02 | AP38: 9469.48 | AQ38: 14739.63 | AR38: 27134.04 | AS38: 20523 | AT38: 3261.09 | AU38: 25436.03 | AV38: 0 | AW38: 0 | AX38: 1984.28 | AY38: 0 | AZ38: 0 | BA38: -907686.7175 | BB38: -98023.57253 | BC38: 0 | BD38: -84223.77 | BE38: 0 | BF38: -26950 | BG38: -3666.93 | BH38: -235.75 | BI38: -1810 | BJ38: -97283.01 | BK38: -22555.72 | BL38: -108 | BM38: -95604.43 | BN38: -10734.94 | BO38: -13339.63 | BP38: 0 | BQ38: 0 | BR38: 0 | BS38: -57644 | BT38: 0 | BU38: 0 | BV38: -439.58 | BW38: -1089934.06 | BX38: 0 | BY38: 0 | BZ38: 0 | CA38: 0 | CB38: 84223.77 | CC38: 0 | CD38: 84223.77
A39: 2188 | B39: Plaxtol Primary School | C39: 0 | D39: 85 | E39: 0 | F39: 1.75 | G39: No | H39: Primary | I39: 0-99 | J39: =IF(G39=Benchmarking!$I$4,1,0) -> 0 | K39: =IF(Benchmarking!$I$6="All",1,IF(Benchmarking!$I$6=H39,1,0)) -> 0 | L39: =IF(Benchmarking!$I$8="All",1,IF(Benchmarking!$I$8=I39,1,0)) -> 0 | M39: 0 | N39: 349412.41 | O39: 11322.21 | P39: 107684.67 | Q39: 3598.98 | R39: 31499.05 | S39: 0 | T39: 13354.82 | U39: 2996.41 | V39: 2959.5 | W39: 2572.46 | X39: 390.96 | Y39: 1128.68 | Z39: 7417.74 | AA39: 15363.08 | AB39: 2164.71 | AC39: 9686.16 | AD39: 15219.5 | AE39: 3856.18 | AF39: 27194.33 | AG39: 3956.45 | AH39: 0 | AI39: 2745.92 | AJ39: 6323.98 | AK39: 0 | AL39: 154.41 | AM39: 1782.66 | AN39: 0 | AO39: 1638.22 | AP39: 3252.06 | AQ39: 8237.45 | AR39: 16269.78 | AS39: 9638.08 | AT39: 20156.41 | AU39: 11785.84 | AV39: 0 | AW39: 0 | AX39: 3960.41 | AY39: 0 | AZ39: 0 | BA39: -523302.0147 | BB39: -49664.02529 | BC39: 0 | BD39: -20017.65 | BE39: 0 | BF39: -12930 | BG39: 0 | BH39: -1015 | BI39: -545 | BJ39: -20081.88 | BK39: 0 | BL39: -4777.6 | BM39: 0 | BN39: -6923.34 | BO39: -21850.4 | BP39: 0 | BQ39: 0 | BR39: 0 | BS39: -27091 | BT39: 0 | BU39: 0 | BV39: -1142.71 | BW39: -592983.69 | BX39: 0 | BY39: 0 | BZ39: 0 | CA39: 0 | CB39: 18208.92 | CC39: 1808.73 | CD39: 20017.65
A40: 2189 | B40: Ryarsh Primary School | C40: 0 | D40: 208 | E40: 0 | F40: 13.58333333 | G40: No | H40: Primary | I40: 200-299 | J40: =IF(G40=Benchmarking!$I$4,1,0) -> 0 | K40: =IF(Benchmarking!$I$6="All",1,IF(Benchmarking!$I$6=H40,1,0)) -> 0 | L40: =IF(Benchmarking!$I$8="All",1,IF(Benchmarking!$I$8=I40,1,0)) -> 0 | M40: 0 | N40: 604708.47 | O40: 0 | P40: 406721.56 | Q40: 36791.93 | R40: 55070.25 | S40: 0 | T40: 47798.94 | U40: 4394.18 | V40: 4742.59 | W40: 418.08 | X40: 6021.6 | Y40: 10457.49 | Z40: 6019.46 | AA40: 4057.9 | AB40: 3907.95 | AC40: 12511.62 | AD40: 36036 | AE40: 6745.64 | AF40: 85578.81 | AG40: 5322.35 | AH40: 0 | AI40: 2789.11 | AJ40: 8569.68 | AK40: 0 | AL40: 420.87 | AM40: 5244.57 | AN40: 0 | AO40: 8515.83 | AP40: 7958.04 | AQ40: 30678.52 | AR40: 47254.91 | AS40: 0 | AT40: 4910 | AU40: 15780.29 | AV40: 0 | AW40: 0 | AX40: 0 | AY40: 0 | AZ40: 0 | BA40: -1003308.169 | BB40: -97108.56138 | BC40: 0 | BD40: -125304.53 | BE40: 0 | BF40: -34987 | BG40: -2256.93 | BH40: 0 | BI40: -2250 | BJ40: -40561.03 | BK40: -1039.82 | BL40: 0 | BM40: 0 | BN40: -35722.48 | BO40: -24388.95 | BP40: 0 | BQ40: 0 | BR40: 0 | BS40: -52911 | BT40: 0 | BU40: 0 | BV40: -1593.75 | BW40: -1225721.26 | BX40: 0 | BY40: 0 | BZ40: 0 | CA40: 0 | CB40: 125304.53 | CC40: 0 | CD40: 125304.53
A41: 2190 | B41: Shipbourne School | C41: 0 | D41: 58 | E41: 0 | F41: 9.333333333 | G41: No | H41: Primary | I41: 0-99 | J41: =IF(G41=Benchmarking!$I$4,1,0) -> 0 | K41: =IF(Benchmarking!$I$6="All",1,IF(Benchmarking!$I$6=H41,1,0)) -> 0 | L41: =IF(Benchmarking!$I$8="All",1,IF(Benchmarking!$I$8=I41,1,0)) -> 0 | M41: 0 | N41: 288250.45 | O41: 0 | P41: 95915.91 | Q41: 0 | R41: 31147.82 | S41: 0 | T41: 0 | U41: 345 | V41: 1919.2 | W41: 2794.2 | X41: 1679.04 | Y41: 11136.31 | Z41: 3258.4 | AA41: 11779.69 | AB41: 755.6 | AC41: 7667.45 | AD41: 7780 | AE41: 1549.11 | AF41: 75684.05 | AG41: 4228 | AH41: 0 | AI41: 299 | AJ41: 1257.68 | AK41: 0 | AL41: 0 | AM41: 3080.64 | AN41: 0 | AO41: 4197.45 | AP41: 2219.04 | AQ41: 6011.91 | AR41: 14188.79 | AS41: 0 | AT41: 1048.16 | AU41: 6160.9 | AV41: 0 | AW41: 0 | AX41: 0 | AY41: 0 | AZ41: 0 | BA41: -386459.3752 | BB41: -35950.34478 | BC41: 0 | BD41: -115814.25 | BE41: 0 | BF41: -10360 | BG41: 0 | BH41: -852.99 | BI41: 0 | BJ41: -6200.23 | BK41: 0 | BL41: 0 | BM41: 0 | BN41: -14206.3 | BO41: 0 | BP41: 0 | BQ41: 0 | BR41: 0 | BS41: -25287 | BT41: 0 | BU41: 0 | BV41: -1142.71 | BW41: -538223.97 | BX41: 0 | BY41: 0 | BZ41: 0 | CA41: 0 | CB41: 93368.33 | CC41: 22445.92 | CD41: 115814.25
A42: 2192 | B42: Staplehurst School | C42: 0 | D42: 390 | E42: 0 | F42: 14.33333333 | G42: No | H42: Primary | I42: 300-399 | J42: =IF(G42=Benchmarking!$I$4,1,0) -> 0 | K42: =IF(Benchmarking!$I$6="All",1,IF(Benchmarking!$I$6=H42,1,0)) -> 0 | L42: =IF(Benchmarking!$I$8="All",1,IF(Benchmarking!$I$8=I42,1,0)) -> 0 | M42: 0 | N42: 1185194.42 | O42: 0 | P42: 507170.12 | Q42: 34057.77 | R42: 120221.41 | S42: 0 | T42: 63764.31 | U42: 10647.63 | V42: 14733.49 | W42: 11238.35 | X42: 11290.56 | Y42: 30171.54 | Z42: 9766.03 | AA42: 57974.07 | AB42: 11635.19 | AC42: 49003.27 | AD42: 42588 | AE42: 18509.82 | AF42: 98340.35 | AG42: 4705 | AH42: 0 | AI42: 8717.58 | AJ42: 13621.93 | AK42: 4185.76 | AL42: 1320.54 | AM42: 13653.07 | AN42: 0 | AO42: 11143.99 | AP42: 14921.4 | AQ42: 5241.99 | AR42: 110576.3 | AS42: 8685.77 | AT42: 22427 | AU42: 21329.65 | AV42: 0 | AW42: 479 | AX42: 0 | AY42: 0 | AZ42: 0 | BA42: -1663680.812 | BB42: -265125.0884 | BC42: 0 | BD42: -169058.11 | BE42: 0 | BF42: -123540 | BG42: -4313.86 | BH42: -300 | BI42: -18483.21 | BJ42: -67693.26 | BK42: -12946.28 | BL42: -950 | BM42: -16528.29 | BN42: -19541.52 | BO42: -15057.22 | BP42: 0 | BQ42: 0 | BR42: 0 | BS42: -86921 | BT42: 0 | BU42: 0 | BV42: -7176.05 | BW42: -2097864.01 | BX42: 0 | BY42: 0 | BZ42: 0 | CA42: 0 | CB42: 169058.11 | CC42: 0 | CD42: 169058.11
A43: 2193 | B43: Sutton Valence Primary School | C43: 0 | D43: 198 | E43: 0 | F43: 6.166666667 | G43: No | H43: Primary | I43: 100-199 | J43: =IF(G43=Benchmarking!$I$4,1,0) -> 0 | K43: =IF(Benchmarking!$I$6="All",1,IF(Benchmarking!$I$6=H43,1,0)) -> 0 | L43: =IF(Benchmarking!$I$8="All",1,IF(Benchmarking!$I$8=I43,1,0)) -> 0 | M43: 0 | N43: 611737.57 | O43: 0 | P43: 230833.71 | Q43: 32484.47 | R43: 116446.9 | S43: 34128.19 | T43: 24397.37 | U43: 6264.88 | V43: 3711.6 | W43: 397.98 | X43: 5732.12 | Y43: 18981.64 | Z43: 5000 | AA43: 19918.78 | AB43: 11720.45 | AC43: 24942.38 | AD43: 25199.5 | AE43: 4757.87 | AF43: 49484.35 | AG43: 1066.56 | AH43: 0 | AI43: 736.95 | AJ43: 3365.49 | AK43: 0 | AL43: 126 | AM43: 6051.91 | AN43: 0 | AO43: 18404.5 | AP43: 7575.48 | AQ43: 1173.79 | AR43: 36058.82 | AS43: 25829.5 | AT43: 4889.04 | AU43: 14470.52 | AV43: 0 | AW43: 0 | AX43: 0 | AY43: 0 | AZ43: 0 | BA43: -920542.9802 | BB43: -121001.6498 | BC43: 0 | BD43: -26167.89 | BE43: 0 | BF43: -71740 | BG43: -3456.93 | BH43: -2308 | BI43: -509.38 | BJ43: -76888.64 | BK43: -21680.09 | BL43: 0 | BM43: -9456.04 | BN43: -16333.3 | BO43: -5006.74 | BP43: 0 | BQ43: 0 | BR43: 0 | BS43: -47834 | BT43: 0 | BU43: 0 | BV43: -3900 | BW43: -1067712.52 | BX43: 0 | BY43: 0 | BZ43: 0 | CA43: 0 | CB43: 26167.89 | CC43: 0 | CD43: 26167.89
A44: 2226 | B44: Eastling Primary School | C44: 0 | D44: 97 | E44: 0 | F44: 5.833333333 | G44: No | H44: Primary | I44: 0-99 | J44: =IF(G44=Benchmarking!$I$4,1,0) -> 0 | K44: =IF(Benchmarking!$I$6="All",1,IF(Benchmarking!$I$6=H44,1,0)) -> 0 | L44: =IF(Benchmarking!$I$8="All",1,IF(Benchmarking!$I$8=I44,1,0)) -> 0 | M44: 0 | N44: 441590.78 | O44: 35427.27 | P44: 118999.49 | Q44: 19753.87 | R44: 47499.36 | S44: 0 | T44: 16374.55 | U44: 2520.2 | V44: 3148 | W44: 3365.31 | X44: 2978.16 | Y44: 6250.06 | Z44: 2831.94 | AA44: 1762.22 | AB44: 7391.28 | AC44: 13661.34 | AD44: 12974 | AE44: 7702.29 | AF44: 38201.96 | AG44: 6442.5 | AH44: 0 | AI44: 451.91 | AJ44: 4569.34 | AK44: 668.18 | AL44: 4739.72 | AM44: 4238 | AN44: 0 | AO44: 7505.3 | AP44: 4391.22 | AQ44: 2917.29 | AR44: 22531.04 | AS44: 0 | AT44: 973.16 | AU44: 12946.22 | AV44: 0 | AW44: 0 | AX44: 113.75 | AY44: 0 | AZ44: 0 | BA44: -572651.0025 | BB44: -64988.50745 | BC44: 0 | BD44: -46404.69 | BE44: 0 | BF44: -31030 | BG44: 0 | BH44: -2099.61 | BI44: -10009.01 | BJ44: 0 | BK44: 0 | BL44: -10880 | BM44: -15347.33 | BN44: -7326.5 | BO44: -8632.68 | BP44: 0 | BQ44: 0 | BR44: 0 | BS44: -27554 | BT44: 0 | BU44: 0 | BV44: -376.05 | BW44: -684044.2 | BX44: 0 | BY44: 0 | BZ44: 0 | CA44: 0 | CB44: 46404.69 | CC44: 0 | CD44: 46404.69
A45: 2227 | B45: Ethelbert Road Primary School | C45: 0 | D45: 207 | E45: 0 | F45: 2.833333333 | G45: No | H45: Primary | I45: 200-299 | J45: =IF(G45=Benchmarking!$I$4,1,0) -> 0 | K45: =IF(Benchmarking!$I$6="All",1,IF(Benchmarking!$I$6=H45,1,0)) -> 0 | L45: =IF(Benchmarking!$I$8="All",1,IF(Benchmarking!$I$8=I45,1,0)) -> 0 | M45: 0 | N45: 662202.55 | O45: 19.9 | P45: 198798.08 | Q45: 21696.36 | R45: 52124.84 | S45: 0 | T45: 47696.58 | U45: 4437.37 | V45: 1779 | W45: 416.07 | X45: 6162.72 | Y45: 1132.64 | Z45: 1051.28 | AA45: 2292.96 | AB45: 1865.78 | AC45: 11287.31 | AD45: 15095 | AE45: 6414.5 | AF45: 55580.27 | AG45: 6523 | AH45: 0 | AI45: 5433.45 | AJ45: 10426.42 | AK45: 0 | AL45: 0 | AM45: 2779.75 | AN45: 0 | AO45: 3587.74 | AP45: 8599.86 | AQ45: 5867.83 | AR45: 29753.44 | AS45: 0 | AT45: 4495.83 | AU45: 24012.16 | AV45: 0 | AW45: 0 | AX45: 0 | AY45: 0 | AZ45: 0 | BA45: -917850.8252 | BB45: -100348.7848 | BC45: 0 | BD45: -24549.79 | BE45: 0 | BF45: -33180 | BG45: -3456.93 | BH45: -810 | BI45: -700 | BJ45: -35972.54 | BK45: 0 | BL45: 0 | BM45: 0 | BN45: -11985 | BO45: -10583.59 | BP45: 0 | BQ45: 0 | BR45: 0 | BS45: -53368 | BT45: 0 | BU45: 0 | BV45: -499.58 | BW45: -1042749.4 | BX45: 0 | BY45: 0 | BZ45: 0 | CA45: 0 | CB45: 24549.79 | CC45: 0 | CD45: 24549.79
A46: 2228 | B46: Davington Primary School | C46: 0 | D46: 417 | E46: 0 | F46: 6 | G46: No | H46: Primary | I46: 400-499 | J46: =IF(G46=Benchmarking!$I$4,1,0) -> 0 | K46: =IF(Benchmarking!$I$6="All",1,IF(Benchmarking!$I$6=H46,1,0)) -> 0 | L46: =IF(Benchmarking!$I$8="All",1,IF(Benchmarking!$I$8=I46,1,0)) -> 0 | M46: 0 | N46: 1286585.66 | O46: 15717.4 | P46: 465964.26 | Q46: 31255.1 | R46: 100811.73 | S46: 72448.76 | T46: 111256.69 | U46: 10365.93 | V46: 10388.3 | W46: 9197.44 | X46: 12327.12 | Y46: 26123.34 | Z46: 15295.05 | AA46: 41612.02 | AB46: 7325.61 | AC46: 58475.84 | AD46: 52962 | AE46: 20872.88 | AF46: 73707.08 | AG46: 11055.85 | AH46: 0 | AI46: 8162.4 | AJ46: 15056.18 | AK46: 950.52 | AL46: 4807.89 | AM46: 7590.3 | AN46: 0 | AO46: 2590.07 | AP46: 16974.42 | AQ46: 22436.09 | AR46: 105569.34 | AS46: 13833.88 | AT46: 13512.37 | AU46: 18652.1 | AV46: 0 | AW46: 0 | AX46: 0 | AY46: 0 | AZ46: 0 | BA46: -1795942.833 | BB46: -328384.4669 | BC46: 0 | BD46: -64467.89 | BE46: 0 | BF46: -145210 | BG46: -4113.86 | BH46: -600 | BI46: -4808.46 | BJ46: -112469.22 | BK46: -86778.23 | BL46: -510.26 | BM46: -9127.79 | BN46: -34433.1 | BO46: -4445.58 | BP46: 0 | BQ46: 0 | BR46: 0 | BS46: -88552 | BT46: 0 | BU46: 0 | BV46: -7353.13 | BW46: -2188795.19 | BX46: 0 | BY46: 0 | BZ46: 0 | CA46: 0 | CB46: 64467.89 | CC46: 0 | CD46: 64467.89
A47: 2231 | B47: Lower Halstow School | C47: 0 | D47: 186 | E47: 0 | F47: 15.25 | G47: No | H47: Primary | I47: 100-199 | J47: =IF(G47=Benchmarking!$I$4,1,0) -> 0 | K47: =IF(Benchmarking!$I$6="All",1,IF(Benchmarking!$I$6=H47,1,0)) -> 0 | L47: =IF(Benchmarking!$I$8="All",1,IF(Benchmarking!$I$8=I47,1,0)) -> 0 | M47: 0 | N47: 590349.47 | O47: 0 | P47: 265293.08 | Q47: 18841.21 | R47: 48753.1 | S47: 0 | T47: 15723.81 | U47: 4875.41 | V47: 5653.38 | W47: 18597.89 | X47: 5469.72 | Y47: 18559 | Z47: 22894.53 | AA47: 12265.27 | AB47: 4196.08 | AC47: 19539.18 | AD47: 20833 | AE47: 7450.06 | AF47: 62875.15 | AG47: 0 | AH47: 0 | AI47: 1712.52 | AJ47: 3089.16 | AK47: 0 | AL47: 0 | AM47: 426.97 | AN47: 0 | AO47: 12600.29 | AP47: 7456.32 | AQ47: 0 | AR47: 30837.97 | AS47: 37760.5 | AT47: 0 | AU47: 22120.99 | AV47: 0 | AW47: 0 | AX47: 0 | AY47: 0 | AZ47: 0 | BA47: -891989.6 | BB47: -135217.02 | BC47: 0 | BD47: -129379.23 | BE47: 0 | BF47: -42398.18 | BG47: -7428.22 | BH47: -7758.16 | BI47: -3033.39 | BJ47: -661.19 | BK47: 0 | BL47: -360 | BM47: 0 | BN47: -10191.92 | BO47: -3414.17 | BP47: 0 | BQ47: 0 | BR47: 0 | BS47: -49088 | BT47: 0 | BU47: 0 | BV47: -1654.17 | BW47: -1156585.85 | BX47: 0 | BY47: 0 | BZ47: 0 | CA47: 0 | CB47: 129379.23 | CC47: 0 | CD47: 129379.23
A48: 2239 | B48: Rodmersham Primary School | C48: 0 | D48: 135 | E48: 0 | F48: 6.75 | G48: No | H48: Primary | I48: 100-199 | J48: =IF(G48=Benchmarking!$I$4,1,0) -> 0 | K48: =IF(Benchmarking!$I$6="All",1,IF(Benchmarking!$I$6=H48,1,0)) -> 0 | L48: =IF(Benchmarking!$I$8="All",1,IF(Benchmarking!$I$8=I48,1,0)) -> 0 | M48: 0 | N48: 412684.04 | O48: 0 | P48: 189032.08 | Q48: 7385.84 | R48: 21541.07 | S48: 0 | T48: 27295.88 | U48: 3794.17 | V48: 7672.28 | W48: 271.35 | X48: 3993.24 | Y48: 13104.95 | Z48: 10062.66 | AA48: 1109.93 | AB48: 2838.53 | AC48: 12113.43 | AD48: 6772.05 | AE48: 19866.31 | AF48: 95407.65 | AG48: 1550 | AH48: 850 | AI48: 5620.11 | AJ48: 3715.06 | AK48: 6691.43 | AL48: 3563.22 | AM48: 1216 | AN48: 0 | AO48: 12415.18 | AP48: 5505.06 | AQ48: 2193.07 | AR48: 23664.09 | AS48: 0 | AT48: 20451.2 | AU48: 13655.6 | AV48: 0 | AW48: 0 | AX48: 0 | AY48: 0 | AZ48: 0 | BA48: -666241.0901 | BB48: -74131.43993 | BC48: 0 | BD48: -68462.12 | BE48: 0 | BF48: -19550 | BG48: -1771.29 | BH48: -1110 | BI48: 0 | BJ48: -8961.23 | BK48: -8.27 | BL48: 0 | BM48: -95635.9 | BN48: -16688.31 | BO48: -625.78 | BP48: 0 | BQ48: 0 | BR48: 0 | BS48: -36692 | BT48: 0 | BU48: 0 | BV48: -675.83 | BW48: -808834.65 | BX48: 0 | BY48: 0 | BZ48: 0 | CA48: 0 | CB48: 68462.12 | CC48: 0 | CD48: 68462.12
A49: 2245 | B49: Rose Street School | C49: 20 | D49: 383 | E49: 0 | F49: 13.25 | G49: Yes | H49: Primary | I49: 300-399 | J49: =IF(G49=Benchmarking!$I$4,1,0) -> 0 | K49: =IF(Benchmarking!$I$6="All",1,IF(Benchmarking!$I$6=H49,1,0)) -> 0 | L49: =IF(Benchmarking!$I$8="All",1,IF(Benchmarking!$I$8=I49,1,0)) -> 0 | M49: 0 | N49: 1239744.24 | O49: 10443.33 | P49: 620382.16 | Q49: 155272.81 | R49: 201505.58 | S49: 0 | T49: 150692.31 | U49: 9519.02 | V49: 9715.14 | W49: 769.83 | X49: 11161.44 | Y49: 48677.49 | Z49: 3352.48 | AA49: 9445.5 | AB49: 4884.93 | AC49: 46089.93 | AD49: 110838 | AE49: 12471.21 | AF49: 126943.62 | AG49: 5610 | AH49: 0 | AI49: 22592.4 | AJ49: 13815.4 | AK49: 11854.9 | AL49: 1461.2 | AM49: 2252.25 | AN49: 0 | AO49: 17972.74 | AP49: 14947.98 | AQ49: 0 | AR49: 106771.17 | AS49: 70998.88 | AT49: 36468.56 | AU49: 92902.42 | AV49: 0 | AW49: 0 | AX49: 0 | AY49: 0 | AZ49: 0 | BA49: -2021512.837 | BB49: -515136.2033 | BC49: 0 | BD49: -81370.83 | BE49: 0 | BF49: -344514.33 | BG49: -12000 | BH49: -7544.83 | BI49: 0 | BJ49: -14958.17 | BK49: 0 | BL49: 0 | BM49: -13458.68 | BN49: -1565 | BO49: -25341.9 | BP49: 0 | BQ49: 0 | BR49: 0 | BS49: -39335 | BT49: 0 | BU49: 0 | BV49: -20019.8 | BW49: -2618019.87 | BX49: 0 | BY49: 0 | BZ49: 0 | CA49: 0 | CB49: 81370.83 | CC49: 0 | CD49: 81370.83
A50: 2254 | B50: Canterbury Road Primary School | C50: 0 | D50: 208 | E50: 0 | F50: 9.083333333 | G50: No | H50: Primary | I50: 200-299 | J50: =IF(G50=Benchmarking!$I$4,1,0) -> 0 | K50: =IF(Benchmarking!$I$6="All",1,IF(Benchmarking!$I$6=H50,1,0)) -> 0 | L50: =IF(Benchmarking!$I$8="All",1,IF(Benchmarking!$I$8=I50,1,0)) -> 0 | M50: 0 | N50: 626650.1 | O50: 0 | P50: 338097.24 | Q50: 53091.32 | R50: 77334.73 | S50: 0 | T50: 48021.58 | U50: 13422.18 | V50: 3418.45 | W50: 4614.19 | X50: 6106.68 | Y50: 19604.28 | Z50: 3523.05 | AA50: 4825.95 | AB50: 3550.46 | AC50: 24866.51 | AD50: 29952 | AE50: 14382.83 | AF50: 69817.24 | AG50: 3582.3 | AH50: 583.18 | AI50: 1886.3 | AJ50: 3768.56 | AK50: 914.92 | AL50: 144.88 | AM50: 7629.96 | AN50: 0 | AO50: 17761.9 | AP50: 8298.12 | AQ50: 0 | AR50: 44195.33 | AS50: 0 | AT50: 1508.66 | AU50: 21037.62 | AV50: 0 | AW50: 0 | AX50: 0 | AY50: 0 | AZ50: 0 | BA50: -996261.6219 | BB50: -203795.0281 | BC50: 0 | BD50: -53215.14 | BE50: 0 | BF50: -100810 | BG50: -2971.29 | BH50: -3530 | BI50: 0 | BJ50: -11658.24 | BK50: 0 | BL50: -1200 | BM50: -444.57 | BN50: -23424.75 | BO50: -1824 | BP50: 0 | BQ50: 0 | BR50: 0 | BS50: -46361 | BT50: 0 | BU50: 0 | BV50: -1782.5 | BW50: -1253271.79 | BX50: 0 | BY50: 0 | BZ50: 0 | CA50: 0 | CB50: 53215.14 | CC50: 0 | CD50: 53215.14
A51: 2258 | B51: Blean Primary School | C51: 0 | D51: 433 | E51: 0 | F51: 14.58333333 | G51: No | H51: Primary | I51: 400-499 | J51: =IF(G51=Benchmarking!$I$4,1,0) -> 0 | K51: =IF(Benchmarking!$I$6="All",1,IF(Benchmarking!$I$6=H51,1,0)) -> 0 | L51: =IF(Benchmarking!$I$8="All",1,IF(Benchmarking!$I$8=I51,1,0)) -> 0 | M51: 0 | N51: 1284222.54 | O51: 0 | P51: 596982.02 | Q51: 114173.37 | R51: 142818.86 | S51: 0 | T51: 129367.14 | U51: 11781.37 | V51: 8059.04 | W51: 14638.64 | X51: 12535.32 | Y51: 4138.13 | Z51: 6677.87 | AA51: 4332.85 | AB51: 8868.84 | AC51: 41701.77 | AD51: 44499 | AE51: 24609.37 | AF51: 78902.54 | AG51: 7538 | AH51: 0 | AI51: 0 | AJ51: 5483.72 | AK51: 805.69 | AL51: 1903.85 | AM51: 13253 | AN51: 0 | AO51: 9663.03 | AP51: 16566.54 | AQ51: 20778.25 | AR51: 75362.5 | AS51: 0 | AT51: 10375.15 | AU51: 29595.57 | AV51: 0 | AW51: 0 | AX51: 6723.61 | AY51: 0 | AZ51: 0 | BA51: -1864832.403 | BB51: -272331.3474 | BC51: 0 | BD51: -117417.62 | BE51: 0 | BF51: -66860 | BG51: -3456.93 | BH51: -18942.14 | BI51: -6112.2 | BJ51: -208390.13 | BK51: 0 | BL51: -14335 | BM51: -10244.75 | BN51: -20696.63 | BO51: -5724.87 | BP51: 0 | BQ51: 0 | BR51: 0 | BS51: -98394 | BT51: 0 | BU51: 0 | BV51: -3042.71 | BW51: -2254581.37 | BX51: 0 | BY51: 0 | BZ51: 0 | CA51: 0 | CB51: 117417.62 | CC51: 0 | CD51: 117417.62
A52: 2263 | B52: Herne Bay Infant and Nursery School | C52: 33 | D52: 265 | E52: 0 | F52: 7.166666667 | G52: Yes | H52: Primary | I52: 200-299 | J52: =IF(G52=Benchmarking!$I$4,1,0) -> 0 | K52: =IF(Benchmarking!$I$6="All",1,IF(Benchmarking!$I$6=H52,1,0)) -> 0 | L52: =IF(Benchmarking!$I$8="All",1,IF(Benchmarking!$I$8=I52,1,0)) -> 0 | M52: 0 | N52: 828733.79 | O52: 14781.49 | P52: 469393.1 | Q52: 57263.1 | R52: 100562.5 | S52: 0 | T52: 58390.11 | U52: 8311.45 | V52: 13118.6 | W52: 8012.13 | X52: 7805.16 | Y52: 27164.25 | Z52: 11847.92 | AA52: 38072.2 | AB52: 7825.88 | AC52: 23365.69 | AD52: 21706.5 | AE52: 18411.47 | AF52: 51019.8 | AG52: 4187.35 | AH52: 0 | AI52: 6225.03 | AJ52: 10040.32 | AK52: 3731.85 | AL52: 1609.37 | AM52: 5085.24 | AN52: 0 | AO52: 11389.36 | AP52: 10672.5 | AQ52: 2034.64 | AR52: 100273.35 | AS52: 0 | AT52: 22948.65 | AU52: 22802.79 | AV52: 0 | AW52: 0 | AX52: 25072.33 | AY52: 0 | AZ52: 0 | BA52: -1387303.51 | BB52: -276803.6997 | BC52: 0 | BD52: -82077.62 | BE52: 0 | BF52: -156470 | BG52: -1200 | BH52: 0 | BI52: 0 | BJ52: -17609.79 | BK52: 0 | BL52: -5310 | BM52: -4269.76 | BN52: -13148.9 | BO52: -3899.5 | BP52: 0 | BQ52: 0 | BR52: 0 | BS52: -79999 | BT52: 0 | BU52: 0 | BV52: -2998.96 | BW52: -1746184.83 | BX52: 0 | BY52: 0 | BZ52: 0 | CA52: 0 | CB52: 82077.62 | CC52: 0 | CD52: 82077.62
A53: 2265 | B53: Hoath Primary School | C53: 0 | D53: 104 | E53: 0 | F53: 5.166666667 | G53: No | H53: Primary | I53: 100-199 | J53: =IF(G53=Benchmarking!$I$4,1,0) -> 0 | K53: =IF(Benchmarking!$I$6="All",1,IF(Benchmarking!$I$6=H53,1,0)) -> 0 | L53: =IF(Benchmarking!$I$8="All",1,IF(Benchmarking!$I$8=I53,1,0)) -> 0 | M53: 0 | N53: 304569.36 | O53: 8804.43 | P53: 175309 | Q53: 2186.07 | R53: 39783.56 | S53: 0 | T53: 19515.78 | U53: 2522.42 | V53: 2767.15 | W53: 2274.99 | X53: 3180.72 | Y53: 5993.76 | Z53: 3080.68 | AA53: 13325.03 | AB53: 2690.52 | AC53: 11889 | AD53: 18463 | AE53: 3389.31 | AF53: 33970 | AG53: 6669.14 | AH53: 1496.54 | AI53: 1929.55 | AJ53: 9704.02 | AK53: 1086.22 | AL53: 42.94 | AM53: 2800 | AN53: 0 | AO53: 2952.92 | AP53: 4659 | AQ53: 606.31 | AR53: 22411.24 | AS53: 0 | AT53: 86267.49 | AU53: 17354.72 | AV53: 0 | AW53: 0 | AX53: 0 | AY53: 0 | AZ53: 0 | BA53: -548993.5647 | BB53: -83496.61526 | BC53: 0 | BD53: -52379.06 | BE53: 0 | BF53: -37310 | BG53: 0 | BH53: -134.71 | BI53: 0 | BJ53: -37090.27 | BK53: -42.48 | BL53: -4500 | BM53: 0 | BN53: -12666.33 | BO53: -1876.66 | BP53: 0 | BQ53: 0 | BR53: 0 | BS53: -29930 | BT53: 0 | BU53: 0 | BV53: -517.92 | BW53: -684869.24 | BX53: 0 | BY53: 0 | BZ53: 0 | CA53: 0 | CB53: 52379.06 | CC53: 0 | CD53: 52379.06
A54: 2268 | B54: Westmeads Community Infant School | C54: 0 | D54: 143 | E54: 0 | F54: 15.83333333 | G54: No | H54: Primary | I54: 100-199 | J54: =IF(G54=Benchmarking!$I$4,1,0) -> 0 | K54: =IF(Benchmarking!$I$6="All",1,IF(Benchmarking!$I$6=H54,1,0)) -> 0 | L54: =IF(Benchmarking!$I$8="All",1,IF(Benchmarking!$I$8=I54,1,0)) -> 0 | M54: 0 | N54: 545135.18 | O54: 0 | P54: 156733.24 | Q54: 55171.72 | R54: 48107.88 | S54: 44084.92 | T54: 59159.9 | U54: 3554.32 | V54: 7003.23 | W54: 687.43 | X54: 747.36 | Y54: 16324.27 | Z54: 0 | AA54: 2445.9 | AB54: 2252.55 | AC54: 18565.81 | AD54: 24575.75 | AE54: 6277.13 | AF54: 20183.21 | AG54: 3009.03 | AH54: 1550 | AI54: 3217.34 | AJ54: 10313.68 | AK54: 1594.9 | AL54: 203.25 | AM54: 4178.5 | AN54: 0 | AO54: 5646.18 | AP54: 6132.28 | AQ54: 179.31 | AR54: 20680.39 | AS54: 0 | AT54: 8165 | AU54: 10430.29 | AV54: 0 | AW54: 0 | AX54: 73583 | AY54: 0 | AZ54: 0 | BA54: -766768.8184 | BB54: -92668.57162 | BC54: 0 | BD54: -123116.72 | BE54: 0 | BF54: -51544.73 | BG54: 0 | BH54: -3552.97 | BI54: 0 | BJ54: -47950.43 | BK54: 0 | BL54: 0 | BM54: 0 | BN54: 0 | BO54: -8157.1 | BP54: 0 | BQ54: 0 | BR54: 0 | BS54: -65639 | BT54: 0 | BU54: 0 | BV54: -2310.42 | BW54: -982554.11 | BX54: 0 | BY54: 0 | BZ54: 0 | CA54: 0 | CB54: 123116.72 | CC54: 0 | CD54: 123116.72
A55: 2269 | B55: Whitstable Junior School | C55: 0 | D55: 219 | E55: 0 | F55: 16 | G55: No | H55: Primary | I55: 200-299 | J55: =IF(G55=Benchmarking!$I$4,1,0) -> 0 | K55: =IF(Benchmarking!$I$6="All",1,IF(Benchmarking!$I$6=H55,1,0)) -> 0 | L55: =IF(Benchmarking!$I$8="All",1,IF(Benchmarking!$I$8=I55,1,0)) -> 0 | M55: 0 | N55: 717258.87 | O55: 0 | P55: 354066.4 | Q55: 60381.2 | R55: 59940.1 | S55: 0 | T55: 5345.1 | U55: 831.38 | V55: 4785.66 | W55: 440.19 | X55: 6510.12 | Y55: 45018.92 | Z55: 8877.83 | AA55: 4804.77 | AB55: 3638.78 | AC55: 44780.91 | AD55: 5569.2 | AE55: 12396.02 | AF55: 51451.09 | AG55: 6394.87 | AH55: 0 | AI55: 9538.39 | AJ55: 13404.79 | AK55: 80 | AL55: 418.07 | AM55: 5106.5 | AN55: 0 | AO55: 1844.86 | AP55: 9058.98 | AQ55: 1906.86 | AR55: 22356.15 | AS55: 1080 | AT55: 30792.13 | AU55: 39987.44 | AV55: 0 | AW55: 125.73 | AX55: 20510 | AY55: 0 | AZ55: 0 | BA55: -1022901.251 | BB55: -163815.109 | BC55: 0 | BD55: -150053.42 | BE55: 0 | BF55: -110620 | BG55: -2400 | BH55: -2471.62 | BI55: -45958.47 | BJ55: -8739.94 | BK55: 0 | BL55: 0 | BM55: -248.2 | BN55: -6742.5 | BO55: -8840.97 | BP55: 0 | BQ55: 0 | BR55: 0 | BS55: -18267 | BT55: 0 | BU55: 0 | BV55: -6580.21 | BW55: -1336769.78 | BX55: 0 | BY55: 0 | BZ55: 0 | CA55: 0 | CB55: 150053.42 | CC55: 0 | CD55: 150053.42
A56: 2270 | B56: Aldington Primary School | C56: 0 | D56: 192 | E56: 0 | F56: 2.416666667 | G56: No | H56: Primary | I56: 100-199 | J56: =IF(G56=Benchmarking!$I$4,1,0) -> 0 | K56: =IF(Benchmarking!$I$6="All",1,IF(Benchmarking!$I$6=H56,1,0)) -> 0 | L56: =IF(Benchmarking!$I$8="All",1,IF(Benchmarking!$I$8=I56,1,0)) -> 0 | M56: 0 | N56: 545492.05 | O56: 0 | P56: 234959.02 | Q56: 14609.96 | R56: 48216.96 | S56: 0 | T56: 22244.84 | U56: 3148.8 | V56: 3686.05 | W56: 1940.92 | X56: 5558.4 | Y56: 11079.06 | Z56: 5738.08 | AA56: 17775.7 | AB56: 4185.15 | AC56: 24525.83 | AD56: 29952 | AE56: 5112.04 | AF56: 48118.6 | AG56: 3167.39 | AH56: 125 | AI56: 10636.63 | AJ56: 10332.34 | AK56: 386 | AL56: 70 | AM56: 5883.84 | AN56: 0 | AO56: 3079.83 | AP56: 7345.92 | AQ56: 2171.22 | AR56: 45787.61 | AS56: 4690 | AT56: 12504.78 | AU56: 14901.32 | AV56: 0 | AW56: 0 | AX56: 0 | AY56: 0 | AZ56: 0 | BA56: -870887.5038 | BB56: -111137.0962 | BC56: 0 | BD56: -11425.15 | BE56: 0 | BF56: -38960 | BG56: -1400 | BH56: -5746.86 | BI56: -11961.72 | BJ56: 0 | BK56: 0 | BL56: -3541.24 | BM56: -14941.12 | BN56: -17257 | BO56: -12115.31 | BP56: 0 | BQ56: 0 | BR56: 0 | BS56: -46069 | BT56: 0 | BU56: 0 | BV56: -541.67 | BW56: -993449.75 | BX56: 0 | BY56: 0 | BZ56: 0 | CA56: 0 | CB56: 11425.15 | CC56: 0 | CD56: 11425.15
A57: 2275 | B57: Victoria Road Primary School | C57: 0 | D57: 209 | E57: 0 | F57: 8.25 | G57: No | H57: Primary | I57: 200-299 | J57: =IF(G57=Benchmarking!$I$4,1,0) -> 0 | K57: =IF(Benchmarking!$I$6="All",1,IF(Benchmarking!$I$6=H57,1,0)) -> 0 | L57: =IF(Benchmarking!$I$8="All",1,IF(Benchmarking!$I$8=I57,1,0)) -> 0 | M57: 0 | N57: 609528.35 | O57: 2203.67 | P57: 300201.08 | Q57: 23551.72 | R57: 108504.68 | S57: 0 | T57: 59745.04 | U57: 5757.14 | V57: 7674.75 | W57: 3911.33 | X57: 6050.64 | Y57: 13894.2 | Z57: 2161.31 | AA57: 21209.41 | AB57: 0 | AC57: 21649.67 | AD57: 18962 | AE57: 5737.02 | AF57: 35651.02 | AG57: 6207.04 | AH57: 0 | AI57: 1028.25 | AJ57: 14809.12 | AK57: 4000 | AL57: 802.85 | AM57: 7068.28 | AN57: 0 | AO57: 10827.17 | AP57: 7996.38 | AQ57: 1021.47 | AR57: 63838.95 | AS57: 378 | AT57: 33421.95 | AU57: 17417.13 | AV57: 0 | AW57: 0 | AX57: 12084.54 | AY57: 0 | AZ57: 0 | BA57: -980974.993 | BB57: -145101.137 | BC57: 0 | BD57: -74067.94 | BE57: 0 | BF57: -81649 | BG57: -400 | BH57: -754.72 | BI57: 0 | BJ57: -20105.43 | BK57: -14779 | BL57: 0 | BM57: -5482.73 | BN57: -13674.7 | BO57: -6345.58 | BP57: 0 | BQ57: 0 | BR57: 0 | BS57: -51587 | BT57: 0 | BU57: 0 | BV57: -4873.96 | BW57: -1200144.07 | BX57: 0 | BY57: 0 | BZ57: 0 | CA57: 0 | CB57: 74067.94 | CC57: 0 | CD57: 74067.94
A58: 2276 | B58: Willesborough Infant School | C58: 0 | D58: 349 | E58: 0 | F58: 7.833333333 | G58: No | H58: Infant | I58: 300-399 | J58: =IF(G58=Benchmarking!$I$4,1,0) -> 0 | K58: =IF(Benchmarking!$I$6="All",1,IF(Benchmarking!$I$6=H58,1,0)) -> 0 | L58: =IF(Benchmarking!$I$8="All",1,IF(Benchmarking!$I$8=I58,1,0)) -> 0 | M58: 0 | N58: 1053208.79 | O58: 1609.77 | P58: 428105.02 | Q58: 61897.39 | R58: 96530.54 | S58: 0 | T58: 141431.77 | U58: 745.81 | V58: 6056.83 | W58: 701.49 | X58: 10103.52 | Y58: 5984.65 | Z58: 5595.75 | AA58: 4854.72 | AB58: 17992.66 | AC58: 45532.15 | AD58: 23079 | AE58: 23752.21 | AF58: 30002.65 | AG58: 3750 | AH58: 1297.44 | AI58: 6399.93 | AJ58: 8947.74 | AK58: 646.89 | AL58: 0 | AM58: 0 | AN58: 0 | AO58: 6788.31 | AP58: 13352.7 | AQ58: 6044.28 | AR58: 151411.77 | AS58: 2730.15 | AT58: 47758.66 | AU58: 54426.29 | AV58: 0 | AW58: 0 | AX58: 0 | AY58: 0 | AZ58: 0 | BA58: -1525014.042 | BB58: -213935.6379 | BC58: 0 | BD58: -76895.46 | BE58: 0 | BF58: -69100 | BG58: -3171.29 | BH58: 0 | BI58: 0 | BJ58: -244402.35 | BK58: 0 | BL58: 0 | BM58: -31032.28 | BN58: -6508.1 | BO58: -4990.58 | BP58: 0 | BQ58: 0 | BR58: 0 | BS58: -140184 | BT58: 0 | BU58: 0 | BV58: -1427.5 | BW58: -1815845.14 | BX58: 0 | BY58: 0 | BZ58: 0 | CA58: 0 | CB58: 76895.46 | CC58: 0 | CD58: 76895.46
A59: 2278 | B59: Bethersden Primary School | C59: 0 | D59: 120 | E59: 0 | F59: 6.75 | G59: No | H59: Primary | I59: 100-199 | J59: =IF(G59=Benchmarking!$I$4,1,0) -> 0 | K59: =IF(Benchmarking!$I$6="All",1,IF(Benchmarking!$I$6=H59,1,0)) -> 0 | L59: =IF(Benchmarking!$I$8="All",1,IF(Benchmarking!$I$8=I59,1,0)) -> 0 | M59: 0 | N59: 469342.46 | O59: 1869.63 | P59: 150287.16 | Q59: 8032.8 | R59: 42957.31 | S59: 0 | T59: 27393.74 | U59: 3572.68 | V59: 1055 | W59: 2260.87 | X59: 3474 | Y59: 9259.58 | Z59: 3725.84 | AA59: 16625 | AB59: 2068.48 | AC59: 16671.86 | AD59: 14720.5 | AE59: 4253.91 | AF59: 34520.19 | AG59: 1629.85 | AH59: 0 | AI59: 8337.65 | AJ59: 6604.71 | AK59: 0 | AL59: 196.16 | AM59: 2920 | AN59: 0 | AO59: 5355.43 | AP59: 4591.2 | AQ59: 2018.66 | AR59: 30456.63 | AS59: 22640.7 | AT59: 7419.29 | AU59: 18465.87 | AV59: 0 | AW59: 0 | AX59: 1264.44 | AY59: 0 | AZ59: 0 | BA59: -673956.3183 | BB59: -73426.66169 | BC59: 0 | BD59: -48910.24 | BE59: 0 | BF59: -52068 | BG59: -2285.64 | BH59: -750 | BI59: -1468.83 | BJ59: -15160.36 | BK59: -10030.47 | BL59: 0 | BM59: -3917.28 | BN59: -14800.05 | BO59: -8721.03 | BP59: 0 | BQ59: 0 | BR59: 0 | BS59: -38836 | BT59: 0 | BU59: 0 | BV59: -833.55 | BW59: -796293.22 | BX59: 0 | BY59: 0 | BZ59: 0 | CA59: 0 | CB59: 48910.24 | CC59: 0 | CD59: 48910.24
A60: 2279 | B60: Brook Community Primary School | C60: 0 | D60: 75 | E60: 0 | F60: 5.333333333 | G60: No | H60: Infant | I60: 0-99 | J60: =IF(G60=Benchmarking!$I$4,1,0) -> 0 | K60: =IF(Benchmarking!$I$6="All",1,IF(Benchmarking!$I$6=H60,1,0)) -> 0 | L60: =IF(Benchmarking!$I$8="All",1,IF(Benchmarking!$I$8=I60,1,0)) -> 0 | M60: 0 | N60: 326132.77 | O60: 0 | P60: 145034.04 | Q60: 0 | R60: 41339.93 | S60: 0 | T60: 15590.4 | U60: 431.12 | V60: 4110.5 | W60: 150.75 | X60: 2171.28 | Y60: 6814.35 | Z60: 2528 | AA60: 13351.66 | AB60: 1066.51 | AC60: 8197.07 | AD60: 8608 | AE60: 3875.77 | AF60: 11954.62 | AG60: 2101.87 | AH60: 0 | AI60: 9087.31 | AJ60: 7172.16 | AK60: 1397.12 | AL60: 1839.4 | AM60: 1089.42 | AN60: 0 | AO60: 2944.99 | AP60: 2869.5 | AQ60: 2352.86 | AR60: 14375.52 | AS60: 726 | AT60: 11153.83 | AU60: 5295.34 | AV60: 0 | AW60: 0 | AX60: 292.27 | AY60: 0 | AZ60: 0 | BA60: -492500.4679 | BB60: -44050.03208 | BC60: 0 | BD60: -25963.72 | BE60: 0 | BF60: -19629 | BG60: -2685.64 | BH60: -5058.44 | BI60: 0 | BJ60: -14985.94 | BK60: -5981.79 | BL60: 0 | BM60: -822.22 | BN60: -1977.41 | BO60: -2548.16 | BP60: 0 | BQ60: 0 | BR60: 0 | BS60: -17886 | BT60: 0 | BU60: 0 | BV60: -439.58 | BW60: -562514.22 | BX60: 0 | BY60: 0 | BZ60: 0 | CA60: 0 | CB60: 17456.84 | CC60: 8506.88 | CD60: 25963.72
A61: 2280 | B61: Challock Primary School | C61: 0 | D61: 210 | E61: 0 | F61: 6.583333333 | G61: No | H61: Junior | I61: 200-299 | J61: =IF(G61=Benchmarking!$I$4,1,0) -> 0 | K61: =IF(Benchmarking!$I$6="All",1,IF(Benchmarking!$I$6=H61,1,0)) -> 0 | L61: =IF(Benchmarking!$I$8="All",1,IF(Benchmarking!$I$8=I61,1,0)) -> 0 | M61: 0 | N61: 668968.05 | O61: 5130.39 | P61: 218029.15 | Q61: 33046.77 | R61: 66764.38 | S61: 0 | T61: 27429.51 | U61: 0 | V61: 3440.5 | W61: 5835.04 | X61: 6079.56 | Y61: 8886.36 | Z61: 9704.27 | AA61: 11546.39 | AB61: 5739.17 | AC61: 19909.5 | AD61: 19711 | AE61: 5756.29 | AF61: 45953.09 | AG61: 5000 | AH61: 0 | AI61: 8440.7 | AJ61: 2084.47 | AK61: 1478.86 | AL61: 115.99 | AM61: 7834.6 | AN61: 0 | AO61: 3696.44 | AP61: 8034.6 | AQ61: 1508.09 | AR61: 50556.84 | AS61: 0 | AT61: 14522.85 | AU61: 12692.97 | AV61: 0 | AW61: 0 | AX61: 0 | AY61: 0 | AZ61: 0 | BA61: -931221.0276 | BB61: -106584.0424 | BC61: 0 | BD61: -46243.07 | BE61: 0 | BF61: -40560 | BG61: -3256.93 | BH61: -1379.75 | BI61: -225 | BJ61: -5561.05 | BK61: -100 | BL61: -4811.54 | BM61: -163.91 | BN61: -27710.02 | BO61: -3787.87 | BP61: 0 | BQ61: 0 | BR61: 0 | BS61: -55810 | BT61: 0 | BU61: 0 | BV61: -1180.88 | BW61: -1084048.14 | BX61: 0 | BY61: 0 | BZ61: 0 | CA61: 0 | CB61: 46243.07 | CC61: 0 | CD61: 46243.07
A62: 2282 | B62: Great Chart Primary School | C62: 0 | D62: 420 | E62: 0 | F62: 21.33333333 | G62: =IF(C62=0,"No","Yes") -> No | H62: Primary | I62: 400-499 | J62: =IF(G62=Benchmarking!$I$4,1,0) -> 0 | K62: =IF(Benchmarking!$I$6="All",1,IF(Benchmarking!$I$6=H62,1,0)) -> 0 | L62: =IF(Benchmarking!$I$8="All",1,IF(Benchmarking!$I$8=I62,1,0)) -> 0 | M62: =IF(SUM(J62:L62)=3,1,0) -> 0 | N62: 1282119.55 | O62: 10780.39 | P62: 636235.39 | Q62: 98581.28 | R62: 117341.48 | S62: 0 | T62: 37724.46 | U62: 9752.41 | V62: 8058.13 | W62: 6366.09 | X62: 1932 | Y62: 11702.04 | Z62: 7068.39 | AA62: 2646.82 | AB62: 10760 | AC62: 29981.63 | AD62: 38400 | AE62: 18242.24 | AF62: 79698.05 | AG62: 957.2 | AH62: 0 | AI62: 11017.12 | AJ62: 10302.91 | AK62: 478.08 | AL62: 4967.7 | AM62: 10234.61 | AN62: 0 | AO62: 6580.59 | AP62: 16069.2 | AQ62: 1839.33 | AR62: 135876.82 | AS62: 0 | AT62: 27305.92 | AU62: 15990.96 | AV62: 0 | AW62: 0 | AX62: 0 | AY62: 0 | AZ62: 0 | BA62: =BW62-BB62-BC62-BD62 -> -1811544.893 | BB62: -257655.3074 | BC62: =-CA62 -> 0 | BD62: =-CD62 -> -171297.16 | BE62: 0 | BF62: -126794 | BG62: 0 | BH62: -4620 | BI62: -5635 | BJ62: -40018.15 | BK62: -46692.49 | BL62: -1044 | BM62: 0 | BN62: -21086.35 | BO62: -26705.29 | BP62: 0 | BQ62: 0 | BR62: 0 | BS62: -92548 | BT62: 0 | BU62: 0 | BV62: -6504.17 | BW62: -2240497.36 | BX62: 0 | BY62: 0 | BZ62: 0 | CA62: =SUM(BX62:BZ62) -> 0 | CB62: 171297.16 | CC62: 0 | CD62: =SUM(CB62:CC62) -> 171297.16
A63: 2285 | B63: Mersham Primary School | C63: 0 | D63: 171 | E63: 0 | F63: 2.583333333 | G63: No | H63: Primary | I63: 100-199 | J63: =IF(G63=Benchmarking!$I$4,1,0) -> 0 | K63: =IF(Benchmarking!$I$6="All",1,IF(Benchmarking!$I$6=H63,1,0)) -> 0 | L63: =IF(Benchmarking!$I$8="All",1,IF(Benchmarking!$I$8=I63,1,0)) -> 0 | M63: 0 | N63: 539923.8 | O63: 784.67 | P63: 202635.81 | Q63: 29707.8 | R63: 49976.96 | S63: 0 | T63: 25721.18 | U63: 806.61 | V63: 3862.23 | W63: 2167.6 | X63: 4950.48 | Y63: 6876.04 | Z63: 4349.72 | AA63: 16484.7 | AB63: 2521.08 | AC63: 22820.4 | AD63: 18587.75 | AE63: 12613.48 | AF63: 40028.29 | AG63: 7429.66 | AH63: 0 | AI63: 6694.35 | AJ63: 9111.07 | AK63: 0 | AL63: 344.73 | AM63: 7602.6 | AN63: 0 | AO63: 1761.82 | AP63: 6542.46 | AQ63: 1675.21 | AR63: 48397.66 | AS63: 3352 | AT63: 33826.82 | AU63: 12399.01 | AV63: 0 | AW63: 0 | AX63: 0 | AY63: 0 | AZ63: 0 | BA63: -803573.6602 | BB63: -94935.59979 | BC63: 0 | BD63: -12257.42 | BE63: 0 | BF63: -45880 | BG63: -1342.57 | BH63: -3857.5 | BI63: 0 | BJ63: -33600.31 | BK63: -14094.02 | BL63: 0 | BM63: -2371.15 | BN63: -20972.16 | BO63: -7942.92 | BP63: 0 | BQ63: 0 | BR63: 0 | BS63: -34322 | BT63: 0 | BU63: 0 | BV63: -649.58 | BW63: -910766.68 | BX63: 0 | BY63: 0 | BZ63: 0 | CA63: 0 | CB63: 12257.42 | CC63: 0 | CD63: 12257.42
A64: 2289 | B64: Smeeth Community Primary School | C64: 0 | D64: 115 | E64: 0 | F64: 4.5 | G64: No | H64: Primary | I64: 100-199 | J64: =IF(G64=Benchmarking!$I$4,1,0) -> 0 | K64: =IF(Benchmarking!$I$6="All",1,IF(Benchmarking!$I$6=H64,1,0)) -> 0 | L64: =IF(Benchmarking!$I$8="All",1,IF(Benchmarking!$I$8=I64,1,0)) -> 0 | M64: 0 | N64: 392441.74 | O64: 94.26 | P64: 88673.01 | Q64: 12683.61 | R64: 18658.65 | S64: 0 | T64: 37473.55 | U64: 903.01 | V64: 1770 | W64: 2521.15 | X64: 3329.16 | Y64: 7915.99 | Z64: 4211.13 | AA64: 17186.62 | AB64: 1601.87 | AC64: 17603.13 | AD64: 17090.75 | AE64: 4919.69 | AF64: 15553.43 | AG64: 2300 | AH64: 0 | AI64: 4005.66 | AJ64: 9224.39 | AK64: 177.27 | AL64: 8.21 | AM64: 2514.72 | AN64: 0 | AO64: 2673.56 | AP64: 4399.86 | AQ64: 707.17 | AR64: 17619.88 | AS64: 0 | AT64: 7613.74 | AU64: 23762.81 | AV64: 0 | AW64: 0 | AX64: 0 | AY64: 0 | AZ64: 0 | BA64: -582800.2837 | BB64: -54298.78631 | BC64: 0 | BD64: -13699.95 | BE64: 0 | BF64: -22200 | BG64: -2971.29 | BH64: -574.57 | BI64: -8000 | BJ64: -11343.02 | BK64: 0 | BL64: -1094.4 | BM64: 0 | BN64: -7048.1 | BO64: -8830.2 | BP64: 0 | BQ64: 0 | BR64: 0 | BS64: -33118 | BT64: 0 | BU64: 0 | BV64: -736.38 | BW64: -650799.02 | BX64: 0 | BY64: 0 | BZ64: 0 | CA64: 0 | CB64: 11134.41 | CC64: 2565.54 | CD64: 13699.95
A65: 2298 | B65: Hawkinge Primary School | C65: 0 | D65: 392 | E65: 0 | F65: 7.416666667 | G65: No | H65: Infant | I65: 300-399 | J65: =IF(G65=Benchmarking!$I$4,1,0) -> 0 | K65: =IF(Benchmarking!$I$6="All",1,IF(Benchmarking!$I$6=H65,1,0)) -> 0 | L65: =IF(Benchmarking!$I$8="All",1,IF(Benchmarking!$I$8=I65,1,0)) -> 0 | M65: 0 | N65: 1177155.37 | O65: 12000 | P65: 439059.13 | Q65: 26696.97 | R65: 64148.86 | S65: 0 | T65: 65032.62 | U65: 2532.95 | V65: 13545.74 | W65: 4178.92 | X65: 11348.4 | Y65: 17659 | Z65: 13145.28 | AA65: 33405.5 | AB65: 9773.13 | AC65: 37197.97 | AD65: 11092 | AE65: 10500.41 | AF65: 148409.03 | AG65: 1999.66 | AH65: 0 | AI65: 8945 | AJ65: 8999.26 | AK65: 3776 | AL65: 1000 | AM65: 6504.01 | AN65: 0 | AO65: 10692.3 | AP65: 14997.96 | AQ65: 0 | AR65: 99129.88 | AS65: 0 | AT65: 0 | AU65: 27167.73 | AV65: 0 | AW65: 0 | AX65: 0 | AY65: 0 | AZ65: 0 | BA65: -1630055.519 | BB65: -277572.4015 | BC65: 0 | BD65: -77103.38 | BE65: 0 | BF65: -134861 | BG65: -856.93 | BH65: -4434.78 | BI65: 0 | BJ65: -40008 | BK65: -23520.27 | BL65: 0 | BM65: -9473.51 | BN65: -13890 | BO65: 0 | BP65: 0 | BQ65: 0 | BR65: 0 | BS65: -81581 | BT65: 0 | BU65: 0 | BV65: -1903.96 | BW65: -1984731.3 | BX65: 0 | BY65: 0 | BZ65: 0 | CA65: 0 | CB65: 77103.38 | CC65: 0 | CD65: 77103.38
A66: 2300 | B66: Sellindge Primary School | C66: 0 | D66: 173 | E66: 0 | F66: 9.416666667 | G66: No | H66: Primary | I66: 100-199 | J66: =IF(G66=Benchmarking!$I$4,1,0) -> 0 | K66: =IF(Benchmarking!$I$6="All",1,IF(Benchmarking!$I$6=H66,1,0)) -> 0 | L66: =IF(Benchmarking!$I$8="All",1,IF(Benchmarking!$I$8=I66,1,0)) -> 0 | M66: 0 | N66: 607127.14 | O66: 0 | P66: 210305.05 | Q66: 37064.71 | R66: 46095.34 | S66: 0 | T66: 20254.35 | U66: 3816.33 | V66: 1735.13 | W66: 347.73 | X66: 5008.44 | Y66: 7388.59 | Z66: 2880 | AA66: 1073.3 | AB66: 3258.07 | AC66: 30468.02 | AD66: 20334 | AE66: 6852.02 | AF66: 30380.19 | AG66: 7023.75 | AH66: 558 | AI66: 3050.49 | AJ66: 4143.18 | AK66: 6491.6 | AL66: 0 | AM66: 1971.85 | AN66: 0 | AO66: 11782.97 | AP66: 6619.02 | AQ66: 12984.1 | AR66: 50860.57 | AS66: 6920.99 | AT66: 17223.1 | AU66: 10414.54 | AV66: 0 | AW66: 0 | AX66: 0 | AY66: 0 | AZ66: 0 | BA66: -854806.0434 | BB66: -98971.12663 | BC66: 0 | BD66: -79827.4 | BE66: 0 | BF66: -47700 | BG66: -2400 | BH66: -1241.53 | BI66: -2310 | BJ66: -33805.91 | BK66: -17928.27 | BL66: 0 | BM66: -18530.34 | BN66: -4733.39 | BO66: -4037.23 | BP66: 0 | BQ66: 0 | BR66: 0 | BS66: -49655 | BT66: 0 | BU66: 0 | BV66: -1654.17 | BW66: -1033604.57 | BX66: 0 | BY66: 0 | BZ66: 0 | CA66: 0 | CB66: 79827.4 | CC66: 0 | CD66: 79827.4
A67: 2312 | B67: River Primary School | C67: 0 | D67: 411 | E67: 6.5 | F67: 9.666666667 | G67: No | H67: Primary | I67: =IFERROR(VLOOKUP($D67,$D$256:$F$261,3,TRUE),0) -> 400-499 | J67: =IF(G67=Benchmarking!$I$4,1,0) -> 0 | K67: =IF(Benchmarking!$I$6="All",1,IF(Benchmarking!$I$6=H67,1,0)) -> 0 | L67: =IF(Benchmarking!$I$8="All",1,IF(Benchmarking!$I$8=I67,1,0)) -> 0 | M67: 0 | N67: 1346547.07 | O67: 4182.73 | P67: 545715.3 | Q67: 39474.48 | R67: 99549.7 | S67: 0 | T67: 10689.87 | U67: 9265.89 | V67: 6939.02 | W67: 826.11 | X67: 11898.48 | Y67: 15240.13 | Z67: 6007.79 | AA67: 43891.59 | AB67: 11244.61 | AC67: 42500 | AD67: 51597 | AE67: 12428.36 | AF67: 98946.08 | AG67: 6646.65 | AH67: 0 | AI67: 7030.44 | AJ67: 0 | AK67: 190 | AL67: 520.18 | AM67: 16008.18 | AN67: 0 | AO67: 9179.57 | AP67: 15724.86 | AQ67: 28455.87 | AR67: 79698.26 | AS67: 6476.37 | AT67: 20344.97 | AU67: 31561.44 | AV67: 0 | AW67: 0 | AX67: 2500 | AY67: 0 | AZ67: 0 | BA67: -1757529.417 | BB67: -293727.7635 | BC67: -123262.5 | BD67: -104697.34 | BE67: 0 | BF67: -132069.49 | BG67: -3800 | BH67: -900 | BI67: -895 | BJ67: -24358.88 | BK67: 0 | BL67: -478.19 | BM67: -7698.69 | BN67: -37665.41 | BO67: -17045 | BP67: 0 | BQ67: 0 | BR67: 0 | BS67: -68881 | BT67: 0 | BU67: 0 | BV67: -2726.25 | BW67: -2279217.02 | BX67: 12000 | BY67: 72000 | BZ67: 39262.5 | CA67: 123262.5 | CB67: 104697.34 | CC67: 0 | CD67: 104697.34
A68: 2318 | B68: Langdon Primary School | C68: 0 | D68: 88 | E68: 0 | F68: 3.25 | G68: No | H68: Primary | I68: 0-99 | J68: =IF(G68=Benchmarking!$I$4,1,0) -> 0 | K68: =IF(Benchmarking!$I$6="All",1,IF(Benchmarking!$I$6=H68,1,0)) -> 0 | L68: =IF(Benchmarking!$I$8="All",1,IF(Benchmarking!$I$8=I68,1,0)) -> 0 | M68: 0 | N68: 397584.66 | O68: 10465.63 | P68: 95280.97 | Q68: 30354 | R68: 28800.51 | S68: 0 | T68: 11813.31 | U68: 2814.14 | V68: 1837.33 | W68: 1361.62 | X68: 3507.44 | Y68: 3565.87 | Z68: 5445.66 | AA68: 722.11 | AB68: 2308.7 | AC68: 9377.58 | AD68: 1200 | AE68: 11152.9 | AF68: 35202.38 | AG68: 4009.35 | AH68: 0 | AI68: 3154.35 | AJ68: 5083.05 | AK68: 657.16 | AL68: 54.53 | AM68: 4678.14 | AN68: 0 | AO68: 6433.76 | AP68: 4046.88 | AQ68: 6999.43 | AR68: 22140.55 | AS68: 0 | AT68: 10280.79 | AU68: 12933.7 | AV68: 0 | AW68: 0 | AX68: 3028.6 | AY68: 0 | AZ68: 0 | BA68: -533102.4762 | BB68: -69764.04382 | BC68: 0 | BD68: -31995.6 | BE68: 0 | BF68: -26930 | BG68: 0 | BH68: -1620 | BI68: 0 | BJ68: -18683.53 | BK68: -369.38 | BL68: 0 | BM68: -2659 | BN68: -23160.6 | BO68: -3218.94 | BP68: 0 | BQ68: 0 | BR68: 0 | BS68: -31619 | BT68: 0 | BU68: 0 | BV68: -1505.21 | BW68: -634862.12 | BX68: 0 | BY68: 0 | BZ68: 0 | CA68: 0 | CB68: 31995.6 | CC68: 0 | CD68: 31995.6
A69: 2320 | B69: Eythorne Elvington Community Primary School | C69: 0 | D69: 99 | E69: 0 | F69: 6.75 | G69: No | H69: Primary | I69: 0-99 | J69: =IF(G69=Benchmarking!$I$4,1,0) -> 0 | K69: =IF(Benchmarking!$I$6="All",1,IF(Benchmarking!$I$6=H69,1,0)) -> 0 | L69: =IF(Benchmarking!$I$8="All",1,IF(Benchmarking!$I$8=I69,1,0)) -> 0 | M69: 0 | N69: 414052.98 | O69: 3663.6 | P69: 177707.24 | Q69: 37744.26 | R69: 76451.62 | S69: 0 | T69: 13635.71 | U69: 3206.75 | V69: 5635.33 | W69: 1826.47 | X69: 2866.08 | Y69: 8596.04 | Z69: 5423.04 | AA69: 1624.61 | AB69: 8941.91 | AC69: 24281.81 | AD69: 20334.25 | AE69: 10042.54 | AF69: 21621.27 | AG69: 2514.87 | AH69: 0 | AI69: 7723.67 | AJ69: 13369.4 | AK69: 1065.57 | AL69: 345.53 | AM69: 1810.47 | AN69: 0 | AO69: 2703.56 | AP69: 3787.74 | AQ69: 1131.63 | AR69: 27751.88 | AS69: 0 | AT69: 32004.42 | AU69: 12087.57 | AV69: 0 | AW69: 0 | AX69: 18531.57 | AY69: 0 | AZ69: 0 | BA69: -610759.5046 | BB69: -82139.27538 | BC69: 0 | BD69: -65166.34 | BE69: 0 | BF69: -84740 | BG69: 0 | BH69: -3337 | BI69: 0 | BJ69: -19917.13 | BK69: -416 | BL69: -377.17 | BM69: -2149.95 | BN69: -7313.43 | BO69: -821 | BP69: 0 | BQ69: 0 | BR69: 0 | BS69: -27935 | BT69: 0 | BU69: 0 | BV69: -4258.33 | BW69: -758065.12 | BX69: 0 | BY69: 0 | BZ69: 0 | CA69: 0 | CB69: 65166.34 | CC69: 0 | CD69: 65166.34
A70: 2321 | B70: Lydden Primary School | C70: 0 | D70: 75 | E70: 0 | F70: 4 | G70: No | H70: Primary | I70: 0-99 | J70: =IF(G70=Benchmarking!$I$4,1,0) -> 0 | K70: =IF(Benchmarking!$I$6="All",1,IF(Benchmarking!$I$6=H70,1,0)) -> 0 | L70: =IF(Benchmarking!$I$8="All",1,IF(Benchmarking!$I$8=I70,1,0)) -> 0 | M70: 0 | N70: 347426.44 | O70: 1120.15 | P70: 99174.74 | Q70: 10310.8 | R70: 27869.82 | S70: 0 | T70: 17302.2 | U70: 2117.66 | V70: 2928.05 | W70: 150.75 | X70: 2171.28 | Y70: 5703.52 | Z70: 3608.47 | AA70: 3777.02 | AB70: 3213.96 | AC70: 22695.9 | AD70: 19461 | AE70: 4212.85 | AF70: 30532.33 | AG70: 302.4 | AH70: 0 | AI70: 3890.25 | AJ70: 1123.56 | AK70: 0 | AL70: 0 | AM70: 7123.24 | AN70: 0 | AO70: 5590.24 | AP70: 2869.5 | AQ70: 2202.03 | AR70: 16407.13 | AS70: 1816.76 | AT70: 3600.5 | AU70: 8602.32 | AV70: 0 | AW70: 0 | AX70: 3488.07 | AY70: 0 | AZ70: 0 | BA70: -463662.702 | BB70: -48890.05796 | BC70: 0 | BD70: -41710.56 | BE70: 0 | BF70: -21810 | BG70: -3600 | BH70: -500 | BI70: -95 | BJ70: -17642.07 | BK70: 0 | BL70: 0 | BM70: -2973.64 | BN70: -6895.45 | BO70: -3379.18 | BP70: 0 | BQ70: 0 | BR70: 0 | BS70: -27870 | BT70: 0 | BU70: 0 | BV70: -518.33 | BW70: -554263.32 | BX70: 0 | BY70: 0 | BZ70: 0 | CA70: 0 | CB70: 37266.72 | CC70: 4443.84 | CD70: 41710.56
A71: 2322 | B71: Preston Primary School | C71: 0 | D71: 119 | E71: 0 | F71: 4.583333333 | G71: No | H71: Primary | I71: 100-199 | J71: =IF(G71=Benchmarking!$I$4,1,0) -> 0 | K71: =IF(Benchmarking!$I$6="All",1,IF(Benchmarking!$I$6=H71,1,0)) -> 0 | L71: =IF(Benchmarking!$I$8="All",1,IF(Benchmarking!$I$8=I71,1,0)) -> 0 | M71: 0 | N71: 428793.3 | O71: 3363.08 | P71: 170765.22 | Q71: 2636.31 | R71: 35186.94 | S71: 0 | T71: 24527.46 | U71: 3172.51 | V71: 3037.52 | W71: 239.19 | X71: 3445.08 | Y71: 2124.93 | Z71: 4320.47 | AA71: 18972.25 | AB71: 4045.34 | AC71: 11591.71 | AD71: 17714.5 | AE71: 5624.46 | AF71: 48868.4 | AG71: 3876 | AH71: 0 | AI71: 1277.9 | AJ71: 929.01 | AK71: 117.49 | AL71: 0 | AM71: 4734 | AN71: 0 | AO71: 3968.86 | AP71: 5082.16 | AQ71: 997.98 | AR71: 23613.16 | AS71: 0 | AT71: 0 | AU71: 6893.92 | AV71: 0 | AW71: 0 | AX71: 0 | AY71: 0 | AZ71: 0 | BA71: -622507.1779 | BB71: -67535.7021 | BC71: 0 | BD71: -32898.91 | BE71: 0 | BF71: -29110 | BG71: -5028.22 | BH71: -2950.97 | BI71: 0 | BJ71: -28852.44 | BK71: 0 | BL71: 0 | BM71: -1804.9 | BN71: -13009.9 | BO71: -5680.97 | BP71: 0 | BQ71: 0 | BR71: 0 | BS71: -36449 | BT71: 0 | BU71: 0 | BV71: -1300 | BW71: -722941.79 | BX71: 0 | BY71: 0 | BZ71: 0 | CA71: 0 | CB71: 32898.91 | CC71: 0 | CD71: 32898.91
A72: 2326 | B72: Wingham Primary School | C72: 0 | D72: 194 | E72: 0 | F72: 9.833333333 | G72: No | H72: Primary | I72: 100-199 | J72: =IF(G72=Benchmarking!$I$4,1,0) -> 0 | K72: =IF(Benchmarking!$I$6="All",1,IF(Benchmarking!$I$6=H72,1,0)) -> 0 | L72: =IF(Benchmarking!$I$8="All",1,IF(Benchmarking!$I$8=I72,1,0)) -> 0 | M72: 0 | N72: 618827.41 | O72: 10019.75 | P72: 259662.34 | Q72: 11535.82 | R72: 57773.97 | S72: 0 | T72: 52716.09 | U72: 5828.05 | V72: 3985.01 | W72: 389.94 | X72: 5616.36 | Y72: 5208.7 | Z72: 7869.42 | AA72: 36020.66 | AB72: 5482.7 | AC72: 25600.72 | AD72: 37128 | AE72: 12227.83 | AF72: 70021.23 | AG72: 3668.89 | AH72: 0 | AI72: 5572.95 | AJ72: 3978.07 | AK72: 9139 | AL72: 1876 | AM72: 4891 | AN72: 0 | AO72: 2895.03 | AP72: 8079 | AQ72: 4048.65 | AR72: 41257.63 | AS72: 0 | AT72: 623 | AU72: 13543.34 | AV72: 0 | AW72: 0 | AX72: 0 | AY72: 0 | AZ72: 0 | BA72: -923142.0953 | BB72: -102760.0347 | BC72: 0 | BD72: -106246.47 | BE72: 0 | BF72: -57170 | BG72: -3800 | BH72: -1205.93 | BI72: 0 | BJ72: -65324.28 | BK72: 0 | BL72: 0 | BM72: -2342.99 | BN72: -13511.64 | BO72: -3775.68 | BP72: 0 | BQ72: 0 | BR72: 0 | BS72: -50633 | BT72: 0 | BU72: 0 | BV72: -2865.63 | BW72: -1132148.6 | BX72: 0 | BY72: 0 | BZ72: 0 | CA72: 0 | CB72: 106246.47 | CC72: 0 | CD72: 106246.47
A73: 2328 | B73: St Mildreds Primary Infant School | C73: 0 | D73: 268 | E73: 0 | F73: 16.33333333 | G73: No | H73: Primary | I73: 200-299 | J73: =IF(G73=Benchmarking!$I$4,1,0) -> 0 | K73: =IF(Benchmarking!$I$6="All",1,IF(Benchmarking!$I$6=H73,1,0)) -> 0 | L73: =IF(Benchmarking!$I$8="All",1,IF(Benchmarking!$I$8=I73,1,0)) -> 0 | M73: 0 | N73: 793268.02 | O73: 0 | P73: 394877.96 | Q73: 79516.94 | R73: 94272.55 | S73: 50599.51 | T73: 48923.04 | U73: 717.22 | V73: 4836.6 | W73: 6015.6 | X73: 7758.6 | Y73: 15874.98 | Z73: 688.65 | AA73: 2398.17 | AB73: 5558.28 | AC73: 25312.95 | AD73: 34125 | AE73: 10442.51 | AF73: 39728.87 | AG73: 11617.18 | AH73: 0 | AI73: 7289 | AJ73: 10409.64 | AK73: 2297.91 | AL73: 4912.9 | AM73: 0 | AN73: 0 | AO73: 18962.11 | AP73: 10253.64 | AQ73: 4063.1 | AR73: 69435.09 | AS73: 25041.88 | AT73: 5015.83 | AU73: 47517.23 | AV73: 0 | AW73: 0 | AX73: 4385.77 | AY73: 0 | AZ73: 0 | BA73: -1207393.828 | BB73: -197031.9924 | BC73: 0 | BD73: -93632.75 | BE73: 0 | BF73: -73610 | BG73: 0 | BH73: -25282.57 | BI73: -973.8 | BJ73: -53317.33 | BK73: -3095.87 | BL73: -1496 | BM73: -21442.61 | BN73: -7947.39 | BO73: -7557.93 | BP73: 0 | BQ73: 0 | BR73: 0 | BS73: -110704 | BT73: 0 | BU73: 0 | BV73: -4946.88 | BW73: -1498058.57 | BX73: 0 | BY73: 0 | BZ73: 0 | CA73: 0 | CB73: 93632.75 | CC73: 0 | CD73: 93632.75
A74: 2329 | B74: Callis Grange Nursery & Infant School | C74: 25 | D74: 255 | E74: 0 | F74: 5.583333333 | G74: Yes | H74: Primary | I74: 200-299 | J74: =IF(G74=Benchmarking!$I$4,1,0) -> 0 | K74: =IF(Benchmarking!$I$6="All",1,IF(Benchmarking!$I$6=H74,1,0)) -> 0 | L74: =IF(Benchmarking!$I$8="All",1,IF(Benchmarking!$I$8=I74,1,0)) -> 0 | M74: 0 | N74: 803746.7 | O74: 0 | P74: 342190.88 | Q74: 42257.6 | R74: 89803.58 | S74: 0 | T74: 33535.07 | U74: 5852.76 | V74: 5178.17 | W74: 5780.26 | X74: 7455.84 | Y74: 5970.69 | Z74: 4379.28 | AA74: 58292.79 | AB74: 0 | AC74: 28153.42 | AD74: 52962 | AE74: 11298.49 | AF74: 31795.93 | AG74: 8123.89 | AH74: 0 | AI74: 3738.96 | AJ74: 8466.27 | AK74: 179.25 | AL74: 236.2 | AM74: 14495.5 | AN74: 0 | AO74: 14082.6 | AP74: 10050.66 | AQ74: 866.39 | AR74: 79282.35 | AS74: 0 | AT74: 4955.83 | AU74: 32403.85 | AV74: 0 | AW74: 0 | AX74: 20000 | AY74: 0 | AZ74: 0 | BA74: -1294952.107 | BB74: -167817.9133 | BC74: 0 | BD74: -51643.49 | BE74: 0 | BF74: -96210 | BG74: -2600 | BH74: -11876.04 | BI74: -1001.84 | BJ74: -24006.34 | BK74: -69 | BL74: 0 | BM74: 0 | BN74: 0 | BO74: -157.5 | BP74: 0 | BQ74: 0 | BR74: 0 | BS74: -95976 | BT74: 0 | BU74: 0 | BV74: -5188.55 | BW74: -1514413.51 | BX74: 0 | BY74: 0 | BZ74: 0 | CA74: 0 | CB74: 51643.49 | CC74: 0 | CD74: 51643.49
A75: 2337 | B75: St Crispins Community Primary Infant School | C75: 0 | D75: 243 | E75: 0 | F75: 11.58333333 | G75: No | H75: Primary | I75: 200-299 | J75: =IF(G75=Benchmarking!$I$4,1,0) -> 0 | K75: =IF(Benchmarking!$I$6="All",1,IF(Benchmarking!$I$6=H75,1,0)) -> 0 | L75: =IF(Benchmarking!$I$8="All",1,IF(Benchmarking!$I$8=I75,1,0)) -> 0 | M75: 0 | N75: 735516.05 | O75: 14418.11 | P75: 325394.68 | Q75: 60857.54 | R75: 76314.23 | S75: 0 | T75: 125663.54 | U75: 29089.34 | V75: 5154.58 | W75: 5862.62 | X75: 8530.88 | Y75: 19043.79 | Z75: 2800.04 | AA75: 2028.56 | AB75: 5178 | AC75: 32705.61 | AD75: 23577.75 | AE75: 8966.07 | AF75: 31647.85 | AG75: 5476.17 | AH75: 0 | AI75: 5390.25 | AJ75: 10520.48 | AK75: 0 | AL75: 1460.36 | AM75: 7774.25 | AN75: 0 | AO75: 2629.65 | AP75: 9297.18 | AQ75: 13764.74 | AR75: 79298.61 | AS75: 3323 | AT75: 1000 | AU75: 26413.75 | AV75: 0 | AW75: 0 | AX75: 0 | AY75: 0 | AZ75: 0 | BA75: -1094428.784 | BB75: -219545.6861 | BC75: 0 | BD75: -126412.84 | BE75: -6750 | BF75: -90870 | BG75: -5942.57 | BH75: -25205.96 | BI75: 0 | BJ75: -45113.86 | BK75: -1328.6 | BL75: -600 | BM75: -25570.8 | BN75: -721 | BO75: -5146.69 | BP75: 0 | BQ75: 0 | BR75: 0 | BS75: -74973 | BT75: 0 | BU75: 0 | BV75: -1724.8 | BW75: -1440387.31 | BX75: 0 | BY75: 0 | BZ75: 0 | CA75: 0 | CB75: 126412.84 | CC75: 0 | CD75: 126412.84
A76: 2340 | B76: Ellington Infant School | C76: 0 | D76: 145 | E76: 0 | F76: 9.75 | G76: No | H76: Primary | I76: 100-199 | J76: =IF(G76=Benchmarking!$I$4,1,0) -> 0 | K76: =IF(Benchmarking!$I$6="All",1,IF(Benchmarking!$I$6=H76,1,0)) -> 0 | L76: =IF(Benchmarking!$I$8="All",1,IF(Benchmarking!$I$8=I76,1,0)) -> 0 | M76: 0 | N76: 486703.92 | O76: 0 | P76: 243235 | Q76: 51060.36 | R76: 70745.75 | S76: 0 | T76: 56438.2 | U76: 3947.85 | V76: 5579 | W76: 291.45 | X76: 4197.72 | Y76: 7341.56 | Z76: 2628 | AA76: 3265.58 | AB76: 4048.7 | AC76: 31430.89 | AD76: 19336.25 | AE76: 2525.19 | AF76: 35788.23 | AG76: 0 | AH76: 0 | AI76: 1650.6 | AJ76: 2112.28 | AK76: 0 | AL76: 0 | AM76: 285 | AN76: 0 | AO76: 10423.52 | AP76: 5547.66 | AQ76: 12700.34 | AR76: 67163.01 | AS76: 0 | AT76: 14938.2 | AU76: 20578.54 | AV76: 0 | AW76: 0 | AX76: 0 | AY76: 0 | AZ76: 0 | BA76: -764139.2423 | BB76: -176163.7877 | BC76: 0 | BD76: -109176.33 | BE76: 0 | BF76: -111025 | BG76: -6971.29 | BH76: 0 | BI76: -633.93 | BJ76: -30689.8 | BK76: -2580.4 | BL76: -3214.34 | BM76: -275.58 | BN76: -3642.36 | BO76: 0 | BP76: 0 | BQ76: 0 | BR76: 0 | BS76: -41510 | BT76: 0 | BU76: 0 | BV76: -2795.52 | BW76: -1049479.36 | BX76: 0 | BY76: 0 | BZ76: 0 | CA76: 0 | CB76: 109176.33 | CC76: 0 | CD76: 109176.33
A77: 2345 | B77: Priory Infant School | C77: 0 | D77: 136 | E77: 0 | F77: 14.91666667 | G77: No | H77: Primary | I77: 100-199 | J77: =IF(G77=Benchmarking!$I$4,1,0) -> 0 | K77: =IF(Benchmarking!$I$6="All",1,IF(Benchmarking!$I$6=H77,1,0)) -> 0 | L77: =IF(Benchmarking!$I$8="All",1,IF(Benchmarking!$I$8=I77,1,0)) -> 0 | M77: 0 | N77: 493629.79 | O77: 5733.69 | P77: 314690.68 | Q77: 56189.19 | R77: 34147.29 | S77: 0 | T77: 78253.27 | U77: 5826.13 | V77: 1943 | W77: 273.36 | X77: 3937.2 | Y77: 2822.75 | Z77: 4792.63 | AA77: 856.09 | AB77: 1710.9 | AC77: 19525.3 | AD77: 37128 | AE77: 11501.52 | AF77: 12157.21 | AG77: 5504 | AH77: 0 | AI77: 3258.5 | AJ77: 5432.51 | AK77: 264.32 | AL77: 20 | AM77: 4673.09 | AN77: 0 | AO77: 11202.4 | AP77: 5203.32 | AQ77: 11610.07 | AR77: 58841.01 | AS77: 6208.39 | AT77: 41993.8 | AU77: 29629.68 | AV77: 0 | AW77: 0 | AX77: 0 | AY77: 0 | AZ77: 0 | BA77: -776326.4281 | BB77: -171144.6719 | BC77: 0 | BD77: -119036.21 | BE77: 0 | BF77: -96418.39 | BG77: -200 | BH77: -1780.1 | BI77: 0 | BJ77: -17993.42 | BK77: -78.8 | BL77: 0 | BM77: 0 | BN77: -171 | BO77: -1202.48 | BP77: 0 | BQ77: 0 | BR77: 0 | BS77: -48687 | BT77: 0 | BU77: 0 | BV77: -1684.8 | BW77: -1066507.31 | BX77: 0 | BY77: 0 | BZ77: 0 | CA77: 0 | CB77: 119036.21 | CC77: 0 | CD77: 119036.21
A78: 2431 | B78: Shears Green Junior School | C78: 0 | D78: 496 | E78: 0 | F78: 13 | G78: No | H78: Primary | I78: 400-499 | J78: =IF(G78=Benchmarking!$I$4,1,0) -> 0 | K78: =IF(Benchmarking!$I$6="All",1,IF(Benchmarking!$I$6=H78,1,0)) -> 0 | L78: =IF(Benchmarking!$I$8="All",1,IF(Benchmarking!$I$8=I78,1,0)) -> 0 | M78: 0 | N78: 1404520.99 | O78: 0 | P78: 629667.27 | Q78: 80429.94 | R78: 148972.31 | S78: 50127.24 | T78: 115271.87 | U78: 1080.99 | V78: 13814.52 | W78: 996.96 | X78: 14359.2 | Y78: 77253.64 | Z78: 20669.73 | AA78: 55199.37 | AB78: 10727.68 | AC78: 37798.61 | AD78: 7014 | AE78: 10555.36 | AF78: 127515.48 | AG78: 15177.61 | AH78: 0 | AI78: 9910.95 | AJ78: 24629.21 | AK78: 0 | AL78: 4942.46 | AM78: 1098 | AN78: 0 | AO78: 9534.93 | AP78: 19120.84 | AQ78: 560.88 | AR78: 36771.81 | AS78: 0 | AT78: 38184.18 | AU78: 33691.08 | AV78: 0 | AW78: 0 | AX78: 59951.92 | AY78: 0 | AZ78: 0 | BA78: -2112613.821 | BB78: -322511.9689 | BC78: 0 | BD78: -109225.9 | BE78: 0 | BF78: -219040 | BG78: -400 | BH78: -14229.66 | BI78: -7034.33 | BJ78: -25570.04 | BK78: -58312.97 | BL78: 0 | BM78: -10321.29 | BN78: -25000 | BO78: -72782.53 | BP78: 0 | BQ78: 0 | BR78: 0 | BS78: -20871 | BT78: 0 | BU78: 0 | BV78: -11506.25 | BW78: -2544351.69 | BX78: 0 | BY78: 0 | BZ78: 0 | CA78: 0 | CB78: 109225.9 | CC78: 0 | CD78: 109225.9
A79: 2434 | B79: West Minster Primary School | C79: 22 | D79: 459 | E79: 12.5 | F79: 14.33333333 | G79: Yes | H79: Primary | I79: 400-499 | J79: =IF(G79=Benchmarking!$I$4,1,0) -> 0 | K79: =IF(Benchmarking!$I$6="All",1,IF(Benchmarking!$I$6=H79,1,0)) -> 0 | L79: =IF(Benchmarking!$I$8="All",1,IF(Benchmarking!$I$8=I79,1,0)) -> 0 | M79: 0 | N79: 1508165.03 | O79: 0 | P79: 824550.57 | Q79: 161687.7 | R79: 227225.97 | S79: 0 | T79: 164365.48 | U79: 12414.7 | V79: 13122.93 | W79: 922.59 | X79: 13366.06 | Y79: 26547.12 | Z79: 5788.13 | AA79: 14719.51 | AB79: 17043 | AC79: 56539.66 | AD79: 104286 | AE79: 24798.27 | AF79: 173652.18 | AG79: 5715 | AH79: 0 | AI79: 21781.38 | AJ79: 16226.31 | AK79: 13332.4 | AL79: 3987.8 | AM79: 2378.25 | AN79: 0 | AO79: 24339.47 | AP79: 18618.9 | AQ79: 0 | AR79: 119919.65 | AS79: 96710.53 | AT79: 16332.46 | AU79: 133779 | AV79: 0 | AW79: 0 | AX79: 0 | AY79: 0 | AZ79: 0 | BA79: -2381245.101 | BB79: -560105.289 | BC79: -188003 | BD79: -118003.41 | BE79: 0 | BF79: -448370 | BG79: -5085.64 | BH79: -11583.34 | BI79: -1050 | BJ79: -21741.08 | BK79: 0 | BL79: 0 | BM79: -12319.77 | BN79: -2045 | BO79: -3790.52 | BP79: 0 | BQ79: 0 | BR79: 0 | BS79: -38040 | BT79: 0 | BU79: 0 | BV79: -13367.42 | BW79: -3247356.8 | BX79: 20000 | BY79: 114000 | BZ79: 54003 | CA79: 188003 | CB79: 118003.41 | CC79: 0 | CD79: 118003.41
A80: 2454 | B80: Aycliffe Community Primary School | C80: 0 | D80: 89 | E80: 0 | F80: 14.91666667 | G80: No | H80: Primary | I80: 0-99 | J80: =IF(G80=Benchmarking!$I$4,1,0) -> 0 | K80: =IF(Benchmarking!$I$6="All",1,IF(Benchmarking!$I$6=H80,1,0)) -> 0 | L80: =IF(Benchmarking!$I$8="All",1,IF(Benchmarking!$I$8=I80,1,0)) -> 0 | M80: 0 | N80: 411660.24 | O80: 4526.54 | P80: 284509.31 | Q80: 35081.48 | R80: 52121.01 | S80: 0 | T80: 10098.71 | U80: 3466.32 | V80: 4223 | W80: 6367.19 | X80: 3361.64 | Y80: 7289.64 | Z80: 12813 | AA80: 2431.94 | AB80: 1859.15 | AC80: 31182.7 | AD80: 24451 | AE80: 4845.22 | AF80: 18552.44 | AG80: 5290 | AH80: 0 | AI80: 2219.16 | AJ80: 2738.75 | AK80: 0 | AL80: 4164.8 | AM80: 8528.25 | AN80: 0 | AO80: 1994.11 | AP80: 3405.18 | AQ80: 1135.77 | AR80: 27976.12 | AS80: 378 | AT80: 17505.52 | AU80: 8243.04 | AV80: 0 | AW80: 0 | AX80: 0 | AY80: 0 | AZ80: 0 | BA80: -615346.7765 | BB80: -116677.2935 | BC80: 0 | BD80: -137379.35 | BE80: 0 | BF80: -86930 | BG80: -1600 | BH80: -2003.57 | BI80: 0 | BJ80: -18768.94 | BK80: 0 | BL80: -2761.72 | BM80: -11278.48 | BN80: -2766.5 | BO80: -24.08 | BP80: 0 | BQ80: 0 | BR80: 0 | BS80: -26437 | BT80: 0 | BU80: 0 | BV80: -1296.46 | BW80: -869403.42 | BX80: 0 | BY80: 0 | BZ80: 0 | CA80: 0 | CB80: 137379.35 | CC80: 0 | CD80: 137379.35
A81: 2459 | B81: Riverhead Infant School | C81: 0 | D81: 268 | E81: 0 | F81: 8.666666667 | G81: No | H81: Primary | I81: 200-299 | J81: =IF(G81=Benchmarking!$I$4,1,0) -> 0 | K81: =IF(Benchmarking!$I$6="All",1,IF(Benchmarking!$I$6=H81,1,0)) -> 0 | L81: =IF(Benchmarking!$I$8="All",1,IF(Benchmarking!$I$8=I81,1,0)) -> 0 | M81: 0 | N81: 896364.27 | O81: 0 | P81: 404937.74 | Q81: 0 | R81: 102738.16 | S81: 80629.68 | T81: 106920.5 | U81: 6945.47 | V81: 7447.37 | W81: 558.88 | X81: 7758.6 | Y81: 2672.4 | Z81: 4382.26 | AA81: 39170.02 | AB81: 5333.51 | AC81: 31607.81 | AD81: 38912 | AE81: 14683.32 | AF81: 38041.46 | AG81: 3323 | AH81: 0 | AI81: 3123.5 | AJ81: 3486.06 | AK81: 1064 | AL81: 1535.67 | AM81: 8898.85 | AN81: 0 | AO81: 13373.5 | AP81: 10453.23 | AQ81: 22981 | AR81: 56236.09 | AS81: 0 | AT81: 7085 | AU81: 40592.69 | AV81: 0 | AW81: 0 | AX81: 0 | AY81: 0 | AZ81: 0 | BA81: -1198052.823 | BB81: -135338.8571 | BC81: 0 | BD81: -85577.22 | BE81: 0 | BF81: -26950 | BG81: -2500 | BH81: -27882.42 | BI81: -10353.5 | BJ81: -242679.51 | BK81: -39167.85 | BL81: 0 | BM81: 0 | BN81: -10367.66 | BO81: -49997.39 | BP81: 0 | BQ81: 0 | BR81: 0 | BS81: -138183 | BT81: 0 | BU81: 0 | BV81: -439.58 | BW81: -1418968.9 | BX81: 0 | BY81: 0 | BZ81: 0 | CA81: 0 | CB81: 85577.22 | CC81: 0 | CD81: 85577.22
A82: 2465 | B82: Claremont Primary School | C82: 0 | D82: 437 | E82: 0 | F82: 7.333333333 | G82: No | H82: Primary | I82: 400-499 | J82: =IF(G82=Benchmarking!$I$4,1,0) -> 0 | K82: =IF(Benchmarking!$I$6="All",1,IF(Benchmarking!$I$6=H82,1,0)) -> 0 | L82: =IF(Benchmarking!$I$8="All",1,IF(Benchmarking!$I$8=I82,1,0)) -> 0 | M82: 0 | N82: 1330301.08 | O82: 6723.8 | P82: 456194.86 | Q82: 53507.03 | R82: 134111.39 | S82: 0 | T82: 52508.64 | U82: 9148.62 | V82: 5109.11 | W82: 9296.78 | X82: 12651.24 | Y82: 12987.02 | Z82: 13268.24 | AA82: 32874.74 | AB82: 6259.75 | AC82: 33716.45 | AD82: 41496 | AE82: 11675.43 | AF82: 123818.5 | AG82: 4008 | AH82: 420 | AI82: 297.99 | AJ82: 7573.1 | AK82: 1512.38 | AL82: 785.1 | AM82: 9421.26 | AN82: 0 | AO82: 11996.32 | AP82: 16719.66 | AQ82: 522.44 | AR82: 87001.21 | AS82: 16766.86 | AT82: 19538.34 | AU82: 22394.24 | AV82: 0 | AW82: 0 | AX82: 27540 | AY82: 0 | AZ82: 0 | BA82: -1878765.951 | BB82: -262025.1887 | BC82: 0 | BD82: -72494.51 | BE82: 0 | BF82: -21030 | BG82: 0 | BH82: -33129.31 | BI82: -19466.09 | BJ82: -23864.06 | BK82: 0 | BL82: 0 | BM82: -185.7 | BN82: -59165.91 | BO82: -43332.91 | BP82: 0 | BQ82: 0 | BR82: 0 | BS82: -96429 | BT82: 0 | BU82: 0 | BV82: -1505.21 | BW82: -2213285.65 | BX82: 0 | BY82: 0 | BZ82: 0 | CA82: 0 | CB82: 72494.51 | CC82: 0 | CD82: 72494.51
A83: 2471 | B83: Whitfield Aspen School | C83: 1 | D83: 609 | E83: 177.4 | F83: 11.58333333 | G83: Yes | H83: Infant | I83: 500+ | J83: =IF(G83=Benchmarking!$I$4,1,0) -> 0 | K83: =IF(Benchmarking!$I$6="All",1,IF(Benchmarking!$I$6=H83,1,0)) -> 0 | L83: =IF(Benchmarking!$I$8="All",1,IF(Benchmarking!$I$8=I83,1,0)) -> 0 | M83: 0 | N83: 3003160.93 | O83: 154637.28 | P83: 2687539.59 | Q83: 232814.1 | R83: 276408.86 | S83: 0 | T83: 82909.2 | U83: 35306.03 | V83: 15754.86 | W83: 1224.09 | X83: 18140.52 | Y83: 34572.72 | Z83: 4198.5 | AA83: 5833.96 | AB83: 17042.72 | AC83: 136913.31 | AD83: 206934 | AE83: 47051.44 | AF83: 323909.62 | AG83: 11695.91 | AH83: 0 | AI83: 4707.2 | AJ83: 12083.24 | AK83: 40119.57 | AL83: 2087.25 | AM83: 22802.67 | AN83: 0 | AO83: 14120.45 | AP83: 25340.34 | AQ83: 4156.03 | AR83: 136111.76 | AS83: 69370.5 | AT83: 700 | AU83: 55096.34 | AV83: 0 | AW83: 0 | AX83: 20000 | AY83: 0 | AZ83: 1667.11 | BA83: -3052056.672 | BB83: -672744.1476 | BC83: -2785177.05 | BD83: -115420.23 | BE83: 0 | BF83: -327358.8 | BG83: -5856.93 | BH83: -24545.85 | BI83: -1937 | BJ83: -657355.44 | BK83: -3320.7 | BL83: 0 | BM83: -6767.33 | BN83: -36218.93 | BO83: -3580.89 | BP83: 0 | BQ83: 0 | BR83: 0 | BS83: -69911.93 | BT83: 0 | BU83: 0 | BV83: -35144.38 | BW83: -6625398.1 | BX83: 0 | BY83: 990000 | BZ83: 1795177.05 | CA83: 2785177.05 | CB83: 115420.23 | CC83: 0 | CD83: 115420.23
A84: 2474 | B84: St Pauls Infant School, Maidstone | C84: 0 | D84: 261 | E84: 0 | F84: 21.16666667 | G84: No | H84: Infant | I84: 200-299 | J84: =IF(G84=Benchmarking!$I$4,1,0) -> 0 | K84: =IF(Benchmarking!$I$6="All",1,IF(Benchmarking!$I$6=H84,1,0)) -> 0 | L84: =IF(Benchmarking!$I$8="All",1,IF(Benchmarking!$I$8=I84,1,0)) -> 0 | M84: 0 | N84: 845369.57 | O84: 0 | P84: 401420.34 | Q84: 19577.12 | R84: 88270.74 | S84: 0 | T84: 62660.28 | U84: 6630.16 | V84: 10130.91 | W84: 8085.88 | X84: 7555.92 | Y84: 8848.11 | Z84: 12142 | AA84: 28860.25 | AB84: 5394.13 | AC84: 32954.95 | AD84: 16498.19 | AE84: 11680.65 | AF84: 59562.24 | AG84: 9312.6 | AH84: 0 | AI84: 5495.03 | AJ84: 17008.62 | AK84: 34.57 | AL84: 1440.62 | AM84: 7211.61 | AN84: 0 | AO84: 9464.18 | AP84: 9985.86 | AQ84: 0 | AR84: 90988.92 | AS84: 0 | AT84: 6923.14 | AU84: 81173.1 | AV84: 0 | AW84: 0 | AX84: 90000 | AY84: 0 | AZ84: 0 | BA84: -1209736.189 | BB84: -252471.8609 | BC84: 0 | BD84: -175904.66 | BE84: -4500 | BF84: -111540 | BG84: -685.64 | BH84: 0 | BI84: 0 | BJ84: -7751.43 | BK84: -135.95 | BL84: 0 | BM84: -2207.41 | BN84: 0 | BO84: 0 | BP84: 0 | BQ84: 0 | BR84: 0 | BS84: -89592.03 | BT84: 0 | BU84: 0 | BV84: -2265.83 | BW84: -1638112.71 | BX84: 0 | BY84: 0 | BZ84: 0 | CA84: 0 | CB84: 175904.66 | CC84: 0 | CD84: 175904.66
A85: 2482 | B85: Langton Green Primary School | C85: 0 | D85: 414 | E85: 0 | F85: 14.25 | G85: No | H85: Infant | I85: 400-499 | J85: =IF(G85=Benchmarking!$I$4,1,0) -> 0 | K85: =IF(Benchmarking!$I$6="All",1,IF(Benchmarking!$I$6=H85,1,0)) -> 0 | L85: =IF(Benchmarking!$I$8="All",1,IF(Benchmarking!$I$8=I85,1,0)) -> 0 | M85: 0 | N85: 1265891.6 | O85: 3656.07 | P85: 427030.28 | Q85: 39505.62 | R85: 136529.26 | S85: 0 | T85: 77949.77 | U85: 10596.47 | V85: 7077.6 | W85: 8835.34 | X85: 11985.36 | Y85: 92904.98 | Z85: 20200.16 | AA85: 39072.52 | AB85: 8925.48 | AC85: 34118.17 | AD85: 47502 | AE85: 15978.52 | AF85: 117430.51 | AG85: 11293.1 | AH85: 0 | AI85: 6645.99 | AJ85: 9560.99 | AK85: 2633 | AL85: 899.63 | AM85: 12777.95 | AN85: 0 | AO85: 5826.78 | AP85: 15839.64 | AQ85: 0 | AR85: 84076.33 | AS85: 34057.76 | AT85: 50306.98 | AU85: 18965.12 | AV85: 0 | AW85: 0 | AX85: 0 | AY85: 0 | AZ85: 0 | BA85: -1788977.261 | BB85: -250286.8786 | BC85: 0 | BD85: -132477.38 | BE85: 0 | BF85: -44230.2 | BG85: -6600 | BH85: -68623.59 | BI85: -5725 | BJ85: -713.74 | BK85: 0 | BL85: -8190 | BM85: -40053.05 | BN85: 0 | BO85: -51048.86 | BP85: 0 | BQ85: 0 | BR85: 0 | BS85: -95723 | BT85: 0 | BU85: 0 | BV85: -565.42 | BW85: -2171741.52 | BX85: 0 | BY85: 0 | BZ85: 0 | CA85: 0 | CB85: 132477.38 | CC85: 0 | CD85: 132477.38
A86: 2490 | B86: Bishops Down Primary School | C86: 15 | D86: 203 | E86: 6 | F86: 8 | G86: Yes | H86: Infant | I86: 200-299 | J86: =IF(G86=Benchmarking!$I$4,1,0) -> 0 | K86: =IF(Benchmarking!$I$6="All",1,IF(Benchmarking!$I$6=H86,1,0)) -> 0 | L86: =IF(Benchmarking!$I$8="All",1,IF(Benchmarking!$I$8=I86,1,0)) -> 0 | M86: 0 | N86: 619403.81 | O86: 0 | P86: 330723.92 | Q86: 26964.17 | R86: 77326.79 | S86: 0 | T86: 75965.27 | U86: 27774.27 | V86: 11787.36 | W86: 18057.44 | X86: 6022.2 | Y86: 7478.82 | Z86: 5286.2 | AA86: 29296.99 | AB86: 12843.55 | AC86: 27041.71 | AD86: 37128 | AE86: 21222.54 | AF86: 55035.05 | AG86: 4388 | AH86: 0 | AI86: 9028.47 | AJ86: 16708.63 | AK86: 1138.27 | AL86: 0 | AM86: 3085.32 | AN86: 0 | AO86: 3859.11 | AP86: 8153.22 | AQ86: 4918.68 | AR86: 35905.7 | AS86: 48240.37 | AT86: 14654.87 | AU86: 18923.54 | AV86: 0 | AW86: 0 | AX86: 0 | AY86: 0 | AZ86: 0 | BA86: -1035663.948 | BB86: -139140.7121 | BC86: -133540.4 | BD86: -86871.16 | BE86: 0 | BF86: -42530 | BG86: -5856.93 | BH86: -14232.64 | BI86: -6503.51 | BJ86: -126508.63 | BK86: 0 | BL86: -13280 | BM86: -9416.13 | BN86: -14633.04 | BO86: -9140.11 | BP86: 0 | BQ86: 0 | BR86: 0 | BS86: -46798 | BT86: 0 | BU86: 0 | BV86: -1182.81 | BW86: -1395216.22 | BX86: 8000 | BY86: 42000 | BZ86: 83540.4 | CA86: 133540.4 | CB86: 86871.16 | CC86: 0 | CD86: 86871.16
A87: 2509 | B87: Singlewell Primary School | C87: 0 | D87: 395 | E87: 0 | F87: 4 | G87: No | H87: Infant | I87: 300-399 | J87: =IF(G87=Benchmarking!$I$4,1,0) -> 0 | K87: =IF(Benchmarking!$I$6="All",1,IF(Benchmarking!$I$6=H87,1,0)) -> 0 | L87: =IF(Benchmarking!$I$8="All",1,IF(Benchmarking!$I$8=I87,1,0)) -> 0 | M87: 0 | N87: 1233103.18 | O87: 607.26 | P87: 377819.79 | Q87: 54976.51 | R87: 85216.76 | S87: 0 | T87: 71541.63 | U87: 7297.88 | V87: 8672.11 | W87: 12743.1 | X87: 11435.28 | Y87: 6430.1 | Z87: 5685.98 | AA87: 28082.23 | AB87: 5190.77 | AC87: 34291.89 | AD87: 60606 | AE87: 18280.46 | AF87: 57754.57 | AG87: 6961.14 | AH87: 0 | AI87: 10131.13 | AJ87: 10036.62 | AK87: 124.29 | AL87: 816.71 | AM87: 4601.04 | AN87: 0 | AO87: 7464.03 | AP87: 15112.74 | AQ87: 2366.12 | AR87: 73891.17 | AS87: 15511 | AT87: 29127.18 | AU87: 30549.09 | AV87: 0 | AW87: 0 | AX87: 6385.38 | AY87: 0 | AZ87: 0 | BA87: -1707990.481 | BB87: -271682.889 | BC87: 0 | BD87: -27297.35 | BE87: 0 | BF87: -117620 | BG87: -3571.29 | BH87: -1620 | BI87: 0 | BJ87: -86263.71 | BK87: 0 | BL87: -1850 | BM87: -18729.74 | BN87: -16799.89 | BO87: -15022.91 | BP87: 0 | BQ87: 0 | BR87: 0 | BS87: -82974 | BT87: 0 | BU87: 0 | BV87: -6966.67 | BW87: -2006970.72 | BX87: 0 | BY87: 0 | BZ87: 0 | CA87: 0 | CB87: 27297.35 | CC87: 0 | CD87: 27297.35
A88: 2510 | B88: Cheriton Primary School | C88: 0 | D88: 387 | E88: 0 | F88: 14.16666667 | G88: No | H88: Junior | I88: 300-399 | J88: =IF(G88=Benchmarking!$I$4,1,0) -> 0 | K88: =IF(Benchmarking!$I$6="All",1,IF(Benchmarking!$I$6=H88,1,0)) -> 0 | L88: =IF(Benchmarking!$I$8="All",1,IF(Benchmarking!$I$8=I88,1,0)) -> 0 | M88: 0 | N88: 1331028.94 | O88: 1649.79 | P88: 489508.2 | Q88: 76609.57 | R88: 61631.05 | S88: 0 | T88: 96383.26 | U88: 2556.3 | V88: 13658.86 | W88: 777.87 | X88: 19849.28 | Y88: 16173.05 | Z88: 9180 | AA88: 3804.11 | AB88: 4418.74 | AC88: 41664.83 | AD88: 7043 | AE88: 33502.74 | AF88: 72118.62 | AG88: 2642.53 | AH88: 0 | AI88: 15018.37 | AJ88: 12483.23 | AK88: 0 | AL88: 337.35 | AM88: 0 | AN88: 0 | AO88: 6114.11 | AP88: 14806.62 | AQ88: 8319.75 | AR88: 112672.7 | AS88: 42238.26 | AT88: 17519.62 | AU88: 27035.86 | AV88: 0 | AW88: 0 | AX88: 5174 | AY88: 0 | AZ88: 0 | BA88: -1684860.539 | BB88: -320358.7413 | BC88: 0 | BD88: -144422.67 | BE88: 0 | BF88: -184430 | BG88: -34471.29 | BH88: -3792.92 | BI88: -870 | BJ88: -36849.35 | BK88: -32041.12 | BL88: 0 | BM88: -0.45 | BN88: -13027.19 | BO88: -11778.33 | BP88: 0 | BQ88: 0 | BR88: 0 | BS88: -79386.5 | BT88: 0 | BU88: 0 | BV88: -8419.8 | BW88: -2149641.95 | BX88: 0 | BY88: 0 | BZ88: 0 | CA88: 0 | CB88: 144422.67 | CC88: 0 | CD88: 144422.67
A89: 2514 | B89: Brookfield Infant School | C89: 0 | D89: 180 | E89: 0 | F89: 4.583333333 | G89: No | H89: Primary | I89: 100-199 | J89: =IF(G89=Benchmarking!$I$4,1,0) -> 0 | K89: =IF(Benchmarking!$I$6="All",1,IF(Benchmarking!$I$6=H89,1,0)) -> 0 | L89: =IF(Benchmarking!$I$8="All",1,IF(Benchmarking!$I$8=I89,1,0)) -> 0 | M89: 0 | N89: 521931.34 | O89: 2813.36 | P89: 321421.56 | Q89: 11178.25 | R89: 59796.89 | S89: 82687.21 | T89: 41209.49 | U89: 6924.24 | V89: 1686 | W89: 2999.44 | X89: 5211 | Y89: 6362.7 | Z89: 15361.48 | AA89: 35040.28 | AB89: 1974 | AC89: 23812.97 | AD89: 20459 | AE89: 6179.77 | AF89: 32096.46 | AG89: 2531 | AH89: 0 | AI89: 240.86 | AJ89: 5258.85 | AK89: 1693.28 | AL89: 0 | AM89: 4040.78 | AN89: 0 | AO89: 16406.95 | AP89: 6886.8 | AQ89: 74798.49 | AR89: 65168.42 | AS89: 0 | AT89: 8416.8 | AU89: 15101.54 | AV89: 0 | AW89: 0 | AX89: 0 | AY89: 0 | AZ89: 0 | BA89: -843861.9366 | BB89: -126789.2434 | BC89: 0 | BD89: -52655.08 | BE89: 0 | BF89: -56470 | BG89: -3856.93 | BH89: -3842 | BI89: 0 | BJ89: -129280.17 | BK89: -64402.5 | BL89: 0 | BM89: 0 | BN89: -3662 | BO89: -33320.47 | BP89: 0 | BQ89: 0 | BR89: 0 | BS89: -80521 | BT89: 0 | BU89: 0 | BV89: -2668.75 | BW89: -1023306.26 | BX89: 0 | BY89: 0 | BZ89: 0 | CA89: 0 | CB89: 52655.08 | CC89: 0 | CD89: 52655.08
A90: 2519 | B90: Vigo Village School | C90: 0 | D90: 123 | E90: 0 | F90: 2.583333333 | G90: No | H90: Primary | I90: 100-199 | J90: =IF(G90=Benchmarking!$I$4,1,0) -> 0 | K90: =IF(Benchmarking!$I$6="All",1,IF(Benchmarking!$I$6=H90,1,0)) -> 0 | L90: =IF(Benchmarking!$I$8="All",1,IF(Benchmarking!$I$8=I90,1,0)) -> 0 | M90: 0 | N90: 436326.29 | O90: 0 | P90: 131728.09 | Q90: 30440.42 | R90: 53900.39 | S90: 0 | T90: 44609.81 | U90: 2610.94 | V90: 4295.82 | W90: 247.23 | X90: 3560.88 | Y90: 12842.6 | Z90: 4515.6 | AA90: 3902.46 | AB90: 4680 | AC90: 24387.41 | AD90: 20958 | AE90: 5517.83 | AF90: 33314 | AG90: 4243 | AH90: 0 | AI90: 2529.8 | AJ90: 8728.03 | AK90: 1374.84 | AL90: 0 | AM90: 1892.25 | AN90: 0 | AO90: 7676.25 | AP90: 4705.98 | AQ90: 0 | AR90: 24505.38 | AS90: 0 | AT90: 6301 | AU90: 29362.4 | AV90: 0 | AW90: 0 | AX90: 0 | AY90: 0 | AZ90: 0 | BA90: -644969.2212 | BB90: -79209.44879 | BC90: 0 | BD90: -14766.61 | BE90: 0 | BF90: -32170 | BG90: 0 | BH90: -10018.32 | BI90: -747.16 | BJ90: -27034.47 | BK90: 0 | BL90: 0 | BM90: 0 | BN90: -9606.75 | BO90: -5115 | BP90: 0 | BQ90: 0 | BR90: 0 | BS90: -31817 | BT90: 0 | BU90: 0 | BV90: -1919.8 | BW90: -738945.28 | BX90: 0 | BY90: 0 | BZ90: 0 | CA90: 0 | CB90: 14766.61 | CC90: 0 | CD90: 14766.61
A91: 2520 | B91: Madginford Primary School | C91: 0 | D91: 627 | E91: 0 | F91: 23.5 | G91: No | H91: Infant | I91: 500+ | J91: =IF(G91=Benchmarking!$I$4,1,0) -> 0 | K91: =IF(Benchmarking!$I$6="All",1,IF(Benchmarking!$I$6=H91,1,0)) -> 0 | L91: =IF(Benchmarking!$I$8="All",1,IF(Benchmarking!$I$8=I91,1,0)) -> 0 | M91: 0 | N91: 1896054.04 | O91: 0 | P91: 742219.41 | Q91: 104676.29 | R91: 96228.02 | S91: 83564.58 | T91: 172109.62 | U91: 12179.64 | V91: 10302.58 | W91: 20203.78 | X91: 18236.64 | Y91: 12032.68 | Z91: 13967.3 | AA91: 9377.47 | AB91: 12056.24 | AC91: 49044.29 | AD91: 64974 | AE91: 16851.45 | AF91: 159280.94 | AG91: 5700 | AH91: 0 | AI91: 29474.07 | AJ91: 32527.56 | AK91: 4622.37 | AL91: 716.52 | AM91: 16379.21 | AN91: 0 | AO91: 8117.1 | AP91: 24567.68 | AQ91: 10098.18 | AR91: 69823.02 | AS91: 49485 | AT91: 14240.54 | AU91: 29853.73 | AV91: 0 | AW91: 0 | AX91: 0 | AY91: 0 | AZ91: 0 | BA91: -2665779.434 | BB91: -430503.6959 | BC91: 0 | BD91: -166949.3 | BE91: 0 | BF91: -118490 | BG91: -3942.57 | BH91: 0 | BI91: -1848.5 | BJ91: -139921.12 | BK91: -33498.2 | BL91: -28984 | BM91: -23136.5 | BN91: -72434 | BO91: -16968.11 | BP91: 0 | BQ91: 0 | BR91: 0 | BS91: -104239 | BT91: 0 | BU91: 0 | BV91: -1241.46 | BW91: -3263232.43 | BX91: 0 | BY91: 0 | BZ91: 0 | CA91: 0 | CB91: 166949.3 | CC91: 0 | CD91: 166949.3
A92: 2524 | B92: Palmarsh Primary School | C92: 0 | D92: 198 | E92: 0 | F92: 6.583333333 | G92: No | H92: Primary | I92: 100-199 | J92: =IF(G92=Benchmarking!$I$4,1,0) -> 0 | K92: =IF(Benchmarking!$I$6="All",1,IF(Benchmarking!$I$6=H92,1,0)) -> 0 | L92: =IF(Benchmarking!$I$8="All",1,IF(Benchmarking!$I$8=I92,1,0)) -> 0 | M92: 0 | N92: 610540.32 | O92: 0 | P92: 256146.01 | Q92: 20674.51 | R92: 35967.32 | S92: 0 | T92: 68785.83 | U92: 4581.46 | V92: 2855.5 | W92: 397.98 | X92: 7478.77 | Y92: 8943.44 | Z92: 1159.56 | AA92: 1629.57 | AB92: 4396.12 | AC92: 19912.52 | AD92: 16092.75 | AE92: 11618.06 | AF92: 110810.87 | AG92: 4247 | AH92: 0 | AI92: 12087.58 | AJ92: 7981.78 | AK92: 17.99 | AL92: 16.66 | AM92: 3324.18 | AN92: 0 | AO92: 9901.6 | AP92: 7575.48 | AQ92: 24099.01 | AR92: 54590.63 | AS92: 3702.4 | AT92: 0 | AU92: 27702.67 | AV92: 0 | AW92: 0 | AX92: 0 | AY92: 0 | AZ92: 0 | BA92: -912056.3985 | BB92: -152112.1315 | BC92: 0 | BD92: -73225.24 | BE92: 0 | BF92: -84410 | BG92: -4800 | BH92: -1665.16 | BI92: -7266.66 | BJ92: -21255.45 | BK92: 0 | BL92: -4600 | BM92: -2987.94 | BN92: -25369.37 | BO92: -2409.49 | BP92: 0 | BQ92: 0 | BR92: 0 | BS92: -51398 | BT92: 0 | BU92: 0 | BV92: -1259.8 | BW92: -1137393.77 | BX92: 0 | BY92: 0 | BZ92: 0 | CA92: 0 | CB92: 73225.24 | CC92: 0 | CD92: 73225.24
A93: 2525 | B93: Painters Ash Primary School | C93: 0 | D93: 403 | E93: 0 | F93: 6.583333333 | G93: No | H93: Primary | I93: 400-499 | J93: =IF(G93=Benchmarking!$I$4,1,0) -> 0 | K93: =IF(Benchmarking!$I$6="All",1,IF(Benchmarking!$I$6=H93,1,0)) -> 0 | L93: =IF(Benchmarking!$I$8="All",1,IF(Benchmarking!$I$8=I93,1,0)) -> 0 | M93: 0 | N93: 1208985.04 | O93: 19039.99 | P93: 379655.97 | Q93: 57684.56 | R93: 99301.03 | S93: 0 | T93: 96613.32 | U93: 343 | V93: 7000.1 | W93: 11015.38 | X93: 11666.76 | Y93: 25570.37 | Z93: 11324.22 | AA93: 39044.62 | AB93: 21201.2 | AC93: 34356.82 | AD93: 44226 | AE93: 16145.16 | AF93: 126854.85 | AG93: 5889.6 | AH93: 0 | AI93: 646.33 | AJ93: 11972.58 | AK93: 3170.16 | AL93: 0 | AM93: 10560 | AN93: 0 | AO93: 9823.89 | AP93: 15418.74 | AQ93: 1120.94 | AR93: 120271.85 | AS93: 0 | AT93: 23609.66 | AU93: 26499.19 | AV93: 0 | AW93: 0 | AX93: 0 | AY93: 0 | AZ93: 0 | BA93: -1749254.937 | BB93: -294342.9933 | BC93: 0 | BD93: -48540.02 | BE93: 0 | BF93: -146840 | BG93: -6342.57 | BH93: -1770 | BI93: -1545.5 | BJ93: -37626.76 | BK93: 0 | BL93: -3056 | BM93: -14330.58 | BN93: -14960.54 | BO93: -8514.91 | BP93: 0 | BQ93: 0 | BR93: 0 | BS93: -72042 | BT93: 0 | BU93: 0 | BV93: -8065.08 | BW93: -2092137.95 | BX93: 0 | BY93: 0 | BZ93: 0 | CA93: 0 | CB93: 48540.02 | CC93: 0 | CD93: 48540.02
A94: 2530 | B94: Tunbury Primary School | C94: 0 | D94: 564 | E94: 0 | F94: 4.833333333 | G94: No | H94: Infant | I94: 500+ | J94: =IF(G94=Benchmarking!$I$4,1,0) -> 0 | K94: =IF(Benchmarking!$I$6="All",1,IF(Benchmarking!$I$6=H94,1,0)) -> 0 | L94: =IF(Benchmarking!$I$8="All",1,IF(Benchmarking!$I$8=I94,1,0)) -> 0 | M94: 0 | N94: 1622830.3 | O94: 0 | P94: 690034.71 | Q94: 95428.72 | R94: 85619.66 | S94: 0 | T94: 54995.86 | U94: 11104.31 | V94: 6458.57 | W94: 1133.64 | X94: 16327.8 | Y94: 12859 | Z94: 9722.07 | AA94: 4107.17 | AB94: 17075.83 | AC94: 44321.16 | AD94: 48594 | AE94: 19172.21 | AF94: 99659.89 | AG94: 5700 | AH94: 1212.24 | AI94: 4956.25 | AJ94: 5542.85 | AK94: 0 | AL94: 0 | AM94: 6004.36 | AN94: 0 | AO94: 23580.1 | AP94: 21578.64 | AQ94: 521.45 | AR94: 94674.55 | AS94: 40537.29 | AT94: 49444.68 | AU94: 30969.65 | AV94: 0 | AW94: 0 | AX94: 0 | AY94: 0 | AZ94: 0 | BA94: -2394407.734 | BB94: -377388.8056 | BC94: 0 | BD94: -47151.39 | BE94: 0 | BF94: -70730 | BG94: -4661.6 | BH94: -930.99 | BI94: -7308.9 | BJ94: -2587.81 | BK94: 0 | BL94: 0 | BM94: -29569.37 | BN94: -30314.24 | BO94: -18324.68 | BP94: 0 | BQ94: 0 | BR94: 0 | BS94: -92794 | BT94: 0 | BU94: 0 | BV94: -1990.42 | BW94: -2818947.93 | BX94: 0 | BY94: 0 | BZ94: 0 | CA94: 0 | CB94: 47151.39 | CC94: 0 | CD94: 47151.39
A95: 2532 | B95: St Margarets-at-Cliffe Primary School | C95: 0 | D95: 177 | E95: 0 | F95: 9.5 | G95: No | H95: Primary | I95: 100-199 | J95: =IF(G95=Benchmarking!$I$4,1,0) -> 0 | K95: =IF(Benchmarking!$I$6="All",1,IF(Benchmarking!$I$6=H95,1,0)) -> 0 | L95: =IF(Benchmarking!$I$8="All",1,IF(Benchmarking!$I$8=I95,1,0)) -> 0 | M95: 0 | N95: 476195.73 | O95: 3854.35 | P95: 217889.53 | Q95: 43595.36 | R95: 87565.52 | S95: 0 | T95: 40787.8 | U95: 4691.77 | V95: 12174.96 | W95: 5411.02 | X95: 5124.12 | Y95: 6910.98 | Z95: 4296.45 | AA95: 2350.16 | AB95: 15661.49 | AC95: 23690.79 | AD95: 19710.5 | AE95: 11466.65 | AF95: 45691.94 | AG95: 5098 | AH95: 0 | AI95: 8005.93 | AJ95: 9243.05 | AK95: 0 | AL95: 53.54 | AM95: 7314.1 | AN95: 0 | AO95: 12264.35 | AP95: 6772.02 | AQ95: 6353.04 | AR95: 29018.85 | AS95: 31690.29 | AT95: 11550 | AU95: 17463.3 | AV95: 0 | AW95: 0 | AX95: 4910 | AY95: 0 | AZ95: 0 | BA95: -835932.8808 | BB95: -81962.44919 | BC95: 0 | BD95: -103229.41 | BE95: 0 | BF95: -27925 | BG95: -5028.22 | BH95: -6430 | BI95: -25 | BJ95: -82717.31 | BK95: 0 | BL95: -1185.51 | BM95: -1300.77 | BN95: -30371.75 | BO95: -3073.8 | BP95: 0 | BQ95: 0 | BR95: 0 | BS95: -46039 | BT95: 0 | BU95: 0 | BV95: -439.17 | BW95: -1021124.74 | BX95: 0 | BY95: 0 | BZ95: 0 | CA95: 0 | CB95: 103229.41 | CC95: 0 | CD95: 103229.41
A96: 2539 | B96: Stocks Green Primary School | C96: 0 | D96: 214 | E96: 0 | F96: 7.416666667 | G96: No | H96: Primary | I96: 200-299 | J96: =IF(G96=Benchmarking!$I$4,1,0) -> 0 | K96: =IF(Benchmarking!$I$6="All",1,IF(Benchmarking!$I$6=H96,1,0)) -> 0 | L96: =IF(Benchmarking!$I$8="All",1,IF(Benchmarking!$I$8=I96,1,0)) -> 0 | M96: 0 | N96: 609310.12 | O96: 5530.19 | P96: 205454.23 | Q96: 37035.01 | R96: 75854.58 | S96: 0 | T96: 40078.1 | U96: 8632.3 | V96: 7296.96 | W96: 3796.98 | X96: 6195.24 | Y96: 14663.62 | Z96: 13599.26 | AA96: 23959.54 | AB96: 7663.77 | AC96: 29242.18 | AD96: 22205.5 | AE96: 17113.88 | AF96: 81476.58 | AG96: 8000.57 | AH96: 0 | AI96: 6318.84 | AJ96: 1195.35 | AK96: 2957.64 | AL96: 94.14 | AM96: 9311.2 | AN96: 0 | AO96: 18305.63 | AP96: 8187.6 | AQ96: 189.25 | AR96: 69472.8 | AS96: 205.19 | AT96: 6890.69 | AU96: 12649.65 | AV96: 0 | AW96: 0 | AX96: 0 | AY96: 0 | AZ96: 0 | BA96: -970753.8862 | BB96: -101245.3838 | BC96: 0 | BD96: -60611.53 | BE96: 0 | BF96: -31000 | BG96: -1200 | BH96: -150 | BI96: -9962 | BJ96: -19474.48 | BK96: -31106 | BL96: 0 | BM96: -5556.86 | BN96: -30494.91 | BO96: -7299.68 | BP96: 0 | BQ96: 0 | BR96: 0 | BS96: -52828 | BT96: 0 | BU96: 0 | BV96: -1142.71 | BW96: -1132610.8 | BX96: 0 | BY96: 0 | BZ96: 0 | CA96: 0 | CB96: 60611.53 | CC96: 0 | CD96: 60611.53
A97: 2545 | B97: Sandgate Primary School | C97: 0 | D97: 421 | E97: 0 | F97: 9.333333333 | G97: No | H97: Primary | I97: 400-499 | J97: =IF(G97=Benchmarking!$I$4,1,0) -> 0 | K97: =IF(Benchmarking!$I$6="All",1,IF(Benchmarking!$I$6=H97,1,0)) -> 0 | L97: =IF(Benchmarking!$I$8="All",1,IF(Benchmarking!$I$8=I97,1,0)) -> 0 | M97: 0 | N97: 1262263.47 | O97: 24223.54 | P97: 447917.63 | Q97: 65505.39 | R97: 111866.27 | S97: 0 | T97: 61060.46 | U97: 9949.56 | V97: 7696.05 | W97: 846.21 | X97: 12187.92 | Y97: 4344.87 | Z97: 10652.11 | AA97: 5456.54 | AB97: 11153.12 | AC97: 38185.89 | AD97: 52416 | AE97: 20391.48 | AF97: 115397.26 | AG97: 4097 | AH97: 404 | AI97: 0 | AJ97: 5617.24 | AK97: 262.5 | AL97: 2101.99 | AM97: 15523.03 | AN97: 0 | AO97: 20907.36 | AP97: 16107.42 | AQ97: 18431.68 | AR97: 138754.91 | AS97: 21807.13 | AT97: 29720 | AU97: 25837.32 | AV97: 0 | AW97: 0 | AX97: 0 | AY97: 0 | AZ97: 0 | BA97: -1817103.028 | BB97: -268550.5524 | BC97: 0 | BD97: -99406.59 | BE97: 0 | BF97: -101620 | BG97: -2600 | BH97: 0 | BI97: -29339 | BJ97: -62557.03 | BK97: -47416.65 | BL97: 0 | BM97: -26066.68 | BN97: -45257.6 | BO97: -10045.28 | BP97: 0 | BQ97: 0 | BR97: 0 | BS97: -88380 | BT97: 0 | BU97: 0 | BV97: -4128.17 | BW97: -2185060.17 | BX97: 0 | BY97: 0 | BZ97: 0 | CA97: 0 | CB97: 99406.59 | CC97: 0 | CD97: 99406.59
A98: 2552 | B98: Sandling Primary School | C98: 0 | D98: 419 | E98: 0 | F98: 10.58333333 | G98: No | H98: Primary | I98: 400-499 | J98: =IF(G98=Benchmarking!$I$4,1,0) -> 0 | K98: =IF(Benchmarking!$I$6="All",1,IF(Benchmarking!$I$6=H98,1,0)) -> 0 | L98: =IF(Benchmarking!$I$8="All",1,IF(Benchmarking!$I$8=I98,1,0)) -> 0 | M98: 0 | N98: 1067240.92 | O98: 30690.58 | P98: 546628.98 | Q98: 32248.19 | R98: 115739.24 | S98: 0 | T98: 51067.2 | U98: 13458.43 | V98: 8430.97 | W98: 4834.95 | X98: 12130.08 | Y98: 21224.41 | Z98: 9383.41 | AA98: 32636.56 | AB98: 6404.01 | AC98: 35053.93 | AD98: 33306 | AE98: 11593.34 | AF98: 63204.86 | AG98: 15534.25 | AH98: 0 | AI98: 9883.51 | AJ98: 16234.95 | AK98: 3518.88 | AL98: 7959.23 | AM98: 1710.96 | AN98: 0 | AO98: 9482.51 | AP98: 16030.98 | AQ98: 0 | AR98: 60064.96 | AS98: 18727.02 | AT98: 12367.33 | AU98: 21224.73 | AV98: 0 | AW98: 0 | AX98: 74312.63 | AY98: 0 | AZ98: 0 | BA98: -1771925.482 | BB98: -276674.2085 | BC98: 0 | BD98: -124151.13 | BE98: 0 | BF98: -35080 | BG98: -3000 | BH98: 0 | BI98: -10249 | BJ98: -14258.11 | BK98: 0 | BL98: 0 | BM98: -3834.41 | BN98: 0 | BO98: 0 | BP98: 0 | BQ98: 0 | BR98: 0 | BS98: -81640 | BT98: 0 | BU98: 0 | BV98: -562.71 | BW98: -2172750.82 | BX98: 0 | BY98: 0 | BZ98: 0 | CA98: 0 | CB98: 124151.13 | CC98: 0 | CD98: 124151.13
A99: 2559 | B99: Capel-le-Ferne Primary School | C99: 0 | D99: 179 | E99: 0 | F99: 7.166666667 | G99: No | H99: Infant | I99: 100-199 | J99: =IF(G99=Benchmarking!$I$4,1,0) -> 0 | K99: =IF(Benchmarking!$I$6="All",1,IF(Benchmarking!$I$6=H99,1,0)) -> 0 | L99: =IF(Benchmarking!$I$8="All",1,IF(Benchmarking!$I$8=I99,1,0)) -> 0 | M99: 0 | N99: 644641.73 | O99: 2409.38 | P99: 177058.32 | Q99: 47435.87 | R99: 57376.49 | S99: 0 | T99: 13700.4 | U99: 4259.93 | V99: 6622 | W99: 359.79 | X99: 5267.04 | Y99: 6540.68 | Z99: 3311.45 | AA99: 1535.45 | AB99: 4256.88 | AC99: 17324.17 | AD99: 20209.5 | AE99: 8919.78 | AF99: 29996.51 | AG99: 5329.5 | AH99: 756 | AI99: 9290.29 | AJ99: 11518.49 | AK99: 0 | AL99: 2848.3 | AM99: 2163.04 | AN99: 0 | AO99: 2283.79 | AP99: 7188.54 | AQ99: 2916.73 | AR99: 45706.53 | AS99: 5469.6 | AT99: 25570.9 | AU99: 17978.5 | AV99: 0 | AW99: 0 | AX99: 0 | AY99: 0 | AZ99: 0 | BA99: -839704.3206 | BB99: -123867.6094 | BC99: 0 | BD99: -59082.76 | BE99: 0 | BF99: -58033 | BG99: 0 | BH99: -2735 | BI99: -3831.81 | BJ99: -2070.56 | BK99: -13772.09 | BL99: 0 | BM99: -3727.72 | BN99: -12715.3 | BO99: -5133.59 | BP99: 0 | BQ99: 0 | BR99: 0 | BS99: -43757 | BT99: 0 | BU99: 0 | BV99: -3634.38 | BW99: -1022654.69 | BX99: 0 | BY99: 0 | BZ99: 0 | CA99: 0 | CB99: 59082.76 | CC99: 0 | CD99: 59082.76
A100: 2562 | B100: Lunsford Primary School | C100: 0 | D100: 208 | E100: 0 | F100: 2 | G100: No | H100: Primary | I100: 200-299 | J100: =IF(G100=Benchmarking!$I$4,1,0) -> 0 | K100: =IF(Benchmarking!$I$6="All",1,IF(Benchmarking!$I$6=H100,1,0)) -> 0 | L100: =IF(Benchmarking!$I$8="All",1,IF(Benchmarking!$I$8=I100,1,0)) -> 0 | M100: 0 | N100: 667081.99 | O100: 10582.02 | P100: 175295.06 | Q100: 30139.19 | R100: 80538.72 | S100: 0 | T100: 5735.9 | U100: 4279.45 | V100: 5692.02 | W100: 5208.91 | X100: 6021.6 | Y100: 5304.8 | Z100: 5681.11 | AA100: 21188.04 | AB100: 3834.46 | AC100: 20633.33 | AD100: 20334.25 | AE100: 5476.74 | AF100: 57876.2 | AG100: 4247 | AH100: 744.12 | AI100: 2912.67 | AJ100: 5597.89 | AK100: 265.5 | AL100: 150.22 | AM100: 11532.94 | AN100: 0 | AO100: 12922.94 | AP100: 8181.19 | AQ100: 4947.81 | AR100: 41974.18 | AS100: 1659.98 | AT100: 11218.67 | AU100: 13726.42 | AV100: 0 | AW100: 0 | AX100: 0 | AY100: 0 | AZ100: 0 | BA100: -946683.5446 | BB100: -144956.5054 | BC100: 0 | BD100: -10204.39 | BE100: 0 | BF100: -66600 | BG100: -3885.64 | BH100: 0 | BI100: -2724.84 | BJ100: -3740.63 | BK100: 0 | BL100: -2466 | BM100: -6139.31 | BN100: -20130.45 | BO100: -9550.39 | BP100: 0 | BQ100: 0 | BR100: 0 | BS100: -46786 | BT100: 0 | BU100: 0 | BV100: -860 | BW100: -1101844.44 | BX100: 0 | BY100: 0 | BZ100: 0 | CA100: 0 | CB100: 10204.39 | CC100: 0 | CD100: 10204.39
A101: 2574 | B101: Downs View Infant School | C101: 0 | D101: 228 | E101: 0 | F101: 11.58333333 | G101: No | H101: Primary | I101: 200-299 | J101: =IF(G101=Benchmarking!$I$4,1,0) -> 0 | K101: =IF(Benchmarking!$I$6="All",1,IF(Benchmarking!$I$6=H101,1,0)) -> 0 | L101: =IF(Benchmarking!$I$8="All",1,IF(Benchmarking!$I$8=I101,1,0)) -> 0 | M101: 0 | N101: 735702.21 | O101: 1171.05 | P101: 324846.74 | Q101: 45270.91 | R101: 77264.16 | S101: 0 | T101: 103807.99 | U101: 8467.96 | V101: 3409 | W101: 14115.34 | X101: 6600.6 | Y101: 8769.07 | Z101: 3808.14 | AA101: 979.18 | AB101: 3668.04 | AC101: 30076.31 | AD101: 32214 | AE101: 14758.35 | AF101: 24186.84 | AG101: 2258.85 | AH101: 0 | AI101: 5453.31 | AJ101: 7222.55 | AK101: 0 | AL101: 0 | AM101: 5540.04 | AN101: 0 | AO101: 11075.28 | AP101: 8723.28 | AQ101: 3171 | AR101: 93967.74 | AS101: 1701 | AT101: 9805.52 | AU101: 16310.98 | AV101: 0 | AW101: 0 | AX101: 0 | AY101: 0 | AZ101: 0 | BA101: -1066813.602 | BB101: -153848.6984 | BC101: 0 | BD101: -96401.14 | BE101: 0 | BF101: -49640 | BG101: -2971.29 | BH101: -5042 | BI101: -12257 | BJ101: -52482.33 | BK101: -700.6 | BL101: -20960 | BM101: 0 | BN101: -1791.7 | BO101: -5441.48 | BP101: 0 | BQ101: 0 | BR101: 0 | BS101: -105787 | BT101: 0 | BU101: 0 | BV101: -951.67 | BW101: -1317063.44 | BX101: 0 | BY101: 0 | BZ101: 0 | CA101: 0 | CB101: 96401.14 | CC101: 0 | CD101: 96401.14
A102: 2578 | B102: Kingswood Primary School | C102: 0 | D102: 132 | E102: 0 | F102: 5.25 | G102: No | H102: Primary | I102: 100-199 | J102: =IF(G102=Benchmarking!$I$4,1,0) -> 0 | K102: =IF(Benchmarking!$I$6="All",1,IF(Benchmarking!$I$6=H102,1,0)) -> 0 | L102: =IF(Benchmarking!$I$8="All",1,IF(Benchmarking!$I$8=I102,1,0)) -> 0 | M102: 0 | N102: 997424.42 | O102: 3850.12 | P102: 125901.89 | Q102: 54866.9 | R102: 60976.23 | S102: 0 | T102: 45300 | U102: 10419.7 | V102: 8039.83 | W102: 3441.55 | X102: 3991.44 | Y102: 7463.64 | Z102: 10745.29 | AA102: 3180.31 | AB102: 3635.14 | AC102: 18605.87 | AD102: 16591.75 | AE102: 9233.45 | AF102: 38594.53 | AG102: 5011.75 | AH102: 0 | AI102: 4133.08 | AJ102: 10397.03 | AK102: 1684.81 | AL102: 1553.77 | AM102: 8160 | AN102: 0 | AO102: 6757.6 | AP102: 5730.36 | AQ102: 249684.52 | AR102: 22892.68 | AS102: 9557.5 | AT102: 36072.67 | AU102: 22027.62 | AV102: 0 | AW102: 0 | AX102: 9909.29 | AY102: 0 | AZ102: 0 | BA102: -661235.3404 | BB102: -89898.58963 | BC102: 0 | BD102: -53799.74 | BE102: 0 | BF102: -63682 | BG102: -4056.93 | BH102: 0 | BI102: 0 | BJ102: -896438.52 | BK102: -3026.06 | BL102: 0 | BM102: -2150.55 | BN102: -9327.9 | BO102: -3698.63 | BP102: 0 | BQ102: 0 | BR102: 0 | BS102: -33001 | BT102: 0 | BU102: 0 | BV102: -336.67 | BW102: -804933.67 | BX102: 0 | BY102: 0 | BZ102: 0 | CA102: 0 | CB102: 53799.74 | CC102: 0 | CD102: 53799.74
A103: 2586 | B103: Senacre Wood Primary School | C103: 0 | D103: 207 | E103: 0 | F103: 9.25 | G103: No | H103: Primary | I103: 200-299 | J103: =IF(G103=Benchmarking!$I$4,1,0) -> 0 | K103: =IF(Benchmarking!$I$6="All",1,IF(Benchmarking!$I$6=H103,1,0)) -> 0 | L103: =IF(Benchmarking!$I$8="All",1,IF(Benchmarking!$I$8=I103,1,0)) -> 0 | M103: 0 | N103: 738118.08 | O103: 2359.64 | P103: 299662.86 | Q103: 20791.88 | R103: 67240.5 | S103: 0 | T103: 43117.2 | U103: 4700.1 | V103: 4238.45 | W103: 4898.45 | X103: 5992.68 | Y103: 7826.04 | Z103: 10390.29 | AA103: 17814.07 | AB103: 4326.15 | AC103: 18144.28 | AD103: 19211.5 | AE103: 6304.06 | AF103: 37723.34 | AG103: 7215.99 | AH103: 0 | AI103: 11005.3 | AJ103: 11064.55 | AK103: 1901.24 | AL103: 443.4 | AM103: 6367.23 | AN103: 0 | AO103: 7448.35 | AP103: 10201.86 | AQ103: 6036.48 | AR103: 37253.59 | AS103: 3643.35 | AT103: 10972.01 | AU103: 31913.3 | AV103: 0 | AW103: 0 | AX103: 2640.87 | AY103: 0 | AZ103: 0 | BA103: -994149.2324 | BB103: -184258.7576 | BC103: 0 | BD103: -93441.82 | BE103: 0 | BF103: -111150 | BG103: -1700 | BH103: 0 | BI103: 0 | BJ103: -17260.08 | BK103: 0 | BL103: -2080 | BM103: 0 | BN103: -16322.73 | BO103: -11160.39 | BP103: 0 | BQ103: 0 | BR103: 0 | BS103: -45616 | BT103: 0 | BU103: 0 | BV103: -5852.08 | BW103: -1271849.81 | BX103: 0 | BY103: 0 | BZ103: 0 | CA103: 0 | CB103: 93441.82 | CC103: 0 | CD103: 93441.82
A104: 2603 | B104: Bromstone Primary School | C104: 0 | D104: 416 | E104: 36.4 | F104: 14.91666667 | G104: No | H104: Primary | I104: 400-499 | J104: =IF(G104=Benchmarking!$I$4,1,0) -> 0 | K104: =IF(Benchmarking!$I$6="All",1,IF(Benchmarking!$I$6=H104,1,0)) -> 0 | L104: =IF(Benchmarking!$I$8="All",1,IF(Benchmarking!$I$8=I104,1,0)) -> 0 | M104: 0 | N104: 1248025.13 | O104: 0 | P104: 1064247.65 | Q104: 87105.2 | R104: 160794.94 | S104: 79182.6 | T104: 46223.63 | U104: 5122.16 | V104: 16357.41 | W104: 836.16 | X104: 12213.12 | Y104: 67156.33 | Z104: 23275.11 | AA104: 46645.22 | AB104: 31650.33 | AC104: 43309.82 | AD104: 53235 | AE104: 21181.41 | AF104: 66467.3 | AG104: 7719.4 | AH104: 2996.78 | AI104: 13303.82 | AJ104: 8192.89 | AK104: 4765.2 | AL104: 1151.91 | AM104: 16848.96 | AN104: 0 | AO104: 50916.06 | AP104: 16596.12 | AQ104: 38824.32 | AR104: 95366.88 | AS104: 954.99 | AT104: 0 | AU104: 115588.15 | AV104: 0 | AW104: 0 | AX104: 38425.57 | AY104: 0 | AZ104: 0 | BA104: -1921339.562 | BB104: -431858.4985 | BC104: -513705.76 | BD104: -104919.04 | BE104: 0 | BF104: -259700 | BG104: -2970.79 | BH104: -153294.2 | BI104: 0 | BJ104: -36297.73 | BK104: -19013.33 | BL104: 0 | BM104: 0 | BN104: -19618.9 | BO104: -3236.09 | BP104: 0 | BQ104: 0 | BR104: 0 | BS104: -67261 | BT104: 0 | BU104: 0 | BV104: -16878.36 | BW104: -2971822.86 | BX104: 11666.67 | BY104: 183000 | BZ104: 319039.09 | CA104: 513705.76 | CB104: 104919.04 | CC104: 0 | CD104: 104919.04
A105: 2607 | B105: Parkside Community Primary School | C105: 0 | D105: 165 | E105: 0 | F105: 10.08333333 | G105: No | H105: Primary | I105: 100-199 | J105: =IF(G105=Benchmarking!$I$4,1,0) -> 0 | K105: =IF(Benchmarking!$I$6="All",1,IF(Benchmarking!$I$6=H105,1,0)) -> 0 | L105: =IF(Benchmarking!$I$8="All",1,IF(Benchmarking!$I$8=I105,1,0)) -> 0 | M105: 0 | N105: 643921.57 | O105: 0 | P105: 240034.96 | Q105: 67244.67 | R105: 33180.48 | S105: 0 | T105: 6955.21 | U105: 1096.89 | V105: 2291.4 | W105: 6139.65 | X105: 4861.68 | Y105: 12130.46 | Z105: 6593.24 | AA105: 3317.59 | AB105: 19234.37 | AC105: 36386.99 | AD105: 19461 | AE105: 14819.81 | AF105: 51489.48 | AG105: 9087.98 | AH105: 553.44 | AI105: 3887.87 | AJ105: 7817.44 | AK105: 1126 | AL105: 77.88 | AM105: 4153.01 | AN105: 0 | AO105: 17026.74 | AP105: 6652.86 | AQ105: 7901.1 | AR105: 60972 | AS105: 36840.02 | AT105: 38766.17 | AU105: 35031.83 | AV105: 0 | AW105: 0 | AX105: 71287.5 | AY105: 0 | AZ105: 0 | BA105: -897090.8355 | BB105: -265130.9545 | BC105: 0 | BD105: -87848.04 | BE105: -18000 | BF105: -151680 | BG105: -6656.93 | BH105: -810 | BI105: -29000 | BJ105: -4308.25 | BK105: -821.81 | BL105: -4200 | BM105: -12937.48 | BN105: 0 | BO105: 0 | BP105: 0 | BQ105: 0 | BR105: 0 | BS105: -25795 | BT105: 0 | BU105: 0 | BV105: -2884.8 | BW105: -1250069.83 | BX105: 0 | BY105: 0 | BZ105: 0 | CA105: 0 | CB105: 87848.04 | CC105: 0 | CD105: 87848.04
A106: 2615 | B106: High Firs Primary School | C106: 0 | D106: 209 | E106: 0 | F106: 2.5 | G106: No | H106: Primary | I106: 200-299 | J106: =IF(G106=Benchmarking!$I$4,1,0) -> 0 | K106: =IF(Benchmarking!$I$6="All",1,IF(Benchmarking!$I$6=H106,1,0)) -> 0 | L106: =IF(Benchmarking!$I$8="All",1,IF(Benchmarking!$I$8=I106,1,0)) -> 0 | M106: 0 | N106: 621581.62 | O106: 5525.2 | P106: 247429.79 | Q106: 33205.69 | R106: 63609.6 | S106: 0 | T106: 30107.85 | U106: 5318.87 | V106: 7382.7 | W106: 8772.79 | X106: 6050.64 | Y106: 13600.28 | Z106: 4832.05 | AA106: 13026.13 | AB106: 3434.94 | AC106: 15831.34 | AD106: 21831.25 | AE106: 7837.91 | AF106: 47186.47 | AG106: 4546.11 | AH106: 0 | AI106: 3833.1 | AJ106: 11108.27 | AK106: 56.54 | AL106: 4957.91 | AM106: 8504.04 | AN106: 0 | AO106: 4164.96 | AP106: 8152.03 | AQ106: 3442.73 | AR106: 41989.41 | AS106: 981.72 | AT106: 26336.74 | AU106: 21231.4 | AV106: 0 | AW106: 1050.51 | AX106: 8091.49 | AY106: 0 | AZ106: 0 | BA106: -1007562.56 | BB106: -167990.1897 | BC106: 0 | BD106: -29228.7 | BE106: 0 | BF106: -54690 | BG106: 0 | BH106: -3870.35 | BI106: -7635 | BJ106: -1543.02 | BK106: 0 | BL106: -5620 | BM106: -8950.25 | BN106: -22400.8 | BO106: -3191.33 | BP106: 0 | BQ106: 0 | BR106: 0 | BS106: -44171 | BT106: 0 | BU106: 0 | BV106: -2245.83 | BW106: -1204781.45 | BX106: 0 | BY106: 0 | BZ106: 0 | CA106: 0 | CB106: 29228.7 | CC106: 0 | CD106: 29228.7
A107: 2627 | B107: Sandwich Junior School | C107: 0 | D107: 213 | E107: 0 | F107: 12.41666667 | G107: No | H107: Primary | I107: 200-299 | J107: =IF(G107=Benchmarking!$I$4,1,0) -> 0 | K107: =IF(Benchmarking!$I$6="All",1,IF(Benchmarking!$I$6=H107,1,0)) -> 0 | L107: =IF(Benchmarking!$I$8="All",1,IF(Benchmarking!$I$8=I107,1,0)) -> 0 | M107: 0 | N107: 655941.55 | O107: 0 | P107: 325745.98 | Q107: 44069.6 | R107: 57824.8 | S107: 0 | T107: 29498.22 | U107: 5595.22 | V107: 5858 | W107: 7088.87 | X107: 6166.32 | Y107: 2073.38 | Z107: 11345.09 | AA107: 4373.62 | AB107: 8730.38 | AC107: 20146.74 | AD107: 24201.5 | AE107: 3533.41 | AF107: 25929.54 | AG107: 3976.9 | AH107: 404 | AI107: 10799.76 | AJ107: 11027.61 | AK107: 0 | AL107: 1794 | AM107: 3534 | AN107: 0 | AO107: 5550.85 | AP107: 8149.38 | AQ107: 1193.54 | AR107: 24508.7 | AS107: 8520.98 | AT107: 17415.27 | AU107: 28822.3 | AV107: 0 | AW107: 0 | AX107: 0 | AY107: 0 | AZ107: 0 | BA107: -991753.1685 | BB107: -131810.6815 | BC107: 0 | BD107: -101573.59 | BE107: 0 | BF107: -80760 | BG107: -856.93 | BH107: -1308 | BI107: -2755.04 | BJ107: -4747.36 | BK107: 0 | BL107: -1320 | BM107: 0 | BN107: -9039.49 | BO107: -6424.24 | BP107: 0 | BQ107: 0 | BR107: 0 | BS107: -18147 | BT107: 0 | BU107: 0 | BV107: -2313.62 | BW107: -1225137.44 | BX107: 0 | BY107: 0 | BZ107: 0 | CA107: 0 | CB107: 101573.59 | CC107: 0 | CD107: 101573.59
A108: 2632 | B108: Sevenoaks Primary School | C108: 0 | D108: 601 | E108: 0 | F108: 20.75 | G108: No | H108: Primary | I108: 500+ | J108: =IF(G108=Benchmarking!$I$4,1,0) -> 0 | K108: =IF(Benchmarking!$I$6="All",1,IF(Benchmarking!$I$6=H108,1,0)) -> 0 | L108: =IF(Benchmarking!$I$8="All",1,IF(Benchmarking!$I$8=I108,1,0)) -> 0 | M108: 0 | N108: 1867665.31 | O108: 0 | P108: 730411.41 | Q108: 58307.88 | R108: 185847.81 | S108: 0 | T108: 83993.98 | U108: 1219.5 | V108: 12534.95 | W108: 1253.31 | X108: 17398.92 | Y108: 29762.73 | Z108: 18347.95 | AA108: 66637.27 | AB108: 6692.6 | AC108: 79542.26 | AD108: 75264 | AE108: 18970.08 | AF108: 142992.59 | AG108: 4755 | AH108: 4100.52 | AI108: 7238.72 | AJ108: 19416.04 | AK108: 240.71 | AL108: 7063.2 | AM108: 0 | AN108: 0 | AO108: 50865.29 | AP108: 23441.81 | AQ108: 7826.33 | AR108: 182242.55 | AS108: 2238.36 | AT108: 3492.87 | AU108: 61831.65 | AV108: 0 | AW108: 0 | AX108: 22399.06 | AY108: 0 | AZ108: 0 | BA108: -2639760.707 | BB108: -355151.5026 | BC108: 0 | BD108: -157778.68 | BE108: 0 | BF108: -142780 | BG108: -16857.59 | BH108: -5830 | BI108: -34964.52 | BJ108: -111138.6 | BK108: -82276.31 | BL108: -3493.04 | BM108: 0 | BN108: -89145.98 | BO108: -28718.85 | BP108: 0 | BQ108: 0 | BR108: 0 | BS108: -101540 | BT108: 0 | BU108: 0 | BV108: -7861.88 | BW108: -3152690.89 | BX108: 0 | BY108: 0 | BZ108: 0 | CA108: 0 | CB108: 157778.68 | CC108: 0 | CD108: 157778.68
A109: 2643 | B109: Swalecliffe Community Primary School | C109: 0 | D109: 546 | E109: 0 | F109: 20.16666667 | G109: No | H109: Primary | I109: 500+ | J109: =IF(G109=Benchmarking!$I$4,1,0) -> 0 | K109: =IF(Benchmarking!$I$6="All",1,IF(Benchmarking!$I$6=H109,1,0)) -> 0 | L109: =IF(Benchmarking!$I$8="All",1,IF(Benchmarking!$I$8=I109,1,0)) -> 0 | M109: 0 | N109: 1761950.77 | O109: 116310.66 | P109: 544731.19 | Q109: 122222.71 | R109: 206064.6 | S109: 99152.62 | T109: 63756.84 | U109: 6837.3 | V109: 3767 | W109: 1097.46 | X109: 15891.72 | Y109: 29180.58 | Z109: 16244.41 | AA109: 10366.93 | AB109: 12813.01 | AC109: 47497.06 | AD109: 13540.8 | AE109: 21536.7 | AF109: 60714.34 | AG109: 6820.23 | AH109: 1063.97 | AI109: 8903.41 | AJ109: 25889.55 | AK109: 3543.88 | AL109: 1871.95 | AM109: 21966 | AN109: 0 | AO109: 2928.04 | AP109: 21229.92 | AQ109: 54554.82 | AR109: 73819.65 | AS109: 0 | AT109: 3708.2 | AU109: 48239.58 | AV109: 0 | AW109: 0 | AX109: 0 | AY109: 0 | AZ109: 0 | BA109: -2266640.07 | BB109: -397447.8396 | BC109: 0 | BD109: -126562.65 | BE109: 0 | BF109: -153824.13 | BG109: -1171.29 | BH109: -9757.68 | BI109: -17937.5 | BJ109: -246688.63 | BK109: -61073.96 | BL109: 0 | BM109: -4306.21 | BN109: -37948.49 | BO109: -11425.53 | BP109: 0 | BQ109: 0 | BR109: 0 | BS109: -90486 | BT109: 0 | BU109: 0 | BV109: -8890.63 | BW109: -2790650.56 | BX109: 0 | BY109: 0 | BZ109: 0 | CA109: 0 | CB109: 126562.65 | CC109: 0 | CD109: 126562.65
A110: 2648 | B110: Aylesham Primary School | C110: 0 | D110: 370 | E110: 0 | F110: 0 | G110: No | H110: Primary | I110: 300-399 | J110: =IF(G110=Benchmarking!$I$4,1,0) -> 0 | K110: =IF(Benchmarking!$I$6="All",1,IF(Benchmarking!$I$6=H110,1,0)) -> 0 | L110: =IF(Benchmarking!$I$8="All",1,IF(Benchmarking!$I$8=I110,1,0)) -> 0 | M110: 0 | N110: 1034962.33 | O110: 0 | P110: 447514.53 | Q110: 27989.71 | R110: 85347.73 | S110: 0 | T110: 86887.85 | U110: 7347.36 | V110: 5852.5 | W110: 743.7 | X110: 9209.86 | Y110: 15086.62 | Z110: 6563.83 | AA110: 33987.84 | AB110: 5435.67 | AC110: 27668.61 | AD110: 41223 | AE110: 19586.26 | AF110: 53213.59 | AG110: 4903.5 | AH110: 0 | AI110: 5942.13 | AJ110: 644.34 | AK110: 1044.63 | AL110: 1531.06 | AM110: 8564.63 | AN110: 0 | AO110: 17004.79 | AP110: 14156.16 | AQ110: 181091.4 | AR110: 73048.3 | AS110: 4529.47 | AT110: 32542.15 | AU110: 14997.96 | AV110: 0 | AW110: 0 | AX110: 0 | AY110: 0 | AZ110: 0 | BA110: -1372101.144 | BB110: -341508.8255 | BC110: 0 | BD110: -142268.25 | BE110: 0 | BF110: -173366.63 | BG110: -4056.93 | BH110: -6112.85 | BI110: -2520 | BJ110: -41459.14 | BK110: -5643.09 | BL110: 0 | BM110: -12480.84 | BN110: -10994.95 | BO110: -10003.73 | BP110: 0 | BQ110: 0 | BR110: 0 | BS110: -60984 | BT110: 0 | BU110: 0 | BV110: -9016.63 | BW110: -1855878.22 | BX110: 0 | BY110: 0 | BZ110: 0 | CA110: 0 | CB110: 142268.25 | CC110: 0 | CD110: 142268.25
A111: 2651 | B111: Broadwater Down Primary School | C111: 0 | D111: 136 | E111: 0 | F111: 13.41666667 | G111: No | H111: Primary | I111: 100-199 | J111: =IF(G111=Benchmarking!$I$4,1,0) -> 0 | K111: =IF(Benchmarking!$I$6="All",1,IF(Benchmarking!$I$6=H111,1,0)) -> 0 | L111: =IF(Benchmarking!$I$8="All",1,IF(Benchmarking!$I$8=I111,1,0)) -> 0 | M111: 0 | N111: 521123.92 | O111: 1264.53 | P111: 187243.38 | Q111: 15303.21 | R111: 31373.23 | S111: 0 | T111: 37577.55 | U111: 3392.47 | V111: 4825.35 | W111: 5561.44 | X111: 3937.2 | Y111: 48762.16 | Z111: 9385.68 | AA111: 27482.01 | AB111: 4464.84 | AC111: 16021.18 | AD111: 19336.25 | AE111: 9652.93 | AF111: 45904.66 | AG111: 5937.12 | AH111: 5300 | AI111: 3460.55 | AJ111: 8402.94 | AK111: 1606.31 | AL111: 658.75 | AM111: 4793.4 | AN111: 0 | AO111: 8589.47 | AP111: 5203.32 | AQ111: 432.5 | AR111: 28135.45 | AS111: 62433.22 | AT111: 40991.56 | AU111: 83876.04 | AV111: 0 | AW111: 0 | AX111: 0 | AY111: 0 | AZ111: 0 | BA111: -753460.9365 | BB111: -140064.2435 | BC111: 0 | BD111: -111904.83 | BE111: 0 | BF111: -74765 | BG111: -2000 | BH111: -2450 | BI111: 0 | BJ111: -30040.15 | BK111: 0 | BL111: -240 | BM111: -10817.66 | BN111: -8877.05 | BO111: -2497.9 | BP111: 0 | BQ111: 0 | BR111: 0 | BS111: -25989 | BT111: 0 | BU111: 0 | BV111: -4403.13 | BW111: -1005430.01 | BX111: 0 | BY111: 0 | BZ111: 0 | CA111: 0 | CB111: 111904.83 | CC111: 0 | CD111: 111904.83
A112: 2653 | B112: West Borough Primary School | C112: 43 | D112: 451 | E112: 0 | F112: 17.33333333 | G112: Yes | H112: Primary | I112: 400-499 | J112: =IF(G112=Benchmarking!$I$4,1,0) -> 0 | K112: =IF(Benchmarking!$I$6="All",1,IF(Benchmarking!$I$6=H112,1,0)) -> 0 | L112: =IF(Benchmarking!$I$8="All",1,IF(Benchmarking!$I$8=I112,1,0)) -> 0 | M112: 0 | N112: 1473868.17 | O112: 21030.48 | P112: 588060.05 | Q112: 78410.53 | R112: 102357.52 | S112: 0 | T112: 112842.39 | U112: 11899.67 | V112: 9413.77 | W112: 906.51 | X112: 13410.36 | Y112: 40805.72 | Z112: 17906.23 | AA112: 5072.73 | AB112: 9574.62 | AC112: 47258.17 | AD112: 73164 | AE112: 17971.93 | AF112: 103039.21 | AG112: 5163.25 | AH112: 0 | AI112: 11412.8 | AJ112: 24980.89 | AK112: 1502.11 | AL112: 638.63 | AM112: 13710.12 | AN112: 0 | AO112: 14638.62 | AP112: 18993.83 | AQ112: 28896.96 | AR112: 93295.56 | AS112: 26158.1 | AT112: 14852.16 | AU112: 22812.5 | AV112: 0 | AW112: 0 | AX112: 7502.01 | AY112: 0 | AZ112: 0 | BA112: -2186700.352 | BB112: -281084.2977 | BC112: 0 | BD112: -134904.59 | BE112: 0 | BF112: -158260 | BG112: -600 | BH112: -9000.82 | BI112: -4774.66 | BJ112: -133843.93 | BK112: 0 | BL112: 0 | BM112: -10819.49 | BN112: -59658.27 | BO112: -3202.14 | BP112: 0 | BQ112: 0 | BR112: 0 | BS112: -69961 | BT112: 0 | BU112: 0 | BV112: -8769.8 | BW112: -2602689.24 | BX112: 0 | BY112: 0 | BZ112: 0 | CA112: 0 | CB112: 134904.59 | CC112: 0 | CD112: 134904.59
A113: 2662 | B113: Long Mead Community Primary School | C113: 11 | D113: 99 | E113: 0 | F113: 6.916666667 | G113: Yes | H113: Infant | I113: 0-99 | J113: =IF(G113=Benchmarking!$I$4,1,0) -> 0 | K113: =IF(Benchmarking!$I$6="All",1,IF(Benchmarking!$I$6=H113,1,0)) -> 0 | L113: =IF(Benchmarking!$I$8="All",1,IF(Benchmarking!$I$8=I113,1,0)) -> 0 | M113: 0 | N113: 452496.99 | O113: 0 | P113: 237932.95 | Q113: 0 | R113: 62576.41 | S113: 0 | T113: 34583.61 | U113: 3414.58 | V113: 3916.79 | W113: 1827.99 | X113: 3015.48 | Y113: 8554.91 | Z113: 7967.55 | AA113: 26425.87 | AB113: 7018.88 | AC113: 19986.21 | AD113: 17090.75 | AE113: 21435.89 | AF113: 17220.79 | AG113: 7447 | AH113: 57.98 | AI113: 5563.09 | AJ113: 6938.71 | AK113: 0 | AL113: 0 | AM113: 6242.02 | AN113: 0 | AO113: 8157.64 | AP113: 4385.34 | AQ113: 13031.91 | AR113: 24737.67 | AS113: 5699.13 | AT113: 12251.37 | AU113: 23607.68 | AV113: 0 | AW113: 0 | AX113: 5291.5 | AY113: 0 | AZ113: 0 | BA113: -641939.7978 | BB113: -128654.1122 | BC113: 0 | BD113: -66650.15 | BE113: 0 | BF113: -85452.5 | BG113: 0 | BH113: -6083 | BI113: -2800 | BJ113: -6132.38 | BK113: -613.5 | BL113: 0 | BM113: -6375.56 | BN113: -5902.83 | BO113: -8940.63 | BP113: 0 | BQ113: 0 | BR113: 0 | BS113: -25969 | BT113: 0 | BU113: 0 | BV113: -1848.33 | BW113: -837244.06 | BX113: 0 | BY113: 0 | BZ113: 0 | CA113: 0 | CB113: 66650.15 | CC113: 0 | CD113: 66650.15
A114: 2674 | B114: Kings Farm Primary School | C114: 37 | D114: 403 | E114: 14.6 | F114: 10.25 | G114: Yes | H114: Primary | I114: 400-499 | J114: =IF(G114=Benchmarking!$I$4,1,0) -> 0 | K114: =IF(Benchmarking!$I$6="All",1,IF(Benchmarking!$I$6=H114,1,0)) -> 0 | L114: =IF(Benchmarking!$I$8="All",1,IF(Benchmarking!$I$8=I114,1,0)) -> 0 | M114: 0 | N114: 1684641.51 | O114: 0.6 | P114: 780139.2 | Q114: 56472.82 | R114: 116983.4 | S114: 81688.99 | T114: 0 | U114: 11198.61 | V114: 23171.81 | W114: 810.03 | X114: 11919.84 | Y114: 84655.61 | Z114: 7691.32 | AA114: 62008.68 | AB114: 7504.31 | AC114: 60257.45 | AD114: 55146 | AE114: 9839.63 | AF114: 147240.59 | AG114: 7145.02 | AH114: 0 | AI114: 7078.2 | AJ114: 12581.77 | AK114: 33719 | AL114: 461.27 | AM114: 24741.91 | AN114: 0 | AO114: 16417.74 | AP114: 16430.82 | AQ114: 73277.47 | AR114: 60836.27 | AS114: 0 | AT114: 65294.58 | AU114: 44555.6 | AV114: 0 | AW114: 0 | AX114: 0 | AY114: 0 | AZ114: 0 | BA114: -2205508.847 | BB114: -488890.2026 | BC114: -208130.16 | BD114: -108374 | BE114: -13500 | BF114: -346580 | BG114: -10313.86 | BH114: -921 | BI114: -750.5 | BJ114: -137150.32 | BK114: -20798.22 | BL114: 0 | BM114: -8124.17 | BN114: -14788.92 | BO114: -2538.73 | BP114: 0 | BQ114: 0 | BR114: 0 | BS114: -55688 | BT114: 0 | BU114: 0 | BV114: -19291.67 | BW114: -3010903.21 | BX114: 0 | BY114: 72000 | BZ114: 136130.16 | CA114: 208130.16 | CB114: 108374 | CC114: 0 | CD114: 108374
A115: 2680 | B115: Kings Hill School | C115: 48 | D115: 417 | E115: 0 | F115: 17.91666667 | G115: Yes | H115: Primary | I115: 400-499 | J115: =IF(G115=Benchmarking!$I$4,1,0) -> 0 | K115: =IF(Benchmarking!$I$6="All",1,IF(Benchmarking!$I$6=H115,1,0)) -> 0 | L115: =IF(Benchmarking!$I$8="All",1,IF(Benchmarking!$I$8=I115,1,0)) -> 0 | M115: 0 | N115: 1310355.05 | O115: 0 | P115: 637307.54 | Q115: 58986.76 | R115: 136009.76 | S115: 0 | T115: 127892.22 | U115: 17279.7 | V115: 7181 | W115: 838.17 | X115: 12288.36 | Y115: 10704.07 | Z115: 13081.13 | AA115: 57713.09 | AB115: 5000.13 | AC115: 51674.8 | AD115: 61152 | AE115: 15353.5 | AF115: 92681.42 | AG115: 10212.77 | AH115: 1942.38 | AI115: 5330.62 | AJ115: 26863.18 | AK115: 0 | AL115: 5341.07 | AM115: 0 | AN115: 0 | AO115: 13664.99 | AP115: 16819.26 | AQ115: 13784.92 | AR115: 84693.93 | AS115: 2662 | AT115: 32357.01 | AU115: 47203.33 | AV115: 0 | AW115: 821.7 | AX115: 7582.85 | AY115: 0 | AZ115: 0 | BA115: -2103430.762 | BB115: -241758.8681 | BC115: 0 | BD115: -181008.73 | BE115: 0 | BF115: -78230 | BG115: -5313.86 | BH115: -1882 | BI115: -17916.24 | BJ115: -64412.11 | BK115: -1098.36 | BL115: 0 | BM115: -8046.63 | BN115: -135466.68 | BO115: -6277.27 | BP115: 0 | BQ115: 0 | BR115: 0 | BS115: -84989 | BT115: 0 | BU115: 0 | BV115: -1088.75 | BW115: -2526198.36 | BX115: 0 | BY115: 0 | BZ115: 0 | CA115: 0 | CB115: 181008.73 | CC115: 0 | CD115: 181008.73
A116: 2682 | B116: New Ash Green Primary School | C116: 0 | D116: 393 | E116: 0 | F116: 14.58333333 | G116: No | H116: Primary | I116: 300-399 | J116: =IF(G116=Benchmarking!$I$4,1,0) -> 0 | K116: =IF(Benchmarking!$I$6="All",1,IF(Benchmarking!$I$6=H116,1,0)) -> 0 | L116: =IF(Benchmarking!$I$8="All",1,IF(Benchmarking!$I$8=I116,1,0)) -> 0 | M116: 0 | N116: 1229825.1 | O116: 11153.45 | P116: 517712.37 | Q116: 60678.75 | R116: 112085.52 | S116: 0 | T116: 110223.32 | U116: 8299.22 | V116: 7417.03 | W116: 819.55 | X116: 11377.32 | Y116: 8567.02 | Z116: 8699.21 | AA116: 43066.34 | AB116: 7970.22 | AC116: 45663.37 | AD116: 39312 | AE116: 20262.83 | AF116: 38881.84 | AG116: 6498.38 | AH116: 155 | AI116: 5343.25 | AJ116: 8333.75 | AK116: 83.06 | AL116: 0 | AM116: 10519.24 | AN116: 0 | AO116: 17690.98 | AP116: 15328.87 | AQ116: 10256.67 | AR116: 58380.29 | AS116: 6030 | AT116: 21700.2 | AU116: 33015.57 | AV116: 0 | AW116: 0 | AX116: 0 | AY116: 0 | AZ116: 0 | BA116: -1689375.798 | BB116: -266239.3716 | BC116: 0 | BD116: -134274.29 | BE116: 0 | BF116: -92814 | BG116: -494.18 | BH116: -1948.88 | BI116: -17908.88 | BJ116: -39963.57 | BK116: 0 | BL116: 0 | BM116: -22835.92 | BN116: -28693.45 | BO116: -6340.95 | BP116: 0 | BQ116: 0 | BR116: 0 | BS116: -61994 | BT116: 0 | BU116: 0 | BV116: -5228.13 | BW116: -2089889.46 | BX116: 0 | BY116: 0 | BZ116: 0 | CA116: 0 | CB116: 134274.29 | CC116: 0 | CD116: 134274.29
A117: 2689 | B117: Craylands School, The | C117: 0 | D117: 416 | E117: 0 | F117: 12.41666667 | G117: No | H117: Infant | I117: 400-499 | J117: =IF(G117=Benchmarking!$I$4,1,0) -> 0 | K117: =IF(Benchmarking!$I$6="All",1,IF(Benchmarking!$I$6=H117,1,0)) -> 0 | L117: =IF(Benchmarking!$I$8="All",1,IF(Benchmarking!$I$8=I117,1,0)) -> 0 | M117: 0 | N117: 1296702.78 | O117: 10000 | P117: 678314.28 | Q117: 17761.95 | R117: 71839.1 | S117: 0 | T117: 58966.71 | U117: 8595.83 | V117: 6425.5 | W117: 7018.53 | X117: 11876.76 | Y117: 36201.61452 | Z117: 5426.729759 | AA117: 22611.26 | AB117: 2590.670282 | AC117: 11035.27 | AD117: 81900 | AE117: 3493.85 | AF117: 116435.87 | AG117: 0 | AH117: 0 | AI117: 2031.44 | AJ117: 6625.4 | AK117: 29.15 | AL117: 131.65 | AM117: 4159.8 | AN117: 0 | AO117: 50581.65 | AP117: 29055.06962 | AQ117: 205507.0905 | AR117: 458.46 | AS117: 48731 | AT117: 16625.03 | AU117: 44964.65529 | AV117: 0 | AW117: 0 | AX117: 0 | AY117: 0 | AZ117: 0 | BA117: -1978112.961 | BB117: -371481.049 | BC117: 0 | BD117: -104443.2 | BE117: 0 | BF117: -158610 | BG117: -2282.53 | BH117: -41953.4 | BI117: 0 | BJ117: -14166.92 | BK117: 0 | BL117: -4521.4 | BM117: 0 | BN117: -2681 | BO117: -60249.12 | BP117: 0 | BQ117: 0 | BR117: 0 | BS117: -71574 | BT117: 0 | BU117: 0 | BV117: -6855.48 | BW117: -2454037.21 | BX117: 0 | BY117: 0 | BZ117: 0 | CA117: 0 | CB117: 104443.2 | CC117: 0 | CD117: 104443.2
A118: 3010 | B118: St Pauls CEP School | C118: 0 | D118: 110 | E118: 0 | F118: 8.5 | G118: No | H118: Infant | I118: 100-199 | J118: =IF(G118=Benchmarking!$I$4,1,0) -> 0 | K118: =IF(Benchmarking!$I$6="All",1,IF(Benchmarking!$I$6=H118,1,0)) -> 0 | L118: =IF(Benchmarking!$I$8="All",1,IF(Benchmarking!$I$8=I118,1,0)) -> 0 | M118: 0 | N118: 437383.56 | O118: 0 | P118: 156179.44 | Q118: 24506.48 | R118: 95849.98 | S118: 0 | T118: 0 | U118: 2862.49 | V118: 5806.41 | W118: 229.39 | X118: 3269.5 | Y118: 17550.61 | Z118: 9485.79 | AA118: 2304.1 | AB118: 8565.87 | AC118: 13767.12 | AD118: 11477 | AE118: 1725.76 | AF118: 75622.33 | AG118: 456 | AH118: 2995 | AI118: 4048.65 | AJ118: 1907.96 | AK118: 1160 | AL118: 10014 | AM118: 2481.01 | AN118: 0 | AO118: 27457.05 | AP118: 4630.52 | AQ118: 2066.95 | AR118: 22730.86 | AS118: 0 | AT118: 6529.25 | AU118: 38153.76 | AV118: 0 | AW118: 0 | AX118: 3459.08 | AY118: 0 | AZ118: 0 | BA118: -658274.4875 | BB118: -54666.6825 | BC118: 0 | BD118: -68792.99 | BE118: 0 | BF118: -24390 | BG118: -3200 | BH118: -8796.56 | BI118: 0 | BJ118: -139516 | BK118: 0 | BL118: 0 | BM118: -2417.11 | BN118: -18340.5 | BO118: -9500 | BP118: 0 | BQ118: 0 | BR118: 0 | BS118: -35198 | BT118: 0 | BU118: 0 | BV118: -1328.13 | BW118: -781734.16 | BX118: 0 | BY118: 0 | BZ118: 0 | CA118: 0 | CB118: 64260.11 | CC118: 4532.88 | CD118: 68792.99
A119: 3015 | B119: Fawkham CEP School | C119: 0 | D119: 97 | E119: 0 | F119: 2.416666667 | G119: No | H119: Junior | I119: 0-99 | J119: =IF(G119=Benchmarking!$I$4,1,0) -> 0 | K119: =IF(Benchmarking!$I$6="All",1,IF(Benchmarking!$I$6=H119,1,0)) -> 0 | L119: =IF(Benchmarking!$I$8="All",1,IF(Benchmarking!$I$8=I119,1,0)) -> 0 | M119: 0 | N119: 422955.75 | O119: 0 | P119: 85485.39 | Q119: 1154.65 | R119: 41257.15 | S119: 0 | T119: 5345.11 | U119: 2289.46 | V119: 3133.75 | W119: 202.28 | X119: 2808.12 | Y119: 2939.12 | Z119: 2809.8 | AA119: 16222.58 | AB119: 725.01 | AC119: 11725.99 | AD119: 24451 | AE119: 2165.82 | AF119: 12843.18 | AG119: 4439 | AH119: 0 | AI119: 0 | AJ119: 1976.56 | AK119: 0 | AL119: 0 | AM119: 2585.31 | AN119: 0 | AO119: 18536.71 | AP119: 3783.42 | AQ119: 0 | AR119: 25012.21 | AS119: 0 | AT119: 2723.2 | AU119: 11903.25 | AV119: 0 | AW119: 0 | AX119: 0 | AY119: 0 | AZ119: 0 | BA119: -538215.8645 | BB119: -46994.44546 | BC119: 0 | BD119: -12918.16 | BE119: 0 | BF119: -8100 | BG119: 0 | BH119: -536.77 | BI119: 0 | BJ119: -23.15 | BK119: 0 | BL119: 0 | BM119: 0 | BN119: 0 | BO119: -42256.28 | BP119: 0 | BQ119: 0 | BR119: 0 | BS119: -33172 | BT119: 0 | BU119: 0 | BV119: -1002.08 | BW119: -598128.47 | BX119: 0 | BY119: 0 | BZ119: 0 | CA119: 0 | CB119: 9775.14 | CC119: 3143.02 | CD119: 12918.16
A120: 3022 | B120: Benenden CEP School | C120: 0 | D120: 209 | E120: 0 | F120: 6.5 | G120: No | H120: Primary | I120: 200-299 | J120: =IF(G120=Benchmarking!$I$4,1,0) -> 0 | K120: =IF(Benchmarking!$I$6="All",1,IF(Benchmarking!$I$6=H120,1,0)) -> 0 | L120: =IF(Benchmarking!$I$8="All",1,IF(Benchmarking!$I$8=I120,1,0)) -> 0 | M120: 0 | N120: 599466.76 | O120: 0 | P120: 256801.86 | Q120: 11069.42 | R120: 86250.34 | S120: 0 | T120: 25232.31 | U120: 4092.41 | V120: 6659.2 | W120: 5061.5 | X120: 7223.6 | Y120: 3147.09 | Z120: 7968.17 | AA120: 25203.07 | AB120: 2492.22 | AC120: 19108.38 | AD120: 55146 | AE120: 7135.5 | AF120: 72933.02 | AG120: 4499 | AH120: 0 | AI120: 3548.63 | AJ120: 12307.05 | AK120: 0 | AL120: 1202.65 | AM120: 2744 | AN120: 0 | AO120: 9196.64 | AP120: 8336.34 | AQ120: 2557.16 | AR120: 65513.29 | AS120: 0 | AT120: 27234.3 | AU120: 14525.17 | AV120: 0 | AW120: 0 | AX120: 28735.01 | AY120: 0 | AZ120: 0 | BA120: -976817.8536 | BB120: -104533.6664 | BC120: 0 | BD120: -44149.79 | BE120: 0 | BF120: -40660 | BG120: -600 | BH120: -3051 | BI120: 0 | BJ120: -37292.18 | BK120: -26576 | BL120: -8980 | BM120: -6095.1 | BN120: -27417.75 | BO120: -5731.9 | BP120: 0 | BQ120: 0 | BR120: 0 | BS120: -53467 | BT120: 0 | BU120: 0 | BV120: -2157.3 | BW120: -1125501.31 | BX120: 0 | BY120: 0 | BZ120: 0 | CA120: 0 | CB120: 44149.79 | CC120: 0 | CD120: 44149.79
A121: 3023 | B121: Bidborough CEP School | C121: 0 | D121: 204 | E121: 0 | F121: 4.75 | G121: No | H121: Primary | I121: 200-299 | J121: =IF(G121=Benchmarking!$I$4,1,0) -> 0 | K121: =IF(Benchmarking!$I$6="All",1,IF(Benchmarking!$I$6=H121,1,0)) -> 0 | L121: =IF(Benchmarking!$I$8="All",1,IF(Benchmarking!$I$8=I121,1,0)) -> 0 | M121: 0 | N121: 626769.34 | O121: 3595.67 | P121: 220007.11 | Q121: 18352.06 | R121: 58330.5 | S121: 0 | T121: 27043.35 | U121: 4031.87 | V121: 9112.55 | W121: 6200.19 | X121: 5905.8 | Y121: 20932.82 | Z121: 4693.43 | AA121: 25517.72 | AB121: 847.27 | AC121: 26001.46 | AD121: 17215.5 | AE121: 5872.28 | AF121: 62071.64 | AG121: 5355.86 | AH121: 0 | AI121: 820.83 | AJ121: 13892.38 | AK121: 1115.86 | AL121: 0 | AM121: 3216.62 | AN121: 0 | AO121: 5070.08 | AP121: 7805.04 | AQ121: 820 | AR121: 45571.25 | AS121: 9112.79 | AT121: 8155.21 | AU121: 18772.24 | AV121: 0 | AW121: 0 | AX121: 9781.57 | AY121: 0 | AZ121: 0 | BA121: -902959.0243 | BB121: -107904.0857 | BC121: 0 | BD121: -54118.1 | BE121: 0 | BF121: -23240 | BG121: -3371.29 | BH121: -810 | BI121: -4659.75 | BJ121: -88382.03 | BK121: -312.5 | BL121: -600 | BM121: -18326.05 | BN121: 0 | BO121: -19428.47 | BP121: 0 | BQ121: 0 | BR121: 0 | BS121: -54890 | BT121: 0 | BU121: 0 | BV121: -333.96 | BW121: -1064981.21 | BX121: 0 | BY121: 0 | BZ121: 0 | CA121: 0 | CB121: 54118.1 | CC121: 0 | CD121: 54118.1
A122: 3027 | B122: Cranbrook CEP School | C122: 0 | D122: 205 | E122: 0 | F122: 11.83333333 | G122: No | H122: Primary | I122: 200-299 | J122: =IF(G122=Benchmarking!$I$4,1,0) -> 0 | K122: =IF(Benchmarking!$I$6="All",1,IF(Benchmarking!$I$6=H122,1,0)) -> 0 | L122: =IF(Benchmarking!$I$8="All",1,IF(Benchmarking!$I$8=I122,1,0)) -> 0 | M122: 0 | N122: 622669.52 | O122: 0 | P122: 292349.08 | Q122: 18697.49 | R122: 75135.21 | S122: 0 | T122: 70693.7 | U122: 5093.56 | V122: 5472.66 | W122: 4028.21 | X122: 5934.72 | Y122: 83410.31 | Z122: 7574.38 | AA122: 20361.45 | AB122: 3433.57 | AC122: 23519.82 | AD122: 34398 | AE122: 8292.84 | AF122: 65221.35 | AG122: 3062 | AH122: 0 | AI122: 474.11 | AJ122: 2133.27 | AK122: 30537.2 | AL122: 869.47 | AM122: 176.61 | AN122: 0 | AO122: 13083.18 | AP122: 7843.26 | AQ122: 0 | AR122: 50420.36 | AS122: 0 | AT122: 2542.8 | AU122: 24361.62 | AV122: 0 | AW122: 0 | AX122: 0 | AY122: 0 | AZ122: 0 | BA122: -983656.9863 | BB122: -164804.0637 | BC122: 0 | BD122: -135070.34 | BE122: -13500 | BF122: -112330 | BG122: -1200 | BH122: -643 | BI122: -11972.91 | BJ122: -11222.81 | BK122: 0 | BL122: 0 | BM122: -1322.63 | BN122: -13356.83 | BO122: -5219.44 | BP122: 0 | BQ122: 0 | BR122: 0 | BS122: -44266 | BT122: 0 | BU122: 0 | BV122: -1772.3 | BW122: -1283531.39 | BX122: 0 | BY122: 0 | BZ122: 0 | CA122: 0 | CB122: 135070.34 | CC122: 0 | CD122: 135070.34
A123: 3029 | B123: Goudhurst & Kilndown CEP School | C123: 0 | D123: 212 | E123: 0 | F123: 8 | G123: =IF(C123=0,"No","Yes") -> No | H123: Primary | I123: 200-299 | J123: =IF(G123=Benchmarking!$I$4,1,0) -> 0 | K123: =IF(Benchmarking!$I$6="All",1,IF(Benchmarking!$I$6=H123,1,0)) -> 0 | L123: =IF(Benchmarking!$I$8="All",1,IF(Benchmarking!$I$8=I123,1,0)) -> 0 | M123: =IF(SUM(J123:L123)=3,1,0) -> 0 | N123: 717596.75 | O123: 26508.48 | P123: 270763.42 | Q123: 9612.37 | R123: 71815.66 | S123: 0 | T123: 7745.89 | U123: 4534.86 | V123: 12499.87 | W123: 6231.27 | X123: 6222.36 | Y123: 6460.51 | Z123: 5289.28 | AA123: 24609.88 | AB123: 3761.17 | AC123: 37258.92 | AD123: 37401 | AE123: 7141.84 | AF123: 78740.91 | AG123: 5625.19 | AH123: 0 | AI123: 3193.63 | AJ123: 15427.5 | AK123: 0 | AL123: 1513.35 | AM123: 4228 | AN123: 0 | AO123: 9111.04 | AP123: 8451.12 | AQ123: 1471.35 | AR123: 43502.58 | AS123: 744 | AT123: 31443.8 | AU123: 16645.06 | AV123: 0 | AW123: 0 | AX123: 63613 | AY123: 0 | AZ123: 0 | BA123: =BW123-BB123-BC123-BD123 -> -970179.0653 | BB123: -100232.7147 | BC123: =-CA123 -> 0 | BD123: =-CD123 -> -54187.97 | BE123: 0 | BF123: -60240 | BG123: -885.64 | BH123: -33081.81 | BI123: -3412 | BJ123: -129781.26 | BK123: -877.4 | BL123: -17986 | BM123: -4932.01 | BN123: -20710.92 | BO123: -21495.25 | BP123: 0 | BQ123: 0 | BR123: 0 | BS123: -51638 | BT123: 0 | BU123: 0 | BV123: -2954.17 | BW123: -1124599.75 | BX123: 0 | BY123: 0 | BZ123: 0 | CA123: =SUM(BX123:BZ123) -> 0 | CB123: 54187.97 | CC123: 0 | CD123: =SUM(CB123:CC123) -> 54187.97
A124: 3032 | B124: Hawkhurst CEP School | C124: 0 | D124: 189 | E124: 0 | F124: 4.166666667 | G124: No | H124: Primary | I124: 100-199 | J124: =IF(G124=Benchmarking!$I$4,1,0) -> 0 | K124: =IF(Benchmarking!$I$6="All",1,IF(Benchmarking!$I$6=H124,1,0)) -> 0 | L124: =IF(Benchmarking!$I$8="All",1,IF(Benchmarking!$I$8=I124,1,0)) -> 0 | M124: 0 | N124: 615526.56 | O124: 23266.17 | P124: 258346.88 | Q124: 14343.2 | R124: 63219.71 | S124: 0 | T124: 49737.65 | U124: 4500.46 | V124: 1217 | W124: 9802.76 | X124: 5471.52 | Y124: 10120.92 | Z124: 7367.43 | AA124: 24568.22 | AB124: 4995.33 | AC124: 27550.52 | AD124: 43134 | AE124: 10070.26 | AF124: 29256.32 | AG124: 6609.32 | AH124: 5634.2 | AI124: 7791.33 | AJ124: 13150.37 | AK124: 0 | AL124: 3028 | AM124: 0 | AN124: 0 | AO124: 4767.65 | AP124: 7231.14 | AQ124: 3319.97 | AR124: 51621.38 | AS124: 14229.6 | AT124: 33097.72 | AU124: 22825.41 | AV124: 0 | AW124: 0 | AX124: 0 | AY124: 0 | AZ124: 0 | BA124: -920870.2644 | BB124: -117477.1056 | BC124: 0 | BD124: -45009.2 | BE124: 0 | BF124: -104690 | BG124: -400 | BH124: 0 | BI124: -2494.8 | BJ124: -11150.89 | BK124: 0 | BL124: -18000 | BM124: -9051.52 | BN124: -8989.75 | BO124: -3945.02 | BP124: 0 | BQ124: 0 | BR124: 0 | BS124: -40738 | BT124: 0 | BU124: 0 | BV124: -1756.67 | BW124: -1083356.57 | BX124: 0 | BY124: 0 | BZ124: 0 | CA124: 0 | CB124: 45009.2 | CC124: 0 | CD124: 45009.2
A125: 3033 | B125: Hildenborough CEP School | C125: 0 | D125: 195 | E125: 0 | F125: 3.166666667 | G125: No | H125: Primary | I125: 100-199 | J125: =IF(G125=Benchmarking!$I$4,1,0) -> 0 | K125: =IF(Benchmarking!$I$6="All",1,IF(Benchmarking!$I$6=H125,1,0)) -> 0 | L125: =IF(Benchmarking!$I$8="All",1,IF(Benchmarking!$I$8=I125,1,0)) -> 0 | M125: 0 | N125: 623295.38 | O125: 6000 | P125: 202568.96 | Q125: 33226.18 | R125: 34872.04 | S125: 0 | T125: 11420.74 | U125: 4289.92 | V125: 1897 | W125: 6596.29 | X125: 5645.18 | Y125: 9873.01 | Z125: 4909.21 | AA125: 24252.25 | AB125: 1042.49 | AC125: 24435.02 | AD125: 30030 | AE125: 8310.59 | AF125: 55722.32 | AG125: 4990 | AH125: 0 | AI125: 3128.5 | AJ125: 5740.45 | AK125: 2760 | AL125: 0 | AM125: 8164 | AN125: 0 | AO125: 18681.09 | AP125: 7460.7 | AQ125: 0 | AR125: 30874.89 | AS125: 0 | AT125: 4249.27 | AU125: 14566.41 | AV125: 0 | AW125: 0 | AX125: 0 | AY125: 0 | AZ125: 0 | BA125: -886504.0329 | BB125: -97761.03706 | BC125: 0 | BD125: -30847.25 | BE125: 0 | BF125: -30300 | BG125: -3856.93 | BH125: -772.5 | BI125: -19874.03 | BJ125: -7846.29 | BK125: 0 | BL125: -5400 | BM125: 0 | BN125: -34988.28 | BO125: -19532.96 | BP125: 0 | BQ125: 0 | BR125: 0 | BS125: -46083 | BT125: 0 | BU125: 0 | BV125: -355 | BW125: -1015112.32 | BX125: 0 | BY125: 0 | BZ125: 0 | CA125: 0 | CB125: 30847.25 | CC125: 0 | CD125: 30847.25
A126: 3034 | B126: Lamberhurst St Marys CEP School | C126: 0 | D126: 208 | E126: 0 | F126: 4.416666667 | G126: No | H126: Primary | I126: 200-299 | J126: =IF(G126=Benchmarking!$I$4,1,0) -> 0 | K126: =IF(Benchmarking!$I$6="All",1,IF(Benchmarking!$I$6=H126,1,0)) -> 0 | L126: =IF(Benchmarking!$I$8="All",1,IF(Benchmarking!$I$8=I126,1,0)) -> 0 | M126: 0 | N126: 725667.91 | O126: 11011.03 | P126: 202723.03 | Q126: 28643.83 | R126: 42628.46 | S126: 0 | T126: 18456.5 | U126: 4179.79 | V126: 2130.8 | W126: 418.47 | X126: 6021.6 | Y126: 12768.82 | Z126: 2073.95 | AA126: 1941.33 | AB126: 3126.07 | AC126: 23589.27 | AD126: 39858 | AE126: 4302.9 | AF126: 60857.08 | AG126: 5081.33 | AH126: 5604 | AI126: 9287.01 | AJ126: 7900.8 | AK126: 1551.55 | AL126: 498.09 | AM126: 5649.99 | AN126: 0 | AO126: 6814.05 | AP126: 7958.04 | AQ126: 8336.5 | AR126: 41151.37 | AS126: 0 | AT126: 435 | AU126: 23375.39 | AV126: 0 | AW126: 0 | AX126: 39625.35 | AY126: 0 | AZ126: 0 | BA126: -944177.4022 | BB126: -105253.8078 | BC126: 0 | BD126: -49113.17 | BE126: 0 | BF126: -31030 | BG126: -4856.93 | BH126: -35.34 | BI126: -120 | BJ126: -68775.06 | BK126: -329.85 | BL126: 0 | BM126: -7137.79 | BN126: -12659.8 | BO126: -11907.38 | BP126: 0 | BQ126: 0 | BR126: 0 | BS126: -57192 | BT126: 0 | BU126: 0 | BV126: -336.67 | BW126: -1098544.38 | BX126: 0 | BY126: 0 | BZ126: 0 | CA126: 0 | CB126: 49113.17 | CC126: 0 | CD126: 49113.17
A127: 3037 | B127: St Johns CEP School, Sevenoaks | C127: 0 | D127: 192 | E127: 0 | F127: 6.166666667 | G127: No | H127: Primary | I127: 100-199 | J127: =IF(G127=Benchmarking!$I$4,1,0) -> 0 | K127: =IF(Benchmarking!$I$6="All",1,IF(Benchmarking!$I$6=H127,1,0)) -> 0 | L127: =IF(Benchmarking!$I$8="All",1,IF(Benchmarking!$I$8=I127,1,0)) -> 0 | M127: 0 | N127: 589565.44 | O127: 14428.2 | P127: 218929.72 | Q127: 50026.02 | R127: 65438.79 | S127: 0 | T127: 47438.91 | U127: 25244.35 | V127: 3212.5 | W127: 6666.08 | X127: 5643.36 | Y127: 6321.98 | Z127: 3347.84 | AA127: 2203.58 | AB127: 815.7 | AC127: 22048.04 | AD127: 24950 | AE127: 7470.28 | AF127: 24279.04 | AG127: 3121 | AH127: 0 | AI127: 4776.52 | AJ127: 2583.2 | AK127: 0 | AL127: 2150.66 | AM127: 5874.44 | AN127: 0 | AO127: 12656.99 | AP127: 7828.87 | AQ127: 7540 | AR127: 37132.54 | AS127: 16241.97 | AT127: 12318.94 | AU127: 16920.56 | AV127: 0 | AW127: 0 | AX127: 0 | AY127: 0 | AZ127: 0 | BA127: -910128.1751 | BB127: -90065.82493 | BC127: 0 | BD127: -56910.32 | BE127: 0 | BF127: -33650 | BG127: -6376.71 | BH127: -23346.33 | BI127: -3428.19 | BJ127: -66088.29 | BK127: 0 | BL127: -2573.9 | BM127: -2861.45 | BN127: -19030.64 | BO127: -3639.43 | BP127: 0 | BQ127: 0 | BR127: 0 | BS127: -45854 | BT127: 0 | BU127: 0 | BV127: -441.88 | BW127: -1057104.32 | BX127: 0 | BY127: 0 | BZ127: 0 | CA127: 0 | CB127: 56910.32 | CC127: 0 | CD127: 56910.32
A128: 3042 | B128: Speldhurst CEP School | C128: 0 | D128: 211 | E128: 0 | F128: 4 | G128: No | H128: Primary | I128: 200-299 | J128: =IF(G128=Benchmarking!$I$4,1,0) -> 0 | K128: =IF(Benchmarking!$I$6="All",1,IF(Benchmarking!$I$6=H128,1,0)) -> 0 | L128: =IF(Benchmarking!$I$8="All",1,IF(Benchmarking!$I$8=I128,1,0)) -> 0 | M128: 0 | N128: 618542.6 | O128: 12830.92 | P128: 232146.09 | Q128: 11422.36 | R128: 63781.94 | S128: 0 | T128: 31186.48 | U128: 1011 | V128: 5516.11 | W128: 12518.11 | X128: 6108.36 | Y128: 3724.29 | Z128: 7521.82 | AA128: 12355.1 | AB128: 5109.18 | AC128: 18176.12 | AD128: 3840 | AE128: 6592.22 | AF128: 45672.61 | AG128: 7226.4 | AH128: 0 | AI128: 5286.48 | AJ128: 8153.66 | AK128: 0 | AL128: 593.82 | AM128: 7566.2 | AN128: 0 | AO128: 6837.13 | AP128: 8072.82 | AQ128: 460.61 | AR128: 43848.86 | AS128: 12741.1 | AT128: 21979.82 | AU128: 15893.62 | AV128: 0 | AW128: 1666.2 | AX128: 18710.35 | AY128: 0 | AZ128: 0 | BA128: -927973.8661 | BB128: -96197.7439 | BC128: 0 | BD128: -43932.24 | BE128: 0 | BF128: -29210 | BG128: -2400 | BH128: -3469.8 | BI128: -14234.11 | BJ128: -6167.45 | BK128: -78.63 | BL128: -9753 | BM128: -9475.58 | BN128: -10295.45 | BO128: -26030.08 | BP128: 0 | BQ128: 0 | BR128: 0 | BS128: -57355.31 | BT128: 0 | BU128: 0 | BV128: -1505.21 | BW128: -1068103.85 | BX128: 0 | BY128: 0 | BZ128: 0 | CA128: 0 | CB128: 43932.24 | CC128: 0 | CD128: 43932.24
A129: 3043 | B129: Sundridge & Brasted CEP School | C129: 0 | D129: 63 | E129: 0 | F129: 8.75 | G129: No | H129: Primary | I129: 0-99 | J129: =IF(G129=Benchmarking!$I$4,1,0) -> 0 | K129: =IF(Benchmarking!$I$6="All",1,IF(Benchmarking!$I$6=H129,1,0)) -> 0 | L129: =IF(Benchmarking!$I$8="All",1,IF(Benchmarking!$I$8=I129,1,0)) -> 0 | M129: 0 | N129: 340331.78 | O129: 0 | P129: 165493.03 | Q129: 9004.11 | R129: 45474.52 | S129: 0 | T129: 8516.5 | U129: 5076.04 | V129: 4247.79 | W129: 3133.71 | X129: 1823.88 | Y129: 2605.5 | Z129: 0 | AA129: 15363.76 | AB129: 1441.9 | AC129: 10166.3 | AD129: 8645.17 | AE129: 4488.43 | AF129: 21263.85 | AG129: 4733.97 | AH129: 0 | AI129: 9441.84 | AJ129: 8116.87 | AK129: 682 | AL129: 4087.91 | AM129: 4010.28 | AN129: 0 | AO129: 1678.5 | AP129: 2457.3 | AQ129: 3105.65 | AR129: 28041.32 | AS129: 6913.34 | AT129: 8663.46 | AU129: 10856.56 | AV129: 0 | AW129: 0 | AX129: 0 | AY129: 0 | AZ129: 0 | BA129: -504875.9398 | BB129: -64678.41021 | BC129: 0 | BD129: -101390.19 | BE129: 0 | BF129: -42920 | BG129: 0 | BH129: -4056.11 | BI129: 0 | BJ129: -8022.76 | BK129: -98.7 | BL129: -2340 | BM129: 0 | BN129: -1645 | BO129: -518.5 | BP129: 0 | BQ129: 0 | BR129: 0 | BS129: -23653 | BT129: 0 | BU129: 0 | BV129: -541.67 | BW129: -670944.54 | BX129: 0 | BY129: 0 | BZ129: 0 | CA129: 0 | CB129: 101390.19 | CC129: 0 | CD129: 101390.19
A130: 3050 | B130: St Johns CEP School, Tunbridge Wells | C130: 0 | D130: 630 | E130: 0 | F130: 13.25 | G130: No | H130: Primary | I130: 500+ | J130: =IF(G130=Benchmarking!$I$4,1,0) -> 0 | K130: =IF(Benchmarking!$I$6="All",1,IF(Benchmarking!$I$6=H130,1,0)) -> 0 | L130: =IF(Benchmarking!$I$8="All",1,IF(Benchmarking!$I$8=I130,1,0)) -> 0 | M130: 0 | N130: 1934389.51 | O130: 26920.72 | P130: 621908.56 | Q130: 70446.26 | R130: 156183.09 | S130: 0 | T130: 78704.74 | U130: 11180.85 | V130: 9191.48 | W130: 21102.74 | X130: 18238.56 | Y130: 39467.42 | Z130: 16100.55 | AA130: 56471.06 | AB130: 10741.37 | AC130: 66926.6 | AD130: 85176 | AE130: 19848.11 | AF130: 143645.21 | AG130: 7908 | AH130: 0 | AI130: 7572.6 | AJ130: 13026.34 | AK130: 0 | AL130: 6473.02 | AM130: 16237.5 | AN130: 0 | AO130: 23693.83 | AP130: 24103.8 | AQ130: 31325.08 | AR130: 130973.23 | AS130: 5178.05 | AT130: 23076.69 | AU130: 32111.04 | AV130: 0 | AW130: 0 | AX130: 50000 | AY130: 0 | AZ130: 0 | BA130: -2690375.471 | BB130: -430796.8688 | BC130: 0 | BD130: -167948.89 | BE130: 0 | BF130: -117916 | BG130: -13627.72 | BH130: -11673.39 | BI130: -20067.77 | BJ130: -38276.11 | BK130: -6000 | BL130: -19998 | BM130: -15729.12 | BN130: -85311.15 | BO130: -29241.48 | BP130: 0 | BQ130: 0 | BR130: 0 | BS130: -128778 | BT130: 0 | BU130: 0 | BV130: -6737.5 | BW130: -3289121.23 | BX130: 0 | BY130: 0 | BZ130: 0 | CA130: 0 | CB130: 167948.89 | CC130: 0 | CD130: 167948.89
A131: 3052 | B131: St Marks CEP School, Tunbridge Wells | C131: 0 | D131: 356 | E131: 0 | F131: 11.58333333 | G131: No | H131: Primary | I131: =IFERROR(VLOOKUP($D131,$D$256:$F$261,3,TRUE),0) -> 300-399 | J131: =IF(G131=Benchmarking!$I$4,1,0) -> 0 | K131: =IF(Benchmarking!$I$6="All",1,IF(Benchmarking!$I$6=H131,1,0)) -> 0 | L131: =IF(Benchmarking!$I$8="All",1,IF(Benchmarking!$I$8=I131,1,0)) -> 0 | M131: 0 | N131: 1138079.31 | O131: 0 | P131: 393122.36 | Q131: 39020.84 | R131: 109101.78 | S131: 0 | T131: 38034.43 | U131: 7073.11 | V131: 4832.26 | W131: 11863.52 | X131: 1637.64 | Y131: 30882.56 | Z131: 12354.59 | AA131: 47055.09 | AB131: 3400.82 | AC131: 44880.6 | AD131: 61152 | AE131: 13342.5 | AF131: 75971.2 | AG131: 4384.8 | AH131: 128 | AI131: 6272.68 | AJ131: 12623.6 | AK131: 3515.68 | AL131: 8693.56 | AM131: 8717 | AN131: 0 | AO131: 21762.58 | AP131: 13620.6 | AQ131: 14212.89 | AR131: 68219.46 | AS131: 48932.31 | AT131: 35110.27 | AU131: 25121.44 | AV131: 0 | AW131: 0 | AX131: 55007.26 | AY131: 0 | AZ131: 0 | BA131: -1600014.853 | BB131: -242532.047 | BC131: 0 | BD131: -78563.59 | BE131: 0 | BF131: -110260 | BG131: -4285.64 | BH131: -7296.4 | BI131: -16024.04 | BJ131: -90748.63 | BK131: -1405.1 | BL131: -27127 | BM131: -14850 | BN131: -31022.28 | BO131: -26693.4 | BP131: 0 | BQ131: 0 | BR131: 0 | BS131: -67315 | BT131: 0 | BU131: 0 | BV131: -7228.13 | BW131: -1921110.49 | BX131: 0 | BY131: 0 | BZ131: 0 | CA131: 0 | CB131: 78563.59 | CC131: 0 | CD131: 78563.59
A132: 3053 | B132: St Peters CEP School, Tunbridge Wells | C132: 0 | D132: 211 | E132: 0 | F132: 5.916666667 | G132: No | H132: Primary | I132: 200-299 | J132: =IF(G132=Benchmarking!$I$4,1,0) -> 0 | K132: =IF(Benchmarking!$I$6="All",1,IF(Benchmarking!$I$6=H132,1,0)) -> 0 | L132: =IF(Benchmarking!$I$8="All",1,IF(Benchmarking!$I$8=I132,1,0)) -> 0 | M132: 0 | N132: 656243.46 | O132: 932.65 | P132: 236276.63 | Q132: 15230.92 | R132: 72394.18 | S132: 0 | T132: 11681.08 | U132: 4829.14 | V132: 6670.75 | W132: 5261.5 | X132: 6108.36 | Y132: 6133.11 | Z132: 8008 | AA132: 19920.51 | AB132: 1780.28 | AC132: 31602.38 | AD132: 51051 | AE132: 14944.99 | AF132: 51867.97 | AG132: 4445.29 | AH132: 3811 | AI132: 9935.64 | AJ132: 8438.44 | AK132: 0 | AL132: 0 | AM132: 3174 | AN132: 0 | AO132: 5239.11 | AP132: 8072.82 | AQ132: 9208.25 | AR132: 42719.13 | AS132: 26431.82 | AT132: 15900.25 | AU132: 15067.91 | AV132: 0 | AW132: 0 | AX132: 0 | AY132: 0 | AZ132: 0 | BA132: -1025873.9 | BB132: -112757.9196 | BC132: 0 | BD132: -82714.35 | BE132: 0 | BF132: -49130 | BG132: -2600 | BH132: -2400.12 | BI132: -4601.5 | BJ132: -35388.63 | BK132: 0 | BL132: -5040 | BM132: -780.48 | BN132: -17251.37 | BO132: -3521.22 | BP132: 0 | BQ132: 0 | BR132: 0 | BS132: -53489 | BT132: 0 | BU132: 0 | BV132: -2434.17 | BW132: -1221346.17 | BX132: 0 | BY132: 0 | BZ132: 0 | CA132: 0 | CB132: 82714.35 | CC132: 0 | CD132: 82714.35
A133: 3054 | B133: Crockham Hill CEP School | C133: 0 | D133: 137 | E133: 0 | F133: 7.916666667 | G133: No | H133: Primary | I133: 100-199 | J133: =IF(G133=Benchmarking!$I$4,1,0) -> 0 | K133: =IF(Benchmarking!$I$6="All",1,IF(Benchmarking!$I$6=H133,1,0)) -> 0 | L133: =IF(Benchmarking!$I$8="All",1,IF(Benchmarking!$I$8=I133,1,0)) -> 0 | M133: 0 | N133: 473236.93 | O133: 10303.36 | P133: 185120.41 | Q133: 18973.12 | R133: 16567.02 | S133: 0 | T133: 0 | U133: 3201.91 | V133: 4012.2 | W133: 3866.25 | X133: 3966.36 | Y133: 11853.85 | Z133: 5546.56 | AA133: 10704.02 | AB133: 4721.45 | AC133: 10547.48 | AD133: 21956 | AE133: 20637.18 | AF133: 40744.44 | AG133: 4348.98 | AH133: 0 | AI133: 5578.46 | AJ133: 10385.31 | AK133: 0 | AL133: 18.53 | AM133: 6447.12 | AN133: 0 | AO133: 5915.91 | AP133: 5343.69 | AQ133: 0 | AR133: 22712.92 | AS133: 21443.22 | AT133: 9826.64 | AU133: 29423.29 | AV133: 0 | AW133: 0 | AX133: 2766.07 | AY133: 0 | AZ133: 0 | BA133: -728069.723 | BB133: -56013.57703 | BC133: 0 | BD133: -64914.07 | BE133: 0 | BF133: -11060 | BG133: -4332.53 | BH133: -2040 | BI133: -8215.83 | BJ133: -20023.05 | BK133: 0 | BL133: -4320 | BM133: 0 | BN133: -23176.41 | BO133: -6911.47 | BP133: 0 | BQ133: 0 | BR133: 0 | BS133: -42045 | BT133: 0 | BU133: 0 | BV133: -754.58 | BW133: -848997.37 | BX133: 0 | BY133: 0 | BZ133: 0 | CA133: 0 | CB133: 61758.17 | CC133: 3155.9 | CD133: 64914.07
A134: 3055 | B134: Churchill CEP School, Westerham | C134: 0 | D134: 212 | E134: 0 | F134: 6.5 | G134: No | H134: Primary | I134: 200-299 | J134: =IF(G134=Benchmarking!$I$4,1,0) -> 0 | K134: =IF(Benchmarking!$I$6="All",1,IF(Benchmarking!$I$6=H134,1,0)) -> 0 | L134: =IF(Benchmarking!$I$8="All",1,IF(Benchmarking!$I$8=I134,1,0)) -> 0 | M134: 0 | N134: 674751.2 | O134: 26356.05 | P134: 338489.98 | Q134: 31030.35 | R134: 77304.38 | S134: 0 | T134: 47703.71 | U134: 5332.45 | V134: 4904.92 | W134: 5805.74 | X134: 3556.32 | Y134: 1332.42 | Z134: 8275.72 | AA134: 32434.51 | AB134: 7616.7 | AC134: 59416.69 | AD134: 33579 | AE134: 8451.5 | AF134: 33396.78 | AG134: 995.1 | AH134: 0 | AI134: 2655.19 | AJ134: 8125.33 | AK134: 14.98 | AL134: 0 | AM134: 1512.53 | AN134: 0 | AO134: 6907.67 | AP134: 8269.05 | AQ134: 5295.37 | AR134: 52502.55 | AS134: 39030.82 | AT134: 3621.89 | AU134: 19164.17 | AV134: 0 | AW134: 0 | AX134: 0 | AY134: 0 | AZ134: 0 | BA134: -1039950.291 | BB134: -183837.7488 | BC134: 0 | BD134: -60934.53 | BE134: 0 | BF134: -99015 | BG134: -1576.71 | BH134: -6985.05 | BI134: -22104.11 | BJ134: -40916.9 | BK134: 0 | BL134: 0 | BM134: -4381.39 | BN134: -14082.47 | BO134: -7134.17 | BP134: 0 | BQ134: 0 | BR134: 0 | BS134: -48536 | BT134: 0 | BU134: 0 | BV134: -1435.63 | BW134: -1284722.57 | BX134: 0 | BY134: 0 | BZ134: 0 | CA134: 0 | CB134: 60934.53 | CC134: 0 | CD134: 60934.53
A135: 3057 | B135: St Peters CEP School, Aylesford | C135: 0 | D135: 201 | E135: 0 | F135: 5.166666667 | G135: No | H135: Primary | I135: 200-299 | J135: =IF(G135=Benchmarking!$I$4,1,0) -> 0 | K135: =IF(Benchmarking!$I$6="All",1,IF(Benchmarking!$I$6=H135,1,0)) -> 0 | L135: =IF(Benchmarking!$I$8="All",1,IF(Benchmarking!$I$8=I135,1,0)) -> 0 | M135: 0 | N135: 606653.93 | O135: 9698.45 | P135: 234029.87 | Q135: 16971.04 | R135: 70156.78 | S135: 0 | T135: 24559.55 | U135: 4658.98 | V135: 4663.09 | W135: 5281.6 | X135: 6034.96 | Y135: 16107.79 | Z135: 980.2 | AA135: 23342.15 | AB135: 2920.91 | AC135: 17913.75 | AD135: 20084.75 | AE135: 14879.19 | AF135: 62492 | AG135: 5560.61 | AH135: 0 | AI135: 6626.83 | AJ135: 11648.46 | AK135: 842.3 | AL135: 1260.09 | AM135: 7483.34 | AN135: 0 | AO135: 3939.9 | AP135: 9482.61 | AQ135: 0 | AR135: 42543.2 | AS135: 1026.5 | AT135: 13237.5 | AU135: 18172.15 | AV135: 0 | AW135: 0 | AX135: 0 | AY135: 0 | AZ135: 0 | BA135: -927097.8966 | BB135: -120820.5134 | BC135: 0 | BD135: -42473.84 | BE135: 0 | BF135: -55070 | BG135: -1771.29 | BH135: -1000 | BI135: -15098 | BJ135: -3845.38 | BK135: 0 | BL135: 0 | BM135: -2738.82 | BN135: -17539.02 | BO135: -3003.16 | BP135: 0 | BQ135: 0 | BR135: 0 | BS135: -46221 | BT135: 0 | BU135: 0 | BV135: -2982.3 | BW135: -1090392.25 | BX135: 0 | BY135: 0 | BZ135: 0 | CA135: 0 | CB135: 42473.84 | CC135: 0 | CD135: 42473.84
A136: 3061 | B136: Bredhurst CEP School | C136: 0 | D136: 137 | E136: 0 | F136: 0.5833333333 | G136: No | H136: Primary | I136: 100-199 | J136: =IF(G136=Benchmarking!$I$4,1,0) -> 0 | K136: =IF(Benchmarking!$I$6="All",1,IF(Benchmarking!$I$6=H136,1,0)) -> 0 | L136: =IF(Benchmarking!$I$8="All",1,IF(Benchmarking!$I$8=I136,1,0)) -> 0 | M136: 0 | N136: 443343.3 | O136: 0 | P136: 165752.49 | Q136: 31374.43 | R136: 23102.28 | S136: 0 | T136: 4819.67 | U136: 2956.48 | V136: 1813 | W136: 1598.37 | X136: 630.22 | Y136: 1741.38 | Z136: 3243 | AA136: 3261.57 | AB136: 5731.67 | AC136: 12448.28 | AD136: 18338.25 | AE136: 2322.68 | AF136: 42765.43 | AG136: 3906.66 | AH136: 0 | AI136: 21.36 | AJ136: 4846.49 | AK136: 0 | AL136: 0 | AM136: 1737.79 | AN136: 0 | AO136: 5511 | AP136: 5241.65 | AQ136: 2770.32 | AR136: 33875.04 | AS136: 0 | AT136: 2223.2 | AU136: 9976.32 | AV136: 0 | AW136: 0 | AX136: 0 | AY136: 0 | AZ136: 0 | BA136: -658807.1809 | BB136: -66663.52907 | BC136: 0 | BD136: -784.28 | BE136: 0 | BF136: -22510 | BG136: 0 | BH136: -1386 | BI136: -456 | BJ136: -14065.31 | BK136: -6852.29 | BL136: 0 | BM136: -496.15 | BN136: -15008.21 | BO136: -18740.45 | BP136: 0 | BQ136: 0 | BR136: 0 | BS136: -45454 | BT136: 0 | BU136: 0 | BV136: -360.83 | BW136: -726254.99 | BX136: 0 | BY136: 0 | BZ136: 0 | CA136: 0 | CB136: 784.28 | CC136: 0 | CD136: 784.28
A137: 3062 | B137: Burham CEP School | C137: 0 | D137: 146 | E137: 0 | F137: 6.166666667 | G137: No | H137: Primary | I137: 100-199 | J137: =IF(G137=Benchmarking!$I$4,1,0) -> 0 | K137: =IF(Benchmarking!$I$6="All",1,IF(Benchmarking!$I$6=H137,1,0)) -> 0 | L137: =IF(Benchmarking!$I$8="All",1,IF(Benchmarking!$I$8=I137,1,0)) -> 0 | M137: 0 | N137: 480690.65 | O137: 0 | P137: 134258.5 | Q137: 11054.59 | R137: 63042.08 | S137: 0 | T137: 34574.24 | U137: 4265.49 | V137: 13350.27 | W137: 1217.46 | X137: 4226.76 | Y137: 3333.85 | Z137: 7554.05 | AA137: 20259.86 | AB137: 1682.27 | AC137: 18005.18 | AD137: 29757 | AE137: 5239.13 | AF137: 41141.46 | AG137: 4197.52 | AH137: 0 | AI137: 8600.25 | AJ137: 8504.33 | AK137: 1307.52 | AL137: 40.24 | AM137: 5091 | AN137: 0 | AO137: 5254.38 | AP137: 5586 | AQ137: 3929.04 | AR137: 26706.08 | AS137: 32573.12 | AT137: 13495.43 | AU137: 18987.87 | AV137: 0 | AW137: 0 | AX137: 64.75 | AY137: 0 | AZ137: 0 | BA137: -712699.6196 | BB137: -84801.96035 | BC137: 0 | BD137: -53062.83 | BE137: 0 | BF137: -25450 | BG137: -1200 | BH137: -5625 | BI137: 0 | BJ137: -26427.69 | BK137: 0 | BL137: -450 | BM137: -11145 | BN137: -21660.72 | BO137: -7449.77 | BP137: 0 | BQ137: 0 | BR137: 0 | BS137: -38227 | BT137: 0 | BU137: 0 | BV137: -439.58 | BW137: -850564.41 | BX137: 0 | BY137: 0 | BZ137: 0 | CA137: 0 | CB137: 53062.83 | CC137: 0 | CD137: 53062.83
A138: 3067 | B138: Harrietsham CEP School | C138: 0 | D138: 362 | E138: 0 | F138: 10.91666667 | G138: No | H138: Primary | I138: 300-399 | J138: =IF(G138=Benchmarking!$I$4,1,0) -> 0 | K138: =IF(Benchmarking!$I$6="All",1,IF(Benchmarking!$I$6=H138,1,0)) -> 0 | L138: =IF(Benchmarking!$I$8="All",1,IF(Benchmarking!$I$8=I138,1,0)) -> 0 | M138: 0 | N138: 1144831.98 | O138: 0 | P138: 400551.65 | Q138: 45174.26 | R138: 86235.39 | S138: 0 | T138: 54117.88 | U138: 7476.63 | V138: 5528.94 | W138: 4197.62 | X138: 10479.96 | Y138: 45711.66 | Z138: 6668.85 | AA138: 29063.73 | AB138: 6927.79 | AC138: 41510.63 | AD138: 51925.12 | AE138: 15741.94 | AF138: 86811.31 | AG138: 8342.99 | AH138: 0 | AI138: 6581.7 | AJ138: 12160.2 | AK138: 10723.6 | AL138: 796.98 | AM138: 7883.7 | AN138: 0 | AO138: 11652.28 | AP138: 13850.16 | AQ138: 0 | AR138: 63484.2 | AS138: 59134.61 | AT138: 6928.89 | AU138: 27556.58 | AV138: 0 | AW138: 0 | AX138: 0 | AY138: 0 | AZ138: 0 | BA138: -1613231.103 | BB138: -276479.1273 | BC138: 0 | BD138: -83412.7 | BE138: 0 | BF138: -137330 | BG138: -5256.93 | BH138: -2310 | BI138: -7807 | BJ138: -9738.87 | BK138: -14.45 | BL138: 0 | BM138: -4121.18 | BN138: -33654.48 | BO138: -24810.47 | BP138: 0 | BQ138: 0 | BR138: 0 | BS138: -74562 | BT138: 0 | BU138: 0 | BV138: -1254.38 | BW138: -1973122.93 | BX138: 0 | BY138: 0 | BZ138: 0 | CA138: 0 | CB138: 83412.7 | CC138: 0 | CD138: 83412.7
A139: 3069 | B139: Leeds & Broomfield CEP School | C139: 0 | D139: 84 | E139: 0 | F139: 15 | G139: No | H139: Primary | I139: 0-99 | J139: =IF(G139=Benchmarking!$I$4,1,0) -> 0 | K139: =IF(Benchmarking!$I$6="All",1,IF(Benchmarking!$I$6=H139,1,0)) -> 0 | L139: =IF(Benchmarking!$I$8="All",1,IF(Benchmarking!$I$8=I139,1,0)) -> 0 | M139: 0 | N139: 232140.52 | O139: 0 | P139: 225648.82 | Q139: 10392.21 | R139: 25137.83 | S139: 0 | T139: 20424.55 | U139: 2285.7 | V139: 2300.65 | W139: 2793.46 | X139: 2431.8 | Y139: 5396.76 | Z139: 12447.48 | AA139: 118.39 | AB139: 1645.6 | AC139: 11151.79 | AD139: 6339.79 | AE139: 7742.93 | AF139: 8875.79 | AG139: 4636 | AH139: 0 | AI139: 3179.78 | AJ139: 4046.57 | AK139: 0 | AL139: 1490.1 | AM139: 210 | AN139: 0 | AO139: 5317.51 | AP139: 3213.84 | AQ139: 238125.53 | AR139: 23781.23 | AS139: 0 | AT139: 22708.4 | AU139: 13759.4 | AV139: 0 | AW139: 0 | AX139: 0 | AY139: 0 | AZ139: 0 | BA139: -562737.5214 | BB139: -67528.0386 | BC139: 0 | BD139: -123874.43 | BE139: 0 | BF139: -37189 | BG139: -1371.29 | BH139: -5749 | BI139: 0 | BJ139: -30433.1 | BK139: -707.65 | BL139: 0 | BM139: -221.76 | BN139: -4873.95 | BO139: -12114.62 | BP139: 0 | BQ139: 0 | BR139: 0 | BS139: -27967 | BT139: 0 | BU139: 0 | BV139: -420.83 | BW139: -754139.99 | BX139: 0 | BY139: 0 | BZ139: 0 | CA139: 0 | CB139: 123874.43 | CC139: 0 | CD139: 123874.43
A140: 3072 | B140: St Michaels CEJ School, Maidstone | C140: 0 | D140: 178 | E140: 0 | F140: 3 | G140: No | H140: Primary | I140: 100-199 | J140: =IF(G140=Benchmarking!$I$4,1,0) -> 0 | K140: =IF(Benchmarking!$I$6="All",1,IF(Benchmarking!$I$6=H140,1,0)) -> 0 | L140: =IF(Benchmarking!$I$8="All",1,IF(Benchmarking!$I$8=I140,1,0)) -> 0 | M140: 0 | N140: 526042.48 | O140: 0 | P140: 249659.29 | Q140: 17690.35 | R140: 52947.4 | S140: 0 | T140: 28107.31 | U140: 7609.03 | V140: 4949.02 | W140: 357.78 | X140: 5153.04 | Y140: 6883.54 | Z140: 446.22 | AA140: 17900.28 | AB140: 1506.44 | AC140: 13648.41 | AD140: 12475 | AE140: 5599.62 | AF140: 53351.89 | AG140: 5600 | AH140: 0 | AI140: 6735.97 | AJ140: 6993.09 | AK140: 452.66 | AL140: 570.22 | AM140: 5467.04 | AN140: 0 | AO140: 4331.04 | AP140: 6810.24 | AQ140: 10195.5 | AR140: 22930.42 | AS140: 0 | AT140: 4185.8 | AU140: 13574.81 | AV140: 0 | AW140: 0 | AX140: 0 | AY140: 0 | AZ140: 0 | BA140: -842460.2429 | BB140: -112336.3471 | BC140: 0 | BD140: -28100.5 | BE140: 0 | BF140: -68310 | BG140: -200 | BH140: -1000 | BI140: 0 | BJ140: -28750.9 | BK140: 0 | BL140: 0 | BM140: -1523.89 | BN140: -10270.98 | BO140: -1539.76 | BP140: 0 | BQ140: 0 | BR140: 0 | BS140: -17791 | BT140: 0 | BU140: 0 | BV140: -3038.55 | BW140: -982897.09 | BX140: 0 | BY140: 0 | BZ140: 0 | CA140: 0 | CB140: 28100.5 | CC140: 0 | CD140: 28100.5
A141: 3073 | B141: St Michaels Infant School | C141: 0 | D141: 122 | E141: 0 | F141: 3.416666667 | G141: No | H141: Primary | I141: 100-199 | J141: =IF(G141=Benchmarking!$I$4,1,0) -> 0 | K141: =IF(Benchmarking!$I$6="All",1,IF(Benchmarking!$I$6=H141,1,0)) -> 0 | L141: =IF(Benchmarking!$I$8="All",1,IF(Benchmarking!$I$8=I141,1,0)) -> 0 | M141: 0 | N141: 427609.95 | O141: 0 | P141: 160594.71 | Q141: 16424.98 | R141: 34470 | S141: 0 | T141: 43636.8 | U141: 4031.14 | V141: 5540.4 | W141: 245.22 | X141: 3531.96 | Y141: 4449.85 | Z141: 328.18 | AA141: 11995.78 | AB141: 2033.97 | AC141: 8641.81 | AD141: 12974 | AE141: 4793.11 | AF141: 27896.47 | AG141: 5420.44 | AH141: 0 | AI141: 7706.49 | AJ141: 5739.62 | AK141: 48.5 | AL141: 0 | AM141: 4126.9 | AN141: 0 | AO141: 7741.78 | AP141: 4667.76 | AQ141: 8077.17 | AR141: 54544.05 | AS141: 0 | AT141: 1528.84 | AU141: 13212.1 | AV141: 0 | AW141: 0 | AX141: 0 | AY141: 0 | AZ141: 0 | BA141: -636052.7632 | BB141: -71144.74684 | BC141: 0 | BD141: -33382.86 | BE141: 0 | BF141: -27730 | BG141: -1600 | BH141: -500 | BI141: 0 | BJ141: -37112.96 | BK141: 0 | BL141: 0 | BM141: -2465.65 | BN141: 0 | BO141: -8300 | BP141: 0 | BQ141: 0 | BR141: 0 | BS141: -59223 | BT141: 0 | BU141: 0 | BV141: -1654.17 | BW141: -740580.37 | BX141: 0 | BY141: 0 | BZ141: 0 | CA141: 0 | CB141: 33382.86 | CC141: 0 | CD141: 33382.86
A142: 3081 | B142: Thurnham CEI School | C142: 0 | D142: 270 | E142: 0 | F142: 6 | G142: No | H142: Primary | I142: 200-299 | J142: =IF(G142=Benchmarking!$I$4,1,0) -> 0 | K142: =IF(Benchmarking!$I$6="All",1,IF(Benchmarking!$I$6=H142,1,0)) -> 0 | L142: =IF(Benchmarking!$I$8="All",1,IF(Benchmarking!$I$8=I142,1,0)) -> 0 | M142: 0 | N142: 751474.3 | O142: 43236.57 | P142: 313716.24 | Q142: 34815.34 | R142: 77093.17 | S142: 0 | T142: 72207.87 | U142: 7057.94 | V142: 8973.63 | W142: 7003.41 | X142: 7816.56 | Y142: 12549.89 | Z142: 7195.88 | AA142: 15104.48 | AB142: 1941.92 | AC142: 31644.67 | AD142: 32760 | AE142: 16398.63 | AF142: 32197.02 | AG142: 6988.92 | AH142: 0 | AI142: 2025.46 | AJ142: 10674.32 | AK142: 0 | AL142: 0 | AM142: 5728.25 | AN142: 0 | AO142: 11278.89 | AP142: 10330.2 | AQ142: 905.07 | AR142: 112858.83 | AS142: 12191.1 | AT142: 22039.35 | AU142: 20914.09 | AV142: 0 | AW142: 0 | AX142: 0 | AY142: 0 | AZ142: 0 | BA142: -1174201.325 | BB142: -160287.5651 | BC142: 0 | BD142: -65289.66 | BE142: 0 | BF142: -13970 | BG142: -3600 | BH142: -5212.66 | BI142: 0 | BJ142: -70835.21 | BK142: 0 | BL142: -5328 | BM142: -2717.64 | BN142: -5978.17 | BO142: -10552.67 | BP142: 0 | BQ142: 0 | BR142: 0 | BS142: -144086 | BT142: 0 | BU142: 0 | BV142: -1030.21 | BW142: -1399778.55 | BX142: 0 | BY142: 0 | BZ142: 0 | CA142: 0 | CB142: 65289.66 | CC142: 0 | CD142: 65289.66
A143: 3082 | B143: Trottiscliffe CEP School | C143: 0 | D143: 75 | E143: 0 | F143: 2.166666667 | G143: No | H143: Primary | I143: 0-99 | J143: =IF(G143=Benchmarking!$I$4,1,0) -> 0 | K143: =IF(Benchmarking!$I$6="All",1,IF(Benchmarking!$I$6=H143,1,0)) -> 0 | L143: =IF(Benchmarking!$I$8="All",1,IF(Benchmarking!$I$8=I143,1,0)) -> 0 | M143: 0 | N143: 337178.28 | O143: 0 | P143: 123152.08 | Q143: 0 | R143: 25988.78 | S143: 0 | T143: 2387.86 | U143: 1878.62 | V143: 1218.75 | W143: 150.75 | X143: 2256.24 | Y143: 3728.11 | Z143: 4412.41 | AA143: 7269.13 | AB143: 2449.17 | AC143: 7976.73 | AD143: 7348.4 | AE143: 4003.34 | AF143: 22434.61 | AG143: 4354 | AH143: 0 | AI143: 10190.56 | AJ143: 7450.58 | AK143: 0 | AL143: 23.65 | AM143: 3135 | AN143: 0 | AO143: 4517.59 | AP143: 3209.46 | AQ143: 3310.32 | AR143: 15183.97 | AS143: 716 | AT143: 14139.11 | AU143: 15444.48 | AV143: 0 | AW143: 0 | AX143: 8635.07 | AY143: 0 | AZ143: 0 | BA143: -483668.5166 | BB143: -35050.39344 | BC143: 0 | BD143: -30486.32 | BE143: 0 | BF143: -6935 | BG143: -1371.29 | BH143: 0 | BI143: -587 | BJ143: -3917.58 | BK143: 0 | BL143: 0 | BM143: -4574.69 | BN143: -12288.81 | BO143: -1602.89 | BP143: 0 | BQ143: 0 | BR143: 0 | BS143: -30700 | BT143: 0 | BU143: 0 | BV143: -557.71 | BW143: -549205.23 | BX143: 0 | BY143: 0 | BZ143: 0 | CA143: 0 | CB143: 25080.66 | CC143: 5405.66 | CD143: 30486.32
A144: 3083 | B144: Ulcombe CEP School | C144: 0 | D144: 70 | E144: 0 | F144: 9 | G144: No | H144: Primary | I144: 0-99 | J144: =IF(G144=Benchmarking!$I$4,1,0) -> 0 | K144: =IF(Benchmarking!$I$6="All",1,IF(Benchmarking!$I$6=H144,1,0)) -> 0 | L144: =IF(Benchmarking!$I$8="All",1,IF(Benchmarking!$I$8=I144,1,0)) -> 0 | M144: 0 | N144: 204422.19 | O144: 20470.16 | P144: 131728.65 | Q144: 8222.07 | R144: 34735.29 | S144: 0 | T144: 7390.11 | U144: 4055.69 | V144: 1941.74 | W144: 3841.1 | X144: 2026.44 | Y144: 12381.82 | Z144: 3406.74 | AA144: 1079.65 | AB144: 2837.27 | AC144: 12502.54 | AD144: 6237.5 | AE144: 5406.61 | AF144: 13388.51 | AG144: 3912 | AH144: 0 | AI144: 2732.46 | AJ144: 5070.44 | AK144: 544.75 | AL144: 460.22 | AM144: 35 | AN144: 0 | AO144: 5881.82 | AP144: 2678.16 | AQ144: 231936.57 | AR144: 18029.38 | AS144: 0 | AT144: 5364.94 | AU144: 13581.3 | AV144: 0 | AW144: 0 | AX144: 64233.42 | AY144: 0 | AZ144: 0 | BA144: -513786.3871 | BB144: -89881.36292 | BC144: 0 | BD144: -64537.83 | BE144: 0 | BF144: -60680 | BG144: 0 | BH144: -1620 | BI144: 0 | BJ144: -10124.55 | BK144: -1321.47 | BL144: 0 | BM144: 0 | BN144: -3725.1 | BO144: 0 | BP144: 0 | BQ144: 0 | BR144: 0 | BS144: -22405 | BT144: 0 | BU144: 0 | BV144: -875.63 | BW144: -668205.58 | BX144: 0 | BY144: 0 | BZ144: 0 | CA144: 0 | CB144: 64537.83 | CC144: 0 | CD144: 64537.83
A145: 3084 | B145: Wateringbury CEP School | C145: 0 | D145: 159 | E145: 0 | F145: 7.416666667 | G145: No | H145: Primary | I145: 100-199 | J145: =IF(G145=Benchmarking!$I$4,1,0) -> 0 | K145: =IF(Benchmarking!$I$6="All",1,IF(Benchmarking!$I$6=H145,1,0)) -> 0 | L145: =IF(Benchmarking!$I$8="All",1,IF(Benchmarking!$I$8=I145,1,0)) -> 0 | M145: 0 | N145: 518415.76 | O145: 2690.38 | P145: 174937.99 | Q145: 16483.22 | R145: 34375.18 | S145: 0 | T145: 13151.71 | U145: 152.5 | V145: 11204.45 | W145: 4664.35 | X145: 4603.08 | Y145: 1707.37 | Z145: 8006.11 | AA145: 27565.64 | AB145: 7029.9 | AC145: 22919.84 | AD145: 4940.1 | AE145: 17908.36 | AF145: 41751.42 | AG145: 5225.44 | AH145: 312.42 | AI145: 9022.17 | AJ145: 4126.62 | AK145: 0.83 | AL145: 258.19 | AM145: 7127.12 | AN145: 0 | AO145: 5360.57 | AP145: 6083.34 | AQ145: 19 | AR145: 40885.4 | AS145: 6051.22 | AT145: 13378.83 | AU145: 24975.9 | AV145: 0 | AW145: 0 | AX145: 10284.34 | AY145: 0 | AZ145: 0 | BA145: -766168.4315 | BB145: -93355.0385 | BC145: 0 | BD145: -64909.14 | BE145: 0 | BF145: -58260 | BG145: -856.93 | BH145: -3009 | BI145: -819.5 | BJ145: -4549.18 | BK145: -771.6 | BL145: 0 | BM145: -996.75 | BN145: -16818.45 | BO145: -6670.09 | BP145: 0 | BQ145: 0 | BR145: 0 | BS145: -37941 | BT145: 0 | BU145: 0 | BV145: -851.88 | BW145: -924432.61 | BX145: 0 | BY145: 0 | BZ145: 0 | CA145: 0 | CB145: 64909.14 | CC145: 0 | CD145: 64909.14
A146: 3088 | B146: Wouldham, All Saints CE School | C146: 0 | D146: 412 | E146: 0 | F146: 7.5 | G146: No | H146: Junior | I146: 400-499 | J146: =IF(G146=Benchmarking!$I$4,1,0) -> 0 | K146: =IF(Benchmarking!$I$6="All",1,IF(Benchmarking!$I$6=H146,1,0)) -> 0 | L146: =IF(Benchmarking!$I$8="All",1,IF(Benchmarking!$I$8=I146,1,0)) -> 0 | M146: 0 | N146: 1166473.13 | O146: 17673.84 | P146: 559168.39 | Q146: 66722.8 | R146: 102080.53 | S146: 59270.2 | T146: 101754.87 | U146: 10794.2 | V146: 11707.17 | W146: 2193.12 | X146: 12097.44 | Y146: 7113.49 | Z146: 6224.05 | AA146: 16647.3 | AB146: 5000 | AC146: 57617.81 | AD146: 100464 | AE146: 14522.99 | AF146: 85271.4 | AG146: 5642.98 | AH146: 0 | AI146: 3523.12 | AJ146: 14294.52 | AK146: 1780.11 | AL146: 29.67 | AM146: 1165 | AN146: 0 | AO146: 9675.08 | AP146: 17255.23 | AQ146: 24420.79 | AR146: 46796.29 | AS146: 15475.46 | AT146: 59136.87 | AU146: 51165.74 | AV146: 0 | AW146: 0 | AX146: 0 | AY146: 0 | AZ146: 0 | BA146: -1793266.142 | BB146: -318216.6977 | BC146: 0 | BD146: -65854.22 | BE146: 0 | BF146: -118303 | BG146: -2800 | BH146: -12600 | BI146: -36297.82 | BJ146: -134663.19 | BK146: -22496.7 | BL146: 0 | BM146: -26074.01 | BN146: -20293 | BO146: -5250 | BP146: 0 | BQ146: 0 | BR146: 0 | BS146: -88762 | BT146: 0 | BU146: 0 | BV146: -5550 | BW146: -2177337.06 | BX146: 0 | BY146: 0 | BZ146: 0 | CA146: 0 | CB146: 65854.22 | CC146: 0 | CD146: 65854.22
A147: 3089 | B147: St Georges CEP School, Wrotham | C147: 0 | D147: 201 | E147: 0 | F147: 3.166666667 | G147: No | H147: Primary | I147: 200-299 | J147: =IF(G147=Benchmarking!$I$4,1,0) -> 0 | K147: =IF(Benchmarking!$I$6="All",1,IF(Benchmarking!$I$6=H147,1,0)) -> 0 | L147: =IF(Benchmarking!$I$8="All",1,IF(Benchmarking!$I$8=I147,1,0)) -> 0 | M147: 0 | N147: 681625.57 | O147: 3500 | P147: 169217.92 | Q147: 28143.66 | R147: 72809.68 | S147: 0 | T147: 24507.95 | U147: 4473.85 | V147: 3515.09 | W147: 404.01 | X147: 5818.91 | Y147: 4074.68 | Z147: 3820.55 | AA147: 21519.46 | AB147: 7888.64 | AC147: 18590.25 | AD147: 18088 | AE147: 4078.6 | AF147: 60667.15 | AG147: 0 | AH147: 0 | AI147: 3091.54 | AJ147: 748.97 | AK147: 0 | AL147: 0 | AM147: 0 | AN147: 0 | AO147: 10215.65 | AP147: 7690.26 | AQ147: 1314.24 | AR147: 31589.04 | AS147: 0 | AT147: 22066.02 | AU147: 27511.5 | AV147: 0 | AW147: 0 | AX147: 0 | AY147: 0 | AZ147: 0 | BA147: -904295.3892 | BB147: -126011.3408 | BC147: 0 | BD147: -29294.51 | BE147: 0 | BF147: -54760 | BG147: -2885.64 | BH147: -3010.73 | BI147: 0 | BJ147: -7792.17 | BK147: 0 | BL147: 0 | BM147: 0 | BN147: 0 | BO147: -30222.52 | BP147: 0 | BQ147: 0 | BR147: 0 | BS147: -48891 | BT147: 0 | BU147: 0 | BV147: -3276.05 | BW147: -1059601.24 | BX147: 0 | BY147: 0 | BZ147: 0 | CA147: 0 | CB147: 29294.51 | CC147: 0 | CD147: 29294.51
A148: 3090 | B148: St Margarets Collier Street School | C148: 0 | D148: 122 | E148: 0 | F148: 3.833333333 | G148: No | H148: Primary | I148: 100-199 | J148: =IF(G148=Benchmarking!$I$4,1,0) -> 0 | K148: =IF(Benchmarking!$I$6="All",1,IF(Benchmarking!$I$6=H148,1,0)) -> 0 | L148: =IF(Benchmarking!$I$8="All",1,IF(Benchmarking!$I$8=I148,1,0)) -> 0 | M148: 0 | N148: 417625.15 | O148: 6108.21 | P148: 145475.7 | Q148: 4504.96 | R148: 38547.25 | S148: 0 | T148: 16963.92 | U148: 2974.09 | V148: 3423 | W148: 2920.62 | X148: 3531.96 | Y148: 9232.86 | Z148: 5013.82 | AA148: 21713.56 | AB148: 3133.41 | AC148: 15115 | AD148: 18088.75 | AE148: 4759.69 | AF148: 41849 | AG148: 5126.31 | AH148: 0 | AI148: 4070.07 | AJ148: 8550.76 | AK148: 0 | AL148: 388.3 | AM148: 2901.18 | AN148: 0 | AO148: 3332.93 | AP148: 4667.76 | AQ148: 12255.57 | AR148: 21210.65 | AS148: 0 | AT148: 15578.73 | AU148: 7422.76 | AV148: 0 | AW148: 0 | AX148: 0 | AY148: 0 | AZ148: 0 | BA148: -643482.1587 | BB148: -74482.08127 | BC148: 0 | BD148: -32279.33 | BE148: 0 | BF148: -16280 | BG148: 0 | BH148: -810 | BI148: -611.35 | BJ148: -21421.76 | BK148: -460.3 | BL148: -2720 | BM148: 0 | BN148: -17674.1 | BO148: -4224.93 | BP148: 0 | BQ148: 0 | BR148: 0 | BS148: -37539 | BT148: 0 | BU148: 0 | BV148: -945.83 | BW148: -750243.57 | BX148: 0 | BY148: 0 | BZ148: 0 | CA148: 0 | CB148: 32279.33 | CC148: 0 | CD148: 32279.33
A149: 3091 | B149: Laddingford St Marys CEP School | C149: 10 | D149: 72 | E149: 0 | F149: 10.25 | G149: Yes | H149: Primary | I149: 0-99 | J149: =IF(G149=Benchmarking!$I$4,1,0) -> 0 | K149: =IF(Benchmarking!$I$6="All",1,IF(Benchmarking!$I$6=H149,1,0)) -> 0 | L149: =IF(Benchmarking!$I$8="All",1,IF(Benchmarking!$I$8=I149,1,0)) -> 0 | M149: 0 | N149: 319340.3 | O149: 3392.13 | P149: 109895.21 | Q149: 7592.24 | R149: 44431.89 | S149: 0 | T149: 3793.08 | U149: 2575.54 | V149: 2622.55 | W149: 144.72 | X149: 2084.4 | Y149: 2777.91 | Z149: 1587.81 | AA149: 13670.43 | AB149: 8436.43 | AC149: 4463.71 | AD149: 6051.63 | AE149: 10539.63 | AF149: 26077.91 | AG149: 4629.57 | AH149: 0 | AI149: 4415.24 | AJ149: 6724.66 | AK149: 6818.18 | AL149: 104.47 | AM149: 5060.26 | AN149: 0 | AO149: 6295.34 | AP149: 2754.72 | AQ149: 1215.22 | AR149: 22530.68 | AS149: 27700.9 | AT149: 50674.79 | AU149: 18475.21 | AV149: 0 | AW149: 0 | AX149: 0 | AY149: 0 | AZ149: 0 | BA149: -545261.2563 | BB149: -59282.03367 | BC149: 0 | BD149: -61659.66 | BE149: 0 | BF149: -26640 | BG149: -2685.64 | BH149: -7950 | BI149: -0.97 | BJ149: -4292.11 | BK149: -3813.18 | BL149: 0 | BM149: -126.21 | BN149: -8460.44 | BO149: -5571.25 | BP149: 0 | BQ149: 0 | BR149: 0 | BS149: -24833 | BT149: 0 | BU149: 0 | BV149: -599.38 | BW149: -666202.95 | BX149: 0 | BY149: 0 | BZ149: 0 | CA149: 0 | CB149: 60924.12 | CC149: 735.54 | CD149: 61659.66
A150: 3092 | B150: Yalding, St Peter & St Paul CEP School | C150: 0 | D150: 166 | E150: 0 | F150: 1.666666667 | G150: No | H150: Primary | I150: 100-199 | J150: =IF(G150=Benchmarking!$I$4,1,0) -> 0 | K150: =IF(Benchmarking!$I$6="All",1,IF(Benchmarking!$I$6=H150,1,0)) -> 0 | L150: =IF(Benchmarking!$I$8="All",1,IF(Benchmarking!$I$8=I150,1,0)) -> 0 | M150: 0 | N150: 582120.81 | O150: 0 | P150: 142321.36 | Q150: 7125.63 | R150: 44622.06 | S150: 0 | T150: 29053.79 | U150: 745.5 | V150: 1547 | W150: 333.66 | X150: 4805.64 | Y150: 6793.37 | Z150: 2860.88 | AA150: 22759.17 | AB150: 1475.09 | AC150: 15379.96 | AD150: 19663.25 | AE150: 3630.84 | AF150: 27244.8 | AG150: 4589.22 | AH150: 0 | AI150: 850 | AJ150: 2810.58 | AK150: 0 | AL150: 0 | AM150: 3566.34 | AN150: 0 | AO150: 8877.5 | AP150: 6351.12 | AQ150: 2477.21 | AR150: 18167.65 | AS150: 9408 | AT150: 2995 | AU150: 19064.92 | AV150: 0 | AW150: 0 | AX150: 0 | AY150: 0 | AZ150: 0 | BA150: -768657.9944 | BB150: -98553.11562 | BC150: 0 | BD150: -14164.91 | BE150: 0 | BF150: -32870 | BG150: 0 | BH150: -5160 | BI150: 0 | BJ150: -13642 | BK150: 0 | BL150: 0 | BM150: 0 | BN150: -10653.49 | BO150: 0 | BP150: 0 | BQ150: 0 | BR150: 0 | BS150: -28563 | BT150: 0 | BU150: 0 | BV150: -460.21 | BW150: -881376.02 | BX150: 0 | BY150: 0 | BZ150: 0 | CA150: 0 | CB150: 14164.91 | CC150: 0 | CD150: 14164.91
A151: 3108 | B151: Ospringe CEP School | C151: 0 | D151: 211 | E151: 0 | F151: 14.75 | G151: No | H151: Primary | I151: 200-299 | J151: =IF(G151=Benchmarking!$I$4,1,0) -> 0 | K151: =IF(Benchmarking!$I$6="All",1,IF(Benchmarking!$I$6=H151,1,0)) -> 0 | L151: =IF(Benchmarking!$I$8="All",1,IF(Benchmarking!$I$8=I151,1,0)) -> 0 | M151: 0 | N151: 737243.33 | O151: 0 | P151: 277608.11 | Q151: 34988.17 | R151: 99568.73 | S151: 17173.6 | T151: 48033.87 | U151: 4660.13 | V151: 5295.37 | W151: 4769.65 | X151: 6278.4 | Y151: 12913.32 | Z151: 3411.11 | AA151: 13618.06 | AB151: 5520.12 | AC151: 23398.75 | AD151: 23079 | AE151: 9535.99 | AF151: 57887.36 | AG151: 2563.4 | AH151: 1022 | AI151: 11135.81 | AJ151: 6339.62 | AK151: 1828 | AL151: 202.2 | AM151: 4263.84 | AN151: 0 | AO151: 12009.35 | AP151: 8752.86 | AQ151: 4118.34 | AR151: 57026.38 | AS151: 2868.98 | AT151: 0 | AU151: 20947.36 | AV151: 0 | AW151: 0 | AX151: 0 | AY151: 0 | AZ151: 0 | BA151: -1001587.783 | BB151: -182911.1874 | BC151: 0 | BD151: -125848.69 | BE151: 0 | BF151: -115170 | BG151: 0 | BH151: -5715 | BI151: -1400 | BJ151: -40007.68 | BK151: -14247.25 | BL151: -2880 | BM151: -8304.84 | BN151: -15715.88 | BO151: -11653.99 | BP151: 0 | BQ151: 0 | BR151: 0 | BS151: -45785 | BT151: 0 | BU151: 0 | BV151: -5908.33 | BW151: -1310347.66 | BX151: 0 | BY151: 0 | BZ151: 0 | CA151: 0 | CB151: 125848.69 | CC151: 0 | CD151: 125848.69
A152: 3109 | B152: Hernhill CEP School | C152: 0 | D152: 211 | E152: 0 | F152: 8.833333333 | G152: No | H152: Primary | I152: 200-299 | J152: =IF(G152=Benchmarking!$I$4,1,0) -> 0 | K152: =IF(Benchmarking!$I$6="All",1,IF(Benchmarking!$I$6=H152,1,0)) -> 0 | L152: =IF(Benchmarking!$I$8="All",1,IF(Benchmarking!$I$8=I152,1,0)) -> 0 | M152: 0 | N152: 682611.14 | O152: 0 | P152: 319548.5 | Q152: 42430.23 | R152: 35519.99 | S152: 0 | T152: 16028.92 | U152: 4186.09 | V152: 5063.42 | W152: 5486.88 | X152: 6013.44 | Y152: 4372.78 | Z152: 882.5 | AA152: 727.61 | AB152: 3978.12 | AC152: 17878.77 | AD152: 41769 | AE152: 3222.51 | AF152: 33423.29 | AG152: 1347.95 | AH152: 0 | AI152: 2621.23 | AJ152: 3487.99 | AK152: 804.66 | AL152: 136.68 | AM152: 2380 | AN152: 0 | AO152: 8759.66 | AP152: 8412.9 | AQ152: 3575.66 | AR152: 45471.25 | AS152: 0 | AT152: 18084.21 | AU152: 18357.5 | AV152: 0 | AW152: 0 | AX152: 0 | AY152: 0 | AZ152: 0 | BA152: -954373.691 | BB152: -124284.989 | BC152: 0 | BD152: -77409.83 | BE152: 0 | BF152: -53848.64 | BG152: 0 | BH152: -3943.45 | BI152: 0 | BJ152: -18803.23 | BK152: 0 | BL152: 0 | BM152: 0 | BN152: -7400.68 | BO152: -1134.15 | BP152: 0 | BQ152: 0 | BR152: 0 | BS152: -58178 | BT152: 0 | BU152: 0 | BV152: -502.3 | BW152: -1156068.51 | BX152: 0 | BY152: 0 | BZ152: 0 | CA152: 0 | CB152: 77409.83 | CC152: 0 | CD152: 77409.83
A153: 3111 | B153: Newington CEP School | C153: 36 | D153: 208 | E153: 0 | F153: 13 | G153: Yes | H153: Primary | I153: 200-299 | J153: =IF(G153=Benchmarking!$I$4,1,0) -> 0 | K153: =IF(Benchmarking!$I$6="All",1,IF(Benchmarking!$I$6=H153,1,0)) -> 0 | L153: =IF(Benchmarking!$I$8="All",1,IF(Benchmarking!$I$8=I153,1,0)) -> 0 | M153: 0 | N153: 723462.67 | O153: 0 | P153: 419969.34 | Q153: 40820.87 | R153: 59215.96 | S153: 0 | T153: 27067.56 | U153: 4848.94 | V153: 8358.43 | W153: 15088.54 | X153: 6381.6 | Y153: 61130.21 | Z153: 8383 | AA153: 8505.42 | AB153: 2000 | AC153: 14892.3 | AD153: 34048 | AE153: 6942.95 | AF153: 114166.86 | AG153: 0 | AH153: 0 | AI153: 1806.94 | AJ153: 3993.52 | AK153: 10238.23 | AL153: 80 | AM153: 1932.7 | AN153: 0 | AO153: 14659.62 | AP153: 9300.48 | AQ153: 0 | AR153: 47549.79 | AS153: 50253.15 | AT153: 0 | AU153: 16244.53 | AV153: 0 | AW153: 0 | AX153: 0 | AY153: 0 | AZ153: 0 | BA153: -1193110.473 | BB153: -195074.3168 | BC153: 0 | BD153: -126212.37 | BE153: 0 | BF153: -139560 | BG153: -400 | BH153: -2577 | BI153: -23099.21 | BJ153: -1122.43 | BK153: 0 | BL153: -1620 | BM153: -4099.76 | BN153: -8472.89 | BO153: -1211.83 | BP153: 0 | BQ153: 0 | BR153: 0 | BS153: -41822 | BT153: 0 | BU153: 0 | BV153: -5914.58 | BW153: -1514397.16 | BX153: 0 | BY153: 0 | BZ153: 0 | CA153: 0 | CB153: 126212.37 | CC153: 0 | CD153: 126212.37
A154: 3117 | B154: Teynham Parochial CEP School | C154: 0 | D154: 198 | E154: 0 | F154: 6.25 | G154: No | H154: Primary | I154: 100-199 | J154: =IF(G154=Benchmarking!$I$4,1,0) -> 0 | K154: =IF(Benchmarking!$I$6="All",1,IF(Benchmarking!$I$6=H154,1,0)) -> 0 | L154: =IF(Benchmarking!$I$8="All",1,IF(Benchmarking!$I$8=I154,1,0)) -> 0 | M154: 0 | N154: 665375.83 | O154: 3844.45 | P154: 259489.01 | Q154: 35561.41 | R154: 43679.79 | S154: 0 | T154: 26552.09 | U154: 4162.38 | V154: 9809 | W154: 397.98 | X154: 5732.16 | Y154: 1252.23 | Z154: 8879.32 | AA154: 1625.55 | AB154: 3698.79 | AC154: 37566.93 | AD154: 22080.75 | AE154: 10145.27 | AF154: 46661.62 | AG154: 6006 | AH154: 0 | AI154: 7833.02 | AJ154: 5788.84 | AK154: 1127.5 | AL154: 80.21 | AM154: 7294.68 | AN154: 0 | AO154: 13674.4 | AP154: 7575.48 | AQ154: 12340.45 | AR154: 44174.71 | AS154: 3750 | AT154: 29510.66 | AU154: 31670.98 | AV154: 0 | AW154: 0 | AX154: 0 | AY154: 0 | AZ154: 0 | BA154: -942465.1107 | BB154: -174184.7493 | BC154: 0 | BD154: -59368.15 | BE154: 0 | BF154: -100640 | BG154: -856.93 | BH154: -1900 | BI154: -3300 | BJ154: -31169.66 | BK154: -854.46 | BL154: 0 | BM154: -1944.78 | BN154: -12344.33 | BO154: -337 | BP154: 0 | BQ154: 0 | BR154: 0 | BS154: -34992 | BT154: 0 | BU154: 0 | BV154: -5670.83 | BW154: -1176018.01 | BX154: 0 | BY154: 0 | BZ154: 0 | CA154: 0 | CB154: 59368.15 | CC154: 0 | CD154: 59368.15
A155: 3120 | B155: Barham CEP School | C155: 0 | D155: 211 | E155: 0 | F155: 9.5 | G155: No | H155: Primary | I155: 200-299 | J155: =IF(G155=Benchmarking!$I$4,1,0) -> 0 | K155: =IF(Benchmarking!$I$6="All",1,IF(Benchmarking!$I$6=H155,1,0)) -> 0 | L155: =IF(Benchmarking!$I$8="All",1,IF(Benchmarking!$I$8=I155,1,0)) -> 0 | M155: 0 | N155: 648386.98 | O155: 4394.94 | P155: 231729.89 | Q155: 42077.26 | R155: 59693.22 | S155: 0 | T155: 33118.34 | U155: 4473.87 | V155: 2397.62 | W155: 8222.11 | X155: 970.56 | Y155: 10748.16 | Z155: 3668 | AA155: 3868.4 | AB155: 3758.88 | AC155: 25802.46 | AD155: 28672 | AE155: 6679.94 | AF155: 60897 | AG155: 3459.57 | AH155: 0 | AI155: 2152.58 | AJ155: 2666.52 | AK155: 937.48 | AL155: 0 | AM155: 1830.86 | AN155: 0 | AO155: 9160.38 | AP155: 8072.82 | AQ155: 414.16 | AR155: 43492.74 | AS155: 3810.56 | AT155: 14629.23 | AU155: 12104.56 | AV155: 0 | AW155: 0 | AX155: 0 | AY155: 0 | AZ155: 0 | BA155: -948069.4272 | BB155: -136533.7028 | BC155: 0 | BD155: -76899.15 | BE155: 0 | BF155: -43230 | BG155: -771.29 | BH155: -675 | BI155: 0 | BJ155: -12298.36 | BK155: 0 | BL155: -7960 | BM155: 0 | BN155: 0 | BO155: -15200.28 | BP155: 0 | BQ155: 0 | BR155: 0 | BS155: -53473 | BT155: 0 | BU155: 0 | BV155: -688.96 | BW155: -1161502.28 | BX155: 0 | BY155: 0 | BZ155: 0 | CA155: 0 | CB155: 76899.15 | CC155: 0 | CD155: 76899.15
A156: 3122 | B156: Bridge and Patrixbourne CEP School | C156: 0 | D156: 413 | E156: 0 | F156: 15.41666667 | G156: No | H156: Primary | I156: 400-499 | J156: =IF(G156=Benchmarking!$I$4,1,0) -> 0 | K156: =IF(Benchmarking!$I$6="All",1,IF(Benchmarking!$I$6=H156,1,0)) -> 0 | L156: =IF(Benchmarking!$I$8="All",1,IF(Benchmarking!$I$8=I156,1,0)) -> 0 | M156: 0 | N156: 1300189.44 | O156: 1680.81 | P156: 493253.88 | Q156: 56363.69 | R156: 96949.48 | S156: 72163.5 | T156: 81290.77 | U156: 8993 | V156: 6795 | W156: 830.13 | X156: 17645.8 | Y156: 13690.38 | Z156: 8659.17 | AA156: 9320.53 | AB156: 9854.71 | AC156: 37382.7 | AD156: 41769 | AE156: 9241.51 | AF156: 143336.31 | AG156: 8193.09 | AH156: 0 | AI156: 6301.92 | AJ156: 2031.15 | AK156: 0 | AL156: 0 | AM156: 0 | AN156: 7.95 | AO156: 27096.16 | AP156: 10961.9 | AQ156: 15045.11 | AR156: 77281.26 | AS156: 0 | AT156: 18586 | AU156: 39523.39 | AV156: 0 | AW156: 0 | AX156: 3963.5 | AY156: 0 | AZ156: 0 | BA156: -1739748.334 | BB156: -288437.2959 | BC156: 0 | BD156: -120710.79 | BE156: 0 | BF156: -47892 | BG156: -200 | BH156: -284 | BI156: -7102.2 | BJ156: -196507.41 | BK156: -63081.27 | BL156: 0 | BM156: -6346.8 | BN156: -71864.52 | BO156: -12767.57 | BP156: 0 | BQ156: 0 | BR156: 0 | BS156: -77214 | BT156: 0 | BU156: 0 | BV156: -478.96 | BW156: -2148896.42 | BX156: 0 | BY156: 0 | BZ156: 0 | CA156: 0 | CB156: 120710.79 | CC156: 0 | CD156: 120710.79
A157: 3123 | B157: Chislet CEP School | C157: 0 | D157: 88 | E157: 0 | F157: 6.916666667 | G157: No | H157: Junior | I157: 0-99 | J157: =IF(G157=Benchmarking!$I$4,1,0) -> 0 | K157: =IF(Benchmarking!$I$6="All",1,IF(Benchmarking!$I$6=H157,1,0)) -> 0 | L157: =IF(Benchmarking!$I$8="All",1,IF(Benchmarking!$I$8=I157,1,0)) -> 0 | M157: 0 | N157: 338364.07 | O157: 1256.65 | P157: 191007.4 | Q157: 1713.6 | R157: 36263.63 | S157: 0 | T157: 9060.5 | U157: 2228.22 | V157: 4313 | W157: 176.88 | X157: 2547.6 | Y157: 6920.29 | Z157: 1159.17 | AA157: 6923.95 | AB157: 2064.02 | AC157: 9097.33 | AD157: 7060 | AE157: 5622.65 | AF157: 18402.23 | AG157: 8794.52 | AH157: 1433.26 | AI157: 4982.19 | AJ157: 11156.74 | AK157: 1535 | AL157: 1295.09 | AM157: 2400 | AN157: 0 | AO157: 5514.35 | AP157: 3366.84 | AQ157: 7447.41 | AR157: 14922.08 | AS157: 0 | AT157: 65038.25 | AU157: 14125.23 | AV157: 0 | AW157: 0 | AX157: 3770.92 | AY157: 0 | AZ157: 0 | BA157: -555234.5617 | BB157: -65923.91825 | BC157: 0 | BD157: -76530.71 | BE157: 0 | BF157: -28723.39 | BG157: 0 | BH157: -810 | BI157: 0 | BJ157: -57140.27 | BK157: 0 | BL157: -9000 | BM157: 0 | BN157: -7135.13 | BO157: -8179.92 | BP157: 0 | BQ157: 0 | BR157: 0 | BS157: -28581 | BT157: 0 | BU157: 0 | BV157: -315.63 | BW157: -697689.19 | BX157: 0 | BY157: 0 | BZ157: 0 | CA157: 0 | CB157: 76530.71 | CC157: 0 | CD157: 76530.71
A158: 3126 | B158: Littlebourne CEP School | C158: 0 | D158: 104 | E158: 0 | F158: 0 | G158: No | H158: Infant | I158: 100-199 | J158: =IF(G158=Benchmarking!$I$4,1,0) -> 0 | K158: =IF(Benchmarking!$I$6="All",1,IF(Benchmarking!$I$6=H158,1,0)) -> 0 | L158: =IF(Benchmarking!$I$8="All",1,IF(Benchmarking!$I$8=I158,1,0)) -> 0 | M158: 0 | N158: 373317.21 | O158: 5281.15 | P158: 131786.42 | Q158: 20615.87 | R158: 35190.95 | S158: 0 | T158: 7614.99 | U158: 2516.84 | V158: 3279.49 | W158: 2166.85 | X158: 3010.8 | Y158: 1567 | Z158: 2387.75 | AA158: 5578.55 | AB158: 3902.97 | AC158: 15740.88 | AD158: 16140 | AE158: 7729.66 | AF158: 22519.7 | AG158: 1284.97 | AH158: 312 | AI158: 1705.65 | AJ158: 8510.77 | AK158: 0 | AL158: 156.16 | AM158: 5009 | AN158: 0 | AO158: 1742.07 | AP158: 3979.08 | AQ158: 3080.45 | AR158: 23981.73 | AS158: 13301.58 | AT158: 11629.63 | AU158: 27740.57 | AV158: 0 | AW158: 0 | AX158: 0 | AY158: 0 | AZ158: 0 | BA158: -561489.0191 | BB158: -69854.19094 | BC158: 0 | BD158: 0 | BE158: 0 | BF158: -49405 | BG158: -1085.64 | BH158: -660 | BI158: -9262.69 | BJ158: -19694.7 | BK158: 0 | BL158: 0 | BM158: 0 | BN158: -3762.2 | BO158: -4864.09 | BP158: 0 | BQ158: 0 | BR158: 0 | BS158: -35117 | BT158: 0 | BU158: 0 | BV158: -547.08 | BW158: -631343.21 | BX158: 0 | BY158: 0 | BZ158: 0 | CA158: 0 | CB158: 0 | CC158: 0 | CD158: 0
A159: 3129 | B159: St Alphege CEI School | C159: 31 | D159: 166 | E159: 0 | F159: 14.75 | G159: Yes | H159: Infant | I159: 100-199 | J159: =IF(G159=Benchmarking!$I$4,1,0) -> 0 | K159: =IF(Benchmarking!$I$6="All",1,IF(Benchmarking!$I$6=H159,1,0)) -> 0 | L159: =IF(Benchmarking!$I$8="All",1,IF(Benchmarking!$I$8=I159,1,0)) -> 0 | M159: 0 | N159: 559394.42 | O159: 0 | P159: 366792.53 | Q159: 54636.53 | R159: 103984.52 | S159: 0 | T159: 45972.03 | U159: 5211.77 | V159: 4503.34 | W159: 333.66 | X159: 4916.04 | Y159: 15475.65 | Z159: 353.47 | AA159: 3882.75 | AB159: 7258.75 | AC159: 25808.51 | AD159: 36855 | AE159: 12980 | AF159: 26403.49 | AG159: 5394.56 | AH159: 0 | AI159: 5401.52 | AJ159: 12862.6 | AK159: 531.67 | AL159: 195.48 | AM159: 2677.5 | AN159: 0 | AO159: 3331.6 | AP159: 6792.72 | AQ159: 2696.96 | AR159: 67733.29 | AS159: 190 | AT159: 88502.9 | AU159: 11182.76 | AV159: 0 | AW159: 0 | AX159: 16500 | AY159: 0 | AZ159: 0 | BA159: -1003225.682 | BB159: -125082.678 | BC159: 0 | BD159: -146857.43 | BE159: 0 | BF159: -48760 | BG159: -200 | BH159: -1227.03 | BI159: 0 | BJ159: -71749.97 | BK159: -3881.95 | BL159: 0 | BM159: -13878.93 | BN159: -23675.8 | BO159: -301.7 | BP159: 0 | BQ159: 0 | BR159: 0 | BS159: -80332 | BT159: 0 | BU159: 0 | BV159: -6643.25 | BW159: -1275165.79 | BX159: 0 | BY159: 0 | BZ159: 0 | CA159: 0 | CB159: 146857.43 | CC159: 0 | CD159: 146857.43
A160: 3130 | B160: Wickhambreaux CEP School | C160: 0 | D160: 118 | E160: 0 | F160: 2.833333333 | G160: No | H160: Primary | I160: 100-199 | J160: =IF(G160=Benchmarking!$I$4,1,0) -> 0 | K160: =IF(Benchmarking!$I$6="All",1,IF(Benchmarking!$I$6=H160,1,0)) -> 0 | L160: =IF(Benchmarking!$I$8="All",1,IF(Benchmarking!$I$8=I160,1,0)) -> 0 | M160: 0 | N160: 465483.23 | O160: 13327.82 | P160: 123848.24 | Q160: 0 | R160: 26346.15 | S160: 0 | T160: 13609.13 | U160: 2677.97 | V160: 4017 | W160: 2697.43 | X160: 5909.5 | Y160: 3390 | Z160: 1017.25 | AA160: 10274.05 | AB160: 4526.73 | AC160: 8063.94 | AD160: 9606 | AE160: 5018.34 | AF160: 40286.22 | AG160: 5000 | AH160: 2538.9 | AI160: 3844.77 | AJ160: 10345.24 | AK160: 0 | AL160: 0 | AM160: 2964.32 | AN160: 0 | AO160: 7422.82 | AP160: 4989.64 | AQ160: 1388.18 | AR160: 22323.67 | AS160: 0 | AT160: 15116.5 | AU160: 19343.67 | AV160: 0 | AW160: 0 | AX160: 0 | AY160: 0 | AZ160: 0 | BA160: -590307.6378 | BB160: -61372.87219 | BC160: 0 | BD160: -31128 | BE160: 0 | BF160: -22200 | BG160: -4456.93 | BH160: -810 | BI160: 0 | BJ160: -21014.65 | BK160: -963 | BL160: 0 | BM160: 0 | BN160: -27190.8 | BO160: -11045 | BP160: 0 | BQ160: 0 | BR160: 0 | BS160: -34028 | BT160: 0 | BU160: 0 | BV160: -1120.21 | BW160: -682808.51 | BX160: 0 | BY160: 0 | BZ160: 0 | CA160: 0 | CB160: 31128 | CC160: 0 | CD160: 31128
A161: 3136 | B161: Brabourne CEP School | C161: 0 | D161: 104 | E161: 0 | F161: 6.75 | G161: No | H161: Primary | I161: 100-199 | J161: =IF(G161=Benchmarking!$I$4,1,0) -> 0 | K161: =IF(Benchmarking!$I$6="All",1,IF(Benchmarking!$I$6=H161,1,0)) -> 0 | L161: =IF(Benchmarking!$I$8="All",1,IF(Benchmarking!$I$8=I161,1,0)) -> 0 | M161: 0 | N161: 377561.33 | O161: 4304.46 | P161: 151638.06 | Q161: 2926.12 | R161: 37117.3 | S161: 0 | T161: 0 | U161: 3070.07 | V161: 2272.75 | W161: 1630.04 | X161: 3095.76 | Y161: 5166.92 | Z161: 4363.49 | AA161: 14554.99 | AB161: 2723.13 | AC161: 10641.73 | AD161: 5532.91 | AE161: 6423.66 | AF161: 32597.54 | AG161: 2500 | AH161: 0 | AI161: 3932.78 | AJ161: 4744.92 | AK161: 0 | AL161: 114.85 | AM161: 3111 | AN161: 0 | AO161: 6377.9 | AP161: 4319.04 | AQ161: 2336.85 | AR161: 22559.52 | AS161: 2384 | AT161: 21869 | AU161: 15631.04 | AV161: 0 | AW161: 0 | AX161: 0 | AY161: 0 | AZ161: 0 | BA161: -544393.551 | BB161: -43143.76896 | BC161: 0 | BD161: -79749 | BE161: 0 | BF161: -11380 | BG161: 0 | BH161: -810 | BI161: 0 | BJ161: -34416.73 | BK161: 0 | BL161: -175 | BM161: -5823.77 | BN161: -11657.4 | BO161: -17556.25 | BP161: 0 | BQ161: 0 | BR161: 0 | BS161: -36048 | BT161: 0 | BU161: 0 | BV161: -439.58 | BW161: -667286.32 | BX161: 0 | BY161: 0 | BZ161: 0 | CA161: 0 | CB161: 68370.93 | CC161: 11378.07 | CD161: 79749
A162: 3137 | B162: Brookland CEP School | C162: 0 | D162: 93 | E162: 0 | F162: 4.416666667 | G162: No | H162: Primary | I162: 0-99 | J162: =IF(G162=Benchmarking!$I$4,1,0) -> 0 | K162: =IF(Benchmarking!$I$6="All",1,IF(Benchmarking!$I$6=H162,1,0)) -> 0 | L162: =IF(Benchmarking!$I$8="All",1,IF(Benchmarking!$I$8=I162,1,0)) -> 0 | M162: 0 | N162: 401000 | O162: 5890.38 | P162: 152103.58 | Q162: 3250.6 | R162: 41163.63 | S162: 0 | T162: 20752.89 | U162: 2352.09 | V162: 4378.2 | W162: 1782.71 | X162: 2692.32 | Y162: 2423.27 | Z162: 3431.66 | AA162: 14280.58 | AB162: 2007.33 | AC162: 8417.7 | AD162: 15768.5 | AE162: 7606.7 | AF162: 35976.91 | AG162: 3595 | AH162: 0 | AI162: 0 | AJ162: 444.51 | AK162: 0 | AL162: 19.14 | AM162: 0 | AN162: 0 | AO162: 9667.98 | AP162: 3558.18 | AQ162: 680.41 | AR162: 25745.93 | AS162: 0 | AT162: 0 | AU162: 12083.53 | AV162: 0 | AW162: 0 | AX162: 0 | AY162: 0 | AZ162: 0 | BA162: -528051.8405 | BB162: -81761.4795 | BC162: 0 | BD162: -43701.14 | BE162: 0 | BF162: -29940 | BG162: -571.29 | BH162: -10218.52 | BI162: 0 | BJ162: -22953.46 | BK162: -8420.78 | BL162: 0 | BM162: 0 | BN162: -7870.75 | BO162: -5946.53 | BP162: 0 | BQ162: 0 | BR162: 0 | BS162: -31257.75 | BT162: 0 | BU162: 0 | BV162: -1243.75 | BW162: -653514.46 | BX162: 0 | BY162: 0 | BZ162: 0 | CA162: 0 | CB162: 43701.14 | CC162: 0 | CD162: 43701.14
A163: 3138 | B163: Chilham, St Marys CEP School | C163: 0 | D163: 89 | E163: 0 | F163: 5 | G163: No | H163: Primary | I163: 0-99 | J163: =IF(G163=Benchmarking!$I$4,1,0) -> 0 | K163: =IF(Benchmarking!$I$6="All",1,IF(Benchmarking!$I$6=H163,1,0)) -> 0 | L163: =IF(Benchmarking!$I$8="All",1,IF(Benchmarking!$I$8=I163,1,0)) -> 0 | M163: 0 | N163: 393427.77 | O163: 1736.52 | P163: 129419.83 | Q163: 9857.17 | R163: 43532.95 | S163: 0 | T163: 8939.45 | U163: 2658.66 | V163: 5785.9 | W163: 7745.19 | X163: 2576.64 | Y163: 4169.09 | Z163: 2225 | AA163: 14396.47 | AB163: 1004.72 | AC163: 23971.1 | AD163: 8358 | AE163: 18458.48 | AF163: 14628.85 | AG163: 469.6 | AH163: 0 | AI163: 4316.33 | AJ163: 7021.74 | AK163: 1269.15 | AL163: 178.29 | AM163: 4488 | AN163: 0 | AO163: 1259.25 | AP163: 3405.18 | AQ163: 91 | AR163: 23881.62 | AS163: 1805.52 | AT163: 15136.54 | AU163: 19918.41 | AV163: 0 | AW163: 0 | AX163: 2991.66 | AY163: 0 | AZ163: 0 | BA163: -550679.138 | BB163: -54977.01196 | BC163: 0 | BD163: -45122.01 | BE163: 0 | BF163: -36220 | BG163: 0 | BH163: -5190 | BI163: 0 | BJ163: -8848.51 | BK163: -122.02 | BL163: 0 | BM163: -7406 | BN163: -5450.36 | BO163: -30317.05 | BP163: 0 | BQ163: 0 | BR163: 0 | BS163: -30949 | BT163: 0 | BU163: 0 | BV163: -1052.05 | BW163: -650778.16 | BX163: 0 | BY163: 0 | BZ163: 0 | CA163: 0 | CB163: 42610.41 | CC163: 2511.6 | CD163: 45122.01
A164: 3139 | B164: High Halden CEP School | C164: 0 | D164: 101 | E164: 0 | F164: 6.833333333 | G164: No | H164: Primary | I164: 100-199 | J164: =IF(G164=Benchmarking!$I$4,1,0) -> 0 | K164: =IF(Benchmarking!$I$6="All",1,IF(Benchmarking!$I$6=H164,1,0)) -> 0 | L164: =IF(Benchmarking!$I$8="All",1,IF(Benchmarking!$I$8=I164,1,0)) -> 0 | M164: 0 | N164: 392540.38 | O164: 0 | P164: 166381.44 | Q164: 0 | R164: 42430.39 | S164: 0 | T164: 10086.88 | U164: 2833.82 | V164: 7414.22 | W164: 4272.83 | X164: 2731.71 | Y164: 17666.08 | Z164: 7250.99 | AA164: 13444.76 | AB164: 2510.49 | AC164: 14971.9 | AD164: 22455 | AE164: 6361.57 | AF164: 42995.01 | AG164: 5826.85 | AH164: 0 | AI164: 4340.28 | AJ164: 6979.24 | AK164: 0 | AL164: 258.75 | AM164: 4762 | AN164: 0 | AO164: 6206.06 | AP164: 3730.97 | AQ164: 12117.84 | AR164: 30171.11 | AS164: 3968.11 | AT164: 20544.5 | AU164: 8258.54 | AV164: 0 | AW164: 0 | AX164: 2680.6 | AY164: 0 | AZ164: 0 | BA164: -609346.9348 | BB164: -69539.92523 | BC164: 0 | BD164: -60039.76 | BE164: 0 | BF164: -25160 | BG164: -2285.64 | BH164: -2350.14 | BI164: 0 | BJ164: -28814.37 | BK164: -18211.2 | BL164: 0 | BM164: 0 | BN164: -17524.29 | BO164: -5441.16 | BP164: 0 | BQ164: 0 | BR164: 0 | BS164: -37795 | BT164: 0 | BU164: 0 | BV164: -1360.42 | BW164: -738926.62 | BX164: 0 | BY164: 0 | BZ164: 0 | CA164: 0 | CB164: 60039.76 | CC164: 0 | CD164: 60039.76
A165: 3145 | B165: Woodchurch CEP School | C165: 0 | D165: 165 | E165: 0 | F165: 10.16666667 | G165: No | H165: Primary | I165: 100-199 | J165: =IF(G165=Benchmarking!$I$4,1,0) -> 0 | K165: =IF(Benchmarking!$I$6="All",1,IF(Benchmarking!$I$6=H165,1,0)) -> 0 | L165: =IF(Benchmarking!$I$8="All",1,IF(Benchmarking!$I$8=I165,1,0)) -> 0 | M165: 0 | N165: 568764.64 | O165: 0 | P165: 240789.38 | Q165: 6053.84 | R165: 38932.84 | S165: 0 | T165: 17699.57 | U165: 4450.92 | V165: 7058.15 | W165: 331.65 | X165: 4776.72 | Y165: 11335.03 | Z165: 1889.64 | AA165: 16668.16 | AB165: 6959.01 | AC165: 13571.53 | AD165: 12226 | AE165: 7248.77 | AF165: 37310.31 | AG165: 2500 | AH165: 0 | AI165: 4002.74 | AJ165: 1191.36 | AK165: 9.99 | AL165: 825.4 | AM165: 3618.73 | AN165: 0 | AO165: 14055.93 | AP165: 6312.9 | AQ165: 1734.99 | AR165: 34662.62 | AS165: 36585.28 | AT165: 58750.81 | AU165: 16626.74 | AV165: 0 | AW165: 0 | AX165: 2076.65 | AY165: 0 | AZ165: 0 | BA165: -796803.4896 | BB165: -105645.7404 | BC165: 0 | BD165: -88780.93 | BE165: 0 | BF165: -66480 | BG165: -2600 | BH165: -68.06 | BI165: -689.4 | BJ165: -22742.98 | BK165: 0 | BL165: 0 | BM165: -6052.09 | BN165: -16208.09 | BO165: -6025.63 | BP165: 0 | BQ165: 0 | BR165: 0 | BS165: -45730 | BT165: 0 | BU165: 0 | BV165: -2186.3 | BW165: -991230.16 | BX165: 0 | BY165: 0 | BZ165: 0 | CA165: 0 | CB165: 88780.93 | CC165: 0 | CD165: 88780.93
A166: 3146 | B166: Bodsham CEP School | C166: 0 | D166: 76 | E166: 0 | F166: 3.833333333 | G166: No | H166: Primary | I166: 0-99 | J166: =IF(G166=Benchmarking!$I$4,1,0) -> 0 | K166: =IF(Benchmarking!$I$6="All",1,IF(Benchmarking!$I$6=H166,1,0)) -> 0 | L166: =IF(Benchmarking!$I$8="All",1,IF(Benchmarking!$I$8=I166,1,0)) -> 0 | M166: 0 | N166: 359333.41 | O166: 4520.76 | P166: 112672.45 | Q166: 15516.5 | R166: 42078.63 | S166: 0 | T166: 7081.79 | U166: 2332.33 | V166: 1423.5 | W166: 4152.16 | X166: 2285.28 | Y166: 6305.2 | Z166: 8990.04 | AA166: 1081.83 | AB166: 262.76 | AC166: 13120.99 | AD166: 7229.58 | AE166: 5070.59 | AF166: 19129.91 | AG166: 2791.04 | AH166: 0 | AI166: 2508.41 | AJ166: 1761.45 | AK166: 376.28 | AL166: 225.16 | AM166: 2195.68 | AN166: 0 | AO166: 3036.72 | AP166: 3247.8 | AQ166: 1202.61 | AR166: 16225.17 | AS166: 10505 | AT166: 8066.66 | AU166: 16881.74 | AV166: 0 | AW166: 0 | AX166: 0 | AY166: 0 | AZ166: 0 | BA166: -482443.1576 | BB166: -42963.50237 | BC166: 0 | BD166: -33050.22 | BE166: 0 | BF166: -10360 | BG166: -800 | BH166: -810 | BI166: -200 | BJ166: -12354.57 | BK166: 0 | BL166: -10500 | BM166: 0 | BN166: -13619.07 | BO166: -9396.67 | BP166: 0 | BQ166: 0 | BR166: 0 | BS166: -27150 | BT166: 0 | BU166: 0 | BV166: -636.46 | BW166: -558456.88 | BX166: 0 | BY166: 0 | BZ166: 0 | CA166: 0 | CB166: 26519.6 | CC166: 6530.62 | CD166: 33050.22
A167: 3149 | B167: St Martins CEP School, Folkestone | C167: 0 | D167: 203 | E167: 0 | F167: 15.83333333 | G167: No | H167: Primary | I167: 200-299 | J167: =IF(G167=Benchmarking!$I$4,1,0) -> 0 | K167: =IF(Benchmarking!$I$6="All",1,IF(Benchmarking!$I$6=H167,1,0)) -> 0 | L167: =IF(Benchmarking!$I$8="All",1,IF(Benchmarking!$I$8=I167,1,0)) -> 0 | M167: 0 | N167: 699989.07 | O167: 2654.74 | P167: 318317.18 | Q167: 21834.58 | R167: 45859.39 | S167: 0 | T167: 46542.86 | U167: 4487.77 | V167: 2292.01 | W167: 3333.76 | X167: 5876.88 | Y167: 5110.26 | Z167: 2040 | AA167: 23824.66 | AB167: 2740.26 | AC167: 17285.47 | AD167: 24076.75 | AE167: 9620.35 | AF167: 71073.64 | AG167: 5057.1 | AH167: 660 | AI167: 500 | AJ167: 9234.85 | AK167: 2500 | AL167: 2429.5 | AM167: 3513.45 | AN167: 0 | AO167: 6394.74 | AP167: 7766.82 | AQ167: 2889.12 | AR167: 52552.76 | AS167: 2485 | AT167: 961.4 | AU167: 19369.78 | AV167: 0 | AW167: 0 | AX167: 0 | AY167: 0 | AZ167: 0 | BA167: -956232.562 | BB167: -150150.168 | BC167: 0 | BD167: -130968.68 | BE167: 0 | BF167: -60520 | BG167: 0 | BH167: -2283 | BI167: -1249.5 | BJ167: -12447.75 | BK167: -14276.28 | BL167: 0 | BM167: 0 | BN167: -22652.45 | BO167: -3471 | BP167: 0 | BQ167: 0 | BR167: 0 | BS167: -55539 | BT167: 0 | BU167: 0 | BV167: -3280.21 | BW167: -1237351.41 | BX167: 0 | BY167: 0 | BZ167: 0 | CA167: 0 | CB167: 130968.68 | CC167: 0 | CD167: 130968.68
A168: 3150 | B168: St Peters CEP School, Folkestone | C168: 0 | D168: 106 | E168: 0 | F168: 10.66666667 | G168: No | H168: Primary | I168: 100-199 | J168: =IF(G168=Benchmarking!$I$4,1,0) -> 0 | K168: =IF(Benchmarking!$I$6="All",1,IF(Benchmarking!$I$6=H168,1,0)) -> 0 | L168: =IF(Benchmarking!$I$8="All",1,IF(Benchmarking!$I$8=I168,1,0)) -> 0 | M168: 0 | N168: 500397.44 | O168: 0 | P168: 161907.54 | Q168: 29669.67 | R168: 31908.45 | S168: 0 | T168: 15772.58 | U168: 3534.1 | V168: 8264.37 | W168: 9878.06 | X168: 3068.64 | Y168: 9299.48 | Z168: 444.99 | AA168: 8586.48 | AB168: 5348.79 | AC168: 13729.43 | AD168: 2409.74 | AE168: 42549.07 | AF168: 22375.25 | AG168: 2964.87 | AH168: 0 | AI168: 4699.71 | AJ168: 10172.9 | AK168: 673.72 | AL168: 2331.64 | AM168: 2178.65 | AN168: 0 | AO168: 9486.26 | AP168: 4055.52 | AQ168: 2761.13 | AR168: 30445.64 | AS168: 35322.47 | AT168: 21383.64 | AU168: 17955.64 | AV168: 0 | AW168: 0 | AX168: 3528 | AY168: 0 | AZ168: 0 | BA168: -694408.0909 | BB168: -121104.2291 | BC168: 0 | BD168: -70134.92 | BE168: 0 | BF168: -73299.37 | BG168: 0 | BH168: -10925.04 | BI168: 0 | BJ168: -22385.32 | BK168: 0 | BL168: -6502 | BM168: -2970.16 | BN168: -3894 | BO168: -12490.96 | BP168: 0 | BQ168: 0 | BR168: 0 | BS168: -29883 | BT168: 0 | BU168: 0 | BV168: -862.71 | BW168: -885647.24 | BX168: 0 | BY168: 0 | BZ168: 0 | CA168: 0 | CB168: 70134.92 | CC168: 0 | CD168: 70134.92
A169: 3153 | B169: Seabrook CEP School | C169: 0 | D169: 101 | E169: 0 | F169: 5.416666667 | G169: No | H169: Primary | I169: 100-199 | J169: =IF(G169=Benchmarking!$I$4,1,0) -> 0 | K169: =IF(Benchmarking!$I$6="All",1,IF(Benchmarking!$I$6=H169,1,0)) -> 0 | L169: =IF(Benchmarking!$I$8="All",1,IF(Benchmarking!$I$8=I169,1,0)) -> 0 | M169: 0 | N169: 365583.11 | O169: 925.67 | P169: 146205.83 | Q169: 3140.4 | R169: 25662.85 | S169: 0 | T169: 32142.83 | U169: 2140.49 | V169: 1707.66 | W169: 2057.59 | X169: 2924.04 | Y169: 2657.79 | Z169: 1950 | AA169: 11006.38 | AB169: 1451.28 | AC169: 10896.95 | AD169: 1709.4 | AE169: 7416.96 | AF169: 41998.2 | AG169: 5477.75 | AH169: 593 | AI169: 550 | AJ169: 2001.66 | AK169: 258 | AL169: 89.85 | AM169: 1228 | AN169: 0 | AO169: 4552.48 | AP169: 3864.3 | AQ169: 624.61 | AR169: 25792.33 | AS169: 0 | AT169: 4320.66 | AU169: 16760.5 | AV169: 0 | AW169: 0 | AX169: 0 | AY169: 0 | AZ169: 0 | BA169: -522147.4702 | BB169: -63040.16976 | BC169: 0 | BD169: -48770.26 | BE169: 0 | BF169: -20730 | BG169: -2685.64 | BH169: -31750.66 | BI169: 0 | BJ169: -9018.88 | BK169: -5142.4 | BL169: 0 | BM169: 0 | BN169: -15206.91 | BO169: -6315.39 | BP169: 0 | BQ169: 0 | BR169: 0 | BS169: -34995 | BT169: 0 | BU169: 0 | BV169: -1215.63 | BW169: -633957.9 | BX169: 0 | BY169: 0 | BZ169: 0 | CA169: 0 | CB169: 48770.26 | CC169: 0 | CD169: 48770.26
A170: 3154 | B170: Lyminge CEP School | C170: 0 | D170: 187 | E170: 0 | F170: 3.416666667 | G170: No | H170: Primary | I170: 100-199 | J170: =IF(G170=Benchmarking!$I$4,1,0) -> 0 | K170: =IF(Benchmarking!$I$6="All",1,IF(Benchmarking!$I$6=H170,1,0)) -> 0 | L170: =IF(Benchmarking!$I$8="All",1,IF(Benchmarking!$I$8=I170,1,0)) -> 0 | M170: 0 | N170: 599202.18 | O170: 0 | P170: 195854 | Q170: 37840.03 | R170: 40743.36 | S170: 0 | T170: 12844.51 | U170: 22606.98 | V170: 3520 | W170: 375.87 | X170: 5473.56 | Y170: 7935.78 | Z170: 9455 | AA170: 1785.33 | AB170: 5123.82 | AC170: 14279.16 | AD170: 34944 | AE170: 5368.85 | AF170: 27694.24 | AG170: 3636.34 | AH170: 0 | AI170: 4376.52 | AJ170: 10612.27 | AK170: 6.51 | AL170: 111.4 | AM170: 3674.1 | AN170: 0 | AO170: 4017.89 | AP170: 7154.58 | AQ170: 906.3 | AR170: 33714.5 | AS170: 4414.39 | AT170: 22154.4 | AU170: 18356.79 | AV170: 0 | AW170: 0 | AX170: 21179 | AY170: 0 | AZ170: 0 | BA170: -856459.8516 | BB170: -89008.22843 | BC170: 0 | BD170: -24876.49 | BE170: 0 | BF170: -26650 | BG170: -1400 | BH170: -23552.8 | BI170: -322 | BJ170: -11474.71 | BK170: 0 | BL170: -120 | BM170: -21928.51 | BN170: -11878.96 | BO170: -3612.07 | BP170: 0 | BQ170: 0 | BR170: 0 | BS170: -47801 | BT170: 0 | BU170: 0 | BV170: -1239.58 | BW170: -970344.57 | BX170: 0 | BY170: 0 | BZ170: 0 | CA170: 0 | CB170: 24876.49 | CC170: 0 | CD170: 24876.49
A171: 3155 | B171: Lympne CEP School | C171: 0 | D171: 206 | E171: 0 | F171: 4.083333333 | G171: No | H171: Primary | I171: 200-299 | J171: =IF(G171=Benchmarking!$I$4,1,0) -> 0 | K171: =IF(Benchmarking!$I$6="All",1,IF(Benchmarking!$I$6=H171,1,0)) -> 0 | L171: =IF(Benchmarking!$I$8="All",1,IF(Benchmarking!$I$8=I171,1,0)) -> 0 | M171: 0 | N171: 546870.89 | O171: 2884.13 | P171: 214140.74 | Q171: 17304.2 | R171: 60618.66 | S171: 0 | T171: 50971.79 | U171: 4548.11 | V171: 6078.39 | W171: 4096.63 | X171: 5963.76 | Y171: 14396.59 | Z171: 7638.17 | AA171: 17113.1 | AB171: 5482.45 | AC171: 26317.72 | AD171: 47775 | AE171: 10556.43 | AF171: 52093.51 | AG171: 2910.32 | AH171: 0 | AI171: 4653.58 | AJ171: 12485.46 | AK171: 784.66 | AL171: 1893.32 | AM171: 3060.71 | AN171: 0 | AO171: 2818.77 | AP171: 7881.6 | AQ171: 2550.73 | AR171: 38959.72 | AS171: 11568 | AT171: 16933.89 | AU171: 18937.63 | AV171: 0 | AW171: 0 | AX171: 0 | AY171: 0 | AZ171: 0 | BA171: -938165.0133 | BB171: -105092.0467 | BC171: 0 | BD171: -36763.15 | BE171: 0 | BF171: -23170 | BG171: 0 | BH171: -1321.5 | BI171: -190 | BJ171: -38731.82 | BK171: -674.86 | BL171: -1360 | BM171: -2443.9 | BN171: -10082.95 | BO171: -26261.7 | BP171: 0 | BQ171: 0 | BR171: 0 | BS171: -58122 | BT171: 0 | BU171: 0 | BV171: -376.05 | BW171: -1080020.21 | BX171: 0 | BY171: 0 | BZ171: 0 | CA171: 0 | CB171: 36763.15 | CC171: 0 | CD171: 36763.15
A172: 3158 | B172: Stelling Minnis CEP School | C172: 0 | D172: 75 | E172: 0 | F172: 8.666666667 | G172: No | H172: Primary | I172: 0-99 | J172: =IF(G172=Benchmarking!$I$4,1,0) -> 0 | K172: =IF(Benchmarking!$I$6="All",1,IF(Benchmarking!$I$6=H172,1,0)) -> 0 | L172: =IF(Benchmarking!$I$8="All",1,IF(Benchmarking!$I$8=I172,1,0)) -> 0 | M172: 0 | N172: 334736.78 | O172: 12607.46 | P172: 134398.31 | Q172: 2396.76 | R172: 48553.24 | S172: 0 | T172: 22170.69 | U172: 2110.49 | V172: 3116.9 | W172: 3390.85 | X172: 2171.28 | Y172: 14937.14 | Z172: 3400 | AA172: 14820.59 | AB172: 5149.52 | AC172: 15849.65 | AD172: 16467 | AE172: 2581.55 | AF172: 25391.45 | AG172: 3240.35 | AH172: 0 | AI172: 3296.81 | AJ172: 3022.44 | AK172: 1092 | AL172: 1201.45 | AM172: 6022.78 | AN172: 0 | AO172: 1723.28 | AP172: 3074.4 | AQ172: 1901.14 | AR172: 25047.41 | AS172: 29765.18 | AT172: 20050 | AU172: 27364.26 | AV172: 0 | AW172: 0 | AX172: 0 | AY172: 0 | AZ172: 0 | BA172: -525184.9538 | BB172: -44526.69616 | BC172: 0 | BD172: -99043.44 | BE172: 0 | BF172: -16280 | BG172: -9080 | BH172: 0 | BI172: 0 | BJ172: -16627.24 | BK172: -8120.7 | BL172: -22860 | BM172: 0 | BN172: -7131.89 | BO172: -5854.86 | BP172: 0 | BQ172: 0 | BR172: 0 | BS172: -28737 | BT172: 0 | BU172: 0 | BV172: -1211.46 | BW172: -668755.09 | BX172: 0 | BY172: 0 | BZ172: 0 | CA172: 0 | CB172: 85633.68 | CC172: 13409.76 | CD172: 99043.44
A173: 3159 | B173: Stowting CEP School | C173: 0 | D173: 102 | E173: 0 | F173: 5.166666667 | G173: No | H173: Primary | I173: 100-199 | J173: =IF(G173=Benchmarking!$I$4,1,0) -> 0 | K173: =IF(Benchmarking!$I$6="All",1,IF(Benchmarking!$I$6=H173,1,0)) -> 0 | L173: =IF(Benchmarking!$I$8="All",1,IF(Benchmarking!$I$8=I173,1,0)) -> 0 | M173: 0 | N173: 357206.89 | O173: 5823.98 | P173: 161279.33 | Q173: 7270.78 | R173: 34208.13 | S173: 0 | T173: 12851.08 | U173: 3402.47 | V173: 3585 | W173: 2005.02 | X173: 3037.92 | Y173: 6482.77 | Z173: 19462.85 | AA173: 17734.49 | AB173: 3961.61 | AC173: 14347.24 | AD173: 18338.25 | AE173: 4791.36 | AF173: 28840.49 | AG173: 1550.4 | AH173: 0 | AI173: 3556.18 | AJ173: 7397.77 | AK173: 450 | AL173: 182.97 | AM173: 3575 | AN173: 0 | AO173: 2901.93 | AP173: 4242.48 | AQ173: 1934.44 | AR173: 34567.51 | AS173: 0 | AT173: 24353.78 | AU173: 19283.86 | AV173: 0 | AW173: 0 | AX173: 33080 | AY173: 0 | AZ173: 0 | BA173: -575139.1916 | BB173: -40309.22838 | BC173: 0 | BD173: -74412.32 | BE173: 0 | BF173: -19550 | BG173: 0 | BH173: -18485.08 | BI173: -633 | BJ173: -29232.34 | BK173: -8297.06 | BL173: 0 | BM173: -10646.99 | BN173: -9547.81 | BO173: -16158.67 | BP173: 0 | BQ173: 0 | BR173: 0 | BS173: -37005 | BT173: 0 | BU173: 0 | BV173: -1143.96 | BW173: -689860.74 | BX173: 0 | BY173: 0 | BZ173: 0 | CA173: 0 | CB173: 64238.74 | CC173: 10173.58 | CD173: 74412.32
A174: 3160 | B174: Selsted CEP School | C174: 0 | D174: 102 | E174: 0 | F174: 1.416666667 | G174: No | H174: Primary | I174: 100-199 | J174: =IF(G174=Benchmarking!$I$4,1,0) -> 0 | K174: =IF(Benchmarking!$I$6="All",1,IF(Benchmarking!$I$6=H174,1,0)) -> 0 | L174: =IF(Benchmarking!$I$8="All",1,IF(Benchmarking!$I$8=I174,1,0)) -> 0 | M174: 0 | N174: 410599.5 | O174: 2427.12 | P174: 95735.51 | Q174: 1285.2 | R174: 29911.24 | S174: 0 | T174: 0 | U174: 2580.78 | V174: 3643.5 | W174: 1812.6 | X174: 3123 | Y174: 8642.28 | Z174: 1300 | AA174: 16195.3 | AB174: 3788.55 | AC174: 25386.47 | AD174: 14096.75 | AE174: 9944.75 | AF174: 36970.79 | AG174: 2126.4 | AH174: 404 | AI174: 2318.66 | AJ174: 8696.7 | AK174: 587 | AL174: 0 | AM174: 1571.65 | AN174: 0 | AO174: 1799.47 | AP174: 4582.56 | AQ174: 1670.8 | AR174: 33643.78 | AS174: 0 | AT174: 11.25 | AU174: 11113.6 | AV174: 0 | AW174: 0 | AX174: 0 | AY174: 0 | AZ174: 0 | BA174: -564181.1828 | BB174: -47852.68722 | BC174: 0 | BD174: -14818.69 | BE174: 0 | BF174: -18850 | BG174: -1600 | BH174: -4747.98 | BI174: -1627.56 | BJ174: -1962.39 | BK174: -17408.71 | BL174: 0 | BM174: -245 | BN174: -7571 | BO174: -9520.13 | BP174: 0 | BQ174: 0 | BR174: 0 | BS174: -34624 | BT174: 0 | BU174: 0 | BV174: -400.21 | BW174: -626852.56 | BX174: 0 | BY174: 0 | BZ174: 0 | CA174: 0 | CB174: 13097.78 | CC174: 1720.91 | CD174: 14818.69
A175: 3167 | B175: Eastry CEP School | C175: 0 | D175: 175 | E175: 0 | F175: 11.08333333 | G175: No | H175: Primary | I175: 100-199 | J175: =IF(G175=Benchmarking!$I$4,1,0) -> 0 | K175: =IF(Benchmarking!$I$6="All",1,IF(Benchmarking!$I$6=H175,1,0)) -> 0 | L175: =IF(Benchmarking!$I$8="All",1,IF(Benchmarking!$I$8=I175,1,0)) -> 0 | M175: 0 | N175: 635427.49 | O175: 2331.02 | P175: 261509.27 | Q175: 47810.7 | R175: 68926.1 | S175: 0 | T175: 18185.99 | U175: 4065.24 | V175: 2846 | W175: 351.75 | X175: 804.96 | Y175: 2274.13 | Z175: 6875.54 | AA175: 2650.55 | AB175: 1351.19 | AC175: 17659.74 | AD175: 18088.75 | AE175: 4355.85 | AF175: 36324.08 | AG175: 3231 | AH175: 0 | AI175: 7226.44 | AJ175: 2091.35 | AK175: 1837.97 | AL175: 257.63 | AM175: 7578.35 | AN175: 0 | AO175: 8404.21 | AP175: 6695.46 | AQ175: 1261.76 | AR175: 41318.4 | AS175: 14221.86 | AT175: 0 | AU175: 10187.4 | AV175: 0 | AW175: 0 | AX175: 0 | AY175: 0 | AZ175: 0 | BA175: -845575.9144 | BB175: -137511.8856 | BC175: 0 | BD175: -75805.18 | BE175: 0 | BF175: -88020 | BG175: 0 | BH175: 0 | BI175: 0 | BJ175: -9223.78 | BK175: 0 | BL175: 0 | BM175: 0 | BN175: -7931.45 | BO175: -239.15 | BP175: 0 | BQ175: 0 | BR175: 0 | BS175: -36724 | BT175: 0 | BU175: 0 | BV175: -4282.3 | BW175: -1058892.98 | BX175: 0 | BY175: 0 | BZ175: 0 | CA175: 0 | CB175: 75805.18 | CC175: 0 | CD175: 75805.18
A176: 3168 | B176: Goodnestone CEP School | C176: 0 | D176: 57 | E176: 0 | F176: 9.416666667 | G176: No | H176: Infant | I176: 0-99 | J176: =IF(G176=Benchmarking!$I$4,1,0) -> 0 | K176: =IF(Benchmarking!$I$6="All",1,IF(Benchmarking!$I$6=H176,1,0)) -> 0 | L176: =IF(Benchmarking!$I$8="All",1,IF(Benchmarking!$I$8=I176,1,0)) -> 0 | M176: 0 | N176: 290113.89 | O176: 0 | P176: 201903.71 | Q176: 0 | R176: 23317.74 | S176: 0 | T176: 28053.71 | U176: 2226.13 | V176: 3217.25 | W176: 3614.57 | X176: 1650.12 | Y176: 6496.44 | Z176: 2209.96 | AA176: 7618.26 | AB176: 559.07 | AC176: 7121.04 | AD176: 3443 | AE176: 4992.37 | AF176: 11188.41 | AG176: 3090 | AH176: 0 | AI176: 6011.92 | AJ176: 5137.16 | AK176: 0 | AL176: 730.8 | AM176: 5656 | AN176: 0 | AO176: 6049.14 | AP176: 2180.82 | AQ176: 2505.04 | AR176: 10112.59 | AS176: 32638.03 | AT176: 0 | AU176: 15638.7 | AV176: 0 | AW176: 0 | AX176: 0 | AY176: 0 | AZ176: 0 | BA176: -445329.0138 | BB176: -41102.44619 | BC176: 0 | BD176: -125170.4 | BE176: 0 | BF176: -8880 | BG176: -856.93 | BH176: -755 | BI176: 0 | BJ176: -2859.11 | BK176: 0 | BL176: 0 | BM176: 0 | BN176: -4084 | BO176: -686.3 | BP176: 0 | BQ176: 0 | BR176: 0 | BS176: -28388 | BT176: 0 | BU176: 0 | BV176: -597.08 | BW176: -611601.86 | BX176: 0 | BY176: 0 | BZ176: 0 | CA176: 0 | CB176: 107375.16 | CC176: 17795.24 | CD176: 125170.4
A177: 3169 | B177: Guston CEP School | C177: 0 | D177: 145 | E177: 0 | F177: 5.166666667 | G177: No | H177: Primary | I177: 100-199 | J177: =IF(G177=Benchmarking!$I$4,1,0) -> 0 | K177: =IF(Benchmarking!$I$6="All",1,IF(Benchmarking!$I$6=H177,1,0)) -> 0 | L177: =IF(Benchmarking!$I$8="All",1,IF(Benchmarking!$I$8=I177,1,0)) -> 0 | M177: 0 | N177: 535450.01 | O177: 0 | P177: 237101.66 | Q177: 36047.01 | R177: 51892.8 | S177: 0 | T177: 0 | U177: 3745.65 | V177: 4815.45 | W177: 2107.3 | X177: 4197.72 | Y177: 4190.02 | Z177: 3998.68 | AA177: 1044.51 | AB177: 7328.62 | AC177: 22536.02 | AD177: 18587.75 | AE177: 11184.24 | AF177: 26984.86 | AG177: 2126.4 | AH177: 0 | AI177: 6199.38 | AJ177: 6120.6 | AK177: 0 | AL177: 26.78 | AM177: 3321.29 | AN177: 0 | AO177: 5485.74 | AP177: 5547.66 | AQ177: 2632.46 | AR177: 34083.15 | AS177: 2423.45 | AT177: 52120.12 | AU177: 17214.3 | AV177: 0 | AW177: 0 | AX177: 0 | AY177: 0 | AZ177: 0 | BA177: -732844.3294 | BB177: -87762.52062 | BC177: 0 | BD177: -50820.04 | BE177: 0 | BF177: -62680 | BG177: -46125 | BH177: -36454.56 | BI177: -61.89 | BJ177: -4592.14 | BK177: 0 | BL177: -400 | BM177: -5494.37 | BN177: -7133.81 | BO177: -8114.84 | BP177: 0 | BQ177: 0 | BR177: 0 | BS177: -41549 | BT177: 0 | BU177: 0 | BV177: -294.58 | BW177: -871426.89 | BX177: 0 | BY177: 0 | BZ177: 0 | CA177: 0 | CB177: 50820.04 | CC177: 0 | CD177: 50820.04
A178: 3171 | B178: Nonington CEP School | C178: 0 | D178: 38 | E178: 0 | F178: 4 | G178: No | H178: Primary | I178: 0-99 | J178: =IF(G178=Benchmarking!$I$4,1,0) -> 0 | K178: =IF(Benchmarking!$I$6="All",1,IF(Benchmarking!$I$6=H178,1,0)) -> 0 | L178: =IF(Benchmarking!$I$8="All",1,IF(Benchmarking!$I$8=I178,1,0)) -> 0 | M178: 0 | N178: 238888.75 | O178: 0 | P178: 159989.3 | Q178: 7513.51 | R178: 34444.17 | S178: 0 | T178: 17323.88 | U178: 2253.42 | V178: 4187.17 | W178: 3576.38 | X178: 1100.16 | Y178: 4322.49 | Z178: 7751.16 | AA178: 2798.52 | AB178: 861.82 | AC178: 13837.92 | AD178: 9606 | AE178: 3974.56 | AF178: 14645.53 | AG178: 5249.96 | AH178: 0 | AI178: 7016.99 | AJ178: 3193.22 | AK178: 0 | AL178: 1315.56 | AM178: 5092 | AN178: 0 | AO178: 1511.35 | AP178: 1453.92 | AQ178: 7710.65 | AR178: 17630.94 | AS178: 40843.01 | AT178: 270 | AU178: 15757.36 | AV178: 0 | AW178: 0 | AX178: 0 | AY178: 0 | AZ178: 0 | BA178: -317129.4514 | BB178: -50064.95859 | BC178: 0 | BD178: -46686.35 | BE178: 0 | BF178: -32560 | BG178: -3200 | BH178: -101884.62 | BI178: 0 | BJ178: -7157.85 | BK178: 0 | BL178: -2160 | BM178: -14661.42 | BN178: -2735.42 | BO178: -300 | BP178: 0 | BQ178: 0 | BR178: 0 | BS178: -21998 | BT178: 0 | BU178: 0 | BV178: -1803.13 | BW178: -413880.76 | BX178: 0 | BY178: 0 | BZ178: 0 | CA178: 0 | CB178: 42712.43 | CC178: 3973.92 | CD178: 46686.35
A179: 3175 | B179: Shepherdswell CEP School | C179: 0 | D179: 208 | E179: 0 | F179: 8.416666667 | G179: No | H179: Primary | I179: 200-299 | J179: =IF(G179=Benchmarking!$I$4,1,0) -> 0 | K179: =IF(Benchmarking!$I$6="All",1,IF(Benchmarking!$I$6=H179,1,0)) -> 0 | L179: =IF(Benchmarking!$I$8="All",1,IF(Benchmarking!$I$8=I179,1,0)) -> 0 | M179: 0 | N179: 634946.41 | O179: 6034.18 | P179: 244452.61 | Q179: 31699.01 | R179: 71021.38 | S179: 0 | T179: 28983.92 | U179: 3891.47 | V179: 8809.96 | W179: 418.08 | X179: 6021.6 | Y179: 15018.76 | Z179: 11844.39 | AA179: 26476.18 | AB179: 5099.08 | AC179: 14542.77 | AD179: 33852 | AE179: 6078.13 | AF179: 42966.24 | AG179: 2414.32 | AH179: 0 | AI179: 6950.64 | AJ179: 11489.56 | AK179: 474 | AL179: 4.97 | AM179: 3520.17 | AN179: 0 | AO179: 10893.4 | AP179: 7958.04 | AQ179: 9860.22 | AR179: 42243.63 | AS179: 0 | AT179: 19088.3 | AU179: 17794.27 | AV179: 0 | AW179: 595.28 | AX179: 9004.18 | AY179: 0 | AZ179: 0 | BA179: -947511.668 | BB179: -111636.302 | BC179: 0 | BD179: -91153.18 | BE179: 0 | BF179: -55310 | BG179: -200 | BH179: -9649.87 | BI179: 0 | BJ179: -61970.73 | BK179: -784.3 | BL179: 0 | BM179: -754 | BN179: -11034.75 | BO179: -7745.25 | BP179: 0 | BQ179: 0 | BR179: 0 | BS179: -49370 | BT179: 0 | BU179: 0 | BV179: -2306.25 | BW179: -1150301.15 | BX179: 0 | BY179: 0 | BZ179: 0 | CA179: 0 | CB179: 91153.18 | CC179: 0 | CD179: 91153.18
